Workbook

Sheet About the PLCCDT
B1: THE PLCCDT was developed by ARRB under Austroads project AAM6143 'Prolonging the Life of Road Assets Under Increasing Demand reported in AP-R649-21. This sheet replicates Appendix A of the above report and accompanies the published version of the PLCCDT. The tool has open access to the Analyst with the exeception of the macros which run the PLCCDT and a limited selection of items as described in the following sheet 'Access sttings'. Restrictions have been applied in this version in aiming to minimise errors in use, including inadvertent overwriting of formulae and certain fixed tables such as for road user cost determination. Enquiries on the application and use of the tool and queries may be directed to the Publisher: Austroads Ltd. Level 9, 287 Elizabeth Street Sydney NSW 2000 Australia Phone: +61 2 8265 3300 austroads@austroads.com.au www.austroads.com.au or to the developers at enquiries_plccdt@arrb.com.au
B3: Appendix A: Pavement Life-cycle Cost Demonstration Tool
B4: A.1 Overview
B5: The Pavement Life-cycle Cost Demonstration Tool (PLCCDT) is based on a deterministic pavement life cycle cost analysis that was developed in MS Excel which can be applied to this project with some further improvements. The current scope and functionality of the tool is summarised in Table A 1 and Table A 2.
B7: A.2 Coverage of Pavement Maintenance and Related Treatments
B8: The pavement maintenance–related treatments and minor cross-section improvements which are possible to model within the PLCCDT represent treatments ranging from low cost with low impact on pavement conditions and performance to those which are higher in cost and can have a significant impact on condition and performance. They can be applied to achieve the following results: • To demonstrate the value of pavement asset preservation programs using standard responses, such as timely resurfacing and ride quality or other profile corrections. The timing and triggers used should vary by road importance/traffic with a view to optimising interventions. • To illustrate the benefits of minor works including drainage and shoulder improvements on pavement performance. This could be implemented in combination with a preservation program. • To demonstrate the value of combination seals and modified binders as initial surfacings, or resurfacings, which would be expected to extend the binder life and slow the rate of deterioration. The range of pavement maintenance–related treatments and their scope/purpose and current availability in the PLCCDT is presented in Table A 2. In addition to this range, the following cases can also be addressed within the current tool: • The effect of a pavement structural strengthening improvement and/or a change in climate, with this possible by providing a higher SNC relative to the pre-treatment case and alternative climate cases. • The effect of a change in traffic growth (from start of analysis) with this compared against the base case (unchanged traffic).
B10: Safety improvements are not currently built into the PLCCDT but a simple method of accommodating them is illustrated in Appendix D. Minor improvements are also not covered directly but could be added as a feature to include such treatments as increases in surface (or seal) width, which is known to contribute to capacity improvements and to speed improvements. Solutions for this are available for a selection of typical road stereotypes drawing on previous Austroads studies and from agency-specific cost-benefit analysis tools, whereas the latter can be demonstrated drawing on the ATAP guideline PV2 (Transport and Infrastructure Council 2015). The addition of sealed shoulders has the potential to improve capacity and speed, but an established basis is not known. Nominal effects could, however, be accommodated drawing on agency experience. The current tool incorporates most of the RD and WE functionality and treatment selection criteria for pavement treatments and treatment costs, with the following areas yet to be implemented: • Modification factors, these being general multiplication factors which alter performance trends in response to drainage and ground treatments, and cross-section standards including shoulder sealing, grade raising, etc. which generally reduce moisture effects (Paterson 1987). • Works effects, with these to be revised to accommodate varying thicknesses of overlay, the effectiveness of which varies by pre-overlay condition and thickness, and depths of mill and replace treatments. Additional functionality which will extend the tool to allow full economic analysis and incorporate non pavement related treatments and associated benefits, and more complex future traffic options include: • Multiple traffic/loading periods with changes in growth or step changes in traffic and/or loading to allow the effect of significant changes in traffic to be determined. This capability will provide input to the determination of the marginal cost of road wear from increased loading as an alternative to the FAMLIT analysis tool (Austroads 2015c and 2015d). • Traffic capacity analysis, to accommodate improvements in seal width and lane addition where constraints exist.
B11: A.2.1 Description of the Current PLCCDT
B12: A description of the tool follows divided into its main components comprising the following: • Main Menu • User Settings • Advanced Settings • Inputs • Outputs.
B13: A.2.2 Main Menu
B14: The opening menu provides the user with access to the following functionality (Figure A 1) with individual sheets providing access to settings, inputs and outputs: • Inputs, by opening a series of worksheets. The sheet-by-sheet approach can be bypassed by populating the Input Master directly, or from an external source. Sheets can also be copied in individually. • Reliability, which records a value for the reliability of the basis for the analysis, with this indicating to potential users the quality of the analysis (and data etc). It does not affect the reported results. • Main controls, which comprise the following: – Update the Master table – Run Base Life Analysis, i.e. the whole-of-life performance using the base intervention parameters. – Run ALT Life Analysis, i.e. the whole-of-life performance using the alternative intervention parameters. Both life-cycle analyses will output projected remaining surface and structural life. – Run Economic Analysis – determination of marginal benefit-cost ratio (MBCR) of a section considering RAC, RUC and TTC for Base and ALT life analysis. • Outputs, opens results tables (from drop-down) – Detailed Results – Summary Results.
B17: A.2.3 User Settings
B18: The User Settings sheet is shown in Figure A 2.
B21: The use and contents of the User Settings sheet is as follows: • Analysis Settings – Analysis Name, to define the project name. – Analysis Year, start year of the analysis. – Base Year for Road Agency Costs (RAC), year of the parameter values for the calculation of road agency cost (to accommodate the effects of the consumer price index (CPI), if any). – Base Year for Road User Costs (RUC), year of the parameter values for the calculation of road user cost (to accommodate the effects of CPI, if any). – Base Year for Crash Related Costs, year of the parameter values for the calculation of crash related costs (to accommodate the effects of CPI, if any). – Price Escalation Factor, to account for vehicle operating costs (VOC)/RUC unit cost increases. – Road Deterioration Model, where a choice is available to use the ‘National’ models based on Austroads research (Austroads 2010a and 2010b) or the ‘Low Volume’ models which are based on the results of the local government–sponsored and ARRB-led Local Roads Deterioration Study (LRDS) (Martin et al. 2013). For state and territory roads, the national models are recommended. For local government roads the low volume roads are recommended although they are likely to require substantial calibration given the variability in the data used in their development. An alternative is to use the national models in all cases. ‘Low Volume’ models were disabled in the latest version of the tool and only Network level road deterioration models are available for selection – SNC Calculation Method, which provides the strength parameter for use in the RD models. Three options were provided including: - From deflection D0, converting deflection values to modified structural number (SNC) using a general equation (Paterson 1987) as used in the LTPP/LTPPM studies. - From SN and CBR, calculation of SNC of the pavement from unmodified structural number (SN) and CBR supplied as input data. - None, building up values from knowledge of the pavement composition. Further information on each method is provided in Appendix C. – Traffic Input Style, with two methods available covering: - the 12 Austroads classes of vehicles - Representative 5 vehicle class count – Discount Rate for WOLCC. – Applying Relative Performance Factors, drop-down option (Yes/No) for applying additional factors with this aimed at adjusting performance trends to account for accelerated rut depth and roughness progression deterioration and surface condition beyond stitch-in-time. The factors are based on the results of the accelerated loading facility (ALF) tests (Martin 2010), which augmented the field studies under the Austroads LTPP/LTPPM (Austroads 2010a). – Include Additional Travel Time Estimates, drop-down option (Yes/No); when turned on, this feature calculates additional travel time cost for rough roads (roughness exceeding a user defined IRI threshold (controlled in Advanced Settings)). • Road Class Settings – Road Class Naming, is used to describe a specific road class (current tool allows a maximum of 10 different road class entries) with this then linking to multiple tables which provide specific data consistent with a road class/importance and therefore expected performance, including: Treatments and Intervention Parameters, Deterioration Model Settings, Age Zero Parameter Lookup Table. The Road Class can be also be used to represent options where the assumptions and values differ, e.g. if the aim is to undertake a network analysis, use of road class is appropriate, whereas if the aim is to compare project options then the 10 entries available can be used to represent different cases where items like intervention parameters can be varied. – Speed Environment, speed limit and compliance (as % of speed limit). • Climate Zone Lookup Table – Climate Zone Naming, with the definitions chosen by the user, and with the understanding that significant differences will affect moisture conditions and therefore road deterioration estimates, and binder oxidation. – Climate Zone Parameters, with this comprising the following parameters as required by the RD models: - Thornthwaite Moisture Index (TMI), a key variable in the roughness progression model (Austroads 2010c) - Minimum and Maximum Average Monthly Temperature, key variables in the determination of a target seal life, and crack initiation. • Traffic Input Vehicle Selection for 12 Vehicle Fleet – 12 vehicle class selections for detailed input data. – ESA per vehicle at 100% payload (Load table for 12-class vehicle count input, with standard axle repetitions (SAR) values calculated for granular pavements with a sprayed seal or thin asphalt surfacing (SAR4), asphalt pavements (SAR5) and cemented pavements (SAR12). • Traffic Input Vehicle Selection and Representative Proportions for 5 Vehicle Fleet (used where only AADT and HV% provided) – Five vehicle representative fleet for total AADT input data. – ESA per vehicle at 100% payload. – Percentage proportion of vehicles for representative vehicle fleet (can vary by road class defined above). • BASE/ALTERNATIVE Intervention Parameters Treatments and intervention triggers (separate for Base and Alternative Interventions) for three major treatments (Reseal, Rehabilitation and Reconstruction) with the scope of these covering the following with 10 different entries (as per road classes) possible, with the scope illustrated in Figure A 3: - Time Based, including minimum and maximum intervals between successive treatments. Whilst ‘birthday’ treatments are not recommended, often age is a good indication of need especially over long analysis periods when predictions become increasingly uncertain. - Condition Based, with triggers for rutting, cracking and roughness at typical intervention levels for different treatments. Only one treatment is selected, this being the highest level of treatment which is triggered in any year. - Strength Based, with this based on the ratio of the initial and current SNC with the latter predicted based on the Austroads structural deterioration model (Austroads 2010b). - Control of Interval Between Successive Major Treatments, with this provided to ensure that, for example, a resurface is not scheduled close to a rehabilitation/reconstruction and so on. - Treatment Rules, drop-down to decide on the application of the Reseal/Resurfacing treatment variants (Reseal Shape Correction and Reshape Mill and Replace treatments and associated thickness). An additional drop-down is provided to turn on/off structural triggers for different road classes.
B24: • Treatment Effects and Costs – Treatment Resets, representing the works effects of different treatments. For rehabilitation and reconstruction this is likely to be a minimum value, whereas for resurfacing the effectiveness of the treatment will vary by thickness (Figure A 4a). – Treatment Costs, with rates to be entered for each treatment and road class (Figure A 4b).
B27: • Reliability Index – Input Data Quality user is provided with the opportunity to rate (from drop-down) the following data - Pavement Age - Traffic Data - IRI Data - Rutting Data - Cracking Data.
B29: A.2.4 Advanced Settings
B30: The Advanced Settings sheet contains the following: • Traffic Calculation Settings – Other (Lane direction factor). • Deterioration Model Settings – As shown in Figure A 5, provisions were made to modify the modelling parameters of the Network Level RD Model for different road class defined in user settings.
B34: • Relative Performance Factor Section Naming – Network Level Relative Performance Factors for adjusting trends to account for different state of cracking progression (when the Applying relative Performance Factor is turned on within the User Settings). • Road User Cost Model Related Tables Parameter lookup tables for calculating road user costs, including: – Vehicle Parameters for Vehicle Types used in ATAP VOC Modelling: Read only. – Coefficients for Rural (Uninterrupted/Free Flow Speed) VOC Model (cents per km): Read only. – Transposed HDM-4 Speed Table: Read only. • Travel Time Cost Related Tables – Estimated Values of Travel Time (resource costs): Read only. – IRI Threshold; If required, user can update the IRI threshold for the calculation of Travel time cost (Cell number: BI 51). • Works Effect Parameters Lookup table to determine model coefficients for the bi-linear roughness reduction model for bituminous overlays (before and after treatment) depending on the thickness of the shape correction/Mill and Replace treatment selected, if any. • Age Zero Parameter Lookup Table with this containing two parameters: – IRIzero, representing the roughness post rehabilitation or reconstruction on the particular class of road/option, and the minimum possible after overlay or resurfacing, with the actual value dependent on thickness. This should be entered based on local experience. – SNPzero, representing the in-service strength at time zero, immediately post rehabilitation or reconstruction. An estimate of this can be obtained by utilising the SNC-capacity relationship in Appendix C.3. • Reliability Index Configuration Based on the Analysis Settings (under User Setting) and supplied information on input data quality (User Setting), a ‘reliability’ score is assigned to the overall settings, models, and data and assumptions. This feature only seeks to highlight the overall reliability of the results in a general sense and is not used to change the results.
B36: A.2.5 Inputs
B37: Inputs to the tool representing defined sections of road are listed in Table A 3 for the five individual tables, with these covering a range of common entries to reference the data and specific entries. The Input Master collects all data together in a single sheet (through ‘Update Master Input Table’ control in the Main Menu). Otherwise Input Master table sheet can be directly populated by the user with required information.
B40: A.2.6 Results
B41: Results are currently available in the following forms: • Detailed Results, with these illustrated in Figure A 6. This contains the life-cycle results for each section covering the following: – Remaining Surface Life (in years) – Remaining Structural Life (in years) – Structural Treatment (next within analysis period) – Tracking (year-by-year) the following attributes and results - AADT - MSAR (millions of standard axle repetitions) - SNC (modified structural number), or SNP (adjusted structural number) - Cracking - Rutting - IRI - Treatment, represented by 0 = routine only 1 = reseal 2 = reseal with surface correction (SC) 3 = resurface with maintenance and rehabilitation (M&R) 4 = resurface 5-1 = rehabilitation (age), 5-2 = rehabilitation (IRI), 5-3 = rehabilitation (RUT), 5-4 = rehabilitation (CRK), 5-5 = rehabilitation (struct) 6-1 = reconstruction (age), 6-2 = reconstruction (IRI), 6-3 = reconstruction (RUT), 6 4 = reconstruction (CRK), 6-5 = reconstruction (struct) - RAC (road agency costs) - RUC (road user costs, including VOC, Travel Time and Freight Delay) - Crash Savings – future version - Capacity Benefits – future version. • Summary Results, with this intended to provide a summary by section covering the following: – Remaining Surface Life, Remaining Structural Life, First Structural Treatment (type and trigger), First Surface Treatment Year and First Structural Treatment Year. • Work Program Results, with this intended to provide a works program list by year covering the following: – Treatment Year, AADT, SNP, Cracking, Rutting, IRI and Treatment Type. • Economic Analysis – determination of the viability of the project (in terms of TTC savings (or NPV) and MBCR) – PV_RAC_base – Sum of the Present Value of Road Agency Cost for Base Intervention – PV_RUC_base – Sum of the Present Value of Road User Cost for Base Intervention – PV_Crashes_base – Sum of the Present Value of Crash Costs for Base Intervention (Not yet operational) – PV_Capacity_base – Sum of the Present Value of Capacity Costs for Base Intervention (Not yet operational) – PV_TTC_base – Sum of the RAC, RUC, Crashes and Capacity (Congestion) Costs for Base Intervention – PV_RAC_alt – Sum of the Present Value of Road Agency Cost for Alternative Intervention – PV_RUC_alt – Sum of the Present Value of Road User Cost for Alternative Intervention – PV_Crashes_alt – Sum of the Present Value of Crash Costs for Base Intervention (Not yet operational) – PV_Capacity_alt – Sum of the Present Value of Capacity Costs for Base Intervention (Not yet operational) – PV_TTC_alt – Sum of the RAC, RUC, Crashes and Capacity (Congestion) Costs for Alternative Intervention. Notes for Selected Alternative: – PV_RACalt - RACbase – Increase in Road Agency Costs (denominator for MBCR calculation) – PV_TTC_savings – Reduction in Total Transport Costs (or Net Present Value) – MBCR – Marginal Benefit-cost Ratio, defined as: MBCR = 1 – ((PV_TTCalt – PV_TTCbase)/(PV_RACalt – PV_RACbase)).
B44: A.3 Application of the Current Version of the PLCCDT
B45: The PLCCDT was developed for application to a wide selection of case studies that examine the impact of various forms of surface treatments for pavement maintenance and rehabilitation and extend pavement life to demonstrate the most effective maintenance and rehabilitation scenarios. A potential future development is to include safety and capacity-related improvements performed in conjunction with pavement improvements. The range of cases the current version of the tool can analyse and suggested additional requirements is summarised in Table A 4.

Sheet Access Settings
B2: Sheet Name | C2: Feature/Item | D2: Access level | E2: Comment
D3: Analyst
B4: Main Menu | C4: Menus to run analysis | D4: Ö
B5: User Settings | C5: Analysis Setting | D5: Ö
C6: Road Class Setting | D6: Ö
C7: Speed environment and Compliance | D7: Ö
C8: Climate Zone Lookup Table | D8: Ö
C9: Traffic Input vehicle selection | D9: Ö
C10: Base Intervention Parameter | D10: Ö
C11: Alternative Intervention Parameter | D11: Ö
C12: Treatment Resets | D12: Ö
C13: Treatment Rules | D13: Ö
C14: Treatment Costs | D14: Ö
C15: Input data Quality | D15: Ö
B16: Advance Setting | C16: Traffic calculation setting | D16: Ö
C17: Deterioration model setting | D17: Ö
C18: Relative performance factor section naming | D18: × | E18: Protected and Read Only
C19: Network level performance factors | D19: × | E19: Protected and Read Only
C20: Road User Cost Model related tables | D20: × | E20: Protected and Read Only
C21: Work effects parameters | D21: × | E21: Protected and Read Only
C22: Age zero parameter lookup table | D22: Ö
C23: Reliability Index Configuration | D23: × | E23: Protected and Read Only
B24: DR_Base/DR_Alt | C24: Detailed results | D24: Ö
B25: SR_Base/SR_Alt | C25: Summary Results | D25: Ö
B26: Economic analysis | C26: Economic analysis | D26: Ö
C27: All Macros | D27: × | E27: Protected and Read Only
B29: Analyst | C29: All features under user settings updating treatment intervention, resets. Can also change modelling parameters

Sheet User tips and Quick Guide
A1: User Tips
A2: The PLCC Demo Tool is divided broadly into 3 sections 1. Main menu/control- to run different types of analysis 2. Input & analysis settings- User specified data input, analysis settings, modifying treatment interventions and modelling parameters (if needed) 3. Outputs - Detailed and summary outputs including economic analysis (read only)
A4: 1. Main menu/ Control
A5: Runs the analysis according to the sequences in the menu (hit the button) everytime there is an update in Data/Settings
A7: 2. Input & analysis settings
A8: A. Include all the necessary data in the "Input-Master" Sheet Data types - Referencing (Columns B to N). All the columns are mandatory and must have values entered for the analysis to run - High speed data (Columns P to Q). Check the units on the column heading - Visual data (Cracking only) (Column Q) - FWD data (Columns R to AB), ener if collected. This is required if the 'SNP Calculation Method' in the User Settings is chosen as 'From Deflection (D0)'. Otherwise the fields can be left blank. -Traffic - as daily no of vehicles in the 12 Austroads classes (Columns AC to AN) if '12 Class Vehicle Count' selected in 'Traffic Input Style' in the User Settings, or as AADT and % HV (Columns AO to AQ) and Growth Rate (Column AR) if 'AADT + Proportions' is selected. Where this is selected the representative 5 vehicle fleet (below Row 66) is employed. -Pavement data (Columns AS to AT) - Structural Number SN (for pavement only) and subgrade CBR if the 'SNP Calculation Method' is selected in User Settings as SNP from CBR. -Treatment Ages (Columns AU to AW)- must have values entered for Last Resurface, Last Rehab and Last Recon.
A9: B. Settings - Include and update necessary analysis and modelling parameters in "User Settings" sheet and "Advanced Setting" sheet Note: Only Blue (text/values/%) and Purple (dropdowns) cells can be updated
A10: User Settings Sheet -Analysis Settings- only update the cells that have (text)/(4-digit year)/dropdown/(percentage) written beside them. Note: Selection of dropdowns for SNC and Traffic should be based on the Input data avaiability. For example, if FWD data was entered in the Input-Master Sheet, then SNC calculations can be based on FWD data. Otherwise select other available options from the dropdown. - Road Class Settings- only update the cells that have (text) written beside them. Up to 10 different road classes can be entered. Note: Road Class Naming needs to match the Road Class names entered into the "Input-Master" Sheet Col D for the analysis to run - Climate zone lookup table- only update the cells that have (text)/(decimal)written beside them. Up to 8 different zones (and their corresponding TMI, temperatures etc.) can be entered. Note: Climate Zone Naming needs to match the Climate Zone entered into the "Input-Master" Sheet Col L for the analysis to run. -Traffic Input Vehicle Selection For 12 Vehicle class- only update the cells that have (dropdown) written beside it. Vehicles for 12 different classes need to be selected from the dropdowns (based on the 20 vehicle Australian Transport Assessment and Planning (ATAP) guidelines. OR For 5 Vehicle class- only update the cells that have (dropdown) written beside it. Vehicles for 5 different classes need to be selected from the dropdowns (also based on ATAP guidelines).
A11: User Settings Sheet Base Intervention Parameters - Intervention trigger-time based - only update the cells that have (years) written beside them. Values corresponding to different road class (entered earlier) need to be included - Intervention trigger- Condition based- only update the cells that have (m/km)/mm/% written beside them. Values corresponding to different road classes need to be included - Intervention trigger- Strength based- For Rehabilitation and Reconstruction treatments , SNC ratio values corresponding to different road classes need to be included - Control of interval between successive major treatment- only update the cells that have (years)/% written beside them. Values corresponding to different road classes need to be included Treatment rules- Only update the cells that have dropdown/mm written beside it. Values corresponding to different road classes need to be included (Note: to decide whether to turn on/off particular treatments/ triggers. select "Y" from dropdown to turn on Particular treatment/ trigger; otherwise select "N") Alternative Intervention Parameters Follow same steps as Base Intervention Parameters above Treatment Resets - If needed, only update the cells that have (years) written beside it. Values corresponding to different road class need to be included Treatment Costs -Only update the cells that have ($/m2) written beside them. Values corresponding to different road class need to be included
A12: User Settings Sheet Reliability index- If needed, only update the cells that have (dropdown) beside them. (Note: to provide information on Input data quality; does not have any bearing on analysis)
A13: Advanced Settings Sheet Traffic Calculation Settings - Settings for AADT +% HV input- only update the cells that have (ratio) written beside them. - Other- only update the cells that has (factor) written beside them. Deterioration Model Settings- Network Level RD Model - Rutting Model Parameters - only update the cells that have (calibration)/ (%) written beside them. Values corresponding to different road class (entered earlier) need to be included -Cracking Model Parameters - only update the cells that have (calibration)/(factors)/(days)/(mm)/(%) written beside them. Values corresponding to different road class need to be included -Roughness Model Parameters - only update the cells that have (calibration)/(factors)/(mm) written beside them. Values corresponding to different road class need to be included Roughness Threshold for addtional travel time cost- if Additional travel time cost has been turned on under Analysis setting (in User Setting sheet), update the IRI value (cell BI51 in Advanced Settings sheet) to set the roughess value above which additional travel time cost is calculated. Work effect parameters- Read Only Age zero Parameter Lookup Table- Only update the cells that have (m/km)/ (number) written beside them. Values corresponding to different road class need to be included Layer Determination Calibration Settings- - NOT USED Reliability Index Configuration-Read Only
A15: 3. Outputs - Deatiled and Summary results and Economic analysis (Read Only)
A16: Five output sheets -DR-Base Detailed results of each section for Base interventions -DR-Alt Detailed results of each section for Alternative interventions (Note: TSRS- Time since last Resurfacing, TSRH- Time since last Rehabilitation,TSRC- Time since last Reconstruction Remaining surface life- Based on current year and next resurfacing/ rehab treatment year, Remaining structural life- Based on current year and next Rehab/ Reconstruction treatment year) - SR-Base- Summary results for Base intervention -SR-Alt- Summary results for Alternative intervention
A17: Economic analysis-determination of the viability of the project (in terms of TTC savings (or NPV) and MBCR Notes for Base and Alternative: PV_RAC_base - Sum of the Present Value of Road Agency Cost for Base Intervention PV_RUC_base - Sum of the Present Value of Road User Cost for Base Intervention PV_Crashes_base - Sum of the Present Value of Crash Costs for Base Intervention (NOT YET OPERATIONAL) PV_Capacity_base - Sum of the Present Value of Capacity Costs for Base Intervention (NOT YET OPERATIONAL) PV_TTC_base - Sum of the RAC, RUC, Crashes and Capacity (Congestion) Costs for Base Intervention PV_RAC_ALT- Sum of the Present Value of Road Agency Cost for Alternative Intervention PV_RUC_ALT- Sum of the Present Value of Road User Cost for ALternative Intervention PV_Crashes_alt - Sum of the Present Value of Crash Costs for Base Intervention (NOT YET OPERATIONAL) PV_Capacity_alt- Sum of the Present Value of Capacity Costs for Base Intervention (NOT YET OPERATIONAL) PV_TTC_alt- Sum of the RAC, RUC, Crashes and Capacity (Congestion) Costs for Alternative Intervention Notes for Selected Alternative: PV_RACalt-RACbase - Increase in Road Agency Costs (denominator for MBCR calculation) PV_TTC_savings - Reduction in Total Transport Costs (or Net Present Value) MBCR - Marginal Benefit Cost Ratio, defined as: MBCR = 1 – ((PV_TTCalt – PV_TTCbase)/(PV_RACalt – PV_RACbase))

Sheet Case A-Read me
A1: 1. Case Study A – Preservation Strategies in a Dry Environment
A2: The observations from the performance monitoring of two LTPPM2 sites on Western Highway near Gerang Gerung, Victoria forms the basis for the design of Case A. The sites are located in a dry environment. The figure below plots monitored sections S1 and S2 at LTPPM2 and following outlines the relevant site conditions and traffic features.
A5: Alternative timely maintenance strategies are expected to keep the deterioration progression rate much flatter than the Base (do-minimum strategy) as observed in Victorian LTPPM2 site. Since modelling calibration factors under the Advanced Settings tab that controls the progression are based on road classes, the 4 sections in the table were duplicated (e.g. as Section A1 and Alt_Section A1) and different road classes were assigned to control the modelling factors seperately. During Economic analysis, Base case results (RAC, RUC and TTC) of the first 4 input rows were compared with Alternative case results of the last 4 rows. This analysis was done externally to calculate the TTC savings and MBCR.
A7: 2. Implementation of Case Study A
A8: The performance of LTPPM2 sections S1 and S2 was used as the basis for designing Case A, with these chosen to illustrate: 1. holding treatment options, representing a base or budget constrained case (similar to LTPPM2 S1) where the timing of reseal is delayed to well beyond the estimated seal life (double), and major interventions are delayed to high (5.2 IRI – above desirable) or very high (8 IRI) roughness levels, and/or higher distress limits for cracking and rutting 2. the effects of timely surface treatment interventions using both an unmodified seal and a modified seal, and consideration of major treatment options at the desirable roughness intervention level of 4 IRI. The above was represented by four sections each with a defined base case and alternative case (Table G 2).
A10: Parameter values were chosen to represent a consistent starting point for each case study section, i.e. in terms of such parameters as age at the beginning of the case study, initial surface condition, traffic, and structural condition etc. Input values (pavement and surface age, condition, strength, climate etc.) were also kept similar to those observed for the LTPPM2 sites at the beginning of monitoring year (i.e. 1998).
A12: 4. Setting up the Road Classes
A13: Alternative timely maintenance strategies are expected to keep the deterioration progression rate much flatter than the Base (do-minimum strategy) as observed for the Victorian LTPPM2 site. Since modelling calibration factors under the Advanced Settings tab that controls the progression are based on road classes, the 4 sections in the table were duplicated (e.g. as Section A1 and Alt_Section A1) and different road classes were assigned to control the modelling factors seperately. During Economic analysis, Base case results (RAC, RUC and TTC) of the first 4 input rows were compared with Alternative case results of the last 4 rows. This analysis was done externally to calculate the TTC savings and MBCR.

Sheet Main Menu
E3: Pavement Life Cycle
E4: Demonstration Tool
E6: Version: | F6: 2.8
E7: Release Date: | F7: 2021-06-01

Sheet User Settings
A1: User Settings
B4: Analysis Settings
B7: Analysis Name | F7: AAM 6143 Case A Western Victoria | J7: (text) | L7: Road Deterioration Model | P7: 2. Network Level | T7: (dropdown) | V7: Applying Relative Performance Factors to selected SS pavements in models
B8: Analysis Year | F8: 2019 | J8: (4-digit year) | L8: SNP Calculation Method | P8: 2: From SN and CBR | T8: (dropdown) | V8: Deterioration Model | X8: Apply RPF
B9: Base year for Road Agency Costs | F9: 2019 | J9: (4-digit year) | L9: Traffic Input Style | P9: 1: 12-Class Vehicle Count | T9: (dropdown) | V9: 1: Low Volume | X9: Disabled | Z9: (dropdown)
B10: Base year for Road User Costs | F10: 2014 | J10: (4-digit year) | V10: 2: Network Level | X10: Yes | Z10: (dropdown)
B11: Base year for Crash-related Costs | F11: 2019 | J11: (4-digit year) | L11: Discount rate for WOLC | P11: 7 | T11: (percentage) | V11: Include additional travel time estimates for rough roads
B12: Price Escalation Factor | F12: 3 | J12: (percentage) | V12: Additional Travel Time Cost | X12: Yes | Z12: (dropdown)
B14: Road Class Settings
B17: Road Class Naming | K17: Speed Environment | M17: Speed Compliance | P17: Speed Environment relative to HDM Table
B18: Class 1 | F18: A1_unmod Seal_Base_5.2 IRI_Alt_4IRI | J18: (text) | K18: 100 | M18: 0.95 | P18: 4% Grade and Curvy
B19: Class 2 | F19: A2_unmod Seal_Base_8 IRI_Alt_4IRI | J19: (text) | K19: 100 | M19: 0.95
B20: Class 3 | F20: A3_mod Seal_Base_5.2 IRI_Alt_4IRI | J20: (text) | K20: 100 | M20: 0.95
B21: Class 4 | F21: A4_mod Seal_Base_8 IRI_Alt_4IRI | J21: (text) | K21: 100 | M21: 0.95
B22: Class 5 | F22: Alt_A1_unmod Seal_Base_5.2 IRI_Alt_4IRI | J22: (text) | K22: 100 | M22: 0.95
B23: Class 6 | F23: Alt_A2_unmod Seal_Base_8 IRI_Alt_4IRI | J23: (text) | K23: 100 | M23: 0.95
B24: Class 7 | F24: Alt_A3_mod Seal_Base_5.2 IRI_Alt_4IRI | J24: (text) | K24: 101 | M24: 0.95
B25: Class 8 | F25: Alt_A4_mod Seal_Base_8 IRI_Alt_4IRI | J25: (text) | K25: 80 | M25: 0.95
B26: Class 9 | F26: Other | J26: (text) | K26: 80 | M26: 0.95
B27: Class 10 | F27: Other | J27: (text) | K27: 60 | M27: 0.95
B29: Climate Zone Lookup Table
B32: Climate Zone Naming
B33: Zone 1 | F33: Victoria Mid-North | J33: (text)
B34: Zone 2 | J34: (text)
B35: Zone 3 | J35: (text)
B36: Zone 4 | J36: (text)
B37: Zone 5 | J37: (text)
B38: Zone 6 | J38: (text)
B39: Zone 7 | J39: (text)
B40: Zone 8 | J40: (text)
F42: =IF(aS_Z1="", "Zone 1", aS_Z1) -> Victoria Mid-North | H42: =IF(aS_Z2="", "Zone 2", aS_Z2) -> Zone 2 | J42: =IF(aS_Z3="", "Zone 3", aS_Z3) -> Zone 3 | L42: =IF(aS_Z4="", "Zone 4", aS_Z4) -> Zone 4 | N42: =IF(aS_Z5="", "Zone 5", aS_Z5) -> Zone 5 | P42: =IF(aS_Z6="", "Zone 6", aS_Z6) -> Zone 6 | R42: =IF(aS_Z7="", "Zone 7", aS_Z7) -> Zone 7 | T42: =IF(aS_Z8="", "Zone 8", aS_Z8) -> Zone 8
B43: Climate Zone Parameters
B44: Thornthwaite Moisture Index | F44: -24 | V44: (decimal)
B45: Minimum Average Monthly Temperature | F45: 5 | V45: (Celsius)
B46: Maximum Average Monthly Temperature | F46: 17.5 | V46: (Celsius)
B48: Traffic input vehicle selection for 12 Vehicle Fleet
B51: Definition of 12 vehicle class selections for detailed input data | L51: ESAs per vehicle at 100% payload
B52: Austroads Vehicle Class | F52: ATAP Vehicle Selection | K52: Payload | L52: SAR4 | M52: SAR5 | N52: SAR12
B53: Class 1 | F53: 03. Large Car | J53: (dropdown) | K53: 0.4 | L53: 0.0008488500305
B54: Class 2 | F54: 05. 4WD Mid Size Petrol | J54: (dropdown) | K54: 0.93 | L54: 0.006633441652
B55: Class 3 | F55: 06. Light Rigid | J55: (dropdown) | K55: 2.15 | L55: 0.006987207123
B56: Class 4 | F56: 09. Heavy Bus | J56: (dropdown) | K56: 7 | L56: 1.469865345
B57: Class 5 | F57: 15. Twin steer + 5 Axle Dog | J57: (dropdown) | K57: 43 | L57: 4.028328949
B58: Class 6 | F58: 08. Heavy Rigid | J58: (dropdown) | K58: 13.5 | L58: 1.925092143
B59: Class 7 | F59: 10. Artic 4 Axle | J59: (dropdown) | K59: 20.5 | L59: 2.773170756
B60: Class 8 | F60: 11. Artic 5 Axle | J60: (dropdown) | K60: 26 | L60: 3.037003797
B61: Class 9 | F61: 12. Artic 6 Axle | J61: (dropdown) | K61: 27.5 | L61: 2.796578376
B62: Class 10 | F62: 14. B-Double | J62: (dropdown) | K62: 40.5 | L62: 3.487587354
B63: Class 11 | F63: 16. A-Double | J63: (dropdown) | K63: 48 | L63: 4.667190083
B64: Class 12 | F64: 19. A-Triple | J64: (dropdown) | K64: 71.5 | L64: 6.375693976
B66: Traffic input vehicle selection and representative proportions for 5 Vehicle Fleet
P69: Percentage proportion of vehicles for representative vehicle fleet
B70: Definition of 5 vehicle representative fleet for total AADT input data | L70: ESAs per vehicle at 100% payload | P70: =IF(uS_C1="", "Class 1", uS_C1) -> A1_unmod Seal_Base_5.2 IRI_Alt_4IRI | R70: =IF(uS_C2="", "Class 2", uS_C2) -> A2_unmod Seal_Base_8 IRI_Alt_4IRI | T70: =IF(uS_C3="", "Class 3", uS_C3) -> A3_mod Seal_Base_5.2 IRI_Alt_4IRI | V70: =IF(uS_C4="", "Class 4", uS_C4) -> A4_mod Seal_Base_8 IRI_Alt_4IRI | X70: =IF(uS_C5="", "Class 5", uS_C5) -> Alt_A1_unmod Seal_Base_5.2 IRI_Alt_4IRI | Z70: =IF(uS_C6="", "Class 6", uS_C6) -> Alt_A2_unmod Seal_Base_8 IRI_Alt_4IRI | AB70: =IF(uS_C7="", "Class 7", uS_C7) -> Alt_A3_mod Seal_Base_5.2 IRI_Alt_4IRI | AD70: =IF(uS_C8="", "Class 8", uS_C8) -> Alt_A4_mod Seal_Base_8 IRI_Alt_4IRI | AF70: =IF(uS_C9="", "Class 9", uS_C9) -> Other | AH70: =IF(uS_C10="", "Class 10", uS_C10) -> Other
B71: Vehicle Type | F71: Vehicle Selection | K71: Payload | L71: SAR4 | M71: SAR5 | N71: SAR12
B72: Passenger Car | F72: 01. Small Car | J72: (dropdown) | K72: =VLOOKUP($F72,aS_VOC_Model_Vehicle_Paramaters,5,FALSE) -> 0.4 | L72: =VLOOKUP($F72,aS_VOC_Model_Vehicle_Paramaters,8,FALSE) -> 0.0003 | P72: 80 | R72: 75 | T72: 75 | V72: 75 | X72: 80 | Z72: 80 | AB72: 80 | AD72: 80 | AF72: 80 | AH72: 80
B73: Light Commercial/Utility/FWD/Mini Bus | F73: 04. Courier Van-Utility | J73: (dropdown) | K73: =VLOOKUP($F73,aS_VOC_Model_Vehicle_Paramaters,5,FALSE) -> 0.85 | L73: =VLOOKUP($F73,aS_VOC_Model_Vehicle_Paramaters,8,FALSE) -> 0.0031 | P73: 10 | R73: 5 | T73: 5 | V73: 5 | X73: 10 | Z73: 10 | AB73: 10 | AD73: 10 | AF73: 10 | AH73: 10
B74: Rigid Freight Vehicles/Large Bus | F74: 07. Medium Rigid | J74: (dropdown) | K74: =VLOOKUP($F74,aS_VOC_Model_Vehicle_Paramaters,5,FALSE) -> 7.2 | L74: =VLOOKUP($F74,aS_VOC_Model_Vehicle_Paramaters,8,FALSE) -> 0.69 | P74: 5 | R74: 10 | T74: 10 | V74: 10 | X74: 5 | Z74: 5 | AB74: 5 | AD74: 5 | AF74: 5 | AH74: 5
B75: Articulated Freight Vehicles | F75: 10. Artic 4 Axle | J75: (dropdown) | K75: =VLOOKUP($F75,aS_VOC_Model_Vehicle_Paramaters,5,FALSE) -> 20.5 | L75: =VLOOKUP($F75,aS_VOC_Model_Vehicle_Paramaters,8,FALSE) -> 5.07 | P75: 3 | R75: 5 | T75: 5 | V75: 5 | X75: 3 | Z75: 3 | AB75: 3 | AD75: 3 | AF75: 3 | AH75: 3
B76: Combination Vehicles | F76: 14. B-Double | J76: (dropdown) | K76: =VLOOKUP($F76,aS_VOC_Model_Vehicle_Paramaters,5,FALSE) -> 40.5 | L76: =VLOOKUP($F76,aS_VOC_Model_Vehicle_Paramaters,8,FALSE) -> 6.35 | P76: 2 | R76: 5 | T76: 5 | V76: 5 | X76: 2 | Z76: 2 | AB76: 2 | AD76: 2 | AF76: 2 | AH76: 2
P77: =SUM(P72:Q76) -> 100 | R77: =SUM(R72:S76) -> 100 | T77: =SUM(T72:U76) -> 100 | V77: =SUM(V72:W76) -> 100 | X77: =SUM(X72:Y76) -> 100 | Z77: =SUM(Z72:AA76) -> 100 | AB77: =SUM(AB72:AC76) -> 100 | AD77: =SUM(AD72:AE76) -> 100 | AF77: =SUM(AF72:AG76) -> 100 | AH77: =SUM(AH72:AI76) -> 100
B79: BASE Intervention Parameters
F82: =IF(uS_C1="", "Class 1", uS_C1) -> A1_unmod Seal_Base_5.2 IRI_Alt_4IRI | H82: =IF(uS_C2="", "Class 2", uS_C2) -> A2_unmod Seal_Base_8 IRI_Alt_4IRI | J82: =IF(uS_C3="", "Class 3", uS_C3) -> A3_mod Seal_Base_5.2 IRI_Alt_4IRI | L82: =IF(uS_C4="", "Class 4", uS_C4) -> A4_mod Seal_Base_8 IRI_Alt_4IRI | N82: =IF(uS_C5="", "Class 5", uS_C5) -> Alt_A1_unmod Seal_Base_5.2 IRI_Alt_4IRI | P82: =IF(uS_C6="", "Class 6", uS_C6) -> Alt_A2_unmod Seal_Base_8 IRI_Alt_4IRI | R82: =IF(uS_C7="", "Class 7", uS_C7) -> Alt_A3_mod Seal_Base_5.2 IRI_Alt_4IRI | T82: =IF(uS_C8="", "Class 8", uS_C8) -> Alt_A4_mod Seal_Base_8 IRI_Alt_4IRI | V82: =IF(uS_C9="", "Class 9", uS_C9) -> Other | X82: =IF(uS_C10="", "Class 10", uS_C10) -> Other
B84: Intervention Triggers - Time Based
B85: Minimum Resurface Interval | F85: 16 | H85: 20 | J85: 20 | L85: 25 | N85: 16 | P85: 20 | R85: 20 | T85: 25 | Z85: (years)
B86: Maximum Resurface Interval | F86: 20 | H86: 25 | J86: 25 | L86: 30 | N86: 20 | P86: 25 | R86: 25 | T86: 30 | Z86: (years)
B87: Minimum Rehabilitation Interval | F87: 2 | H87: 2 | J87: 2 | L87: 2 | N87: 2 | P87: 2 | R87: 2 | T87: 2 | Z87: (years)
B88: Maximum Rehabilitation Interval | F88: 100 | H88: 100 | J88: 100 | L88: 100 | N88: 100 | P88: 100 | R88: 100 | T88: 100 | Z88: (years)
B89: Minimum Reconstruction Interval | F89: 2 | H89: 2 | J89: 2 | L89: 2 | N89: 2 | P89: 2 | R89: 2 | T89: 2 | Z89: (years)
B90: Maximum Reconstruction Interval | F90: 100 | H90: 100 | J90: 100 | L90: 100 | N90: 100 | P90: 100 | R90: 100 | T90: 100 | Z90: (years)
B91: Intervention Triggers - Condition Based
B92: Rehabilitation IRI Trigger | F92: 5.2 | H92: 8 | J92: 5.2 | L92: 8 | N92: 5.2 | P92: 8 | R92: 5.2 | T92: 8 | Z92: (m/km)
B93: Reconstruction IRI Trigger | F93: 5.2 | H93: 8 | J93: 5.2 | L93: 8 | N93: 5.2 | P93: 8 | R93: 5.2 | T93: 8 | Z93: (m/km)
B94: Rehabilitation Rutting Trigger | F94: 20 | H94: 20 | J94: 20 | L94: 20 | N94: 20 | P94: 20 | R94: 20 | T94: 20 | Z94: (mm)
B95: Reconstruction Rutting Trigger | F95: 40 | H95: 40 | J95: 40 | L95: 40 | N95: 40 | P95: 40 | R95: 40 | T95: 40 | Z95: (mm)
B96: Resurface Cracking Trigger | F96: 25 | H96: 25 | J96: 25 | L96: 25 | N96: 25 | P96: 25 | R96: 25 | T96: 25 | Z96: (%)
B97: Rehabilitation Cracking Trigger | F97: 50 | H97: 50 | J97: 50 | L97: 50 | N97: 50 | P97: 50 | R97: 50 | T97: 50 | Z97: (%)
B98: Reconstruction Cracking Trigger | F98: 75 | H98: 75 | J98: 75 | L98: 75 | N98: 75 | P98: 75 | R98: 75 | T98: 75 | Z98: (%)
B99: Intervention Triggers - Strength Based
B100: Rehabilitation SNC_Ratio Trigger | F100: 0.6 | H100: 0.6 | J100: 0.6 | L100: 0.6 | N100: 0.6 | P100: 0.6 | R100: 0.6 | T100: 0.6 | Z100: -
B101: Reconstruction SNC_Ratio Trigger | F101: 0.5 | H101: 0.5 | J101: 0.5 | L101: 0.5 | N101: 0.5 | P101: 0.5 | R101: 0.5 | T101: 0.5 | Z101: -
B102: Control of Interval between successive major treatments
B103: Time Interval b/w Rec -> Rehab -> Reseal | F103: 10 | H103: 10 | J103: 10 | L103: 10 | N103: 10 | P103: 10 | R103: 10 | T103: 10 | Z103: Years
B104: Time Interval b/w Reseal and Rec/Rehab | F104: 10 | H104: 10 | J104: 10 | L104: 10 | N104: 10 | P104: 10 | R104: 10 | T104: 10 | Z104: Years
B105: Percentage of condition to delay reseal | F105: 90 | H105: 90 | J105: 90 | L105: 90 | N105: 90 | P105: 90 | R105: 90 | T105: 90 | Z105: %
F107: =IF(uS_C1="", "Class 1", uS_C1) -> A1_unmod Seal_Base_5.2 IRI_Alt_4IRI | H107: =IF(uS_C2="", "Class 2", uS_C2) -> A2_unmod Seal_Base_8 IRI_Alt_4IRI | J107: =IF(uS_C3="", "Class 3", uS_C3) -> A3_mod Seal_Base_5.2 IRI_Alt_4IRI | L107: =IF(uS_C4="", "Class 4", uS_C4) -> A4_mod Seal_Base_8 IRI_Alt_4IRI | N107: =IF(uS_C5="", "Class 5", uS_C5) -> Alt_A1_unmod Seal_Base_5.2 IRI_Alt_4IRI | P107: =IF(uS_C6="", "Class 6", uS_C6) -> Alt_A2_unmod Seal_Base_8 IRI_Alt_4IRI | R107: =IF(uS_C7="", "Class 7", uS_C7) -> Alt_A3_mod Seal_Base_5.2 IRI_Alt_4IRI | T107: =IF(uS_C8="", "Class 8", uS_C8) -> Alt_A4_mod Seal_Base_8 IRI_Alt_4IRI | V107: =IF(uS_C9="", "Class 9", uS_C9) -> Other | X107: =IF(uS_C10="", "Class 10", uS_C10) -> Other
B109: Treatment Rules
B110: Reseal Shape Correction (SS) | F110: Y | H110: Y | J110: Y | L110: Y | N110: Y | P110: Y | R110: Y | T110: Y | Z110: (dropdown)
B111: Resurface Mill and Replace (AC) | F111: Y | H111: Y | J111: Y | L111: Y | N111: Y | P111: Y | R111: Y | T111: Y | Z111: (dropdown)
B112: Reseal (SS) Shape Thickness | F112: 20 | H112: 20 | J112: 20 | L112: 20 | N112: 20 | P112: 20 | R112: 20 | T112: 20 | Z112: mm
B113: Resurface (AC) M&R Thickness | F113: 40 | H113: 40 | J113: 40 | L113: 40 | N113: 40 | P113: 40 | R113: 40 | T113: 40 | Z113: mm
B114: Resurface (AC) Overlay Thickness | F114: 60 | H114: 60 | J114: 60 | L114: 60 | N114: 60 | P114: 60 | R114: 60 | T114: 60 | Z114: mm
B115: Rehabilitation (due to SN ratio) | F115: N | H115: N | J115: N | L115: N | N115: N | P115: N | R115: N | T115: N | Z115: (dropdown)
B116: Reconstruction (due to SN ratio) | F116: N | H116: N | J116: N | L116: N | N116: N | P116: N | R116: N | T116: N | Z116: (dropdown)
B118: ALTERNATIVE Intervention Parameters
F121: =IF(uS_C1="", "Class 1", uS_C1) -> A1_unmod Seal_Base_5.2 IRI_Alt_4IRI | H121: =IF(uS_C2="", "Class 2", uS_C2) -> A2_unmod Seal_Base_8 IRI_Alt_4IRI | J121: =IF(uS_C3="", "Class 3", uS_C3) -> A3_mod Seal_Base_5.2 IRI_Alt_4IRI | L121: =IF(uS_C4="", "Class 4", uS_C4) -> A4_mod Seal_Base_8 IRI_Alt_4IRI | N121: =IF(uS_C5="", "Class 5", uS_C5) -> Alt_A1_unmod Seal_Base_5.2 IRI_Alt_4IRI | P121: =IF(uS_C6="", "Class 6", uS_C6) -> Alt_A2_unmod Seal_Base_8 IRI_Alt_4IRI | R121: =IF(uS_C7="", "Class 7", uS_C7) -> Alt_A3_mod Seal_Base_5.2 IRI_Alt_4IRI | T121: =IF(uS_C8="", "Class 8", uS_C8) -> Alt_A4_mod Seal_Base_8 IRI_Alt_4IRI | V121: =IF(uS_C9="", "Class 9", uS_C9) -> Other | X121: =IF(uS_C10="", "Class 10", uS_C10) -> Other
B123: Intervention Triggers - Time Based
B124: Minimum Resurface Interval | F124: 8 | H124: 8 | J124: 10 | L124: 10 | N124: 8 | P124: 8 | R124: 10 | T124: 10 | Z124: (years)
B125: Maximum Resurface Interval | F125: 10 | H125: 10 | J125: 12 | L125: 12 | N125: 10 | P125: 10 | R125: 12 | T125: 12 | Z125: (years)
B126: Minimum Rehabilitation Interval | F126: 2 | H126: 2 | J126: 2 | L126: 2 | N126: 2 | P126: 2 | R126: 2 | T126: 2 | Z126: (years)
B127: Maximum Rehabilitation Interval | F127: 100 | H127: 100 | J127: 100 | L127: 100 | N127: 100 | P127: 100 | R127: 100 | T127: 100 | Z127: (years)
B128: Minimum Reconstruction Interval | F128: 2 | H128: 2 | J128: 2 | L128: 2 | N128: 2 | P128: 2 | R128: 2 | T128: 2 | Z128: (years)
B129: Maximum Reconstruction Interval | F129: 100 | H129: 100 | J129: 100 | L129: 100 | N129: 100 | P129: 100 | R129: 100 | T129: 100 | Z129: (years)
B130: Intervention Triggers - Condition Based
B131: Rehabilitation IRI Trigger | F131: 4 | H131: 4 | J131: 4 | L131: 4 | N131: 4 | P131: 4 | R131: 4 | T131: 4 | Z131: (m/km)
B132: Reconstruction IRI Trigger | F132: 5.2 | H132: 5.2 | J132: 5.2 | L132: 5.2 | N132: 5.2 | P132: 5.2 | R132: 5.2 | T132: 5.2 | Z132: (m/km)
B133: Rehabilitation Rutting Trigger | F133: 10 | H133: 10 | J133: 10 | L133: 10 | N133: 10 | P133: 10 | R133: 10 | T133: 10 | Z133: (mm)
B134: Reconstruction Rutting Trigger | F134: 20 | H134: 20 | J134: 20 | L134: 20 | N134: 20 | P134: 20 | R134: 20 | T134: 20 | Z134: (mm)
B135: Resurface Cracking Trigger | F135: 5 | H135: 5 | J135: 5 | L135: 5 | N135: 5 | P135: 5 | R135: 5 | T135: 5 | Z135: (%)
B136: Rehabilitation Cracking Trigger | F136: 10 | H136: 10 | J136: 10 | L136: 10 | N136: 10 | P136: 10 | R136: 10 | T136: 10 | Z136: (%)
B137: Reconstruction Cracking Trigger | F137: 15 | H137: 15 | J137: 15 | L137: 15 | N137: 15 | P137: 15 | R137: 15 | T137: 15 | Z137: (%)
B138: Intervention Triggers - Strength Based
B139: Rehabilitation SNC_Ratio Trigger | F139: 0.6 | H139: 0.6 | J139: 0.6 | L139: 0.6 | N139: 0.6 | P139: 0.6 | R139: 0.6 | T139: 0.6 | Z139: -
B140: Reconstruction SNC_Ratio Trigger | F140: 0.5 | H140: 0.5 | J140: 0.5 | L140: 0.5 | N140: 0.5 | P140: 0.5 | R140: 0.5 | T140: 0.5 | Z140: -
B141: Control of Interval between successive major treatments
B142: Time Interval b/w Rec -> Rehab -> Reseal | F142: 5 | H142: 5 | J142: 5 | L142: 5 | N142: 5 | P142: 5 | R142: 5 | T142: 5 | Z142: Years
B143: Time Interval b/w Reseal and Rec/Rehab | F143: 5 | H143: 5 | J143: 5 | L143: 5 | N143: 5 | P143: 5 | R143: 5 | T143: 5 | Z143: Years
B144: Percentage of condition to delay reseal | F144: 75 | H144: 75 | J144: 75 | L144: 75 | N144: 75 | P144: 75 | R144: 75 | T144: 75 | Z144: %
F146: =IF(uS_C1="", "Class 1", uS_C1) -> A1_unmod Seal_Base_5.2 IRI_Alt_4IRI | H146: =IF(uS_C2="", "Class 2", uS_C2) -> A2_unmod Seal_Base_8 IRI_Alt_4IRI | J146: =IF(uS_C3="", "Class 3", uS_C3) -> A3_mod Seal_Base_5.2 IRI_Alt_4IRI | L146: =IF(uS_C4="", "Class 4", uS_C4) -> A4_mod Seal_Base_8 IRI_Alt_4IRI | N146: =IF(uS_C5="", "Class 5", uS_C5) -> Alt_A1_unmod Seal_Base_5.2 IRI_Alt_4IRI | P146: =IF(uS_C6="", "Class 6", uS_C6) -> Alt_A2_unmod Seal_Base_8 IRI_Alt_4IRI | R146: =IF(uS_C7="", "Class 7", uS_C7) -> Alt_A3_mod Seal_Base_5.2 IRI_Alt_4IRI | T146: =IF(uS_C8="", "Class 8", uS_C8) -> Alt_A4_mod Seal_Base_8 IRI_Alt_4IRI | V146: =IF(uS_C9="", "Class 9", uS_C9) -> Other | X146: =IF(uS_C10="", "Class 10", uS_C10) -> Other
B148: Treatment Rules
B149: Reseal Shape Correction (SS) | F149: N | H149: N | J149: N | L149: N | N149: N | P149: N | R149: N | T149: N | Z149: (dropdown)
B150: Resurface Mill and Replace (AC) | F150: N | H150: N | J150: N | L150: N | N150: N | P150: N | R150: N | T150: N | Z150: (dropdown)
B151: Reseal (SS) Shape Thickness | F151: 20 | H151: 20 | J151: 20 | L151: 20 | N151: 20 | P151: 20 | R151: 20 | T151: 20 | Z151: mm
B152: Resurface (AC) M&R Thickness | F152: 40 | H152: 40 | J152: 40 | L152: 40 | N152: 40 | P152: 40 | R152: 40 | T152: 40 | Z152: mm
B153: Resurface (AC) Overlay Thickness | F153: 60 | H153: 60 | J153: 60 | L153: 60 | N153: 60 | P153: 60 | R153: 60 | T153: 60 | Z153: mm
B154: Rehabilitation (due to SN ratio) | F154: Y | H154: Y | J154: Y | L154: Y | N154: Y | P154: Y | R154: Y | T154: Y | Z154: (dropdown)
B155: Reconstruction (due to SN ratio) | F155: Y | H155: Y | J155: Y | L155: Y | N155: Y | P155: Y | R155: Y | T155: Y | Z155: (dropdown)
B157: Treatment Effects and Costs
F160: =IF(uS_C1="", "Class 1", uS_C1) -> A1_unmod Seal_Base_5.2 IRI_Alt_4IRI | H160: =IF(uS_C2="", "Class 2", uS_C2) -> A2_unmod Seal_Base_8 IRI_Alt_4IRI | J160: =IF(uS_C3="", "Class 3", uS_C3) -> A3_mod Seal_Base_5.2 IRI_Alt_4IRI | L160: =IF(uS_C4="", "Class 4", uS_C4) -> A4_mod Seal_Base_8 IRI_Alt_4IRI | N160: =IF(uS_C5="", "Class 5", uS_C5) -> Alt_A1_unmod Seal_Base_5.2 IRI_Alt_4IRI | P160: =IF(uS_C6="", "Class 6", uS_C6) -> Alt_A2_unmod Seal_Base_8 IRI_Alt_4IRI | R160: =IF(uS_C7="", "Class 7", uS_C7) -> Alt_A3_mod Seal_Base_5.2 IRI_Alt_4IRI | T160: =IF(uS_C8="", "Class 8", uS_C8) -> Alt_A4_mod Seal_Base_8 IRI_Alt_4IRI | V160: =IF(uS_C9="", "Class 9", uS_C9) -> Other | X160: =IF(uS_C10="", "Class 10", uS_C10) -> Other
B162: Treatment Resets
B163: Resurface Min IRI (SS Pavements) | F163: 1.8 | H163: 1.8 | J163: 1.8 | L163: 1.8 | N163: 1.8 | P163: 1.8 | R163: 1.8 | T163: 1.8 | Z163: IRI
B164: Resurface Min IRI (AC Pavements) | F164: 1.5 | H164: 1.5 | J164: 1.5 | L164: 1.5 | N164: 1.5 | P164: 1.5 | R164: 1.5 | T164: 1.5 | Z164: IRI
B165: Rehabilitation IRI (SS Pavements) | F165: 1.8 | H165: 1.8 | J165: 1.8 | L165: 1.8 | N165: 1.8 | P165: 1.8 | R165: 1.8 | T165: 1.8 | Z165: IRI
B166: Rehabilitation IRI (AC Pavements) | F166: 1.5 | H166: 1.5 | J166: 1.5 | L166: 1.5 | N166: 1.5 | P166: 1.5 | R166: 1.5 | T166: 1.5 | Z166: IRI
B167: Reconstruction IRI (SS Pavements) | F167: 1.5 | H167: 1.5 | J167: 1.5 | L167: 1.5 | N167: 1.5 | P167: 1.5 | R167: 1.5 | T167: 1.5 | Z167: IRI
B168: Reconstruction IRI (AC Pavements) | F168: 1.2 | H168: 1.2 | J168: 1.2 | L168: 1.2 | N168: 1.2 | P168: 1.2 | R168: 1.2 | T168: 1.2 | Z168: IRI
B169: Rutting | F169: 1 | H169: 1 | J169: 1 | L169: 1 | N169: 1 | P169: 1 | R169: 1 | T169: 1 | Z169: mm
B170: Cracking | F170: 0 | H170: 0 | J170: 0 | L170: 0 | N170: 0 | P170: 0 | R170: 0 | T170: 0 | Z170: %
B171: Strength | F171: 6.7 | H171: 6.7 | J171: 6.7 | L171: 6.7 | N171: 6.7 | P171: 6.7 | R171: 6.7 | T171: 6.7 | Z171: SNP
F173: =IF(uS_C1="", "Class 1", uS_C1) -> A1_unmod Seal_Base_5.2 IRI_Alt_4IRI | H173: =IF(uS_C2="", "Class 2", uS_C2) -> A2_unmod Seal_Base_8 IRI_Alt_4IRI | J173: =IF(uS_C3="", "Class 3", uS_C3) -> A3_mod Seal_Base_5.2 IRI_Alt_4IRI | L173: =IF(uS_C4="", "Class 4", uS_C4) -> A4_mod Seal_Base_8 IRI_Alt_4IRI | N173: =IF(uS_C5="", "Class 5", uS_C5) -> Alt_A1_unmod Seal_Base_5.2 IRI_Alt_4IRI | P173: =IF(uS_C6="", "Class 6", uS_C6) -> Alt_A2_unmod Seal_Base_8 IRI_Alt_4IRI | R173: =IF(uS_C7="", "Class 7", uS_C7) -> Alt_A3_mod Seal_Base_5.2 IRI_Alt_4IRI | T173: =IF(uS_C8="", "Class 8", uS_C8) -> Alt_A4_mod Seal_Base_8 IRI_Alt_4IRI | V173: =IF(uS_C9="", "Class 9", uS_C9) -> Other | X173: =IF(uS_C10="", "Class 10", uS_C10) -> Other
B175: Treatment Costs
B176: Reseal (SS) | F176: 6 | H176: 6 | J176: 9 | L176: 9 | N176: 6 | P176: 6 | R176: 9 | T176: 9 | Z176: $/m2
B177: Reseal (SS) Shape Correction | F177: 20 | H177: 20 | J177: 23 | L177: 23 | N177: 20 | P177: 20 | R177: 23 | T177: 23 | Z177: $/m2
B178: Resurface (AC) | F178: 40 | H178: 40 | J178: 40 | L178: 40 | N178: 40 | P178: 40 | R178: 40 | T178: 40 | Z178: $/m2
B179: Resurtface (AC) Mill and Replace | F179: 60 | H179: 60 | J179: 60 | L179: 60 | N179: 60 | P179: 60 | R179: 60 | T179: 60 | Z179: $/m3
B180: Rehabilitation (SS) | F180: 80 | H180: 80 | J180: 80 | L180: 80 | N180: 80 | P180: 80 | R180: 80 | T180: 80 | Z180: $/m2
B181: Rehabilitation (AC) | F181: 110 | H181: 110 | J181: 110 | L181: 110 | N181: 110 | P181: 110 | R181: 110 | T181: 110 | Z181: $/m2
B182: Reconstruction (SS) | F182: 120 | H182: 120 | J182: 120 | L182: 120 | N182: 120 | P182: 120 | R182: 120 | T182: 120 | Z182: $/m2
B183: Reconstruction (AC) | F183: 150 | H183: 150 | J183: 150 | L183: 150 | N183: 150 | P183: 150 | R183: 150 | T183: 150 | Z183: $/m2
B185: Reliability Index
B188: Input Data Quality
B189: Pavement Age | F189: Known | J189: (dropdown)
B190: Traffic Data | F190: Educated Estimate | J190: (dropdown)
B191: IRI Data | F191: High-Speed Survey | J191: (dropdown)
B192: Rutting Data | F192: High-Speed Survey | J192: (dropdown)
B193: Cracking Data | F193: Visual Survey | J193: (dropdown)

Sheet Advanced Settings
A1: Advanced Settings
B4: Traffic Calculation Settings
J6: Settings for AADT + %HV input.
J7: ESAs / %LV | N7: 0.0011 | P7: (ratio)
J8: ESAs / %HV | N8: 2.4 | P8: (ratio)
J10: Other
J11: Lane Direction Factor | N11: 0.5 | P11: (factor)
AH12: Relative Performance Factor Section Naming
AH13: Parameters | AL13: Cracking ranges
AH14: Cracking state 1 | AL14: 0 | AP14: (text)
AH15: Cracking state 2 | AL15: 5 | AP15: (text)
AH16: Cracking state 3 | AL16: 10 | AP16: (text)
AH17: Cracking state 4 | AL17: 15 | AP17: (text)
AH18: Cracking state 5 | AL18: 20 | AP18: (text)
AH19: Cracking state 6 | AL19: 25 | AP19: (text)
AH20: Cracking state 7 | AL20: 30 | AP20: (text) | BP20: 2014 prices
B21: Deterioration Model Settings | AH21: Cracking state 8 | AL21: 35 | AP21: (text) | BP21: Road width = 8.5m
BP22: RF = 40m/km
BP23: Curvature = 20° / km
B24: Low Volume RD Model | R24: Network Level RD Model | AH24: Network Level Relative Performance Factors | BB24: Table 5.1 Vehicle parameters for vehicle types used in NGTSM VOC modelling
BB25: ATAP Vehicle type | BC25: Austroads class | BD25: 5 vehicle representative fleet for aggregate input data (adapted for Table 6 - vehicle free speeds) | BE25: GCM | BF25: Maximum payload (tonnes) | BG25: GVM at 100% payload | BH25: ESAs per vehicle at 75% payload | BI25: ESAs per vehicle at 100% payload | BJ25: ESAs per vehicle at 105% payload | BK25: ESAs per vehicle at 125% payload | BL25: Engine | BM25: Annual | BN25: PCU / PCSE | BP25: Table C.4: Coefficients for rural (uninterrupted / free flow speed) VOC model (cents per km) | BY25: Transposed HDM-4 speed table
B26: Parameters | F26: =IF(uS_C1="", "Class 1", uS_C1) -> A1_unmod Seal_Base_5.2 IRI_Alt_4IRI | G26: =IF(uS_C2="", "Class 2", uS_C2) -> A2_unmod Seal_Base_8 IRI_Alt_4IRI | H26: =IF(uS_C3="", "Class 3", uS_C3) -> A3_mod Seal_Base_5.2 IRI_Alt_4IRI | I26: =IF(uS_C4="", "Class 4", uS_C4) -> A4_mod Seal_Base_8 IRI_Alt_4IRI | J26: =IF(uS_C5="", "Class 5", uS_C5) -> Alt_A1_unmod Seal_Base_5.2 IRI_Alt_4IRI | K26: =IF(uS_C6="", "Class 6", uS_C6) -> Alt_A2_unmod Seal_Base_8 IRI_Alt_4IRI | L26: =IF(uS_C7="", "Class 7", uS_C7) -> Alt_A3_mod Seal_Base_5.2 IRI_Alt_4IRI | M26: =IF(uS_C8="", "Class 8", uS_C8) -> Alt_A4_mod Seal_Base_8 IRI_Alt_4IRI | N26: =IF(uS_C9="", "Class 9", uS_C9) -> Other | O26: =IF(uS_C10="", "Class 10", uS_C10) -> Other | R26: Parameters | V26: =IF(uS_C1="", "Class 1", uS_C1) -> A1_unmod Seal_Base_5.2 IRI_Alt_4IRI | W26: =IF(uS_C2="", "Class 2", uS_C2) -> A2_unmod Seal_Base_8 IRI_Alt_4IRI | X26: =IF(uS_C3="", "Class 3", uS_C3) -> A3_mod Seal_Base_5.2 IRI_Alt_4IRI | Y26: =IF(uS_C4="", "Class 4", uS_C4) -> A4_mod Seal_Base_8 IRI_Alt_4IRI | Z26: =IF(uS_C5="", "Class 5", uS_C5) -> Alt_A1_unmod Seal_Base_5.2 IRI_Alt_4IRI | AA26: =IF(uS_C6="", "Class 6", uS_C6) -> Alt_A2_unmod Seal_Base_8 IRI_Alt_4IRI | AB26: =IF(uS_C7="", "Class 7", uS_C7) -> Alt_A3_mod Seal_Base_5.2 IRI_Alt_4IRI | AC26: =IF(uS_C8="", "Class 8", uS_C8) -> Alt_A4_mod Seal_Base_8 IRI_Alt_4IRI | AD26: =IF(uS_C9="", "Class 9", uS_C9) -> Other | AE26: =IF(uS_C10="", "Class 10", uS_C10) -> Other | AH26: Parameters | AL26: =IF(uS_C1="", "Class 1", uS_C1) -> A1_unmod Seal_Base_5.2 IRI_Alt_4IRI | AM26: =IF(uS_C2="", "Class 2", uS_C2) -> A2_unmod Seal_Base_8 IRI_Alt_4IRI | AN26: =IF(uS_C3="", "Class 3", uS_C3) -> A3_mod Seal_Base_5.2 IRI_Alt_4IRI | AO26: =IF(uS_C4="", "Class 4", uS_C4) -> A4_mod Seal_Base_8 IRI_Alt_4IRI | AP26: =IF(uS_C5="", "Class 5", uS_C5) -> Alt_A1_unmod Seal_Base_5.2 IRI_Alt_4IRI | AQ26: =IF(uS_C6="", "Class 6", uS_C6) -> Alt_A2_unmod Seal_Base_8 IRI_Alt_4IRI | AR26: =IF(uS_C7="", "Class 7", uS_C7) -> Alt_A3_mod Seal_Base_5.2 IRI_Alt_4IRI | AS26: =IF(uS_C8="", "Class 8", uS_C8) -> Alt_A4_mod Seal_Base_8 IRI_Alt_4IRI | AT26: =IF(uS_C9="", "Class 9", uS_C9) -> Other | AU26: =IF(uS_C10="", "Class 10", uS_C10) -> Other | BE26: (tonnes) | BG26: (tonnes) | BL26: power (kw) | BM26: km | BP26: Vehicle type | BQ26: Base VOC (c/km) | BR26: K1 | BS26: K2 | BT26: K3 | BU26: K4 | BV26: K5 | BW26: K6 | BY26: Vehicle type | BZ26: HDM Vehicle | CA26: 4.5m | CB26: 5.8m | CC26: 8.5m
B27: Rutting Model Parameters | R27: Rutting Model Parameters | AH27: Rutting Model Factors | BB27: 01. Small Car | BC27: 1 Short vehicle | BD27: Passenger Car | BE27: 1.2 | BF27: 0.4 | BG27: 1.2 | BH27: 0.0002 | BI27: 0.0003 | BJ27: 0.0003 | BK27: 0.0004 | BL27: 65 | BM27: 23000 | BN27: 0.99 | BP27: 01. Small Car | BQ27: 21.77701 | BR27: 0.676646 | BS27: 8.84071 | BT27: 1.78e-05 | BU27: 0.029251 | BV27: 0.00078 | BW27: 0.055107 | BY27: 01. Small Car | BZ27: Medium car | CA27: =INDEX($CB$60:$CY$74,1,MATCH($BZ27,$CB$56:$CY$56,0)) -> 97.07216961 | CB27: =INDEX($CB$60:$CY$74,1,MATCH($BZ27,$CB$56:$CY$56,0)+1) -> 107.8841634 | CC27: =INDEX($CB$60:$CY$74,1,MATCH($BZ27,$CB$56:$CY$56,0)+2) -> 112.0637637
B28: Initial Densification Factor (Krid) | F28: 1 | G28: 1 | H28: 1 | I28: 1 | J28: 1 | K28: 1 | L28: 1 | M28: 1 | N28: 1 | O28: 1 | P28: (calibration) | R28: Initial Densification Factor (Krid) | V28: 1 | W28: 1 | X28: 1 | Y28: 1 | Z28: 1 | AA28: 1 | AB28: 1 | AC28: 1 | AF28: (calibration) | AH28: =AL14& "% < Cracking >" &AL15 &" %" -> 0% < Cracking >5 % | AL28: 1 | AM28: 1 | AN28: 1 | AO28: 1 | AP28: 1 | AQ28: 1 | AR28: 1 | AS28: 1 | AT28: 1 | AU28: 1 | BB28: 02. Medium Car | BC28: 1 Short vehicle | BD28: Passenger Car | BE28: 1.4 | BF28: 0.4 | BG28: 1.4 | BH28: 0.0005 | BI28: 0.0006 | BJ28: 0.0006 | BK28: 0.0006 | BL28: 80 | BM28: 23000 | BN28: 1 | BP28: 02. Medium Car | BQ28: 28.77737 | BR28: 0.684136 | BS28: 10.14324 | BT28: 1.34e-05 | BU28: 0.027084 | BV28: 0.000915 | BW28: 0.042771 | BY28: 02. Medium Car | BZ28: Medium car | CA28: =INDEX($CB$60:$CY$74,1,MATCH($BZ28,$CB$56:$CY$56,0)) -> 97.07216961 | CB28: =INDEX($CB$60:$CY$74,1,MATCH($BZ28,$CB$56:$CY$56,0)+1) -> 107.8841634 | CC28: =INDEX($CB$60:$CY$74,1,MATCH($BZ28,$CB$56:$CY$56,0)+2) -> 112.0637637
B29: Local Calibration Factor (Kr) | F29: 1 | G29: 1 | H29: 1 | I29: 1 | J29: 1 | K29: 1 | L29: 1 | M29: 1 | N29: 1 | O29: 1 | P29: (calibration) | R29: Local Calibration Factor (Kr) | V29: 3 | W29: 3 | X29: 3 | Y29: 3 | Z29: 1 | AA29: 1 | AB29: 1 | AC29: 1 | AF29: (calibration) | AH29: 5% < Cracking >10 % | AL29: =ROUNDUP(AL28+(2.06-1)/7,3) -> 1.152 | AM29: =ROUNDUP(AM28+(2.06-1)/7,3) -> 1.152 | AN29: 1.152 | AO29: 1.152 | AP29: 1.152 | AQ29: 1.152 | AR29: 1.152 | AS29: 1.152 | AT29: 1.152 | AU29: 1.152 | BB29: 03. Large Car | BC29: 1 Short vehicle | BD29: Passenger Car | BE29: 1.6 | BF29: 0.4 | BG29: 1.6 | BH29: 0.0008 | BI29: 0.001 | BJ29: 0.001 | BK29: 0.0011 | BL29: 110 | BM29: 23000 | BN29: 1.01 | BP29: 03. Large Car | BQ29: 37.48681 | BR29: 0.709327 | BS29: 10.69816 | BT29: 1.01e-05 | BU29: 0.023856 | BV29: 0.001009 | BW29: 0.030947 | BY29: 03. Large Car | BZ29: Medium car | CA29: =INDEX($CB$60:$CY$74,1,MATCH($BZ29,$CB$56:$CY$56,0)) -> 97.07216961 | CB29: 107.8841634 | CC29: 112.0637637
B30: Relative Compaction Value (COMP) | F30: 100 | G30: 100 | H30: 100 | I30: 100 | J30: 100 | K30: 100 | L30: 100 | M30: 100 | N30: 100 | O30: 100 | P30: (%) | R30: Annualised Maintenance Expenditure | AF30: ($/lane-km/year) | AH30: 10% < Cracking >15 % | AL30: 1.304 | AM30: 1.304 | AN30: 1.304 | AO30: 1.304 | AP30: 1.304 | AQ30: 1.304 | AR30: 1.304 | AS30: 1.304 | AT30: 1.304 | AU30: 1.304 | BB30: 04. Courier Van-Utility | BC30: 1 Short vehicle | BD30: Light Commercial/Utility/FWD/Mini Bus | BE30: 2.15 | BF30: 0.85 | BG30: 2.15 | BH30: 0.0024 | BI30: 0.0031 | BJ30: 0.0033 | BK30: 0.0039 | BL30: 60 | BM30: 30000 | BN30: 1.11 | BP30: 04. Courier Van-Utility | BQ30: 32.54266 | BR30: 0.656055 | BS30: 8.087261 | BT30: 1.16e-05 | BU30: 0.038363 | BV30: 0.002476 | BW30: 0.051734 | BY30: 04. Courier Van-Utility | BZ30: Light commercial (2 axle 4 tyre) | CA30: 104.08996 | CB30: 104.37001 | CC30: 104.37001
B31: Cracking Model Parameters | R31: Relative Compaction Value (COMP) | V31: 100 | W31: 100 | X31: 100 | Y31: 100 | Z31: 100 | AA31: 100 | AB31: 100 | AC31: 100 | AF31: (%) | AH31: 15% < Cracking >20 % | AL31: 1.456 | AM31: 1.456 | AN31: 1.456 | AO31: 1.456 | AP31: 1.456 | AQ31: 1.456 | AR31: 1.456 | AS31: 1.456 | AT31: 1.456 | AU31: =ROUNDUP(AU30+(2.06-1)/7,3) -> 1.456 | BB31: 05. 4WD Mid Size Petrol | BC31: 2 Short vehicle | BD31: Light Commercial/Utility/FWD/Mini Bus | BE31: 2.73 | BF31: 0.93 | BG31: 2.73 | BH31: 0.0066 | BI31: 0.0081 | BJ31: 0.0085 | BK31: 0.0097 | BL31: 132 | BM31: 30000 | BN31: 1.12 | BP31: 05. 4WD Mid Size Petrol | BQ31: 35.89298 | BR31: 0.699215 | BS31: 7.008638 | BT31: 1.28e-05 | BU31: 0.034033 | BV31: 0.002077 | BW31: 0.025696 | BY31: 05. 4WD Mid Size Petrol | BZ31: Light commercial (2 axle 4 tyre) | CA31: =INDEX($CB$60:$CY$74,1,MATCH($BZ31,$CB$56:$CY$56,0)) -> 104.08996 | CB31: 104.37001 | CC31: 104.37001
B32: Local Calibration Factor (Kcrx) | F32: 0.1 | G32: 0.1 | H32: 0.1 | I32: 0.1 | J32: 0.1 | K32: 0.1 | L32: 0.1 | M32: 0.1 | N32: 0.1 | O32: 0.1 | P32: (calibration) | R32: Cracking Model Initiation | AH32: 20% < Cracking >25 % | AL32: 1.608 | AM32: 1.608 | AN32: 1.608 | AO32: 1.608 | AP32: 1.608 | AQ32: 1.608 | AR32: 1.608 | AS32: 1.608 | AT32: 1.608 | AU32: 1.608 | BB32: 06. Light Rigid | BC32: 3 Two axle truck | BD32: Light Commercial/Utility/FWD/Mini Bus | BE32: 3.75 | BF32: 2.15 | BG32: 3.75 | BH32: 0.01 | BI32: 0.01 | BJ32: 0.01 | BK32: 0.02 | BL32: 56 | BM32: 30000 | BN32: 1.23 | BP32: 06. Light Rigid | BQ32: 45.38901 | BR32: 0.666827 | BS32: 6.029789 | BT32: 1.99e-05 | BU32: 0.040338 | BV32: 0.00193 | BW32: 0.033109 | BY32: 06. Light Rigid | BZ32: Light diesel truck (2 axle 6 tyre) | CA32: 83.38930671 | CB32: 86.59378784 | CC32: 87.20275045
B33: Risk Factor | F33: 6 | G33: 6 | H33: 6 | I33: 6 | J33: 6 | K33: 6 | L33: 6 | M33: 6 | N33: 6 | O33: 6 | P33: (factor) | R33: Calibration Factor - Sprayed Seal (Kcis) | V33: 1 | W33: 1 | X33: 1 | Y33: 1 | Z33: 1 | AA33: 1 | AB33: 1 | AC33: 1 | AF33: (calibration) | AH33: 25% < Cracking >30 % | AL33: 1.76 | AM33: 1.76 | AN33: 1.76 | AO33: 1.76 | AP33: 1.76 | AQ33: 1.76 | AR33: 1.76 | AS33: 1.76 | AT33: 1.76 | AU33: 1.76 | BB33: 07. Medium Rigid | BC33: 3 Two axle truck | BD33: Rigid Freight Vehicles/Large Bus | BE33: 10.4 | BF33: 7.2 | BG33: 10.4 | BH33: 0.53 | BI33: 0.69 | BJ33: 0.79 | BK33: 1.28 | BL33: 130 | BM33: 40000 | BN33: 1.4 | BP33: 07. Medium Rigid | BQ33: 52.2994 | BR33: 0.615392 | BS33: 8.454842 | BT33: 1.31e-05 | BU33: 0.035675 | BV33: 0.001824 | BW33: 0.029213 | BY33: 07. Medium Rigid | BZ33: Medium truck (2 axle 6 tyre) | CA33: 81.52320381 | CB33: 90.65477616 | CC33: 99.66785675
B34: Durability Test Result | F34: 10 | G34: 10 | H34: 10 | I34: 10 | J34: 10 | K34: 10 | L34: 10 | M34: 10 | N34: 10 | O34: 10 | P34: (days) | R34: Calibration Factor - Asphalt (Kcia) | V34: 1 | W34: 1 | X34: 1 | Y34: 1 | Z34: 1 | AA34: 1 | AB34: 1 | AC34: 1 | AF34: (calibration) | AH34: 30% < Cracking >35 % | AL34: 1.912 | AM34: 1.912 | AN34: 1.912 | AO34: 1.912 | AP34: 1.912 | AQ34: 1.912 | AR34: 1.912 | AS34: 1.912 | AT34: 1.912 | AU34: 1.912 | BB34: 08. Heavy Rigid | BC34: 6 Three axle articulated truck | BD34: Rigid Freight Vehicles/Large Bus | BE34: 22.5 | BF34: 13.5 | BG34: 22.5 | BH34: 2.72 | BI34: 3.59 | BJ34: 4.02 | BK34: 6.17 | BL34: 190 | BM34: 86000 | BN34: 1.56 | BP34: 08. Heavy Rigid | BQ34: 70.52667 | BR34: 0.40264 | BS34: 9.203288 | BT34: 1.02e-05 | BU34: 0.072624 | BV34: 0.000369 | BW34: 0.025286 | BY34: 08. Heavy Rigid | BZ34: Heavy truck (3 axles | CA34: 70.07111088 | CB34: 79.51476415 | CC34: 88.82097289
B35: Nominal Seal Size | F35: 10 | G35: 10 | H35: 10 | I35: 10 | J35: 10 | K35: 10 | L35: 10 | M35: 10 | N35: 10 | O35: 10 | P35: (mm) | R35: Risk Factor | V35: 6 | W35: 6 | X35: 6 | Y35: 6 | Z35: 6 | AA35: 6 | AB35: 6 | AC35: 6 | AF35: (factor) | AH35: ="Cracking >" &AL21 &" %" -> Cracking >35 % | AL35: 2.06 | AM35: 2.06 | AN35: 2.06 | AO35: 2.06 | AP35: 2.06 | AQ35: 2.06 | AR35: 2.06 | AS35: 2.06 | AT35: 2.06 | AU35: 2.06 | BB35: 09. Heavy Bus | BC35: 4 Three axle truck | BD35: Rigid Freight Vehicles/Large Bus | BE35: 19 | BF35: 7 | BG35: 19 | BH35: 1.17 | BI35: 2.32 | BJ35: 2.53 | BK35: 3.51 | BL35: 200 | BM35: 70000 | BN35: 1.59 | BP35: 09. Heavy Bus | BQ35: 107.7354 | BR35: 0.583615 | BS35: 7.384707 | BT35: -5e-06 | BU35: 0.062057 | BV35: 0.000904 | BW35: 0.01559 | BY35: 09. Heavy Bus | BZ35: Large bus (3 axles) | CA35: 70.8447645 | CB35: 80.91586638 | CC35: 91.51726116
B36: Asphalt Voids Percentage | F36: 5 | G36: 5 | H36: 5 | I36: 5 | J36: 5 | K36: 5 | L36: 5 | M36: 5 | N36: 5 | O36: 5 | P36: (%) | R36: Durability Test Result | V36: 9 | W36: 9 | X36: 9 | Y36: 9 | Z36: 9 | AA36: 9 | AB36: 9 | AC36: 9 | AF36: (days) | AH36: Roughness Model Factors | BB36: 10. Artic 4 Axle | BC36: 7 Four axle articulated truck | BD36: Articulated Freight Vehicles | BE36: 31.5 | BF36: 20.5 | BG36: 31.5 | BH36: 3.96 | BI36: 5.07 | BJ36: 5.7 | BK36: 8.95 | BL36: 190 | BM36: 86000 | BN36: 1.78 | BP36: 10. Artic 4 Axle | BQ36: 93.7909 | BR36: 0.324703 | BS36: 9.439323 | BT36: 2.06e-05 | BU36: 0.081556 | BV36: 0.000253 | BW36: 0.021187 | BY36: 10. Artic 4 Axle | BZ36: Articulated truck (6 axle) | CA36: 81.84434523 | CB36: 90.74464999 | CC36: 96.83435673
B37: Roughness Model Parameters | R37: Nominal Seal Size | V37: 10 | W37: 10 | X37: 10 | Y37: 10 | Z37: 10 | AA37: 10 | AB37: 10 | AC37: 10 | AF37: (mm) | AH37: =AH28 -> 0% < Cracking >5 % | AL37: 1 | AM37: 1 | AN37: 1 | AO37: 1 | AP37: 1 | AQ37: 1 | AR37: 1 | AS37: 1 | AT37: 1 | AU37: 1 | BB37: 11. Artic 5 Axle | BC37: 8 Five axle articulated truck | BD37: Articulated Freight Vehicles | BE37: 39 | BF37: 26 | BG37: 39 | BH37: 4.4 | BI37: 5.65 | BJ37: 6.37 | BK37: 10.08 | BL37: 260 | BM37: 86000 | BN37: 1.84 | BP37: 11. Artic 5 Axle | BQ37: 103.9641 | BR37: 0.362538 | BS37: 8.677248 | BT37: 1.59e-05 | BU37: 0.079564 | BV37: 0.000287 | BW37: 0.017641 | BY37: 11. Artic 5 Axle | BZ37: Articulated truck (6 axle) | CA37: 81.84434523 | CB37: 90.74464999 | CC37: 96.83435673
B38: Local Calibration Factor (Kiri) | F38: 1 | G38: 1 | H38: 1 | I38: 1 | J38: 1 | K38: 1 | L38: 1 | M38: 1 | N38: 1 | O38: 1 | P38: (calibration) | R38: Asphalt Voids Percentage | V38: 5 | W38: 5 | X38: 5 | Y38: 5 | Z38: 5 | AA38: 5 | AB38: 5 | AC38: 5 | AF38: (%) | AH38: =AH29 -> 5% < Cracking >10 % | AL38: =ROUNDUP(AL37+(1.96-1)/7,3) -> 1.138 | AM38: =ROUNDUP(AM37+(1.96-1)/7,3) -> 1.138 | AN38: 1.138 | AO38: 1.138 | AP38: 1.138 | AQ38: 1.138 | AR38: 1.138 | AS38: 1.138 | AT38: 1.138 | AU38: 1.138 | BB38: 12. Artic 6 Axle | BC38: 9 Six axle articulated truck | BD38: Articulated Freight Vehicles | BE38: 42.5 | BF38: 27.5 | BG38: 42.5 | BH38: 3.89 | BI38: 4.97 | BJ38: 5.55 | BK38: 8.54 | BL38: 300 | BM38: 86000 | BN38: 1.89 | BP38: 12. Artic 6 Axle | BQ38: 113.1935 | BR38: 0.372582 | BS38: 8.09736 | BT38: 1.25e-05 | BU38: 0.080523 | BV38: 0.000215 | BW38: 0.016133 | BY38: 12. Artic 6 Axle | BZ38: Articulated truck (6 axle) | CA38: 81.84434523 | CB38: 90.74464999 | CC38: 96.83435673
B39: Structural Model Parameter | R39: Cracking Model Progression | AH39: 10% < Cracking >15 % | AL39: 1.276 | AM39: 1.276 | AN39: 1.276 | AO39: 1.276 | AP39: 1.276 | AQ39: 1.276 | AR39: 1.276 | AS39: 1.276 | AT39: 1.276 | AU39: 1.276 | BB39: 13. Rigid + 5 Axle Dog | BC39: 10 B Double | BD39: Combination Vehicles | BE39: 59 | BF39: 40 | BG39: 59 | BH39: 5.44 | BI39: 7.04 | BJ39: 7.95 | BK39: 12.65 | BL39: 320 | BM39: 86000 | BN39: 1.92 | BP39: 13. Rigid + 5 Axle Dog | BQ39: 122.7591 | BR39: 0.364701 | BS39: 6.979721 | BT39: 1.2e-05 | BU39: 0.074484 | BV39: -4e-05 | BW39: 0.015089 | BY39: 13. Rigid + 5 Axle Dog | BZ39: B-Double (9 axles) | CA39: 81.68671347 | CB39: 90.30451686 | CC39: 96.00276024
B40: Local Calibration Factor (Ks) | F40: 1 | G40: 1 | H40: 1 | I40: 1 | J40: 1 | K40: 1 | L40: 1 | M40: 1 | N40: 1 | O40: 1 | P40: (calibration) | R40: Calibration Factor - Sprayed Seal (Kcps) | V40: 1 | W40: 1 | X40: 1 | Y40: 1 | Z40: 1 | AA40: 1 | AB40: 1 | AC40: 1 | AF40: (calibration) | AH40: 15% < Cracking >20 % | AL40: 1.414 | AM40: 1.414 | AN40: 1.414 | AO40: 1.414 | AP40: 1.414 | AQ40: 1.414 | AR40: 1.414 | AS40: 1.414 | AT40: 1.414 | AU40: 1.414 | BB40: 14. B-Double | BC40: 10 B Double | BD40: Combination Vehicles | BE40: 62.5 | BF40: 40.5 | BG40: 62.5 | BH40: 4.93 | BI40: 6.35 | BJ40: 7.12 | BK40: 11.02 | BL40: 350 | BM40: 86000 | BN40: 2.22 | BP40: 14. B-Double | BQ40: 135.7933 | BR40: 0.356468 | BS40: 7.08738 | BT40: 7.06e-06 | BU40: 0.083405 | BV40: 8.51e-06 | BW40: 0.013615 | BY40: 14. B-Double | BZ40: B-Double (9 axles) | CA40: 81.68671347 | CB40: 90.30451686 | CC40: 96.00276024
R41: Calibration Factor - Asphalt (Kcpa) | V41: 1 | W41: 1 | X41: 1 | Y41: 1 | Z41: 1 | AA41: 1 | AB41: 1 | AC41: 1 | AF41: (calibration) | AH41: 20% < Cracking >25 % | AL41: 1.552 | AM41: 1.552 | AN41: 1.552 | AO41: 1.552 | AP41: 1.552 | AQ41: 1.552 | AR41: 1.552 | AS41: 1.552 | AT41: 1.552 | AU41: 1.552 | BB41: 15. Twin steer + 5 Axle Dog | BC41: 5 Four axle truck (twin steer) | BD41: Combination Vehicles | BE41: 64 | BF41: 43 | BG41: 64 | BH41: 4.49 | BI41: 7.58 | BJ41: 8.56 | BK41: 13.66 | BL41: 360 | BM41: 86000 | BN41: 1.97 | BP41: 15. Twin steer + 5 Axle Dog | BQ41: 135.0691 | BR41: 0.35734 | BS41: 7.031495 | BT41: 9.86e-06 | BU41: 0.078876 | BV41: 3.72e-05 | BW41: 0.013819 | BY41: 15. Twin steer + 5 Axle Dog | BZ41: B-Double (9 axles) | CA41: 81.68671347 | CB41: 90.30451686 | CC41: 96.00276024
R42: Roughness Model Parameters | AH42: 25% < Cracking >30 % | AL42: 1.69 | AM42: 1.69 | AN42: 1.69 | AO42: 1.69 | AP42: 1.69 | AQ42: 1.69 | AR42: 1.69 | AS42: 1.69 | AT42: 1.69 | AU42: 1.69 | BB42: 16. A-Double | BC42: 11 Double road train | BD42: Combination Vehicles | BE42: 79 | BF42: 48 | BG42: 79 | BH42: 6.5 | BI42: 8.42 | BJ42: 9.41 | BK42: 14.34 | BL42: 370 | BM42: 86000 | BN42: 2.75 | BP42: 16. A-Double | BQ42: 170.3588 | BR42: 0.36611 | BS42: 6.362374 | BT42: -4.2e-08 | BU42: 0.084517 | BV42: -5.3e-05 | BW42: 0.010825 | BY42: 16. A-Double | BZ42: B-Double (9 axles) | CA42: 81.68671347 | CB42: 90.30451686 | CC42: 96.00276024
B43: Works Effects Parameters | R43: Local Calibration Factor (Kiri) | V43: 1.25 | W43: 1.25 | X43: 1.25 | Y43: 1.25 | Z43: 0.6 | AA43: 0.6 | AB43: 0.6 | AC43: 0.6 | AF43: (calibration) | AH43: 30% < Cracking >35 % | AL43: 1.828 | AM43: 1.828 | AN43: 1.828 | AO43: 1.828 | AP43: 1.828 | AQ43: 1.828 | AR43: 1.828 | AS43: 1.828 | AT43: 1.828 | AU43: 1.828 | BB43: 17. B Triple | BC43: 11 Double road train | BD43: Combination Vehicles | BE43: 82.5 | BF43: 48.5 | BG43: 82.5 | BH43: 5.99 | BI43: 7.73 | BJ43: 8.6 | BK43: 12.88 | BL43: 380 | BM43: 86000 | BN43: 2.82 | BP43: 17. B Triple | BQ43: 197.0098 | BR43: 0.393853 | BS43: 6.489415 | BT43: -4.1e-06 | BU43: 0.085982 | BV43: 0.00017 | BW43: 0.009303 | BY43: 17. B Triple | BZ43: B-Double (9 axles) | CA43: 81.68671347 | CB43: 90.30451686 | CC43: 96.00276024
R44: Nominal Maximum Seal Aggregate Size | V44: 10 | W44: 10 | X44: 10 | Y44: 10 | Z44: 10 | AA44: 10 | AB44: 10 | AC44: 10 | AF44: (mm) | AH44: Cracking >35 % | AL44: 1.96 | AM44: 1.96 | AN44: 1.96 | AO44: 1.96 | AP44: 1.96 | AQ44: 1.96 | AR44: 1.96 | AS44: 1.96 | AT44: 1.96 | AU44: 1.96 | BB44: 18. A B Combination | BC44: 11 Double road train | BD44: Combination Vehicles | BE44: 99 | BF44: 60 | BG44: 99 | BH44: 7.54 | BI44: 9.8 | BJ44: 10.96 | BK44: 16.73 | BL44: 380 | BM44: 86000 | BN44: 2.9 | BP44: 18. A B Combination | BQ44: 199.4189 | BR44: 0.368899 | BS44: 5.874719 | BT44: -3.1e-06 | BU44: 0.082276 | BV44: -0.00014 | BW44: 0.008982 | BY44: 18. A B Combination | BZ44: B-Double (9 axles) | CA44: 81.68671347 | CB44: 90.30451686 | CC44: 96.00276024
R45: FLT of Bitumen Binder Factor | V45: 0.9 | W45: 0.9 | X45: 0.9 | Y45: 0.9 | Z45: 0.9 | AA45: 0.9 | AB45: 0.9 | AC45: 0.9 | AF45: (factor) | BB45: 19. A-Triple | BC45: 12 Triple road train | BD45: Combination Vehicles | BE45: 115.5 | BF45: 71.5 | BG45: 115.5 | BH45: 9.1 | BI45: 11.86 | BJ45: 13.32 | BK45: 20.61 | BL45: 390 | BM45: 86000 | BN45: 3.38 | BP45: 19. A-Triple | BQ45: 227.1595 | BR45: 0.372549 | BS45: 5.871347 | BT45: -4.1e-06 | BU45: 0.081963 | BV45: -0.00012 | BW45: 0.007827 | BY45: 19. A-Triple | BZ45: B-Double (9 axles) | CA45: 81.68671347 | CB45: 90.30451686 | CC45: 96.00276024
B46: Thickness (mm) | D46: a0 | I46: a1 | J46: a2 | K46: a3 | R46: Structural Model Parameter | BB46: 20. Double B-Double | BC46: 12 Double road train | BD46: Combination Vehicles | BE46: 119 | BF46: 72 | BG46: 119 | BH46: 8.59 | BI46: 11.18 | BJ46: 12.51 | BK46: 19.13 | BL46: 400 | BM46: 86000 | BN46: 3.38 | BP46: 20. Double B-Double | BQ46: 233.9273 | BR46: 0.359344 | BS46: 5.642749 | BT46: -2.8e-06 | BU46: 0.080346 | BV46: -0.00019 | BW46: 0.007639 | BY46: 20. Double B-Double | BZ46: B-Double (9 axles) | CA46: 81.68671347 | CB46: 90.30451686 | CC46: 96.00276024
D47: (minimum) | I47: (slope 1) | J47: (inflection) | K47: (slope 2) | R47: Local Calibration Factor (Ks) | V47: 1 | W47: 1 | X47: 1 | Y47: 1 | Z47: 1 | AA47: 1 | AB47: 1 | AC47: 1 | AD47: 1 | AE47: 1 | AF47: (calibration) | BB47: Notes: - Austroads Class 2 Short vehicle towing not represented - represent as ATAP 05 - Austroads Class 5 Four axle truck (twin steer) represented as ATAP 15: Twin steer truck + 5 axle dog trailer - Austroads Class 6 Three axle articulated truck not represented - represent as ATAP 08 | BP47: Source: ARRB Group Ltd.
B48: 5 | D48: User specified by road functional class & surface type | I48: 0.09 | J48: 2 | K48: 0.0675
B49: 10 | D49: User specified by road functional class & surface type | I49: 0.18 | J49: 2 | K49: 0.1375
B50: 15 | D50: User specified by road functional class & surface type | I50: 0.27 | J50: 2 | K50: 0.2075
B51: 20 | D51: User specified by road functional class & surface type | I51: 0.45 | J51: 2 | K51: 0.3375 | BE51: Roughness Threshold for addiotnal costs | BI51: 5.2 | BJ51: IRI | BZ51: Revised Table 6 - vehicle free speeds (km/h) | CG51: Free speeds derived from HDM-4 spreadsheet model
B52: 25 | D52: User specified by road functional class & surface type | I52: 0.5 | J52: 2 | K52: 0.33 | BE52: Proportion of busines trips for total cars | BI52: 0.6 | BZ52: Roughness = 2 IRI
B53: 30 | D53: User specified by road functional class & surface type | I53: 0.54 | J53: 2 | K53: 0.4 | BB53: Table 3.4 | BC53: Estimated values of travel time (resource costs) – occupant and freight payload values, as at June 2013 | BZ53: Vehicle loading = 75% of vehicle payload
B54: 35 | D54: User specified by road functional class & surface type | I54: 0.59 | J54: 2 | K54: 0.48 | BB54: Vehicle type | BC54: Non-urban | BE54: Urban | BG54: Freight travel time | BI54: 95 | BJ54: < Unconstrained speed
B55: 40 | D55: User specified by road functional class & surface type | I55: 0.65 | J55: 2 | K55: 0.55 | BC55: Occupancy rate | BD55: Value per occupant | BE55: Occupancy rate | BF55: Value per occupant | BG55: Non‑urban | BH55: Urban | BI55: 76 | BJ55: < Constrained speed | CE55: Rigid freight vehicles
B56: 50 | D56: User specified by road functional class & surface type | I56: 0.75 | J56: 2 | K56: 0.7 | BC56: (persons/veh) | BD56: ($/person-hour) | BE56: (persons/veh) | BF56: ($/person-hour) | BG56: $ values per vehicle-hour | BI56: Additional travel time per km at high roughness (hrs) for rural conditions | BJ56: Additional travel time cost per km at high roughness (cents/km) for rural conditions | CB56: Medium car | CE56: Light commercial (2 axle 4 tyre) | CH56: Light diesel truck (2 axle 6 tyre) | CK56: Medium truck (2 axle 6 tyre) | CN56: Heavy truck (3 axles | CQ56: Large bus (3 axles) | CT56: Articulated truck (6 axle) | CW56: B-Double (9 axles)
B57: 60 | D57: User specified by road functional class & surface type | I57: 0.8 | J57: 2 | K57: 0.8 | BB57: Cars (all types) | BZ57: Gradient | CA57: Curvature
B58: 70 | D58: User specified by road functional class & surface type | I58: 0.9 | J58: 2 | K58: 0.9 | BB58: Private | BC58: 1.7 | BD58: 14.99 | BE58: 1.6 | BF58: 14.99 | BG58: na | BH58: na | BI58: =(1/BI$55)-1/BI$54 -> 0.002631578947 | BJ58: =(IFERROR(BG58*BI58,0)+(BC58*BD58*BI58))*100 -> 6.706052632 | BZ58: category | CA58: category | CB58: Width | CE58: Width | CH58: Width | CK58: Width | CN58: Width | CQ58: Width | CT58: Width | CW58: Width
B59: 80 | D59: User specified by road functional class & surface type | I59: 1 | J59: 2 | K59: 1 | BB59: Business | BC59: 1.3 | BD59: 47.96 | BE59: 1.4 | BF59: 47.96 | BG59: na | BH59: na | BI59: =(1/BI$55)-1/BI$54 -> 0.002631578947 | BJ59: =(IFERROR(BG59*BI59,0)+(BC59*BD59*BI59))*100 -> 16.40736842 | CB59: 4.5m | CC59: 5.8m | CD59: 8.5m | CE59: 4.5m | CF59: 5.8m | CG59: 8.5m | CH59: 4.5m | CI59: 5.8m | CJ59: 8.5m | CK59: 4.5m | CL59: 5.8m | CM59: 8.5m | CN59: 4.5m | CO59: 5.8m | CP59: 8.5m | CQ59: 4.5m | CR59: 5.8m | CS59: 8.5m | CT59: 4.5m | CU59: 5.8m | CV59: 8.5m | CW59: 4.5m | CX59: 5.8m | CY59: 8.5m
BB60: Utility vehicles | BY60: RSE: From 19/06/2020, This is the row we use | CA60: Straight | CB60: 97.07216961 | CC60: 107.8841634 | CD60: 112.0637637 | CE60: 104.08996 | CF60: 104.37001 | CG60: 104.37001 | CH60: 83.38930671 | CI60: 86.59378784 | CJ60: 87.20275045 | CK60: 81.52320381 | CL60: 90.65477616 | CM60: 99.66785675 | CN60: 70.07111088 | CO60: 79.51476415 | CP60: 88.82097289 | CQ60: 70.8447645 | CR60: 80.91586638 | CS60: 91.51726116 | CT60: 81.84434523 | CU60: 90.74464999 | CV60: 96.83435673 | CW60: 81.68671347 | CX60: 90.30451686 | CY60: 96.00276024
BB61: 04. Courier Van-Utility | BC61: 1 | BD61: 25.41 | BE61: 1 | BF61: 25.41 | BG61: na | BH61: na | BI61: =(1/BI$55)-1/BI$54 -> 0.002631578947 | BJ61: =(IFERROR(BG61*BI61,0)+(BC61*BD61*BI61))*100 -> 6.686842105 | BZ61: Flat | CA61: Curvy | CB61: 92.95835086 | CC61: 99.8598059 | CD61: 102.0420036 | CE61: 97.64190524 | CF61: 97.81329989 | CG61: 97.81329989 | CH61: 79.27570444 | CI61: 81.54685646 | CJ61: 81.96313682 | CK61: 78.85374199 | CL61: 85.48983468 | CM61: 90.78828561 | CN61: 69.5201561 | CO61: 77.69108449 | CP61: 84.10394436 | CQ61: 70.23174861 | CR61: 78.78049134 | CS61: 85.56517232 | CT61: 74.9673908 | CU61: 77.65640339 | CV61: 78.64103454 | CW61: 74.90202762 | CX61: 77.56328094 | CY61: 78.53536407
BB62: 05. 4WD Mid Size Petrol | BC62: 1.5 | BD62: 25.41 | BE62: 1.5 | BF62: 25.41 | BG62: na | BH62: na | BI62: =(1/BI$55)-1/BI$54 -> 0.002631578947 | BJ62: =(IFERROR(BG62*BI62,0)+(BC62*BD62*BI62))*100 -> 10.03026316 | CA62: Very Curvy | CB62: 79.81684086 | CC62: 81.62164695 | CD62: 82.06297081 | CE62: 81.11403373 | CF62: 81.1555314 | CG62: 81.1555314 | CH62: 71.22231434 | CI62: 72.34249996 | CJ62: 72.53830479 | CK62: 71.7543834 | CL62: 74.72046214 | CM62: 76.51978797 | CN62: 65.78989822 | CO62: 69.40550796 | CP62: 70.97820356 | CQ62: 66.18946637 | CR62: 69.73909702 | CS62: 71.22445071 | CT62: 61.88231651 | CU62: 62.21756765 | CV62: 62.31710935 | CW62: 61.87284806 | CX62: 62.20756904 | CY62: 62.30694826
BB63: Rigid trucks | CA63: Straight | CB63: 95.09489318 | CC63: 104.1259626 | CD63: 107.4386261 | CE63: 92.57015809 | CF63: 92.74437398 | CG63: 92.74437398 | CH63: 72.94155602 | CI63: 74.92679164 | CJ63: 75.31040796 | CK63: 71.98159556 | CL63: 76.47519816 | CM63: 80.54692737 | CN63: 57.67914306 | CO63: 60.85370116 | CP63: 63.69890761 | CQ63: 62.83482795 | CR63: 66.94511462 | CS63: 70.56532773 | CT63: 56.43728529 | CU63: 58.55402033 | CV63: 59.9543544 | CW63: 49.13177086 | CX63: 50.9929295 | CY63: 52.58466537
BB64: 06. Light Rigid | BC64: 1.3 | BD64: 25.41 | BE64: 1.3 | BF64: 25.41 | BG64: 0.78 | BH64: 1.53 | BI64: =(1/BI$55)-1/BI$54 -> 0.002631578947 | BJ64: =(IFERROR(BG64*BI64,0)+(BC64*BD64*BI64))*100 -> 8.898157895 | BZ64: 0.04 | CA64: Curvy | CB64: 91.47172994 | CC64: 97.49179992 | CD64: 99.33455455 | CE64: 88.596502 | CF64: 88.70246841 | CG64: 88.70246841 | CH64: 70.41953859 | CI64: 71.81256739 | CJ64: 72.06744567 | CK64: 70.54569464 | CL64: 74.00239909 | CM64: 76.53725637 | CN64: 57.47799128 | CO64: 60.27322016 | CP64: 62.27147313 | CQ64: 62.55190265 | CR64: 66.14353084 | CS64: 68.59589173 | CT64: 54.65008245 | CU64: 55.36961108 | CV64: 55.62605112 | CW64: 47.7042542 | CX64: 48.27128902 | CY64: 48.47551244
BB65: 07. Medium Rigid | BC65: 1.2 | BD65: 25.72 | BE65: 1.3 | BF65: 25.72 | BG65: 2.11 | BH65: 4.15 | BI65: =(1/BI$55)-1/BI$54 -> 0.002631578947 | BJ65: =(IFERROR(BG65*BI65,0)+(BC65*BD65*BI65))*100 -> 8.677368421 | CA65: Very Curvy | CB65: 79.30630396 | CC65: 81.02163795 | CD65: 81.4392528 | CE65: 77.51474365 | CF65: 77.54563618 | CG65: 77.54563618 | CH65: 65.31616914 | CI65: 66.05021563 | CJ65: 66.17753498 | CK65: 66.35666491 | CL65: 68.17839623 | CM65: 69.23204252 | CN65: 56.05237503 | CO65: 57.43585504 | CP65: 58.00566695 | CQ65: 60.55630651 | CR65: 62.3210679 | CS65: 63.00775002 | CT65: 50.61468726 | CU65: 50.73236762 | CV65: 50.76712835 | CW65: 44.61460258 | CX65: 44.70305577 | CY65: 44.72920377
BB66: 08. Heavy Rigid | BC66: 1 | BD66: 26.19 | BE66: 1 | BF66: 26.19 | BG66: 7.22 | BH66: 14.2 | BI66: =(1/BI$55)-1/BI$54 -> 0.002631578947 | BJ66: =(IFERROR(BG66*BI66,0)+(BC66*BD66*BI66))*100 -> 8.792105263 | CA66: Straight | CB66: 92.69120082 | CC66: 100.2188012 | CD66: 102.9093598 | CE66: 83.78412695 | CF66: 83.91163778 | CG66: 83.91163778 | CH66: 65.13747515 | CI66: 66.53727202 | CJ66: 66.8069256 | CK66: 62.97785915 | CL66: 65.83158176 | CM66: 68.35318051 | CN66: 48.00844873 | CO66: 50.19353726 | CP66: 52.32139747 | CQ66: 53.16201834 | CR66: 55.85074373 | CS66: 58.35594101 | CT66: 45.39936392 | CU66: 46.98352968 | CV66: 48.33169065 | CW66: 38.41742531 | CX66: 39.54571405 | CY66: 40.4969157
BB67: Buses | BZ67: 0.06 | CA67: Curvy | CB67: 89.56399749 | CC67: 94.72340283 | CD67: 96.26750756 | CE67: 80.88503501 | CF67: 80.96205182 | CG67: 80.96205182 | CH67: 63.35255077 | CI67: 64.33913541 | CJ67: 64.51947556 | CK67: 62.0633923 | CL67: 64.26420939 | CM67: 65.87071721 | CN67: 47.87346621 | CO67: 49.784973 | CP67: 51.21922021 | CQ67: 52.9838227 | CR67: 55.31321205 | CS67: 56.97601724 | CT67: 44.17871905 | CU67: 44.66413748 | CV67: 44.83878889 | CW67: 37.54007617 | CX67: 37.88980479 | CY67: 38.01536807
BB68: 09. Heavy Bus (driver) | BC68: 1 | BD68: 25.72 | BE68: 1 | BF68: 25.72 | BG68: 0 | BH68: na | BI68: =(1/BI$55)-1/BI$54 -> 0.002631578947 | BJ68: =(IFERROR(BG68*BI68,0)+(BC68*BD68*BI68))*100 -> 6.768421053 | CA68: Very Curvy | CB68: 78.55822244 | CC68: 80.15483483 | CD68: 80.54149463 | CE68: 72.85797859 | CF68: 72.88061095 | CG68: 72.88061095 | CH68: 59.72252227 | CI68: 60.24685587 | CJ68: 60.33769712 | CK68: 59.39297645 | CL68: 60.55555038 | CM68: 61.22680366 | CN68: 46.92816925 | CO68: 47.84523922 | CP68: 48.22837138 | CQ68: 51.75613838 | CR68: 52.83917813 | CS68: 53.27141678 | CT68: 41.52329614 | CU68: 41.59948766 | CV68: 41.62201008 | CW68: 35.60830924 | CX68: 35.66414675 | CY68: 35.68064827
BB69: 09. Heavy Bus (passenger) | BC69: 20 | BD69: 14.99 | BE69: 20 | BF69: 14.99 | BG69: 0 | BH69: na | BI69: =(1/BI$55)-1/BI$54 -> 0.002631578947 | BJ69: =(IFERROR(BG69*BI69,0)+(BC69*BD69*BI69))*100 -> 78.89473684 | CA69: Straight | CB69: 89.36277295 | CC69: 95.49847151 | CD69: 97.67768094 | CE69: 75.26984949 | CF69: 75.36253849 | CG69: 75.36253849 | CH69: 57.75999451 | CI69: 58.71655984 | CJ69: 58.89776362 | CK69: 55.41709508 | CL69: 57.85582653 | CM69: 60.45861366 | CN69: 40.69922644 | CO69: 42.2548596 | CP69: 43.75215855 | CQ69: 45.4609525 | CR69: 47.39603996 | CS69: 49.18303531 | CT69: 37.67890471 | CU69: 38.76359796 | CV69: 39.67707652 | CW69: 31.45335854 | CX69: 32.20566373 | CY69: 32.83379466
BB70: Articulated trucks | BZ70: 0.08 | CA70: Curvy | CB70: 86.76959464 | CC70: 91.03037056 | CD70: 92.29052186 | CE70: 73.13545227 | CF70: 73.19262965 | CG70: 73.19262965 | CH70: 56.51019018 | CI70: 57.20446754 | CJ70: 57.33049675 | CK70: 54.68898325 | CL70: 56.4783902 | CM70: 57.89182436 | CN70: 40.60258519 | CO70: 41.9653307 | CP70: 42.97883025 | CQ70: 45.33237934 | CR70: 47.01029391 | CS70: 48.20105786 | CT70: 36.83460946 | CU70: 37.17125012 | CV70: 37.29208603 | CW70: 30.86285395 | CX70: 31.09882315 | CY70: 31.18335469
BB71: 10. Artic 4 Axle | BC71: 1 | BD71: 26.81 | BE71: 1 | BF71: 26.81 | BG71: 15.53 | BH71: 30.59 | BI71: =(1/BI$55)-1/BI$54 -> 0.002631578947 | BJ71: =(IFERROR(BG71*BI71,0)+(BC71*BD71*BI71))*100 -> 11.14210526 | CA71: Very Curvy | CB71: 77.2634796 | CC71: 78.68473909 | CD71: 79.02669212 | CE71: 67.16960201 | CF71: 67.1863122 | CG71: 67.1863122 | CH71: 53.90865054 | CI71: 54.28749688 | CJ71: 54.35305561 | CK71: 52.65043992 | CL71: 53.52428528 | CM71: 54.03790979 | CN71: 39.92431906 | CO71: 40.58236882 | CP71: 40.85655686 | CQ71: 44.4468444 | CR71: 45.22800929 | CS71: 45.53988031 | CT71: 34.97307447 | CU71: 35.02692973 | CV71: 35.0428449 | CW71: 29.54547108 | CX71: 29.5838817 | CY71: 29.59522932
BB72: 11. Artic 5 Axle | BC72: 1 | BD72: 26.81 | BE72: 1 | BF72: 26.81 | BG72: 19.8 | BH72: 39.01 | BI72: =(1/BI$55)-1/BI$54 -> 0.002631578947 | BJ72: =(IFERROR(BG72*BI72,0)+(BC72*BD72*BI72))*100 -> 12.26578947 | CA72: Straight | CB72: 85.32773078 | CC72: 90.33579883 | CD72: 92.11969852 | CE72: 67.12857354 | CF72: 67.18609468 | CG72: 67.18609468 | CH72: 53.7976852 | CI72: 55.42324845 | CJ72: 55.80178966 | CK72: 48.85945304 | CL72: 50.72518213 | CM72: 52.71194907 | CN72: 35.21552615 | CO72: 36.37386529 | CP72: 37.47794846 | CQ72: 39.5754685 | CR72: 41.03223989 | CS72: 42.3643708 | CT72: 32.1475006 | CU72: 32.9337855 | CV72: 33.59090952 | CW72: 26.60489178 | CX72: 27.14116617 | CY72: 27.58592503
BB73: 12. Artic 6 Axle | BC73: 1 | BD73: 26.81 | BE73: 1 | BF73: 26.81 | BG73: 21.36 | BH73: 42.06 | BI73: =(1/BI$55)-1/BI$54 -> 0.002631578947 | BJ73: =(IFERROR(BG73*BI73,0)+(BC73*BD73*BI73))*100 -> 12.67631579 | BZ73: 0.1 | CA73: Curvy | CB73: 83.20861366 | CC73: 86.68796957 | CD73: 87.71580832 | CE73: 65.73205723 | CF73: 65.77104435 | CG73: 65.77104435 | CH73: 52.16161932 | CI73: 53.02546945 | CJ73: 53.19318803 | CK73: 48.30212699 | CL73: 49.67174647 | CM73: 50.75269437 | CN73: 35.14318966 | CO73: 36.15914805 | CP73: 36.90902819 | CQ73: 39.47817801 | CR73: 40.74300021 | CS73: 41.63394299 | CT73: 31.53090056 | CU73: 31.77723676 | CV73: 31.86550181 | CW73: 26.18118231 | CX73: 26.35079337 | CY73: 26.41145796
BB74: Combination vehicles | CA74: Very Curvy | CB74: 75.28156685 | CC74: 76.4915741 | CD74: 76.7810989 | CE74: 61.39626966 | CF74: 61.40882494 | CG74: 61.40882494 | CH74: 49.44888092 | CI74: 49.81135721 | CJ74: 49.87490748 | CK74: 46.74366693 | CL74: 47.41115367 | CM74: 47.80393717 | CN74: 34.63428543 | CO74: 35.12805208 | CP74: 35.33319532 | CQ74: 38.80655116 | CR74: 39.39915865 | CS74: 39.63516325 | CT74: 30.15712612 | CU74: 30.19714542 | CV74: 30.2089687 | CW74: 25.22701272 | CX74: 25.25500835 | CY74: 25.26327706
BB75: 13. Rigid + 5 Axle Dog | BC75: 1 | BD75: 27.2 | BE75: 1 | BF75: 27.2 | BG75: 30.53 | BH75: 62.99 | BI75: =(1/BI$55)-1/BI$54 -> 0.002631578947 | BJ75: =(IFERROR(BG75*BI75,0)+(BC75*BD75*BI75))*100 -> 15.19210526
BB76: 14. B-Double | BC76: 1 | BD76: 27.2 | BE76: 1 | BF76: 27.2 | BG76: 31.46 | BH76: 64.91 | BI76: 0.002631578947 | BJ76: 15.43684211
BB77: 15. Twin steer + 5 Axle Dog | BC77: 1 | BD77: 27.2 | BE77: 1 | BF77: 27.2 | BG77: 29.5 | BH77: 60.89 | BI77: 0.002631578947 | BJ77: 14.92105263
BB78: 16. A-Double | BC78: 1 | BD78: 27.98 | BE78: 1 | BF78: 27.98 | BG78: 41.31 | BH78: 85.25 | BI78: 0.002631578947 | BJ78: 18.23421053
BB79: 17. B Triple | BC79: 1 | BD79: 27.98 | BE79: 1 | BF79: 27.98 | BG79: 42.17 | BH79: 87.01 | BI79: 0.002631578947 | BJ79: 18.46052632
BB80: 18. A B Combination | BC80: 1 | BD80: 27.98 | BE80: 1 | BF80: 27.98 | BG80: 50.79 | BH80: 104.8 | BI80: 0.002631578947 | BJ80: 20.72894737
BB81: 19. A-Triple | BC81: 1 | BD81: 28.45 | BE81: 1 | BF81: 28.45 | BG81: 60.89 | BH81: 125.64 | BI81: 0.002631578947 | BJ81: 23.51052632
BB82: 20. Double B-Double | BC82: 1 | BD82: 28.45 | BE82: 1 | BF82: 28.45 | BG82: 61.59 | BH82: 127.09 | BI82: 0.002631578947 | BJ82: 23.69473684
BB83: 20. Double B-Double | BC83: 1 | BD83: 28.45 | BE83: 1 | BF83: 28.45 | BG83: 61.59 | BH83: 127.09 | BI83: 0.002631578947 | BJ83: 23.69473684
BB84: Note: na denotes not applicable.
B92: Agezero Parameter Lookup Table
F95: =IF(uS_C1="", "Class 1", uS_C1) -> A1_unmod Seal_Base_5.2 IRI_Alt_4IRI | H95: =IF(uS_C2="", "Class 2", uS_C2) -> A2_unmod Seal_Base_8 IRI_Alt_4IRI | J95: =IF(uS_C3="", "Class 3", uS_C3) -> A3_mod Seal_Base_5.2 IRI_Alt_4IRI | L95: =IF(uS_C4="", "Class 4", uS_C4) -> A4_mod Seal_Base_8 IRI_Alt_4IRI | N95: =IF(uS_C5="", "Class 5", uS_C5) -> Alt_A1_unmod Seal_Base_5.2 IRI_Alt_4IRI | P95: =IF(uS_C6="", "Class 6", uS_C6) -> Alt_A2_unmod Seal_Base_8 IRI_Alt_4IRI | R95: =IF(uS_C7="", "Class 7", uS_C7) -> Alt_A3_mod Seal_Base_5.2 IRI_Alt_4IRI | T95: =IF(uS_C8="", "Class 8", uS_C8) -> Alt_A4_mod Seal_Base_8 IRI_Alt_4IRI | V95: =IF(uS_C9="", "Class 9", uS_C9) -> Other | X95: =IF(uS_C10="", "Class 10", uS_C10) -> Other
B97: Parameter
B98: IRIzero | F98: 1.8 | H98: 1.8 | J98: 1.8 | L98: 1.8 | N98: 1.8 | P98: 1.8 | R98: 1.8 | T98: 1.8 | Z98: (m/km)
B99: SNPzero | F99: 6.7 | H99: 6.7 | J99: 6.7 | L99: 6.7 | N99: 6.7 | P99: 6.7 | R99: 6.7 | T99: 6.7 | Z99: (number)
B101: Layer Determination Calibration Settings
B103: Deflection Calibration Factors | J103: Other Settings
B104: n0 Factor | F104: 1 | J104: Asphalt Estimate Buffer (+/-) | N104: 50 | P104: (mm)
B105: n200 Factor | F105: 1 | J105: Granular Estimate Buffer (+/-) | N105: 75 | P105: (mm)
B106: n300 Factor | F106: 1
B107: n450 Factor | F107: 1
B108: n600 Factor | F108: 1
B109: n750 Factor | F109: 1
B110: n900 Factor | F110: 1
B111: n1200 Factor | F111: 1
B112: n1500 Factor | F112: 1
B114: Reliability Index Configuration
B117: Analysis Settings | D117: SNP Calculation Method | H117: Score | J117: Traffic Input Style | N117: Score
D118: =NoEdit!G8 -> 1: From Deflection (d0) | H118: 10 | J118: =NoEdit!L8 -> 1: 12-Class Vehicle Count | N118: 9
D119: =NoEdit!G9 -> 2: From SN and CBR | H119: 6 | J119: =NoEdit!L9 -> 2: 5 -Class Vehicle Count | N119: 8
D120: =NoEdit!G10 -> 3: None | H120: 2 | J120: =NoEdit!L10 -> 0 | N120: 10
B124: Input Data Quality | D124: Pavement Age | H124: Score | J124: Traffic Data | N124: Score | P124: IRI Data | T124: Score | V124: Rutting Data | Z124: Score | AB124: Cracking Data | AF124: Score
D125: Known | H125: 10 | J125: Known | N125: 10 | P125: High-Speed Survey | T125: 10 | V125: High-Speed Survey | Z125: 10 | AB125: High-Speed Survey | AF125: 10
D126: Educated Estimate | H126: 5 | J126: Educated Estimate | N126: 5 | P126: Roughometer | T126: 8 | V126: Other | Z126: 6 | AB126: Visual Survey | AF126: 6
D127: Unknown | H127: 0 | J127: Unknown | N127: 0 | P127: Other | T127: 5 | AB127: Other | AF127: 5
B132: Factor Weightings | D132: Factor | G132: Weighting | J132: Score | M132: Bottom %
D133: =D117 -> SNP Calculation Method | G133: 0.1 | J133: Very Good | M133: 100
D134: =J117 -> Traffic Input Style | G134: 0.05 | J134: Good | M134: 80
D135: =D124 -> Pavement Age | G135: 0.35 | J135: Mediocre | M135: 50
D136: =J124 -> Traffic Data | G136: 0.1 | J136: Poor | M136: 20
D137: =P124 -> IRI Data | G137: 0.15 | J137: Very Poor | M137: 0
D138: =V124 -> Rutting Data | G138: 0.15
D139: =AB124 -> Cracking Data | G139: 0.1
D144: Total | G144: =SUM(G133:H143) -> 1

Sheet Input - Master
A1: Input - Master | AC1: 1 | AD1: 2 | AE1: 3 | AF1: 4 | AG1: 5 | AH1: 6 | AI1: 7 | AJ1: 8 | AK1: 9 | AL1: 10 | AM1: 11 | AN1: 12
B4: Referencing | O4: High Speed Data | Q4: Visual Data | R4: FWD Data | AC4: 12-Class Traffic Input | AO4: Other Traffic Inputs | AS4: Pavement Data | AU4: Treatment Ages
B5: ID | C5: Road Name | D5: Road Class | E5: Pavement Type | F5: Road Length (m) | G5: Road Width (m) | H5: Relative Performance Description | I5: Asphalt Thickness Estimate | J5: Granular Thickness Estimate | K5: Service Life | L5: Climate Zone | M5: Latitude | N5: Longitude | O5: IRI (m/km) | P5: Rutting (mm) | Q5: Cracking (%) | R5: FWD Pressure (kPa) | S5: d0 (microns) | T5: d200 (microns) | U5: d300 (microns) | V5: d450 (microns) | W5: d600 (microns) | X5: d750 (microns) | Y5: d900 (microns) | Z5: d1200 (microns) | AA5: d1500 (microns) | AB5: Cracked at site? | AC5: =IF(LEFT(uS_Traffic,1)="1",INDEX(uS_12_Vehicle_Selection,AC1,0),"Class "&AC1) -> 03. Large Car | AD5: 05. 4WD Mid Size Petrol | AE5: 06. Light Rigid | AF5: 09. Heavy Bus | AG5: 15. Twin steer + 5 Axle Dog | AH5: 08. Heavy Rigid | AI5: 10. Artic 4 Axle | AJ5: 11. Artic 5 Axle | AK5: 12. Artic 6 Axle | AL5: 14. B-Double | AM5: 16. A-Double | AN5: 19. A-Triple | AO5: AADT | AP5: HV% | AQ5: Daily SARs | AR5: Traffic Growth Rate (%) | AS5: SN | AT5: CBR | AU5: Last Resurface | AV5: Last Rehab | AW5: Last Recon
B6: 1 | C6: Section_A1_unmod Seal_Base_5.2 IRI_Alt_4IRI | D6: A1_unmod Seal_Base_5.2 IRI_Alt_4IRI | E6: SS | F6: 1000 | G6: 7 | H6: Uncracked double seal | J6: 400 | K6: 40 | L6: Victoria Mid-North | M6: 36 | N6: 141 | O6: 1.9 | P6: 3.5 | Q6: 0 | AC6: 750 | AD6: 300 | AE6: 150 | AH6: 423 | AK6: 187.5 | AL6: 187.5 | AO6: =SUM(AC6:AN6) -> 1998 | AR6: 2.5 | AS6: 4.7 | AT6: 5 | AU6: 2010 | AV6: 2010 | AW6: 2010
B7: 2 | C7: Section_A2_unmod Seal_Base_8 IRI_Alt_4IRI | D7: A2_unmod Seal_Base_8 IRI_Alt_4IRI | E7: SS | F7: 1000 | G7: 7 | H7: Uncracked double seal | J7: 400 | K7: 40 | L7: Victoria Mid-North | M7: 36 | N7: 141 | O7: 1.9 | P7: 3.5 | Q7: 0 | AC7: 750 | AD7: 300 | AE7: 150 | AH7: 423 | AK7: 187.5 | AL7: 187.5 | AO7: 1998 | AR7: 2.5 | AS7: 4.7 | AT7: 5 | AU7: 2010 | AV7: 2010 | AW7: 2010
B8: 3 | C8: Section_A3_mod Seal_Base_5.2 IRI_Alt_4IRI | D8: A3_mod Seal_Base_5.2 IRI_Alt_4IRI | E8: SS | F8: 1000 | G8: 7 | H8: Uncracked double seal | J8: 400 | K8: 40 | L8: Victoria Mid-North | M8: 36 | N8: 141 | O8: 1.9 | P8: 3.5 | Q8: 0 | AC8: 750 | AD8: 300 | AE8: 150 | AH8: 423 | AK8: 187.5 | AL8: 187.5 | AO8: 1998 | AR8: 2.5 | AS8: 4.7 | AT8: 5 | AU8: 2010 | AV8: 2010 | AW8: 2010
B9: 4 | C9: Section_A4_mod Seal_Base_8 IRI_Alt_4IRI | D9: A4_mod Seal_Base_8 IRI_Alt_4IRI | E9: SS | F9: 1000 | G9: 7 | H9: Uncracked double seal | J9: 400 | K9: 40 | L9: Victoria Mid-North | M9: 36 | N9: 141 | O9: 1.9 | P9: 3.5 | Q9: 0 | AC9: 750 | AD9: 300 | AE9: 150 | AH9: 423 | AK9: 187.5 | AL9: 187.5 | AO9: 1998 | AR9: 2.5 | AS9: 4.7 | AT9: 5 | AU9: 2010 | AV9: 2010 | AW9: 2010
B10: 5 | C10: Alt_Section_A1_unmod Seal_Base_5.2 IRI_Alt_4IRI | D10: Alt_A1_unmod Seal_Base_5.2 IRI_Alt_4IRI | E10: SS | F10: 1000 | G10: 7 | H10: Uncracked double seal | J10: 400 | K10: 40 | L10: Victoria Mid-North | M10: 36 | N10: 141 | O10: 1.9 | P10: 3.5 | Q10: 0 | AC10: 750 | AD10: 300 | AE10: 150 | AH10: 423 | AK10: 187.5 | AL10: 187.5 | AO10: 1998 | AR10: 2.5 | AS10: 4.7 | AT10: 5 | AU10: 2010 | AV10: 2010 | AW10: 2010
B11: 6 | C11: Alt_Section_A2_unmod Seal_Base_8 IRI_Alt_4IRI | D11: Alt_A2_unmod Seal_Base_8 IRI_Alt_4IRI | E11: SS | F11: 1000 | G11: 7 | H11: Uncracked double seal | J11: 400 | K11: 40 | L11: Victoria Mid-North | M11: 36 | N11: 141 | O11: 1.9 | P11: 3.5 | Q11: 0 | AC11: 750 | AD11: 300 | AE11: 150 | AH11: 423 | AK11: 187.5 | AL11: 187.5 | AO11: 1998 | AR11: 2.5 | AS11: 4.7 | AT11: 5 | AU11: 2010 | AV11: 2010 | AW11: 2010
B12: 7 | C12: Alt_Section_A3_mod Seal_Base_5.2 IRI_Alt_4IRI | D12: Alt_A3_mod Seal_Base_5.2 IRI_Alt_4IRI | E12: SS | F12: 1000 | G12: 7 | H12: Uncracked double seal | J12: 400 | K12: 40 | L12: Victoria Mid-North | M12: 36 | N12: 141 | O12: 1.9 | P12: 3.5 | Q12: 0 | AC12: 750 | AD12: 300 | AE12: 150 | AH12: 423 | AK12: 187.5 | AL12: 187.5 | AO12: 1998 | AR12: 2.5 | AS12: 4.7 | AT12: 5 | AU12: 2010 | AV12: 2010 | AW12: 2010
B13: 8 | C13: Alt_Section_A4_mod Seal_Base_8 IRI_Alt_4IRI | D13: Alt_A4_mod Seal_Base_8 IRI_Alt_4IRI | E13: SS | F13: 1000 | G13: 7 | H13: Uncracked double seal | J13: 400 | K13: 40 | L13: Victoria Mid-North | M13: 36 | N13: 141 | O13: 1.9 | P13: 3.5 | Q13: 0 | AC13: 750 | AD13: 300 | AE13: 150 | AH13: 423 | AK13: 187.5 | AL13: 187.5 | AO13: 1998 | AR13: 2.5 | AS13: 4.7 | AT13: 5 | AU13: 2010 | AV13: 2010 | AW13: 2010

Sheet DR-Base
A1: Detailed Results - Base Case | J1: 1 = reseal, 2 = reseal with SC, 3 = resurface with M&R, 4 = resurface,
J2: 5-1 = rehabilitation (age), 5-2 = rehabilitation (IRI), 5-3 = rehabilitation (RUT), 5-4 = rehabilitation (CRK), 5-5 = rehabilitation (struct)
J3: 6-1 = reconstruction (age), 6-2 = reconstruction (IRI), 6-3 = reconstruction (RUT), 6-4 = reconstruction (CRK), 6-5 = reconstruction (struct)
A4: ID | B4: Road Name | C4: Road Class | D4: Pav Type | E4: Climate Zone | F4: IRI | G4: Rutting | H4: SNP | I4: Tracking | J4: 2019 | K4: 2020 | L4: 2021 | M4: 2022 | N4: 2023 | O4: 2024 | P4: 2025 | Q4: 2026 | R4: 2027 | S4: 2028 | T4: 2029 | U4: 2030 | V4: 2031 | W4: 2032 | X4: 2033 | Y4: 2034 | Z4: 2035 | AA4: 2036 | AB4: 2037 | AC4: 2038 | AD4: 2039 | AE4: 2040 | AF4: 2041 | AG4: 2042 | AH4: 2043 | AI4: 2044 | AJ4: 2045 | AK4: 2046 | AL4: 2047 | AM4: 2048 | AN4: 2049 | AO4: 2050 | AP4: 2051 | AQ4: 2052 | AR4: 2053 | AS4: 2054 | AT4: 2055 | AU4: 2056 | AV4: 2057 | AW4: 2058 | AX4: 2059 | AY4: 2060 | AZ4: 2061 | BA4: 2062 | BB4: 2063 | BC4: 2064 | BD4: 2065 | BE4: 2066 | BF4: 2067 | BG4: 2068
A5: 1 | B5: Section_A1_unmod Seal_Base_5.2 IRI_Alt_4IRI | C5: A1_unmod Seal_Base_5.2 IRI_Alt_4IRI | D5: SS | E5: Victoria Mid-North | F5: 1.9 | G5: 3.5 | H5: 5.308109508 | I5: AADT | J5: 1998 | K5: 2047.95 | L5: 2099.14875 | M5: 2151.627469 | N5: 2205.418155 | O5: 2260.553609 | P5: 2317.06745 | Q5: 2374.994136 | R5: 2434.368989 | S5: 2495.228214 | T5: 2557.608919 | U5: 2621.549142 | V5: 2687.087871 | W5: 2754.265068 | X5: 2823.121694 | Y5: 2893.699737 | Z5: 2966.04223 | AA5: 3040.193286 | AB5: 3116.198118 | AC5: 3194.103071 | AD5: 3273.955648 | AE5: 3355.804539 | AF5: 3439.699652 | AG5: 3525.692144 | AH5: 3613.834447 | AI5: 3704.180308 | AJ5: 3796.784816 | AK5: 3891.704437 | AL5: 3988.997047 | AM5: 4088.721974 | AN5: 4190.940023 | AO5: 4295.713524 | AP5: 4403.106362 | AQ5: 4513.184021 | AR5: 4626.013621 | AS5: 4741.663962 | AT5: 4860.205561 | AU5: 4981.7107 | AV5: 5106.253467 | AW5: 5233.909804 | AX5: 5364.757549 | AY5: 5498.876488 | AZ5: 5636.3484 | BA5: 5777.25711 | BB5: 5921.688538 | BC5: 6069.730751 | BD5: 6221.47402 | BE5: 6377.010871 | BF5: 6536.436142 | BG5: 6699.847046
I6: MSAR | J6: 0.3643192389 | K6: 0.3734272198 | L6: 0.3827629003 | M6: 0.3923319728 | N6: 0.4021402721 | O6: 0.412193779 | P6: 0.4224986234 | Q6: 0.433061089 | R6: 0.4438876162 | S6: 0.4549848066 | T6: 0.4663594268 | U6: 0.4780184125 | V6: 0.4899688728 | W6: 0.5022180946 | X6: 0.514773547 | Y6: 0.5276428857 | Z6: 0.5408339578 | AA6: 0.5543548067 | AB6: 0.5682136769 | AC6: 0.5824190188 | AD6: 0.5969794943 | AE6: 0.6119039817 | AF6: 0.6272015812 | AG6: 0.6428816207 | AH6: 0.6589536612 | AI6: 0.6754275028 | AJ6: 0.6923131903 | AK6: 0.7096210201 | AL6: 0.7273615456 | AM6: 0.7455455842 | AN6: 0.7641842239 | AO6: 0.7832888295 | AP6: 0.8028710502 | AQ6: 0.8229428264 | AR6: 0.8435163971 | AS6: 0.864604307 | AT6: 0.8862194147 | AU6: 0.9083749001 | AV6: 0.9310842726 | AW6: 0.9543613794 | AX6: 0.9782204139 | AY6: 1.002675924 | AZ6: 1.027742822 | BA6: 1.053436393 | BB6: 1.079772303 | BC6: 1.10676661 | BD6: 1.134435776 | BE6: 1.16279667 | BF6: 1.191866587 | BG6: 1.221663251
B7: Remaining Surface Life: | C7: 12 | D7: 2031 | F7: TSRS | G7: TSRH | H7: TSRC | I7: SNP | J7: 5.308109508 | K7: 5.276398507 | L7: 5.244516013 | M7: 5.212461101 | N7: 5.180232838 | O7: 5.147830285 | P7: 5.115252501 | Q7: 5.082498538 | R7: 5.049567444 | S7: 5.016458259 | T7: 4.983170022 | U7: 4.949701764 | V7: 6.7 | W7: 6.627337516 | X7: 6.590711293 | Y7: 6.553886997 | Z7: 6.516863557 | AA7: 6.479639896 | AB7: 6.442214932 | AC7: 6.404587575 | AD7: 6.366756731 | AE7: 6.3287213 | AF7: 6.290480175 | AG7: 6.252032244 | AH7: 6.213376388 | AI7: 6.174511484 | AJ7: 6.1354364 | AK7: 6.09615 | AL7: 6.056651141 | AM7: 6.7 | AN7: 6.627337516 | AO7: 6.590711293 | AP7: 6.553886997 | AQ7: 6.516863557 | AR7: 6.479639896 | AS7: 6.442214932 | AT7: 6.404587575 | AU7: 6.366756731 | AV7: 6.3287213 | AW7: 6.290480175 | AX7: 6.252032244 | AY7: 6.213376388 | AZ7: 6.174511484 | BA7: 6.7 | BB7: 6.627337516 | BC7: 6.590711293 | BD7: 6.553886997 | BE7: 6.516863557 | BF7: 6.479639896 | BG7: 6.442214932
B8: Remaining Structural Life: | C8: 12 | D8: 2031 | F8: 9 | G8: 9 | H8: 9 | I8: Cracking | J8: 0 | K8: 0.004891502214 | L8: 0.06515411415 | M8: 0.2839065919 | N8: 0.7975949907 | O8: 1.768840625 | P8: 3.382135051 | Q8: 5.839475178 | R8: 9.353252731 | S8: 14.13222544 | T8: 20.35429823 | U8: 28.11868002 | V8: 0 | W8: 0 | X8: 0 | Y8: 0 | Z8: 0 | AA8: 0 | AB8: 0 | AC8: 0 | AD8: 0 | AE8: 0.004891502214 | AF8: 0.06515411415 | AG8: 0.2839065919 | AH8: 0.7975949907 | AI8: 1.768840625 | AJ8: 3.382135051 | AK8: 5.839475178 | AL8: 9.353252731 | AM8: 0 | AN8: 0 | AO8: 0 | AP8: 0 | AQ8: 0 | AR8: 0 | AS8: 0 | AT8: 0 | AU8: 0 | AV8: 0.004891502214 | AW8: 0.06515411415 | AX8: 0.2839065919 | AY8: 0.7975949907 | AZ8: 1.768840625 | BA8: 0 | BB8: 0 | BC8: 0 | BD8: 0 | BE8: 0 | BF8: 0 | BG8: 0
B9: Surfacing Treatment: | I9: Rutting | J9: 3.5 | K9: 3.817265857 | L9: 4.134049403 | M9: 4.451668785 | N9: 4.771201975 | O9: 5.093557132 | P9: 5.419519236 | Q9: 5.79998206 | R9: 6.186119738 | S9: 6.630377335 | T9: 7.187905073 | U9: 7.809637601 | V9: 1 | W9: 2.031609361 | X9: 2.616475722 | Y9: 3.121122643 | Z9: 3.588395322 | AA9: 4.035501914 | AB9: 4.471522915 | AC9: 4.90201241 | AD9: 5.330712404 | AE9: 5.760327468 | AF9: 6.192921848 | AG9: 6.630142227 | AH9: 7.073351464 | AI9: 7.523713312 | AJ9: 7.982248444 | AK9: 8.520951777 | AL9: 9.071091921 | AM9: 1 | AN9: 2.498433003 | AO9: 3.350334031 | AP9: 4.087138795 | AQ9: 4.770879814 | AR9: 5.426456008 | AS9: 6.06700338 | AT9: 6.700558311 | AU9: 7.332538851 | AV9: 7.966865382 | AW9: 8.606534821 | AX9: 9.253942564 | AY9: 9.91107571 | AZ9: 10.57963539 | BA9: 1 | BB9: 3.06081096 | BC9: 4.234406084 | BD9: 5.250889171 | BE9: 6.195407519 | BF9: 7.10212504 | BG9: 7.989063367
B10: Structural Treatment: | C10: Reconstruction (6-2) | I10: IRI | J10: 1.9 | K10: 2.043219157 | L10: 2.187807061 | M10: 2.336258659 | N10: 2.491664942 | O10: 2.657592682 | P10: 2.838013778 | Q10: 3.08257289 | R10: 3.353901006 | S10: 3.714462734 | T10: 4.253901302 | U10: 4.928716463 | V10: 1.5 | W10: 1.861924936 | X10: 2.08454731 | Y10: 2.282339872 | Z10: 2.468700603 | AA10: 2.649016201 | AB10: 2.826133772 | AC10: 3.001798731 | AD10: 3.177190539 | AE10: 3.35326274 | AF10: 3.531682208 | AG10: 3.71504076 | AH10: 3.906511042 | AI10: 4.109730459 | AJ10: 4.328733151 | AK10: 4.626154305 | AL10: 4.952202778 | AM10: 1.5 | AN10: 2.010276813 | AO10: 2.31890521 | AP10: 2.591929332 | AQ10: 2.848747816 | AR10: 3.097155497 | AS10: 3.341271757 | AT10: 3.58362282 | AU10: 3.825917172 | AV10: 4.069493795 | AW10: 4.316317386 | AX10: 4.569221486 | AY10: 4.831583114 | AZ10: 5.107218722 | BA10: 1.5 | BB10: 2.188984711 | BC10: 2.601223738 | BD10: 2.964878597 | BE10: 3.306576859 | BF10: 3.637014418 | BG10: 3.961843354
I11: Treatment | L11: 0 | M11: 0 | N11: 0 | O11: 0 | P11: 0 | Q11: 0 | R11: 0 | S11: 0 | T11: 0 | U11: 0 | V11: 6-2 | AF11: 0 | AG11: 0 | AH11: 0 | AI11: 0 | AJ11: 0 | AK11: 0 | AL11: 0 | AM11: 6-2 | AW11: 0 | AX11: 0 | AY11: 0 | AZ11: 0 | BA11: 6-2
I12: RAC | V12: 840000 | AM12: 840000 | BA12: 840000
I13: RUC | J13: 651013.8023 | K13: 672025.5649 | L13: 693742.1667 | M13: 716275.0225 | N13: 739767.6888 | O13: 764395.2791 | P13: 790365.4508 | Q13: 819697.7657 | R13: 851134.2642 | S13: 887415.4164 | T13: 932817.2022 | U13: 986268.8457 | V13: 1165107.6 | W13: 895739.4605 | X13: 928282.4013 | Y13: 960772.9446 | Z13: 993793.6898 | AA13: 1027599.615 | AB13: 1062345.093 | AC13: 1098142.864 | AD13: 1135085.842 | AE13: 1173262.397 | AF13: 1212808.958 | AG13: 1253928.86 | AH13: 1296880.226 | AI13: 1341975.379 | AJ13: 1389582.851 | AK13: 1443992.44 | AL13: 1502331.427 | AM13: 1740163.356 | AN13: 1373006.078 | AO13: 1428826.771 | AP13: 1484156.552 | AQ13: 1540270.394 | AR13: 1597722.137 | AS13: 1656844.508 | AT13: 1717878.937 | AU13: 1781023.547 | AV13: 1846463.225 | AW13: 1914454.39 | AX13: 1985356.675 | AY13: 2059616.125 | AZ13: 2137765.764 | BA13: 2460315.215 | BB13: 1957156.443 | BC13: 2046849.1 | BD13: 2135175.03 | BE13: 2224597.879 | BF13: 2316184.791 | BG13: 2410575.432
I14: Crash savings
I15: Capacity benefits
A16: 2 | B16: Section_A2_unmod Seal_Base_8 IRI_Alt_4IRI | C16: A2_unmod Seal_Base_8 IRI_Alt_4IRI | D16: SS | E16: Victoria Mid-North | F16: 1.9 | G16: 3.5 | H16: 5.308109508 | I16: AADT | J16: 1998 | K16: 2047.95 | L16: 2099.14875 | M16: 2151.627469 | N16: 2205.418155 | O16: 2260.553609 | P16: 2317.06745 | Q16: 2374.994136 | R16: 2434.368989 | S16: 2495.228214 | T16: 2557.608919 | U16: 2621.549142 | V16: 2687.087871 | W16: 2754.265068 | X16: 2823.121694 | Y16: 2893.699737 | Z16: 2966.04223 | AA16: 3040.193286 | AB16: 3116.198118 | AC16: 3194.103071 | AD16: 3273.955648 | AE16: 3355.804539 | AF16: 3439.699652 | AG16: 3525.692144 | AH16: 3613.834447 | AI16: 3704.180308 | AJ16: 3796.784816 | AK16: 3891.704437 | AL16: 3988.997047 | AM16: 4088.721974 | AN16: 4190.940023 | AO16: 4295.713524 | AP16: 4403.106362 | AQ16: 4513.184021 | AR16: 4626.013621 | AS16: 4741.663962 | AT16: 4860.205561 | AU16: 4981.7107 | AV16: 5106.253467 | AW16: 5233.909804 | AX16: 5364.757549 | AY16: 5498.876488 | AZ16: 5636.3484 | BA16: 5777.25711 | BB16: 5921.688538 | BC16: 6069.730751 | BD16: 6221.47402 | BE16: 6377.010871 | BF16: 6536.436142 | BG16: 6699.847046
I17: MSAR | J17: 0.3643192389 | K17: 0.3734272198 | L17: 0.3827629003 | M17: 0.3923319728 | N17: 0.4021402721 | O17: 0.412193779 | P17: 0.4224986234 | Q17: 0.433061089 | R17: 0.4438876162 | S17: 0.4549848066 | T17: 0.4663594268 | U17: 0.4780184125 | V17: 0.4899688728 | W17: 0.5022180946 | X17: 0.514773547 | Y17: 0.5276428857 | Z17: 0.5408339578 | AA17: 0.5543548067 | AB17: 0.5682136769 | AC17: 0.5824190188 | AD17: 0.5969794943 | AE17: 0.6119039817 | AF17: 0.6272015812 | AG17: 0.6428816207 | AH17: 0.6589536612 | AI17: 0.6754275028 | AJ17: 0.6923131903 | AK17: 0.7096210201 | AL17: 0.7273615456 | AM17: 0.7455455842 | AN17: 0.7641842239 | AO17: 0.7832888295 | AP17: 0.8028710502 | AQ17: 0.8229428264 | AR17: 0.8435163971 | AS17: 0.864604307 | AT17: 0.8862194147 | AU17: 0.9083749001 | AV17: 0.9310842726 | AW17: 0.9543613794 | AX17: 0.9782204139 | AY17: 1.002675924 | AZ17: 1.027742822 | BA17: 1.053436393 | BB17: 1.079772303 | BC17: 1.10676661 | BD17: 1.134435776 | BE17: 1.16279667 | BF17: 1.191866587 | BG17: 1.221663251
B18: Remaining Surface Life: | C18: 11 | D18: 2030 | F18: TSRS | G18: TSRH | H18: TSRC | I18: SNP | J18: 5.308109508 | K18: 5.276398507 | L18: 5.244516013 | M18: 5.212461101 | N18: 5.180232838 | O18: 5.147830285 | P18: 5.115252501 | Q18: 5.082498538 | R18: 5.049567444 | S18: 5.016458259 | T18: 4.983170022 | U18: 4.949701764 | V18: 4.916052511 | W18: 4.882221284 | X18: 4.8482071 | Y18: 4.814008969 | Z18: 4.779625896 | AA18: 4.745056881 | AB18: 4.710300918 | AC18: 4.675356997 | AD18: 4.640224101 | AE18: 4.604901208 | AF18: 4.569387291 | AG18: 4.533681316 | AH18: 4.497782245 | AI18: 4.461689034 | AJ18: 4.425400632 | AK18: 4.388915984 | AL18: 6.7 | AM18: 6.627337516 | AN18: 6.590711293 | AO18: 6.553886997 | AP18: 6.516863557 | AQ18: 6.479639896 | AR18: 6.442214932 | AS18: 6.404587575 | AT18: 6.366756731 | AU18: 6.3287213 | AV18: 6.290480175 | AW18: 6.252032244 | AX18: 6.213376388 | AY18: 6.174511484 | AZ18: 6.1354364 | BA18: 6.09615 | BB18: 6.056651141 | BC18: 6.016938674 | BD18: 5.977011444 | BE18: 6.7 | BF18: 6.627337516 | BG18: 6.590711293
B19: Remaining Structural Life: | C19: 28 | D19: 2047 | F19: 9 | G19: 9 | H19: 9 | I19: Cracking | J19: 0 | K19: 0.004891502214 | L19: 0.06515411415 | M19: 0.2839065919 | N19: 0.7975949907 | O19: 1.768840625 | P19: 3.382135051 | Q19: 5.839475178 | R19: 9.353252731 | S19: 14.13222544 | T19: 20.35429823 | U19: 0 | V19: 0 | W19: 0 | X19: 0 | Y19: 0 | Z19: 0 | AA19: 0 | AB19: 0 | AC19: 0 | AD19: 0.004891502214 | AE19: 0.06515411415 | AF19: 0.2839065919 | AG19: 0.7975949907 | AH19: 1.768840625 | AI19: 3.382135051 | AJ19: 5.839475178 | AK19: 9.353252731 | AL19: 0 | AM19: 0 | AN19: 0 | AO19: 0 | AP19: 0 | AQ19: 0 | AR19: 0 | AS19: 0 | AT19: 0 | AU19: 0.004891502214 | AV19: 0.06515411415 | AW19: 0.2839065919 | AX19: 0.7975949907 | AY19: 1.768840625 | AZ19: 3.382135051 | BA19: 5.839475178 | BB19: 9.353252731 | BC19: 14.13222544 | BD19: 20.35429823 | BE19: 0 | BF19: 0 | BG19: 0
B20: Surfacing Treatment: | C20: Reseal (2) | I20: Rutting | J20: 3.5 | K20: 3.817265857 | L20: 4.134049403 | M20: 4.451668785 | N20: 4.771201975 | O20: 5.093557132 | P20: 5.419519236 | Q20: 5.79998206 | R20: 6.186119738 | S20: 6.630377335 | T20: 7.187905073 | U20: 7.809637601 | V20: 8.169910268 | W20: 8.537660436 | X20: 8.913336845 | Y20: 9.297378651 | Z20: 9.690218414 | AA20: 10.09228457 | AB20: 10.50400352 | AC20: 10.92580142 | AD20: 11.35810567 | AE20: 11.80134632 | AF20: 12.2559572 | AG20: 12.72237698 | AH20: 13.20105014 | AI20: 13.69242783 | AJ20: 14.27365884 | AK20: 14.87059156 | AL20: 1 | AM20: 2.465218948 | AN20: 3.298120714 | AO20: 4.018407669 | AP20: 4.686747173 | AQ20: 5.327490954 | AR20: 5.953486471 | AS20: 6.57259349 | AT20: 7.190110813 | AU20: 7.80987232 | AV20: 8.434808565 | AW20: 9.067261679 | AX20: 9.709174344 | AY20: 10.36220946 | AZ20: 11.02782923 | BA20: 11.81063648 | BB20: 12.61084819 | BC20: 13.53781424 | BD20: 14.7087059 | BE20: 1 | BF20: 3.260562974 | BG20: 4.548421189
B21: Structural Treatment: | C21: Reconstruction (6-2) | I21: IRI | J21: 1.9 | K21: 2.043219157 | L21: 2.187807061 | M21: 2.336258659 | N21: 2.491664942 | O21: 2.657592682 | P21: 2.838013778 | Q21: 3.08257289 | R21: 3.353901006 | S21: 3.714462734 | T21: 4.253901302 | U21: 4.490017949 | V21: 4.649200274 | W21: 4.814104711 | X21: 4.982108875 | Y21: 5.153371707 | Z21: 5.328050782 | AA21: 5.506303104 | AB21: 5.688285779 | AC21: 5.874156591 | AD21: 6.064173207 | AE21: 6.259515474 | AF21: 6.462430798 | AG21: 6.675847474 | AH21: 6.903232904 | AI21: 7.148509203 | AJ21: 7.480149774 | AK21: 7.842912933 | AL21: 1.5 | AM21: 1.999725025 | AN21: 2.302234176 | AO21: 2.569905644 | AP21: 2.821711126 | AQ21: 3.06527412 | AR21: 3.304623487 | AS21: 3.542229898 | AT21: 3.779764198 | AU21: 4.018537946 | AV21: 4.260494649 | AW21: 4.50845065 | AX21: 4.765768427 | AY21: 5.036251691 | AZ21: 5.324084845 | BA21: 5.713230572 | BB21: 6.133375665 | BC21: 6.688234793 | BD21: 7.527445213 | BE21: 1.5 | BF21: 2.252332039 | BG21: 2.701372708
I22: Treatment | L22: 0 | M22: 0 | N22: 0 | O22: 0 | P22: 0 | Q22: 0 | R22: 0 | S22: 0 | T22: 0 | U22: 2 | AD22: 0 | AE22: 0 | AF22: 0 | AG22: 0 | AH22: 0 | AI22: 0 | AJ22: 0 | AK22: 0 | AL22: 6-2 | AV22: 0 | AW22: 0 | AX22: 0 | AY22: 0 | AZ22: 0 | BA22: 0 | BB22: 0 | BC22: 0 | BD22: 0 | BE22: 6-2
I23: RAC | U23: 140000 | AL23: 840000 | BE23: 840000
I24: RUC | J24: 651013.8023 | K24: 672025.5649 | L24: 693742.1667 | M24: 716275.0225 | N24: 739767.6888 | O24: 764395.2791 | P24: 790365.4508 | Q24: 819697.7657 | R24: 851134.2642 | S24: 887415.4164 | T24: 932817.2022 | U24: 986268.8457 | V24: 998082.7656 | W24: 1030792.26 | X24: 1064689.529 | Y24: 1099827.366 | Z24: 1259418.109 | AA24: 1300284.753 | AB24: 1342643.289 | AC24: 1386559.659 | AD24: 1432108.778 | AE24: 1479424.079 | AF24: 1528714.452 | AG24: 1580250.274 | AH24: 1634362.042 | AI24: 1691442.094 | AJ24: 1756331.594 | AK24: 1825748.042 | AL24: 1906233.173 | AM24: 1338820.943 | AN24: 1392841.102 | AO24: 1446410.402 | AP24: 1500745.741 | AQ24: 1556375.897 | AR24: 1613618.64 | AS24: 1672704.599 | AT24: 1733823.054 | AU24: 1797150.805 | AV24: 1862934.534 | AW24: 1931521.519 | AX24: 2003343.112 | AY24: 2078915.203 | AZ24: 2392876.769 | BA24: 2491694.118 | BB24: 2597480.513 | BC24: 2721847.334 | BD24: 2883254.699 | BE24: 3076370.672 | BF24: 2167055.805 | BG24: 2270327.601
I25: Crash savings
I26: Capacity benefits
A27: 3 | B27: Section_A3_mod Seal_Base_5.2 IRI_Alt_4IRI | C27: A3_mod Seal_Base_5.2 IRI_Alt_4IRI | D27: SS | E27: Victoria Mid-North | F27: 1.9 | G27: 3.5 | H27: 5.308109508 | I27: AADT | J27: 1998 | K27: 2047.95 | L27: 2099.14875 | M27: 2151.627469 | N27: 2205.418155 | O27: 2260.553609 | P27: 2317.06745 | Q27: 2374.994136 | R27: 2434.368989 | S27: 2495.228214 | T27: 2557.608919 | U27: 2621.549142 | V27: 2687.087871 | W27: 2754.265068 | X27: 2823.121694 | Y27: 2893.699737 | Z27: 2966.04223 | AA27: 3040.193286 | AB27: 3116.198118 | AC27: 3194.103071 | AD27: 3273.955648 | AE27: 3355.804539 | AF27: 3439.699652 | AG27: 3525.692144 | AH27: 3613.834447 | AI27: 3704.180308 | AJ27: 3796.784816 | AK27: 3891.704437 | AL27: 3988.997047 | AM27: 4088.721974 | AN27: 4190.940023 | AO27: 4295.713524 | AP27: 4403.106362 | AQ27: 4513.184021 | AR27: 4626.013621 | AS27: 4741.663962 | AT27: 4860.205561 | AU27: 4981.7107 | AV27: 5106.253467 | AW27: 5233.909804 | AX27: 5364.757549 | AY27: 5498.876488 | AZ27: 5636.3484 | BA27: 5777.25711 | BB27: 5921.688538 | BC27: 6069.730751 | BD27: 6221.47402 | BE27: 6377.010871 | BF27: 6536.436142 | BG27: 6699.847046
I28: MSAR | J28: 0.3643192389 | K28: 0.3734272198 | L28: 0.3827629003 | M28: 0.3923319728 | N28: 0.4021402721 | O28: 0.412193779 | P28: 0.4224986234 | Q28: 0.433061089 | R28: 0.4438876162 | S28: 0.4549848066 | T28: 0.4663594268 | U28: 0.4780184125 | V28: 0.4899688728 | W28: 0.5022180946 | X28: 0.514773547 | Y28: 0.5276428857 | Z28: 0.5408339578 | AA28: 0.5543548067 | AB28: 0.5682136769 | AC28: 0.5824190188 | AD28: 0.5969794943 | AE28: 0.6119039817 | AF28: 0.6272015812 | AG28: 0.6428816207 | AH28: 0.6589536612 | AI28: 0.6754275028 | AJ28: 0.6923131903 | AK28: 0.7096210201 | AL28: 0.7273615456 | AM28: 0.7455455842 | AN28: 0.7641842239 | AO28: 0.7832888295 | AP28: 0.8028710502 | AQ28: 0.8229428264 | AR28: 0.8435163971 | AS28: 0.864604307 | AT28: 0.8862194147 | AU28: 0.9083749001 | AV28: 0.9310842726 | AW28: 0.9543613794 | AX28: 0.9782204139 | AY28: 1.002675924 | AZ28: 1.027742822 | BA28: 1.053436393 | BB28: 1.079772303 | BC28: 1.10676661 | BD28: 1.134435776 | BE28: 1.16279667 | BF28: 1.191866587 | BG28: 1.221663251
B29: Remaining Surface Life: | C29: 12 | D29: 2031 | F29: TSRS | G29: TSRH | H29: TSRC | I29: SNP | J29: 5.308109508 | K29: 5.276398507 | L29: 5.244516013 | M29: 5.212461101 | N29: 5.180232838 | O29: 5.147830285 | P29: 5.115252501 | Q29: 5.082498538 | R29: 5.049567444 | S29: 5.016458259 | T29: 4.983170022 | U29: 4.949701764 | V29: 6.7 | W29: 6.627337516 | X29: 6.590711293 | Y29: 6.553886997 | Z29: 6.516863557 | AA29: 6.479639896 | AB29: 6.442214932 | AC29: 6.404587575 | AD29: 6.366756731 | AE29: 6.3287213 | AF29: 6.290480175 | AG29: 6.252032244 | AH29: 6.213376388 | AI29: 6.174511484 | AJ29: 6.1354364 | AK29: 6.09615 | AL29: 6.056651141 | AM29: 6.7 | AN29: 6.627337516 | AO29: 6.590711293 | AP29: 6.553886997 | AQ29: 6.516863557 | AR29: 6.479639896 | AS29: 6.442214932 | AT29: 6.404587575 | AU29: 6.366756731 | AV29: 6.3287213 | AW29: 6.290480175 | AX29: 6.252032244 | AY29: 6.213376388 | AZ29: 6.174511484 | BA29: 6.7 | BB29: 6.627337516 | BC29: 6.590711293 | BD29: 6.553886997 | BE29: 6.516863557 | BF29: 6.479639896 | BG29: 6.442214932
B30: Remaining Structural Life: | C30: 12 | D30: 2031 | F30: 9 | G30: 9 | H30: 9 | I30: Cracking | J30: 0 | K30: 0.004891502214 | L30: 0.06515411415 | M30: 0.2839065919 | N30: 0.7975949907 | O30: 1.768840625 | P30: 3.382135051 | Q30: 5.839475178 | R30: 9.353252731 | S30: 14.13222544 | T30: 20.35429823 | U30: 28.11868002 | V30: 0 | W30: 0 | X30: 0 | Y30: 0 | Z30: 0 | AA30: 0 | AB30: 0 | AC30: 0 | AD30: 0 | AE30: 0.004891502214 | AF30: 0.06515411415 | AG30: 0.2839065919 | AH30: 0.7975949907 | AI30: 1.768840625 | AJ30: 3.382135051 | AK30: 5.839475178 | AL30: 9.353252731 | AM30: 0 | AN30: 0 | AO30: 0 | AP30: 0 | AQ30: 0 | AR30: 0 | AS30: 0 | AT30: 0 | AU30: 0 | AV30: 0.004891502214 | AW30: 0.06515411415 | AX30: 0.2839065919 | AY30: 0.7975949907 | AZ30: 1.768840625 | BA30: 0 | BB30: 0 | BC30: 0 | BD30: 0 | BE30: 0 | BF30: 0 | BG30: 0
B31: Surfacing Treatment: | I31: Rutting | J31: 3.5 | K31: 3.817265857 | L31: 4.134049403 | M31: 4.451668785 | N31: 4.771201975 | O31: 5.093557132 | P31: 5.419519236 | Q31: 5.79998206 | R31: 6.186119738 | S31: 6.630377335 | T31: 7.187905073 | U31: 7.809637601 | V31: 1 | W31: 2.031609361 | X31: 2.616475722 | Y31: 3.121122643 | Z31: 3.588395322 | AA31: 4.035501914 | AB31: 4.471522915 | AC31: 4.90201241 | AD31: 5.330712404 | AE31: 5.760327468 | AF31: 6.192921848 | AG31: 6.630142227 | AH31: 7.073351464 | AI31: 7.523713312 | AJ31: 7.982248444 | AK31: 8.520951777 | AL31: 9.071091921 | AM31: 1 | AN31: 2.498433003 | AO31: 3.350334031 | AP31: 4.087138795 | AQ31: 4.770879814 | AR31: 5.426456008 | AS31: 6.06700338 | AT31: 6.700558311 | AU31: 7.332538851 | AV31: 7.966865382 | AW31: 8.606534821 | AX31: 9.253942564 | AY31: 9.91107571 | AZ31: 10.57963539 | BA31: 1 | BB31: 3.06081096 | BC31: 4.234406084 | BD31: 5.250889171 | BE31: 6.195407519 | BF31: 7.10212504 | BG31: 7.989063367
B32: Structural Treatment: | C32: Reconstruction (6-2) | I32: IRI | J32: 1.9 | K32: 2.043219157 | L32: 2.187807061 | M32: 2.336258659 | N32: 2.491664942 | O32: 2.657592682 | P32: 2.838013778 | Q32: 3.08257289 | R32: 3.353901006 | S32: 3.714462734 | T32: 4.253901302 | U32: 4.928716463 | V32: 1.5 | W32: 1.861924936 | X32: 2.08454731 | Y32: 2.282339872 | Z32: 2.468700603 | AA32: 2.649016201 | AB32: 2.826133772 | AC32: 3.001798731 | AD32: 3.177190539 | AE32: 3.35326274 | AF32: 3.531682208 | AG32: 3.71504076 | AH32: 3.906511042 | AI32: 4.109730459 | AJ32: 4.328733151 | AK32: 4.626154305 | AL32: 4.952202778 | AM32: 1.5 | AN32: 2.010276813 | AO32: 2.31890521 | AP32: 2.591929332 | AQ32: 2.848747816 | AR32: 3.097155497 | AS32: 3.341271757 | AT32: 3.58362282 | AU32: 3.825917172 | AV32: 4.069493795 | AW32: 4.316317386 | AX32: 4.569221486 | AY32: 4.831583114 | AZ32: 5.107218722 | BA32: 1.5 | BB32: 2.188984711 | BC32: 2.601223738 | BD32: 2.964878597 | BE32: 3.306576859 | BF32: 3.637014418 | BG32: 3.961843354
I33: Treatment | L33: 0 | M33: 0 | N33: 0 | O33: 0 | P33: 0 | Q33: 0 | R33: 0 | S33: 0 | T33: 0 | U33: 0 | V33: 6-2 | AF33: 0 | AG33: 0 | AH33: 0 | AI33: 0 | AJ33: 0 | AK33: 0 | AL33: 0 | AM33: 6-2 | AW33: 0 | AX33: 0 | AY33: 0 | AZ33: 0 | BA33: 6-2
I34: RAC | V34: 840000 | AM34: 840000 | BA34: 840000
I35: RUC | J35: 651013.8023 | K35: 672025.5649 | L35: 693742.1667 | M35: 716275.0225 | N35: 739767.6888 | O35: 764395.2791 | P35: 790365.4508 | Q35: 819697.7657 | R35: 851134.2642 | S35: 887415.4164 | T35: 932817.2022 | U35: 986268.8457 | V35: 1165107.6 | W35: 895739.4605 | X35: 928282.4013 | Y35: 960772.9446 | Z35: 993793.6898 | AA35: 1027599.615 | AB35: 1062345.093 | AC35: 1098142.864 | AD35: 1135085.842 | AE35: 1173262.397 | AF35: 1212808.958 | AG35: 1253928.86 | AH35: 1296880.226 | AI35: 1341975.379 | AJ35: 1389582.851 | AK35: 1443992.44 | AL35: 1502331.427 | AM35: 1740163.356 | AN35: 1373006.078 | AO35: 1428826.771 | AP35: 1484156.552 | AQ35: 1540270.394 | AR35: 1597722.137 | AS35: 1656844.508 | AT35: 1717878.937 | AU35: 1781023.547 | AV35: 1846463.225 | AW35: 1914454.39 | AX35: 1985356.675 | AY35: 2059616.125 | AZ35: 2137765.764 | BA35: 2460315.215 | BB35: 1957156.443 | BC35: 2046849.1 | BD35: 2135175.03 | BE35: 2224597.879 | BF35: 2316184.791 | BG35: 2410575.432
I36: Crash savings
I37: Capacity benefits
A38: 4 | B38: Section_A4_mod Seal_Base_8 IRI_Alt_4IRI | C38: A4_mod Seal_Base_8 IRI_Alt_4IRI | D38: SS | E38: Victoria Mid-North | F38: 1.9 | G38: 3.5 | H38: 5.308109508 | I38: AADT | J38: 1998 | K38: 2047.95 | L38: 2099.14875 | M38: 2151.627469 | N38: 2205.418155 | O38: 2260.553609 | P38: 2317.06745 | Q38: 2374.994136 | R38: 2434.368989 | S38: 2495.228214 | T38: 2557.608919 | U38: 2621.549142 | V38: 2687.087871 | W38: 2754.265068 | X38: 2823.121694 | Y38: 2893.699737 | Z38: 2966.04223 | AA38: 3040.193286 | AB38: 3116.198118 | AC38: 3194.103071 | AD38: 3273.955648 | AE38: 3355.804539 | AF38: 3439.699652 | AG38: 3525.692144 | AH38: 3613.834447 | AI38: 3704.180308 | AJ38: 3796.784816 | AK38: 3891.704437 | AL38: 3988.997047 | AM38: 4088.721974 | AN38: 4190.940023 | AO38: 4295.713524 | AP38: 4403.106362 | AQ38: 4513.184021 | AR38: 4626.013621 | AS38: 4741.663962 | AT38: 4860.205561 | AU38: 4981.7107 | AV38: 5106.253467 | AW38: 5233.909804 | AX38: 5364.757549 | AY38: 5498.876488 | AZ38: 5636.3484 | BA38: 5777.25711 | BB38: 5921.688538 | BC38: 6069.730751 | BD38: 6221.47402 | BE38: 6377.010871 | BF38: 6536.436142 | BG38: 6699.847046
I39: MSAR | J39: 0.3643192389 | K39: 0.3734272198 | L39: 0.3827629003 | M39: 0.3923319728 | N39: 0.4021402721 | O39: 0.412193779 | P39: 0.4224986234 | Q39: 0.433061089 | R39: 0.4438876162 | S39: 0.4549848066 | T39: 0.4663594268 | U39: 0.4780184125 | V39: 0.4899688728 | W39: 0.5022180946 | X39: 0.514773547 | Y39: 0.5276428857 | Z39: 0.5408339578 | AA39: 0.5543548067 | AB39: 0.5682136769 | AC39: 0.5824190188 | AD39: 0.5969794943 | AE39: 0.6119039817 | AF39: 0.6272015812 | AG39: 0.6428816207 | AH39: 0.6589536612 | AI39: 0.6754275028 | AJ39: 0.6923131903 | AK39: 0.7096210201 | AL39: 0.7273615456 | AM39: 0.7455455842 | AN39: 0.7641842239 | AO39: 0.7832888295 | AP39: 0.8028710502 | AQ39: 0.8229428264 | AR39: 0.8435163971 | AS39: 0.864604307 | AT39: 0.8862194147 | AU39: 0.9083749001 | AV39: 0.9310842726 | AW39: 0.9543613794 | AX39: 0.9782204139 | AY39: 1.002675924 | AZ39: 1.027742822 | BA39: 1.053436393 | BB39: 1.079772303 | BC39: 1.10676661 | BD39: 1.134435776 | BE39: 1.16279667 | BF39: 1.191866587 | BG39: 1.221663251
B40: Remaining Surface Life: | C40: 14 | D40: 2033 | F40: TSRS | G40: TSRH | H40: TSRC | I40: SNP | J40: 5.308109508 | K40: 5.276398507 | L40: 5.244516013 | M40: 5.212461101 | N40: 5.180232838 | O40: 5.147830285 | P40: 5.115252501 | Q40: 5.082498538 | R40: 5.049567444 | S40: 5.016458259 | T40: 4.983170022 | U40: 4.949701764 | V40: 4.916052511 | W40: 4.882221284 | X40: 6.7 | Y40: 6.627337516 | Z40: 6.590711293 | AA40: 6.553886997 | AB40: 6.516863557 | AC40: 6.479639896 | AD40: 6.442214932 | AE40: 6.404587575 | AF40: 6.366756731 | AG40: 6.3287213 | AH40: 6.290480175 | AI40: 6.252032244 | AJ40: 6.213376388 | AK40: 6.174511484 | AL40: 6.1354364 | AM40: 6.09615 | AN40: 6.056651141 | AO40: 6.016938674 | AP40: 5.977011444 | AQ40: 5.93686829 | AR40: 6.7 | AS40: 6.627337516 | AT40: 6.590711293 | AU40: 6.553886997 | AV40: 6.516863557 | AW40: 6.479639896 | AX40: 6.442214932 | AY40: 6.404587575 | AZ40: 6.366756731 | BA40: 6.3287213 | BB40: 6.290480175 | BC40: 6.252032244 | BD40: 6.213376388 | BE40: 6.174511484 | BF40: 6.1354364 | BG40: 6.09615
B41: Remaining Structural Life: | C41: 14 | D41: 2033 | F41: 9 | G41: 9 | H41: 9 | I41: Cracking | J41: 0 | K41: 0.004891502214 | L41: 0.06515411415 | M41: 0.2839065919 | N41: 0.7975949907 | O41: 1.768840625 | P41: 3.382135051 | Q41: 5.839475178 | R41: 9.353252731 | S41: 14.13222544 | T41: 20.35429823 | U41: 28.11868002 | V41: 37.37351008 | W41: 47.82953089 | X41: 0 | Y41: 0 | Z41: 0 | AA41: 0 | AB41: 0 | AC41: 0 | AD41: 0 | AE41: 0 | AF41: 0 | AG41: 0.004891502214 | AH41: 0.06515411415 | AI41: 0.2839065919 | AJ41: 0.7975949907 | AK41: 1.768840625 | AL41: 3.382135051 | AM41: 5.839475178 | AN41: 9.353252731 | AO41: 14.13222544 | AP41: 20.35429823 | AQ41: 28.11868002 | AR41: 0 | AS41: 0 | AT41: 0 | AU41: 0 | AV41: 0 | AW41: 0 | AX41: 0 | AY41: 0 | AZ41: 0 | BA41: 0.004891502214 | BB41: 0.06515411415 | BC41: 0.2839065919 | BD41: 0.7975949907 | BE41: 1.768840625 | BF41: 3.382135051 | BG41: 5.839475178
B42: Surfacing Treatment: | I42: Rutting | J42: 3.5 | K42: 3.817265857 | L42: 4.134049403 | M42: 4.451668785 | N42: 4.771201975 | O42: 5.093557132 | P42: 5.419519236 | Q42: 5.79998206 | R42: 6.186119738 | S42: 6.630377335 | T42: 7.187905073 | U42: 7.809637601 | V42: 8.551799294 | W42: 9.309364641 | X42: 1 | Y42: 2.076916339 | Z42: 2.687699411 | AA42: 3.214878118 | AB42: 3.703159857 | AC42: 4.170499203 | AD42: 4.626370252 | AE42: 5.076568006 | AF42: 5.524997136 | AG42: 5.974480212 | AH42: 6.427172 | AI42: 6.884791847 | AJ42: 7.348763199 | AK42: 7.820301961 | AL42: 8.300474942 | AM42: 8.864684195 | AN42: 9.440953803 | AO42: 10.10797589 | AP42: 10.94988929 | AQ42: 11.89390873 | AR42: 1 | AS42: 2.677381592 | AT42: 3.631645636 | AU42: 4.457444004 | AV42: 5.224164333 | AW42: 5.959653663 | AX42: 6.678602603 | AY42: 7.389999077 | AZ42: 8.09990362 | BA42: 8.812702673 | BB42: 9.531750672 | BC42: 10.25973002 | BD42: 10.99886712 | BE42: 11.75106908 | BF42: 12.51801416 | BG42: 13.42026004
B43: Structural Treatment: | C43: Rehabilitation (5-4) | I43: IRI | J43: 1.9 | K43: 2.043219157 | L43: 2.187807061 | M43: 2.336258659 | N43: 2.491664942 | O43: 2.657592682 | P43: 2.838013778 | Q43: 3.08257289 | R43: 3.353901006 | S43: 3.714462734 | T43: 4.253901302 | U43: 4.928716463 | V43: 5.845236849 | W43: 6.820050803 | X43: 1.8 | Y43: 2.176270425 | Z43: 2.407240004 | AA43: 2.61233407 | AB43: 2.805532989 | AC43: 2.992457178 | AD43: 3.176077222 | AE43: 3.358214317 | AF43: 3.540099266 | AG43: 3.722723024 | AH43: 3.907781367 | AI43: 4.097889574 | AJ43: 4.296240126 | AK43: 4.506487805 | AL43: 4.732682451 | AM43: 5.039687717 | AN43: 5.375568153 | AO43: 5.821315538 | AP43: 6.493970073 | AQ43: 7.33352277 | AR43: 1.5 | AS43: 2.067047085 | AT43: 2.408644371 | AU43: 2.71050718 | AV43: 2.994334398 | AW43: 3.268843975 | AX43: 3.538642997 | AY43: 3.806556999 | AZ43: 4.074497259 | BA43: 4.343950508 | BB43: 4.61699561 | BC43: 4.896558765 | BD43: 5.186095338 | BE43: 5.489490411 | BF43: 5.811001909 | BG43: 6.245027934
I44: Treatment | L44: 0 | M44: 0 | N44: 0 | O44: 0 | P44: 0 | Q44: 0 | R44: 0 | S44: 0 | T44: 0 | U44: 0 | V44: 0 | W44: 0 | X44: 5-4 | AG44: 0 | AH44: 0 | AI44: 0 | AJ44: 0 | AK44: 0 | AL44: 0 | AM44: 0 | AN44: 0 | AO44: 0 | AP44: 0 | AQ44: 0 | AR44: 6-2 | BB44: 0 | BC44: 0 | BD44: 0 | BE44: 0 | BF44: 0 | BG44: 0
I45: RAC | X45: 560000 | AR45: 840000
I46: RUC | J46: 651013.8023 | K46: 672025.5649 | L46: 693742.1667 | M46: 716275.0225 | N46: 739767.6888 | O46: 764395.2791 | P46: 790365.4508 | Q46: 819697.7657 | R46: 851134.2642 | S46: 887415.4164 | T46: 932817.2022 | U46: 986268.8457 | V46: 1165107.6 | W46: 1241542.8 | X46: 1323808.917 | Y46: 955789.7776 | Z46: 990821.2363 | AA46: 1025773.933 | AB46: 1061290.142 | AC46: 1097650.706 | AD46: 1135025.5 | AE46: 1173538.487 | AF46: 1213291.77 | AG46: 1254382.212 | AH46: 1296957.357 | AI46: 1341235.543 | AJ46: 1387493.196 | AK46: 1436064.302 | AL46: 1487342.606 | AM46: 1546031.037 | AN46: 1782967.776 | AO46: 1860806.194 | AP46: 1959337.447 | AQ46: 2075826.466 | AR46: 2224201.536 | AS46: 1557783.36 | AT46: 1623687.193 | AU46: 1688861.561 | AV46: 1754917.601 | AW46: 1822554.225 | AX46: 1892190.794 | AY46: 1964131.343 | AZ46: 2038625.301 | BA46: 2115904.467 | BB46: 2196280.965 | BC46: 2280184.411 | BD46: 2368143.611 | BE46: 2725576.23 | BF46: 2830260.601 | BG46: 2951955.177
I47: Crash savings
I48: Capacity benefits
A49: 5 | B49: Alt_Section_A1_unmod Seal_Base_5.2 IRI_Alt_4IRI | C49: Alt_A1_unmod Seal_Base_5.2 IRI_Alt_4IRI | D49: SS | E49: Victoria Mid-North | F49: 1.9 | G49: 3.5 | H49: 5.308109508 | I49: AADT | J49: 1998 | K49: 2047.95 | L49: 2099.14875 | M49: 2151.627469 | N49: 2205.418155 | O49: 2260.553609 | P49: 2317.06745 | Q49: 2374.994136 | R49: 2434.368989 | S49: 2495.228214 | T49: 2557.608919 | U49: 2621.549142 | V49: 2687.087871 | W49: 2754.265068 | X49: 2823.121694 | Y49: 2893.699737 | Z49: 2966.04223 | AA49: 3040.193286 | AB49: 3116.198118 | AC49: 3194.103071 | AD49: 3273.955648 | AE49: 3355.804539 | AF49: 3439.699652 | AG49: 3525.692144 | AH49: 3613.834447 | AI49: 3704.180308 | AJ49: 3796.784816 | AK49: 3891.704437 | AL49: 3988.997047 | AM49: 4088.721974 | AN49: 4190.940023 | AO49: 4295.713524 | AP49: 4403.106362 | AQ49: 4513.184021 | AR49: 4626.013621 | AS49: 4741.663962 | AT49: 4860.205561 | AU49: 4981.7107 | AV49: 5106.253467 | AW49: 5233.909804 | AX49: 5364.757549 | AY49: 5498.876488 | AZ49: 5636.3484 | BA49: 5777.25711 | BB49: 5921.688538 | BC49: 6069.730751 | BD49: 6221.47402 | BE49: 6377.010871 | BF49: 6536.436142 | BG49: 6699.847046
I50: MSAR | J50: 0.3643192389 | K50: 0.3734272198 | L50: 0.3827629003 | M50: 0.3923319728 | N50: 0.4021402721 | O50: 0.412193779 | P50: 0.4224986234 | Q50: 0.433061089 | R50: 0.4438876162 | S50: 0.4549848066 | T50: 0.4663594268 | U50: 0.4780184125 | V50: 0.4899688728 | W50: 0.5022180946 | X50: 0.514773547 | Y50: 0.5276428857 | Z50: 0.5408339578 | AA50: 0.5543548067 | AB50: 0.5682136769 | AC50: 0.5824190188 | AD50: 0.5969794943 | AE50: 0.6119039817 | AF50: 0.6272015812 | AG50: 0.6428816207 | AH50: 0.6589536612 | AI50: 0.6754275028 | AJ50: 0.6923131903 | AK50: 0.7096210201 | AL50: 0.7273615456 | AM50: 0.7455455842 | AN50: 0.7641842239 | AO50: 0.7832888295 | AP50: 0.8028710502 | AQ50: 0.8229428264 | AR50: 0.8435163971 | AS50: 0.864604307 | AT50: 0.8862194147 | AU50: 0.9083749001 | AV50: 0.9310842726 | AW50: 0.9543613794 | AX50: 0.9782204139 | AY50: 1.002675924 | AZ50: 1.027742822 | BA50: 1.053436393 | BB50: 1.079772303 | BC50: 1.10676661 | BD50: 1.134435776 | BE50: 1.16279667 | BF50: 1.191866587 | BG50: 1.221663251
B51: Remaining Surface Life: | C51: 11 | D51: 2030 | F51: TSRS | G51: TSRH | H51: TSRC | I51: SNP | J51: 5.308109508 | K51: 5.276398507 | L51: 5.244516013 | M51: 5.212461101 | N51: 5.180232838 | O51: 5.147830285 | P51: 5.115252501 | Q51: 5.082498538 | R51: 5.049567444 | S51: 5.016458259 | T51: 4.983170022 | U51: 4.949701764 | V51: 4.916052511 | W51: 4.882221284 | X51: 4.8482071 | Y51: 4.814008969 | Z51: 4.779625896 | AA51: 4.745056881 | AB51: 4.710300918 | AC51: 4.675356997 | AD51: 4.640224101 | AE51: 4.604901208 | AF51: 4.569387291 | AG51: 4.533681316 | AH51: 4.497782245 | AI51: 4.461689034 | AJ51: 4.425400632 | AK51: 4.388915984 | AL51: 4.35223403 | AM51: 4.315353701 | AN51: 4.278273925 | AO51: 4.240993623 | AP51: 4.203511712 | AQ51: 4.1658271 | AR51: 4.127938691 | AS51: 4.089845384 | AT51: 4.051546071 | AU51: 4.013039636 | AV51: 3.974324961 | AW51: 3.935400918 | AX51: 3.896266376 | AY51: 3.856920197 | AZ51: 3.817361235 | BA51: 3.777588341 | BB51: 3.737600356 | BC51: 3.697396119 | BD51: 3.656974459 | BE51: 6.7 | BF51: 6.627337516 | BG51: 6.590711293
B52: Remaining Structural Life: | C52: 47 | D52: 2066 | F52: 9 | G52: 9 | H52: 9 | I52: Cracking | J52: 0 | K52: 0.004891502214 | L52: 0.06515411415 | M52: 0.2839065919 | N52: 0.7975949907 | O52: 1.768840625 | P52: 3.382135051 | Q52: 5.839475178 | R52: 9.353252731 | S52: 14.13222544 | T52: 20.35429823 | U52: 0 | V52: 0 | W52: 0 | X52: 0 | Y52: 0 | Z52: 0 | AA52: 0 | AB52: 0 | AC52: 0 | AD52: 0.004891502214 | AE52: 0.06515411415 | AF52: 0.2839065919 | AG52: 0.7975949907 | AH52: 1.768840625 | AI52: 3.382135051 | AJ52: 5.839475178 | AK52: 9.353252731 | AL52: 14.13222544 | AM52: 20.35429823 | AN52: 0 | AO52: 0 | AP52: 0 | AQ52: 0 | AR52: 0 | AS52: 0 | AT52: 0 | AU52: 0 | AV52: 0 | AW52: 0.004891502214 | AX52: 0.06515411415 | AY52: 0.2839065919 | AZ52: 0.7975949907 | BA52: 1.768840625 | BB52: 3.382135051 | BC52: 5.839475178 | BD52: 9.353252731 | BE52: 0 | BF52: 0 | BG52: 0
B53: Surfacing Treatment: | C53: Reseal (2) | I53: Rutting | J53: 3.5 | K53: 3.605755286 | L53: 3.711349801 | M53: 3.817222928 | N53: 3.923733992 | O53: 4.031185711 | P53: 4.139839745 | Q53: 4.266660687 | R53: 4.395373246 | S53: 4.543459112 | T53: 4.729301691 | U53: 4.936545867 | V53: 5.056636756 | W53: 5.179220145 | X53: 5.304445615 | Y53: 5.43245955 | Z53: 5.563406138 | AA53: 5.69742819 | AB53: 5.834667841 | AC53: 5.975267139 | AD53: 6.119368557 | AE53: 6.267115441 | AF53: 6.418652401 | AG53: 6.574125661 | AH53: 6.733683382 | AI53: 6.897475942 | AJ53: 7.091219615 | AK53: 7.290197188 | AL53: 7.521560012 | AM53: 7.814680942 | AN53: 8.144360545 | AO53: 8.33687609 | AP53: 8.53476179 | AQ53: 8.738194201 | AR53: 8.947354059 | AS53: 9.162426461 | AT53: 9.383601052 | AU53: 9.611072204 | AV53: 9.8450392 | AW53: 10.08570642 | AX53: 10.33328351 | AY53: 10.58798559 | AZ53: 10.85003342 | BA53: 11.1196536 | BB53: 11.39707874 | BC53: 11.72593898 | BD53: 12.06434822 | BE53: 1 | BF53: 1.753520991 | BG53: 2.182807063
B54: Structural Treatment: | C54: Reconstruction (6-2) | I54: IRI | J54: 1.9 | K54: 1.937018609 | L54: 1.974742449 | M54: 2.014237278 | N54: 2.056878975 | O54: 2.104288774 | P54: 2.15829469 | Q54: 2.232386394 | R54: 2.318681422 | S54: 2.435063782 | T54: 2.60746599 | U54: 2.676687605 | V54: 2.717067855 | W54: 2.759446967 | X54: 2.802521325 | Y54: 2.846323304 | Z54: 2.890885284 | AA54: 2.936239783 | AB54: 2.982419571 | AC54: 3.029457772 | AD54: 3.077435322 | AE54: 3.126875545 | AF54: 3.178813813 | AG54: 3.234611839 | AH54: 3.295889529 | AI54: 3.364484384 | AJ54: 3.457527769 | AK54: 3.563723142 | AL54: 3.705383666 | AM54: 3.914759557 | AN54: 3.842924185 | AO54: 3.898914545 | AP54: 3.960416703 | AQ54: 4.023315918 | AR54: 4.087658121 | AS54: 4.153490486 | AT54: 4.220861473 | AU54: 4.289820874 | AV54: 4.360419859 | AW54: 4.432759083 | AX54: 4.507389268 | AY54: 4.585383159 | AZ54: 4.66814838 | BA54: 4.757359313 | BB54: 4.854916921 | BC54: 4.985217627 | BD54: 5.130115503 | BE54: 1.5 | BF54: 1.635094853 | BG54: 1.721848553
I55: Treatment | L55: 0 | M55: 0 | N55: 0 | O55: 0 | P55: 0 | Q55: 0 | R55: 0 | S55: 0 | T55: 0 | U55: 2 | AD55: 0 | AE55: 0 | AF55: 0 | AG55: 0 | AH55: 0 | AI55: 0 | AJ55: 0 | AK55: 0 | AL55: 0 | AM55: 0 | AN55: 2 | AW55: 0 | AX55: 0 | AY55: 0 | AZ55: 0 | BA55: 0 | BB55: 0 | BC55: 0 | BD55: 0 | BE55: 6-2
I56: RAC | U56: 140000 | AN56: 140000 | BE56: 840000
I57: RUC | J57: 651013.8023 | K57: 668512.0358 | L57: 686503.1752 | M57: 705038.672 | N57: 724185.3084 | O57: 744024.5445 | P57: 764652.636 | Q57: 786623.8272 | R57: 809703.3236 | S57: 834675.1208 | T57: 862744.2095 | U57: 893721.3494 | V57: 911245.1295 | W57: 935941.3461 | X57: 961336.8016 | Y57: 987453.5 | Z57: 1014314.218 | AA57: 1041942.543 | AB57: 1070362.908 | AC57: 1099600.629 | AD57: 1129684.514 | AE57: 1160669.125 | AF57: 1192642.002 | AG57: 1225716.856 | AH57: 1260032.459 | AI57: 1295752.855 | AJ57: 1334022.923 | AK57: 1374261.933 | AL57: 1418060.742 | AM57: 1467867.623 | AN57: 1523184.714 | AO57: 1541034.826 | AP57: 1584112.602 | AQ57: 1628493.063 | AR57: 1674221.211 | AS57: 1721343.884 | AT57: 1769909.841 | AU57: 1819969.855 | AV57: 1871576.812 | AW57: 1924790.082 | AX57: 1979712.734 | AY57: 2036503.852 | AZ57: 2095367.498 | BA57: 2156551.168 | BB57: 2220346.492 | BC57: 2289413.58 | BD57: 2362145.038 | BE57: 2706930.124 | BF57: 2101942.549 | BG57: 2163819.664
I58: Crash savings
I59: Capacity benefits
A60: 6 | B60: Alt_Section_A2_unmod Seal_Base_8 IRI_Alt_4IRI | C60: Alt_A2_unmod Seal_Base_8 IRI_Alt_4IRI | D60: SS | E60: Victoria Mid-North | F60: 1.9 | G60: 3.5 | H60: 5.308109508 | I60: AADT | J60: 1998 | K60: 2047.95 | L60: 2099.14875 | M60: 2151.627469 | N60: 2205.418155 | O60: 2260.553609 | P60: 2317.06745 | Q60: 2374.994136 | R60: 2434.368989 | S60: 2495.228214 | T60: 2557.608919 | U60: 2621.549142 | V60: 2687.087871 | W60: 2754.265068 | X60: 2823.121694 | Y60: 2893.699737 | Z60: 2966.04223 | AA60: 3040.193286 | AB60: 3116.198118 | AC60: 3194.103071 | AD60: 3273.955648 | AE60: 3355.804539 | AF60: 3439.699652 | AG60: 3525.692144 | AH60: 3613.834447 | AI60: 3704.180308 | AJ60: 3796.784816 | AK60: 3891.704437 | AL60: 3988.997047 | AM60: 4088.721974 | AN60: 4190.940023 | AO60: 4295.713524 | AP60: 4403.106362 | AQ60: 4513.184021 | AR60: 4626.013621 | AS60: 4741.663962 | AT60: 4860.205561 | AU60: 4981.7107 | AV60: 5106.253467 | AW60: 5233.909804 | AX60: 5364.757549 | AY60: 5498.876488 | AZ60: 5636.3484 | BA60: 5777.25711 | BB60: 5921.688538 | BC60: 6069.730751 | BD60: 6221.47402 | BE60: 6377.010871 | BF60: 6536.436142 | BG60: 6699.847046
I61: MSAR | J61: 0.3643192389 | K61: 0.3734272198 | L61: 0.3827629003 | M61: 0.3923319728 | N61: 0.4021402721 | O61: 0.412193779 | P61: 0.4224986234 | Q61: 0.433061089 | R61: 0.4438876162 | S61: 0.4549848066 | T61: 0.4663594268 | U61: 0.4780184125 | V61: 0.4899688728 | W61: 0.5022180946 | X61: 0.514773547 | Y61: 0.5276428857 | Z61: 0.5408339578 | AA61: 0.5543548067 | AB61: 0.5682136769 | AC61: 0.5824190188 | AD61: 0.5969794943 | AE61: 0.6119039817 | AF61: 0.6272015812 | AG61: 0.6428816207 | AH61: 0.6589536612 | AI61: 0.6754275028 | AJ61: 0.6923131903 | AK61: 0.7096210201 | AL61: 0.7273615456 | AM61: 0.7455455842 | AN61: 0.7641842239 | AO61: 0.7832888295 | AP61: 0.8028710502 | AQ61: 0.8229428264 | AR61: 0.8435163971 | AS61: 0.864604307 | AT61: 0.8862194147 | AU61: 0.9083749001 | AV61: 0.9310842726 | AW61: 0.9543613794 | AX61: 0.9782204139 | AY61: 1.002675924 | AZ61: 1.027742822 | BA61: 1.053436393 | BB61: 1.079772303 | BC61: 1.10676661 | BD61: 1.134435776 | BE61: 1.16279667 | BF61: 1.191866587 | BG61: 1.221663251
B62: Remaining Surface Life: | C62: 11 | D62: 2030 | F62: TSRS | G62: TSRH | H62: TSRC | I62: SNP | J62: 5.308109508 | K62: 5.276398507 | L62: 5.244516013 | M62: 5.212461101 | N62: 5.180232838 | O62: 5.147830285 | P62: 5.115252501 | Q62: 5.082498538 | R62: 5.049567444 | S62: 5.016458259 | T62: 4.983170022 | U62: 4.949701764 | V62: 4.916052511 | W62: 4.882221284 | X62: 4.8482071 | Y62: 4.814008969 | Z62: 4.779625896 | AA62: 4.745056881 | AB62: 4.710300918 | AC62: 4.675356997 | AD62: 4.640224101 | AE62: 4.604901208 | AF62: 4.569387291 | AG62: 4.533681316 | AH62: 4.497782245 | AI62: 4.461689034 | AJ62: 4.425400632 | AK62: 4.388915984 | AL62: 4.35223403 | AM62: 4.315353701 | AN62: 4.278273925 | AO62: 4.240993623 | AP62: 4.203511712 | AQ62: 4.1658271 | AR62: 4.127938691 | AS62: 4.089845384 | AT62: 4.051546071 | AU62: 4.013039636 | AV62: 3.974324961 | AW62: 3.935400918 | AX62: 3.896266376 | AY62: 3.856920197 | AZ62: 3.817361235 | BA62: 3.777588341 | BB62: 3.737600356 | BC62: 3.697396119 | BD62: 3.656974459 | BE62: 3.616334201 | BF62: 3.575474162 | BG62: 3.534393154
B63: Remaining Structural Life: | C63: 50+ | D63: - | F63: 9 | G63: 9 | H63: 9 | I63: Cracking | J63: 0 | K63: 0.004891502214 | L63: 0.06515411415 | M63: 0.2839065919 | N63: 0.7975949907 | O63: 1.768840625 | P63: 3.382135051 | Q63: 5.839475178 | R63: 9.353252731 | S63: 14.13222544 | T63: 20.35429823 | U63: 0 | V63: 0 | W63: 0 | X63: 0 | Y63: 0 | Z63: 0 | AA63: 0 | AB63: 0 | AC63: 0 | AD63: 0.004891502214 | AE63: 0.06515411415 | AF63: 0.2839065919 | AG63: 0.7975949907 | AH63: 1.768840625 | AI63: 3.382135051 | AJ63: 5.839475178 | AK63: 9.353252731 | AL63: 14.13222544 | AM63: 20.35429823 | AN63: 0 | AO63: 0 | AP63: 0 | AQ63: 0 | AR63: 0 | AS63: 0 | AT63: 0 | AU63: 0 | AV63: 0 | AW63: 0.004891502214 | AX63: 0.06515411415 | AY63: 0.2839065919 | AZ63: 0.7975949907 | BA63: 1.768840625 | BB63: 3.382135051 | BC63: 5.839475178 | BD63: 9.353252731 | BE63: 14.13222544 | BF63: 20.35429823 | BG63: 0
B64: Surfacing Treatment: | C64: Reseal (2) | I64: Rutting | J64: 3.5 | K64: 3.605755286 | L64: 3.711349801 | M64: 3.817222928 | N64: 3.923733992 | O64: 4.031185711 | P64: 4.139839745 | Q64: 4.266660687 | R64: 4.395373246 | S64: 4.543459112 | T64: 4.729301691 | U64: 4.936545867 | V64: 5.056636756 | W64: 5.179220145 | X64: 5.304445615 | Y64: 5.43245955 | Z64: 5.563406138 | AA64: 5.69742819 | AB64: 5.834667841 | AC64: 5.975267139 | AD64: 6.119368557 | AE64: 6.267115441 | AF64: 6.418652401 | AG64: 6.574125661 | AH64: 6.733683382 | AI64: 6.897475942 | AJ64: 7.091219615 | AK64: 7.290197188 | AL64: 7.521560012 | AM64: 7.814680942 | AN64: 8.144360545 | AO64: 8.33687609 | AP64: 8.53476179 | AQ64: 8.738194201 | AR64: 8.947354059 | AS64: 9.162426461 | AT64: 9.383601052 | AU64: 9.611072204 | AV64: 9.8450392 | AW64: 10.08570642 | AX64: 10.33328351 | AY64: 10.58798559 | AZ64: 10.85003342 | BA64: 11.1196536 | BB64: 11.39707874 | BC64: 11.72593898 | BD64: 12.06434822 | BE64: 12.45854609 | BF64: 12.9587927 | BG64: 13.52228137
B65: Structural Treatment: | C65: No Treatment | I65: IRI | J65: 1.9 | K65: 1.937018609 | L65: 1.974742449 | M65: 2.014237278 | N65: 2.056878975 | O65: 2.104288774 | P65: 2.15829469 | Q65: 2.232386394 | R65: 2.318681422 | S65: 2.435063782 | T65: 2.60746599 | U65: 2.676687605 | V65: 2.717067855 | W65: 2.759446967 | X65: 2.802521325 | Y65: 2.846323304 | Z65: 2.890885284 | AA65: 2.936239783 | AB65: 2.982419571 | AC65: 3.029457772 | AD65: 3.077435322 | AE65: 3.126875545 | AF65: 3.178813813 | AG65: 3.234611839 | AH65: 3.295889529 | AI65: 3.364484384 | AJ65: 3.457527769 | AK65: 3.563723142 | AL65: 3.705383666 | AM65: 3.914759557 | AN65: 3.842924185 | AO65: 3.898914545 | AP65: 3.960416703 | AQ65: 4.023315918 | AR65: 4.087658121 | AS65: 4.153490486 | AT65: 4.220861473 | AU65: 4.289820874 | AV65: 4.360419859 | AW65: 4.432759083 | AX65: 4.507389268 | AY65: 4.585383159 | AZ65: 4.66814838 | BA65: 4.757359313 | BB65: 4.854916921 | BC65: 4.985217627 | BD65: 5.130115503 | BE65: 5.320542684 | BF65: 5.600750875 | BG65: 5.370688397
I66: Treatment | L66: 0 | M66: 0 | N66: 0 | O66: 0 | P66: 0 | Q66: 0 | R66: 0 | S66: 0 | T66: 0 | U66: 2 | AD66: 0 | AE66: 0 | AF66: 0 | AG66: 0 | AH66: 0 | AI66: 0 | AJ66: 0 | AK66: 0 | AL66: 0 | AM66: 0 | AN66: 2 | AW66: 0 | AX66: 0 | AY66: 0 | AZ66: 0 | BA66: 0 | BB66: 0 | BC66: 0 | BD66: 0 | BE66: 0 | BF66: 0 | BG66: 2
I67: RAC | U67: 140000 | AN67: 140000 | BG67: 140000
I68: RUC | J68: 651013.8023 | K68: 668512.0358 | L68: 686503.1752 | M68: 705038.672 | N68: 724185.3084 | O68: 744024.5445 | P68: 764652.636 | Q68: 786623.8272 | R68: 809703.3236 | S68: 834675.1208 | T68: 862744.2095 | U68: 893721.3494 | V68: 911245.1295 | W68: 935941.3461 | X68: 961336.8016 | Y68: 987453.5 | Z68: 1014314.218 | AA68: 1041942.543 | AB68: 1070362.908 | AC68: 1099600.629 | AD68: 1129684.514 | AE68: 1160669.125 | AF68: 1192642.002 | AG68: 1225716.856 | AH68: 1260032.459 | AI68: 1295752.855 | AJ68: 1334022.923 | AK68: 1374261.933 | AL68: 1418060.742 | AM68: 1467867.623 | AN68: 1523184.714 | AO68: 1541034.826 | AP68: 1584112.602 | AQ68: 1628493.063 | AR68: 1674221.211 | AS68: 1721343.884 | AT68: 1769909.841 | AU68: 1819969.855 | AV68: 1871576.812 | AW68: 1924790.082 | AX68: 1979712.734 | AY68: 2036503.852 | AZ68: 2095367.498 | BA68: 2156551.168 | BB68: 2220346.492 | BC68: 2289413.58 | BD68: 2362145.038 | BE68: 2706930.124 | BF68: 2806336.385 | BG68: 2917258.473
I69: Crash savings
I70: Capacity benefits
A71: 7 | B71: Alt_Section_A3_mod Seal_Base_5.2 IRI_Alt_4IRI | C71: Alt_A3_mod Seal_Base_5.2 IRI_Alt_4IRI | D71: SS | E71: Victoria Mid-North | F71: 1.9 | G71: 3.5 | H71: 5.308109508 | I71: AADT | J71: 1998 | K71: 2047.95 | L71: 2099.14875 | M71: 2151.627469 | N71: 2205.418155 | O71: 2260.553609 | P71: 2317.06745 | Q71: 2374.994136 | R71: 2434.368989 | S71: 2495.228214 | T71: 2557.608919 | U71: 2621.549142 | V71: 2687.087871 | W71: 2754.265068 | X71: 2823.121694 | Y71: 2893.699737 | Z71: 2966.04223 | AA71: 3040.193286 | AB71: 3116.198118 | AC71: 3194.103071 | AD71: 3273.955648 | AE71: 3355.804539 | AF71: 3439.699652 | AG71: 3525.692144 | AH71: 3613.834447 | AI71: 3704.180308 | AJ71: 3796.784816 | AK71: 3891.704437 | AL71: 3988.997047 | AM71: 4088.721974 | AN71: 4190.940023 | AO71: 4295.713524 | AP71: 4403.106362 | AQ71: 4513.184021 | AR71: 4626.013621 | AS71: 4741.663962 | AT71: 4860.205561 | AU71: 4981.7107 | AV71: 5106.253467 | AW71: 5233.909804 | AX71: 5364.757549 | AY71: 5498.876488 | AZ71: 5636.3484 | BA71: 5777.25711 | BB71: 5921.688538 | BC71: 6069.730751 | BD71: 6221.47402 | BE71: 6377.010871 | BF71: 6536.436142 | BG71: 6699.847046
I72: MSAR | J72: 0.3643192389 | K72: 0.3734272198 | L72: 0.3827629003 | M72: 0.3923319728 | N72: 0.4021402721 | O72: 0.412193779 | P72: 0.4224986234 | Q72: 0.433061089 | R72: 0.4438876162 | S72: 0.4549848066 | T72: 0.4663594268 | U72: 0.4780184125 | V72: 0.4899688728 | W72: 0.5022180946 | X72: 0.514773547 | Y72: 0.5276428857 | Z72: 0.5408339578 | AA72: 0.5543548067 | AB72: 0.5682136769 | AC72: 0.5824190188 | AD72: 0.5969794943 | AE72: 0.6119039817 | AF72: 0.6272015812 | AG72: 0.6428816207 | AH72: 0.6589536612 | AI72: 0.6754275028 | AJ72: 0.6923131903 | AK72: 0.7096210201 | AL72: 0.7273615456 | AM72: 0.7455455842 | AN72: 0.7641842239 | AO72: 0.7832888295 | AP72: 0.8028710502 | AQ72: 0.8229428264 | AR72: 0.8435163971 | AS72: 0.864604307 | AT72: 0.8862194147 | AU72: 0.9083749001 | AV72: 0.9310842726 | AW72: 0.9543613794 | AX72: 0.9782204139 | AY72: 1.002675924 | AZ72: 1.027742822 | BA72: 1.053436393 | BB72: 1.079772303 | BC72: 1.10676661 | BD72: 1.134435776 | BE72: 1.16279667 | BF72: 1.191866587 | BG72: 1.221663251
B73: Remaining Surface Life: | C73: 11 | D73: 2030 | F73: TSRS | G73: TSRH | H73: TSRC | I73: SNP | J73: 5.308109508 | K73: 5.276398507 | L73: 5.244516013 | M73: 5.212461101 | N73: 5.180232838 | O73: 5.147830285 | P73: 5.115252501 | Q73: 5.082498538 | R73: 5.049567444 | S73: 5.016458259 | T73: 4.983170022 | U73: 4.949701764 | V73: 4.916052511 | W73: 4.882221284 | X73: 4.8482071 | Y73: 4.814008969 | Z73: 4.779625896 | AA73: 4.745056881 | AB73: 4.710300918 | AC73: 4.675356997 | AD73: 4.640224101 | AE73: 4.604901208 | AF73: 4.569387291 | AG73: 4.533681316 | AH73: 4.497782245 | AI73: 4.461689034 | AJ73: 4.425400632 | AK73: 4.388915984 | AL73: 4.35223403 | AM73: 4.315353701 | AN73: 4.278273925 | AO73: 4.240993623 | AP73: 4.203511712 | AQ73: 4.1658271 | AR73: 4.127938691 | AS73: 4.089845384 | AT73: 4.051546071 | AU73: 4.013039636 | AV73: 3.974324961 | AW73: 3.935400918 | AX73: 3.896266376 | AY73: 3.856920197 | AZ73: 3.817361235 | BA73: 3.777588341 | BB73: 3.737600356 | BC73: 3.697396119 | BD73: 3.656974459 | BE73: 6.7 | BF73: 6.627337516 | BG73: 6.590711293
B74: Remaining Structural Life: | C74: 47 | D74: 2066 | F74: 9 | G74: 9 | H74: 9 | I74: Cracking | J74: 0 | K74: 0.004891502214 | L74: 0.06515411415 | M74: 0.2839065919 | N74: 0.7975949907 | O74: 1.768840625 | P74: 3.382135051 | Q74: 5.839475178 | R74: 9.353252731 | S74: 14.13222544 | T74: 20.35429823 | U74: 0 | V74: 0 | W74: 0 | X74: 0 | Y74: 0 | Z74: 0 | AA74: 0 | AB74: 0 | AC74: 0 | AD74: 0.004891502214 | AE74: 0.06515411415 | AF74: 0.2839065919 | AG74: 0.7975949907 | AH74: 1.768840625 | AI74: 3.382135051 | AJ74: 5.839475178 | AK74: 9.353252731 | AL74: 14.13222544 | AM74: 20.35429823 | AN74: 0 | AO74: 0 | AP74: 0 | AQ74: 0 | AR74: 0 | AS74: 0 | AT74: 0 | AU74: 0 | AV74: 0 | AW74: 0.004891502214 | AX74: 0.06515411415 | AY74: 0.2839065919 | AZ74: 0.7975949907 | BA74: 1.768840625 | BB74: 3.382135051 | BC74: 5.839475178 | BD74: 9.353252731 | BE74: 0 | BF74: 0 | BG74: 0
B75: Surfacing Treatment: | C75: Reseal (2) | I75: Rutting | J75: 3.5 | K75: 3.605755286 | L75: 3.711349801 | M75: 3.817222928 | N75: 3.923733992 | O75: 4.031185711 | P75: 4.139839745 | Q75: 4.266660687 | R75: 4.395373246 | S75: 4.543459112 | T75: 4.729301691 | U75: 4.936545867 | V75: 5.056636756 | W75: 5.179220145 | X75: 5.304445615 | Y75: 5.43245955 | Z75: 5.563406138 | AA75: 5.69742819 | AB75: 5.834667841 | AC75: 5.975267139 | AD75: 6.119368557 | AE75: 6.267115441 | AF75: 6.418652401 | AG75: 6.574125661 | AH75: 6.733683382 | AI75: 6.897475942 | AJ75: 7.091219615 | AK75: 7.290197188 | AL75: 7.521560012 | AM75: 7.814680942 | AN75: 8.144360545 | AO75: 8.33687609 | AP75: 8.53476179 | AQ75: 8.738194201 | AR75: 8.947354059 | AS75: 9.162426461 | AT75: 9.383601052 | AU75: 9.611072204 | AV75: 9.8450392 | AW75: 10.08570642 | AX75: 10.33328351 | AY75: 10.58798559 | AZ75: 10.85003342 | BA75: 11.1196536 | BB75: 11.39707874 | BC75: 11.72593898 | BD75: 12.06434822 | BE75: 1 | BF75: 1.753520991 | BG75: 2.182807063
B76: Structural Treatment: | C76: Reconstruction (6-2) | I76: IRI | J76: 1.9 | K76: 1.937018609 | L76: 1.974742449 | M76: 2.014237278 | N76: 2.056878975 | O76: 2.104288774 | P76: 2.15829469 | Q76: 2.232386394 | R76: 2.318681422 | S76: 2.435063782 | T76: 2.60746599 | U76: 2.676687605 | V76: 2.717067855 | W76: 2.759446967 | X76: 2.802521325 | Y76: 2.846323304 | Z76: 2.890885284 | AA76: 2.936239783 | AB76: 2.982419571 | AC76: 3.029457772 | AD76: 3.077435322 | AE76: 3.126875545 | AF76: 3.178813813 | AG76: 3.234611839 | AH76: 3.295889529 | AI76: 3.364484384 | AJ76: 3.457527769 | AK76: 3.563723142 | AL76: 3.705383666 | AM76: 3.914759557 | AN76: 3.842924185 | AO76: 3.898914545 | AP76: 3.960416703 | AQ76: 4.023315918 | AR76: 4.087658121 | AS76: 4.153490486 | AT76: 4.220861473 | AU76: 4.289820874 | AV76: 4.360419859 | AW76: 4.432759083 | AX76: 4.507389268 | AY76: 4.585383159 | AZ76: 4.66814838 | BA76: 4.757359313 | BB76: 4.854916921 | BC76: 4.985217627 | BD76: 5.130115503 | BE76: 1.5 | BF76: 1.635094853 | BG76: 1.721848553
I77: Treatment | L77: 0 | M77: 0 | N77: 0 | O77: 0 | P77: 0 | Q77: 0 | R77: 0 | S77: 0 | T77: 0 | U77: 2 | AD77: 0 | AE77: 0 | AF77: 0 | AG77: 0 | AH77: 0 | AI77: 0 | AJ77: 0 | AK77: 0 | AL77: 0 | AM77: 0 | AN77: 2 | AW77: 0 | AX77: 0 | AY77: 0 | AZ77: 0 | BA77: 0 | BB77: 0 | BC77: 0 | BD77: 0 | BE77: 6-2
I78: RAC | U78: 161000 | AN78: 161000 | BE78: 840000
I79: RUC | J79: 651357.8824 | K79: 668864.718 | L79: 686864.6744 | M79: 705409.2087 | N79: 724565.1085 | O79: 744413.8396 | P79: 765051.6635 | Q79: 787032.8303 | R79: 810122.5519 | S79: 835104.8297 | T79: 863184.6612 | U79: 894172.8124 | V79: 911707.879 | W79: 936415.6644 | X79: 961822.9778 | Y79: 987951.8306 | Z79: 1014825.007 | AA79: 1042466.102 | AB79: 1070899.555 | AC79: 1100150.693 | AD79: 1130248.33 | AE79: 1161247.035 | AF79: 1193234.36 | AG79: 1226324.024 | AH79: 1260654.806 | AI79: 1296390.76 | AJ79: 1334676.776 | AK79: 1374932.132 | AL79: 1418747.696 | AM79: 1468571.751 | AN79: 1523906.445 | AO79: 1541774.6 | AP79: 1584870.871 | AQ79: 1629270.289 | AR79: 1675017.868 | AS79: 1722160.457 | AT79: 1770746.828 | AU79: 1820827.767 | AV79: 1872456.171 | AW79: 1925691.425 | AX79: 1980636.611 | AY79: 2037450.826 | AZ79: 2096338.146 | BA79: 2157546.083 | BB79: 2221366.279 | BC79: 2290458.862 | BD79: 2363216.452 | BE79: 2708028.324 | BF79: 2103068.204 | BG79: 2164973.46
I80: Crash savings
I81: Capacity benefits
A82: 8 | B82: Alt_Section_A4_mod Seal_Base_8 IRI_Alt_4IRI | C82: Alt_A4_mod Seal_Base_8 IRI_Alt_4IRI | D82: SS | E82: Victoria Mid-North | F82: 1.9 | G82: 3.5 | H82: 5.308109508 | I82: AADT | J82: 1998 | K82: 2047.95 | L82: 2099.14875 | M82: 2151.627469 | N82: 2205.418155 | O82: 2260.553609 | P82: 2317.06745 | Q82: 2374.994136 | R82: 2434.368989 | S82: 2495.228214 | T82: 2557.608919 | U82: 2621.549142 | V82: 2687.087871 | W82: 2754.265068 | X82: 2823.121694 | Y82: 2893.699737 | Z82: 2966.04223 | AA82: 3040.193286 | AB82: 3116.198118 | AC82: 3194.103071 | AD82: 3273.955648 | AE82: 3355.804539 | AF82: 3439.699652 | AG82: 3525.692144 | AH82: 3613.834447 | AI82: 3704.180308 | AJ82: 3796.784816 | AK82: 3891.704437 | AL82: 3988.997047 | AM82: 4088.721974 | AN82: 4190.940023 | AO82: 4295.713524 | AP82: 4403.106362 | AQ82: 4513.184021 | AR82: 4626.013621 | AS82: 4741.663962 | AT82: 4860.205561 | AU82: 4981.7107 | AV82: 5106.253467 | AW82: 5233.909804 | AX82: 5364.757549 | AY82: 5498.876488 | AZ82: 5636.3484 | BA82: 5777.25711 | BB82: 5921.688538 | BC82: 6069.730751 | BD82: 6221.47402 | BE82: 6377.010871 | BF82: 6536.436142 | BG82: 6699.847046
I83: MSAR | J83: 0.3643192389 | K83: 0.3734272198 | L83: 0.3827629003 | M83: 0.3923319728 | N83: 0.4021402721 | O83: 0.412193779 | P83: 0.4224986234 | Q83: 0.433061089 | R83: 0.4438876162 | S83: 0.4549848066 | T83: 0.4663594268 | U83: 0.4780184125 | V83: 0.4899688728 | W83: 0.5022180946 | X83: 0.514773547 | Y83: 0.5276428857 | Z83: 0.5408339578 | AA83: 0.5543548067 | AB83: 0.5682136769 | AC83: 0.5824190188 | AD83: 0.5969794943 | AE83: 0.6119039817 | AF83: 0.6272015812 | AG83: 0.6428816207 | AH83: 0.6589536612 | AI83: 0.6754275028 | AJ83: 0.6923131903 | AK83: 0.7096210201 | AL83: 0.7273615456 | AM83: 0.7455455842 | AN83: 0.7641842239 | AO83: 0.7832888295 | AP83: 0.8028710502 | AQ83: 0.8229428264 | AR83: 0.8435163971 | AS83: 0.864604307 | AT83: 0.8862194147 | AU83: 0.9083749001 | AV83: 0.9310842726 | AW83: 0.9543613794 | AX83: 0.9782204139 | AY83: 1.002675924 | AZ83: 1.027742822 | BA83: 1.053436393 | BB83: 1.079772303 | BC83: 1.10676661 | BD83: 1.134435776 | BE83: 1.16279667 | BF83: 1.191866587 | BG83: 1.221663251
B84: Remaining Surface Life: | C84: 14 | D84: 2033 | F84: TSRS | G84: TSRH | H84: TSRC | I84: SNP | J84: 5.308109508 | K84: 5.276398507 | L84: 5.244516013 | M84: 5.212461101 | N84: 5.180232838 | O84: 5.147830285 | P84: 5.115252501 | Q84: 5.082498538 | R84: 5.049567444 | S84: 5.016458259 | T84: 4.983170022 | U84: 4.949701764 | V84: 4.916052511 | W84: 4.882221284 | X84: 6.7 | Y84: 6.627337516 | Z84: 6.590711293 | AA84: 6.553886997 | AB84: 6.516863557 | AC84: 6.479639896 | AD84: 6.442214932 | AE84: 6.404587575 | AF84: 6.366756731 | AG84: 6.3287213 | AH84: 6.290480175 | AI84: 6.252032244 | AJ84: 6.213376388 | AK84: 6.174511484 | AL84: 6.1354364 | AM84: 6.09615 | AN84: 6.056651141 | AO84: 6.016938674 | AP84: 5.977011444 | AQ84: 5.93686829 | AR84: 5.896508043 | AS84: 5.855929531 | AT84: 6.7 | AU84: 6.627337516 | AV84: 6.590711293 | AW84: 6.553886997 | AX84: 6.516863557 | AY84: 6.479639896 | AZ84: 6.442214932 | BA84: 6.404587575 | BB84: 6.366756731 | BC84: 6.3287213 | BD84: 6.290480175 | BE84: 6.252032244 | BF84: 6.213376388 | BG84: 6.174511484
B85: Remaining Structural Life: | C85: 14 | D85: 2033 | F85: 9 | G85: 9 | H85: 9 | I85: Cracking | J85: 0 | K85: 0.004891502214 | L85: 0.06515411415 | M85: 0.2839065919 | N85: 0.7975949907 | O85: 1.768840625 | P85: 3.382135051 | Q85: 5.839475178 | R85: 9.353252731 | S85: 14.13222544 | T85: 20.35429823 | U85: 28.11868002 | V85: 37.37351008 | W85: 47.82953089 | X85: 0 | Y85: 0 | Z85: 0 | AA85: 0 | AB85: 0 | AC85: 0 | AD85: 0 | AE85: 0 | AF85: 0 | AG85: 0.004891502214 | AH85: 0.06515411415 | AI85: 0.2839065919 | AJ85: 0.7975949907 | AK85: 1.768840625 | AL85: 3.382135051 | AM85: 5.839475178 | AN85: 9.353252731 | AO85: 14.13222544 | AP85: 20.35429823 | AQ85: 28.11868002 | AR85: 37.37351008 | AS85: 47.82953089 | AT85: 0 | AU85: 0 | AV85: 0 | AW85: 0 | AX85: 0 | AY85: 0 | AZ85: 0 | BA85: 0 | BB85: 0 | BC85: 0.004891502214 | BD85: 0.06515411415 | BE85: 0.2839065919 | BF85: 0.7975949907 | BG85: 1.768840625
B86: Surfacing Treatment: | I86: Rutting | J86: 3.5 | K86: 3.605755286 | L86: 3.711349801 | M86: 3.817222928 | N86: 3.923733992 | O86: 4.031185711 | P86: 4.139839745 | Q86: 4.266660687 | R86: 4.395373246 | S86: 4.543459112 | T86: 4.729301691 | U86: 4.936545867 | V86: 5.183933098 | W86: 5.43645488 | X86: 1 | Y86: 1.358972113 | Z86: 1.56256647 | AA86: 1.738292706 | AB86: 1.901053286 | AC86: 2.056833068 | AD86: 2.208790084 | AE86: 2.358856002 | AF86: 2.508332379 | AG86: 2.658160071 | AH86: 2.809057333 | AI86: 2.961597282 | AJ86: 3.1162544 | AK86: 3.273433987 | AL86: 3.433491647 | AM86: 3.621561398 | AN86: 3.813651268 | AO86: 4.035991962 | AP86: 4.316629764 | AQ86: 4.631302912 | AR86: 5.008891115 | AS86: 5.396235536 | AT86: 1 | AU86: 1.585126929 | AV86: 1.918087434 | AW86: 2.206283583 | AX86: 2.473913225 | AY86: 2.730687045 | AZ86: 2.981727783 | BA86: 3.230169666 | BB86: 3.478126219 | BC86: 3.727127304 | BD86: 3.978343011 | BE86: 4.232709176 | BF86: 4.491002695 | BG86: 4.753889204
B87: Structural Treatment: | C87: Rehabilitation (5-4) | I87: IRI | J87: 1.9 | K87: 1.937018609 | L87: 1.974742449 | M87: 2.014237278 | N87: 2.056878975 | O87: 2.104288774 | P87: 2.15829469 | Q87: 2.232386394 | R87: 2.318681422 | S87: 2.435063782 | T87: 2.60746599 | U87: 2.82630447 | V87: 3.120770563 | W87: 3.440198453 | X87: 1.8 | Y87: 1.87291817 | Z87: 1.922705261 | AA87: 1.968432542 | AB87: 2.012339849 | AC87: 2.055329525 | AD87: 2.097880041 | AE87: 2.140286071 | AF87: 2.182747934 | AG87: 2.22545903 | AH87: 2.269017856 | AI87: 2.314507811 | AJ87: 2.363318941 | AK87: 2.41708395 | AL87: 2.477640082 | AM87: 2.560795597 | AN87: 2.656438725 | AO87: 2.785285452 | AP87: 2.977494668 | AQ87: 3.220940677 | AR87: 3.550435198 | AS87: 3.906036322 | AT87: 1.8 | AU87: 1.908498978 | AV87: 1.979475273 | AW87: 2.043944206 | AX87: 2.105543143 | AY87: 2.165736632 | AZ87: 2.225301287 | BA87: 2.28471572 | BB87: 2.344305714 | BC87: 2.404356854 | BD87: 2.465539854 | BE87: 2.528997926 | BF87: 2.596172966 | BG87: 2.668744482
I88: Treatment | L88: 0 | M88: 0 | N88: 0 | O88: 0 | P88: 0 | Q88: 0 | R88: 0 | S88: 0 | T88: 0 | U88: 0 | V88: 0 | W88: 0 | X88: 5-4 | AG88: 0 | AH88: 0 | AI88: 0 | AJ88: 0 | AK88: 0 | AL88: 0 | AM88: 0 | AN88: 0 | AO88: 0 | AP88: 0 | AQ88: 0 | AR88: 0 | AS88: 0 | AT88: 5-4 | BC88: 0 | BD88: 0 | BE88: 0 | BF88: 0 | BG88: 0
I89: RAC | X89: 560000 | AT89: 560000
I90: RUC | J90: 645940.4371 | K90: 663311.8365 | L90: 681172.971 | M90: 699575.2126 | N90: 718585.2625 | O90: 738284.4975 | P90: 758769.0878 | Q90: 780593.1903 | R90: 803521.9208 | S90: 828339.1829 | T90: 856249.8731 | U90: 887064.6547 | V90: 922286.2886 | W90: 959939.1741 | X90: 999657.2776 | Y90: 934251.1057 | Z90: 959988.3505 | AA90: 986231.7848 | AB90: 1013097.933 | AC90: 1040645.657 | AD90: 1068916.343 | AE90: 1097944.353 | AF90: 1127760.892 | AG90: 1158398.453 | AH90: 1189915.045 | AI90: 1222402.177 | AJ90: 1255977.908 | AK90: 1290785.759 | AL90: 1326994.958 | AM90: 1365723.107 | AN90: 1406425.175 | AO90: 1450663.687 | AP90: 1500856.75 | AQ90: 1556538.713 | AR90: 1620793.578 | AS90: 1689541.286 | AT90: 1762170.123 | AU90: 1611237.5 | AV90: 1657367.611 | AW90: 1704255.234 | AX90: 1752209.57 | AY90: 1801378.193 | AZ90: 1851859.469 | BA90: 1903731.756 | BB90: 1957064.218 | BC90: 2011926.352 | BD90: 2068430.883 | BE90: 2126748.249 | BF90: 2187095.036 | BG90: 2249732.472
I91: Crash savings
I92: Capacity benefits

Sheet Detailed Results (hidden)
A1: Detailed Results
A4: ID | B4: Road Name | C4: Road Class | D4: Pav Type | E4: Climate Zone | F4: IRI | G4: Rutting | H4: SNP | I4: Tracking | J4: 2019 | K4: 2020 | L4: 2021 | M4: 2022 | N4: 2023 | O4: 2024 | P4: 2025 | Q4: 2026 | R4: 2027 | S4: 2028 | T4: 2029 | U4: 2030 | V4: 2031 | W4: 2032 | X4: 2033 | Y4: 2034 | Z4: 2035 | AA4: 2036 | AB4: 2037 | AC4: 2038 | AD4: 2039 | AE4: 2040 | AF4: 2041 | AG4: 2042 | AH4: 2043 | AI4: 2044 | AJ4: 2045 | AK4: 2046 | AL4: 2047 | AM4: 2048 | AN4: 2049 | AO4: 2050 | AP4: 2051 | AQ4: 2052 | AR4: 2053 | AS4: 2054 | AT4: 2055 | AU4: 2056 | AV4: 2057 | AW4: 2058 | AX4: 2059 | AY4: 2060 | AZ4: 2061 | BA4: 2062 | BB4: 2063 | BC4: 2064 | BD4: 2065 | BE4: 2066 | BF4: 2067 | BG4: 2068
A5: 1 | B5: Section_A1_unmod Seal_Base_5.2 IRI_Alt_4IRI | C5: A1_unmod Seal_Base_5.2 IRI_Alt_4IRI | D5: SS | E5: Victoria Mid-North | F5: 1.9 | G5: 3.5 | H5: 5.308109508 | I5: AADT | J5: 1998 | K5: 2047.95 | L5: 2099.14875 | M5: 2151.627469 | N5: 2205.418155 | O5: 2260.553609 | P5: 2317.06745 | Q5: 2374.994136 | R5: 2434.368989 | S5: 2495.228214 | T5: 2557.608919 | U5: 2621.549142 | V5: 2687.087871 | W5: 2754.265068 | X5: 2823.121694 | Y5: 2893.699737 | Z5: 2966.04223 | AA5: 3040.193286 | AB5: 3116.198118 | AC5: 3194.103071 | AD5: 3273.955648 | AE5: 3355.804539 | AF5: 3439.699652 | AG5: 3525.692144 | AH5: 3613.834447 | AI5: 3704.180308 | AJ5: 3796.784816 | AK5: 3891.704437 | AL5: 3988.997047 | AM5: 4088.721974 | AN5: 4190.940023 | AO5: 4295.713524 | AP5: 4403.106362 | AQ5: 4513.184021 | AR5: 4626.013621 | AS5: 4741.663962 | AT5: 4860.205561 | AU5: 4981.7107 | AV5: 5106.253467 | AW5: 5233.909804 | AX5: 5364.757549 | AY5: 5498.876488 | AZ5: 5636.3484 | BA5: 5777.25711 | BB5: 5921.688538 | BC5: 6069.730751 | BD5: 6221.47402 | BE5: 6377.010871 | BF5: 6536.436142 | BG5: 6699.847046
I6: MSAR | J6: 0.3643192389 | K6: 0.3734272198 | L6: 0.3827629003 | M6: 0.3923319728 | N6: 0.4021402721 | O6: 0.412193779 | P6: 0.4224986234 | Q6: 0.433061089 | R6: 0.4438876162 | S6: 0.4549848066 | T6: 0.4663594268 | U6: 0.4780184125 | V6: 0.4899688728 | W6: 0.5022180946 | X6: 0.514773547 | Y6: 0.5276428857 | Z6: 0.5408339578 | AA6: 0.5543548067 | AB6: 0.5682136769 | AC6: 0.5824190188 | AD6: 0.5969794943 | AE6: 0.6119039817 | AF6: 0.6272015812 | AG6: 0.6428816207 | AH6: 0.6589536612 | AI6: 0.6754275028 | AJ6: 0.6923131903 | AK6: 0.7096210201 | AL6: 0.7273615456 | AM6: 0.7455455842 | AN6: 0.7641842239 | AO6: 0.7832888295 | AP6: 0.8028710502 | AQ6: 0.8229428264 | AR6: 0.8435163971 | AS6: 0.864604307 | AT6: 0.8862194147 | AU6: 0.9083749001 | AV6: 0.9310842726 | AW6: 0.9543613794 | AX6: 0.9782204139 | AY6: 1.002675924 | AZ6: 1.027742822 | BA6: 1.053436393 | BB6: 1.079772303 | BC6: 1.10676661 | BD6: 1.134435776 | BE6: 1.16279667 | BF6: 1.191866587 | BG6: 1.221663251
B7: Remaining Surface Life: | C7: 1 | D7: 2020 | F7: TSRS | G7: TSRH | H7: TSRC | I7: SNP | J7: 5.308109508 | K7: 5.276398507 | L7: 5.244516013 | M7: 5.212461101 | N7: 5.180232838 | O7: 5.147830285 | P7: 5.115252501 | Q7: 5.082498538 | R7: 5.049567444 | S7: 5.016458259 | T7: 4.983170022 | U7: 4.949701764 | V7: 4.916052511 | W7: 4.882221284 | X7: 6.7 | Y7: 6.627337516 | Z7: 6.590711293 | AA7: 6.553886997 | AB7: 6.516863557 | AC7: 6.479639896 | AD7: 6.442214932 | AE7: 6.404587575 | AF7: 6.366756731 | AG7: 6.3287213 | AH7: 6.290480175 | AI7: 6.7 | AJ7: 6.627337516 | AK7: 6.590711293 | AL7: 6.553886997 | AM7: 6.516863557 | AN7: 6.479639896 | AO7: 6.442214932 | AP7: 6.404587575 | AQ7: 6.366756731 | AR7: 6.7 | AS7: 6.627337516 | AT7: 6.590711293 | AU7: 6.553886997 | AV7: 6.516863557 | AW7: 6.479639896 | AX7: 6.442214932 | AY7: 6.7 | AZ7: 6.627337516 | BA7: 6.590711293 | BB7: 6.553886997 | BC7: 6.516863557 | BD7: 6.479639896 | BE7: 6.7 | BF7: 6.627337516 | BG7: 6.590711293
B8: Remaining Structural Life: | C8: 14 | D8: 2033 | F8: 9 | G8: 9 | H8: 9 | I8: Cracking | J8: 0 | K8: 0 | L8: 0 | M8: 0 | N8: 0 | O8: 0 | P8: 0 | Q8: 0 | R8: 0 | S8: 0 | T8: 0.004891502214 | U8: 0.06515411415 | V8: 0.2839065919 | W8: 0.7975949907 | X8: 0 | Y8: 0 | Z8: 0 | AA8: 0 | AB8: 0 | AC8: 0 | AD8: 0 | AE8: 0 | AF8: 0 | AG8: 0.004891502214 | AH8: 0.06515411415 | AI8: 0 | AJ8: 0 | AK8: 0 | AL8: 0 | AM8: 0 | AN8: 0 | AO8: 0 | AP8: 0 | AQ8: 0 | AR8: 0 | AS8: 0 | AT8: 0 | AU8: 0 | AV8: 0 | AW8: 0 | AX8: 0 | AY8: 0 | AZ8: 0 | BA8: 0 | BB8: 0 | BC8: 0 | BD8: 0 | BE8: 0 | BF8: 0 | BG8: 0
B9: Surfacing Treatment: | C9: Reseal (1) | I9: Rutting | J9: 3.5 | K9: 3.817265857 | L9: 4.134049403 | M9: 4.451668785 | N9: 4.771201975 | O9: 5.093557132 | P9: 5.419519236 | Q9: 5.749782104 | R9: 6.084971061 | S9: 6.425659402 | T9: 6.772380632 | U9: 7.12563775 | V9: 7.485910417 | W9: 7.853660585 | X9: 1 | Y9: 2.076916339 | Z9: 2.687699411 | AA9: 3.214878118 | AB9: 3.703159857 | AC9: 4.170499203 | AD9: 4.626370252 | AE9: 5.076568006 | AF9: 5.524997136 | AG9: 5.974480212 | AH9: 6.427172 | AI9: 1 | AJ9: 2.370358822 | AK9: 3.14899825 | AL9: 3.822109955 | AM9: 4.446462368 | AN9: 5.044844429 | AO9: 5.629279502 | AP9: 6.207122945 | AQ9: 6.783332982 | AR9: 1 | AS9: 2.677381592 | AT9: 3.631645636 | AU9: 4.457444004 | AV9: 5.224164333 | AW9: 5.959653663 | AX9: 6.678602603 | AY9: 1 | AZ9: 2.968094426 | BA9: 4.0886534 | BB9: 5.059027274 | BC9: 5.960552525 | BD9: 6.82586559 | BE9: 1 | BF9: 3.260562974 | BG9: 4.548421189
B10: Structural Treatment: | C10: Rehabilitation (5-2) | I10: IRI | J10: 1.9 | K10: 2.043219157 | L10: 2.186598991 | M10: 2.330664628 | N10: 2.47576804 | O10: 2.62220882 | P10: 2.770248582 | Q10: 2.92012098 | R10: 3.072038812 | S10: 3.226199179 | T10: 3.382885604 | U10: 3.543289048 | V10: 3.709653661 | W10: 3.884892345 | X10: 1.8 | Y10: 2.176390714 | Z10: 2.407360293 | AA10: 2.612454359 | AB10: 2.805653278 | AC10: 2.992577467 | AD10: 3.176197511 | AE10: 3.358334605 | AF10: 3.540219555 | AG10: 3.722843312 | AH10: 3.907901656 | AI10: 1.8 | AJ10: 2.269626656 | AK10: 2.554659095 | AL10: 2.807043259 | AM10: 3.04453149 | AN10: 3.274257945 | AO10: 3.499992954 | AP10: 3.724048525 | AQ10: 3.947988005 | AR10: 1.8 | AS10: 2.367175211 | AT10: 2.708772496 | AU10: 3.010635306 | AV10: 3.294462524 | AW10: 3.5689721 | AX10: 3.838771123 | AY10: 1.8 | AZ10: 2.459541006 | BA10: 2.85469825 | BB10: 3.203411258 | BC10: 3.531115801 | BD10: 3.848029491 | BE10: 1.8 | BF10: 2.552464614 | BG10: 3.001505283
I11: Treatment | J11: 0 | K11: 1 | O11: 0 | P11: 0 | Q11: 0 | R11: 0 | S11: 0 | T11: 0 | U11: 0 | V11: 0 | W11: 0 | X11: 5-2 | AB11: 0 | AC11: 0 | AD11: 0 | AE11: 0 | AF11: 0 | AG11: 0 | AH11: 0 | AI11: 5-2 | AM11: 0 | AN11: 0 | AO11: 0 | AP11: 0 | AQ11: 0 | AR11: 5-2 | AV11: 0 | AW11: 0 | AX11: 0 | AY11: 5-2 | BC11: 0 | BD11: 0 | BE11: 5-2
I12: RAC | K12: 42000 | X12: 560000 | AI12: 560000 | AR12: 560000 | AY12: 560000 | BE12: 560000
I13: RUC | J13: 651013.8023 | K13: 672025.5649 | L13: 693701.0311 | M13: 716079.1864 | N13: 739195.479 | O13: 763085.5788 | P13: 787785.7786 | Q13: 813333.2996 | R13: 839766.5359 | S13: 867125.2585 | T13: 895454.9752 | U13: 924843.4574 | V13: 955433.0777 | W13: 987410.3066 | X13: 1021004.501 | Y13: 955795.4226 | Z13: 990827.0502 | AA13: 1025779.918 | AB13: 1061296.3 | AC13: 1097657.043 | AD13: 1135032.02 | AE13: 1173545.195 | AF13: 1213298.671 | AG13: 1254389.311 | AH13: 1296964.661 | AI13: 1341243.058 | AJ13: 1259832.932 | AK13: 1309406.445 | AL13: 1358640.089 | AM13: 1408599.188 | AN13: 1459747.212 | AO13: 1512363.02 | AP13: 1566649.192 | AQ13: 1622772.082 | AR13: 1680887.527 | AS13: 1580882.141 | AT13: 1647531.57 | AU13: 1713454.332 | AV13: 1780271.957 | AW13: 1848687.936 | AX13: 1919124.421 | AY13: 1991887.501 | AZ13: 1887656.627 | BA13: 1972241.67 | BB13: 2055630.443 | BC13: 2140078.316 | BD13: 2226562.498 | BE13: 2315668.824 | BF13: 2199020.85 | BG13: 2303396.438
I14: Crash savings
I15: Capacity benefits
A16: 2 | B16: Section_A2_unmod Seal_Base_8 IRI_Alt_4IRI | C16: A2_unmod Seal_Base_8 IRI_Alt_4IRI | D16: SS | E16: Victoria Mid-North | F16: 1.9 | G16: 3.5 | H16: 5.308109508 | I16: AADT | J16: 1998 | K16: 2047.95 | L16: 2099.14875 | M16: 2151.627469 | N16: 2205.418155 | O16: 2260.553609 | P16: 2317.06745 | Q16: 2374.994136 | R16: 2434.368989 | S16: 2495.228214 | T16: 2557.608919 | U16: 2621.549142 | V16: 2687.087871 | W16: 2754.265068 | X16: 2823.121694 | Y16: 2893.699737 | Z16: 2966.04223 | AA16: 3040.193286 | AB16: 3116.198118 | AC16: 3194.103071 | AD16: 3273.955648 | AE16: 3355.804539 | AF16: 3439.699652 | AG16: 3525.692144 | AH16: 3613.834447 | AI16: 3704.180308 | AJ16: 3796.784816 | AK16: 3891.704437 | AL16: 3988.997047 | AM16: 4088.721974 | AN16: 4190.940023 | AO16: 4295.713524 | AP16: 4403.106362 | AQ16: 4513.184021 | AR16: 4626.013621 | AS16: 4741.663962 | AT16: 4860.205561 | AU16: 4981.7107 | AV16: 5106.253467 | AW16: 5233.909804 | AX16: 5364.757549 | AY16: 5498.876488 | AZ16: 5636.3484 | BA16: 5777.25711 | BB16: 5921.688538 | BC16: 6069.730751 | BD16: 6221.47402 | BE16: 6377.010871 | BF16: 6536.436142 | BG16: 6699.847046
I17: MSAR | J17: 0.3643192389 | K17: 0.3734272198 | L17: 0.3827629003 | M17: 0.3923319728 | N17: 0.4021402721 | O17: 0.412193779 | P17: 0.4224986234 | Q17: 0.433061089 | R17: 0.4438876162 | S17: 0.4549848066 | T17: 0.4663594268 | U17: 0.4780184125 | V17: 0.4899688728 | W17: 0.5022180946 | X17: 0.514773547 | Y17: 0.5276428857 | Z17: 0.5408339578 | AA17: 0.5543548067 | AB17: 0.5682136769 | AC17: 0.5824190188 | AD17: 0.5969794943 | AE17: 0.6119039817 | AF17: 0.6272015812 | AG17: 0.6428816207 | AH17: 0.6589536612 | AI17: 0.6754275028 | AJ17: 0.6923131903 | AK17: 0.7096210201 | AL17: 0.7273615456 | AM17: 0.7455455842 | AN17: 0.7641842239 | AO17: 0.7832888295 | AP17: 0.8028710502 | AQ17: 0.8229428264 | AR17: 0.8435163971 | AS17: 0.864604307 | AT17: 0.8862194147 | AU17: 0.9083749001 | AV17: 0.9310842726 | AW17: 0.9543613794 | AX17: 0.9782204139 | AY17: 1.002675924 | AZ17: 1.027742822 | BA17: 1.053436393 | BB17: 1.079772303 | BC17: 1.10676661 | BD17: 1.134435776 | BE17: 1.16279667 | BF17: 1.191866587 | BG17: 1.221663251
B18: Remaining Surface Life: | C18: 1 | D18: 2020 | F18: TSRS | G18: TSRH | H18: TSRC | I18: SNP | J18: 5.308109508 | K18: 5.276398507 | L18: 5.244516013 | M18: 5.212461101 | N18: 5.180232838 | O18: 5.147830285 | P18: 5.115252501 | Q18: 5.082498538 | R18: 5.049567444 | S18: 5.016458259 | T18: 4.983170022 | U18: 4.949701764 | V18: 4.916052511 | W18: 4.882221284 | X18: 6.7 | Y18: 6.627337516 | Z18: 6.590711293 | AA18: 6.553886997 | AB18: 6.516863557 | AC18: 6.479639896 | AD18: 6.442214932 | AE18: 6.404587575 | AF18: 6.366756731 | AG18: 6.3287213 | AH18: 6.290480175 | AI18: 6.7 | AJ18: 6.627337516 | AK18: 6.590711293 | AL18: 6.553886997 | AM18: 6.516863557 | AN18: 6.479639896 | AO18: 6.442214932 | AP18: 6.404587575 | AQ18: 6.366756731 | AR18: 6.7 | AS18: 6.627337516 | AT18: 6.590711293 | AU18: 6.553886997 | AV18: 6.516863557 | AW18: 6.479639896 | AX18: 6.442214932 | AY18: 6.7 | AZ18: 6.627337516 | BA18: 6.590711293 | BB18: 6.553886997 | BC18: 6.516863557 | BD18: 6.479639896 | BE18: 6.7 | BF18: 6.627337516 | BG18: 6.590711293
B19: Remaining Structural Life: | C19: 14 | D19: 2033 | F19: 9 | G19: 9 | H19: 9 | I19: Cracking | J19: 0 | K19: 0 | L19: 0 | M19: 0 | N19: 0 | O19: 0 | P19: 0 | Q19: 0 | R19: 0 | S19: 0 | T19: 0.004891502214 | U19: 0.06515411415 | V19: 0.2839065919 | W19: 0.7975949907 | X19: 0 | Y19: 0 | Z19: 0 | AA19: 0 | AB19: 0 | AC19: 0 | AD19: 0 | AE19: 0 | AF19: 0 | AG19: 0.004891502214 | AH19: 0.06515411415 | AI19: 0 | AJ19: 0 | AK19: 0 | AL19: 0 | AM19: 0 | AN19: 0 | AO19: 0 | AP19: 0 | AQ19: 0 | AR19: 0 | AS19: 0 | AT19: 0 | AU19: 0 | AV19: 0 | AW19: 0 | AX19: 0 | AY19: 0 | AZ19: 0 | BA19: 0 | BB19: 0 | BC19: 0 | BD19: 0 | BE19: 0 | BF19: 0 | BG19: 0
B20: Surfacing Treatment: | C20: Reseal (1) | I20: Rutting | J20: 3.5 | K20: 3.817265857 | L20: 4.134049403 | M20: 4.451668785 | N20: 4.771201975 | O20: 5.093557132 | P20: 5.419519236 | Q20: 5.749782104 | R20: 6.084971061 | S20: 6.425659402 | T20: 6.772380632 | U20: 7.12563775 | V20: 7.485910417 | W20: 7.853660585 | X20: 1 | Y20: 2.076916339 | Z20: 2.687699411 | AA20: 3.214878118 | AB20: 3.703159857 | AC20: 4.170499203 | AD20: 4.626370252 | AE20: 5.076568006 | AF20: 5.524997136 | AG20: 5.974480212 | AH20: 6.427172 | AI20: 1 | AJ20: 2.370358822 | AK20: 3.14899825 | AL20: 3.822109955 | AM20: 4.446462368 | AN20: 5.044844429 | AO20: 5.629279502 | AP20: 6.207122945 | AQ20: 6.783332982 | AR20: 1 | AS20: 2.677381592 | AT20: 3.631645636 | AU20: 4.457444004 | AV20: 5.224164333 | AW20: 5.959653663 | AX20: 6.678602603 | AY20: 1 | AZ20: 2.968094426 | BA20: 4.0886534 | BB20: 5.059027274 | BC20: 5.960552525 | BD20: 6.82586559 | BE20: 1 | BF20: 3.260562974 | BG20: 4.548421189
B21: Structural Treatment: | C21: Rehabilitation (5-2) | I21: IRI | J21: 1.9 | K21: 2.043219157 | L21: 2.186598991 | M21: 2.330664628 | N21: 2.47576804 | O21: 2.62220882 | P21: 2.770248582 | Q21: 2.92012098 | R21: 3.072038812 | S21: 3.226199179 | T21: 3.382885604 | U21: 3.543289048 | V21: 3.709653661 | W21: 3.884892345 | X21: 1.8 | Y21: 2.176390714 | Z21: 2.407360293 | AA21: 2.612454359 | AB21: 2.805653278 | AC21: 2.992577467 | AD21: 3.176197511 | AE21: 3.358334605 | AF21: 3.540219555 | AG21: 3.722843312 | AH21: 3.907901656 | AI21: 1.8 | AJ21: 2.269626656 | AK21: 2.554659095 | AL21: 2.807043259 | AM21: 3.04453149 | AN21: 3.274257945 | AO21: 3.499992954 | AP21: 3.724048525 | AQ21: 3.947988005 | AR21: 1.8 | AS21: 2.367175211 | AT21: 2.708772496 | AU21: 3.010635306 | AV21: 3.294462524 | AW21: 3.5689721 | AX21: 3.838771123 | AY21: 1.8 | AZ21: 2.459541006 | BA21: 2.85469825 | BB21: 3.203411258 | BC21: 3.531115801 | BD21: 3.848029491 | BE21: 1.8 | BF21: 2.552464614 | BG21: 3.001505283
I22: Treatment | J22: 0 | K22: 1 | O22: 0 | P22: 0 | Q22: 0 | R22: 0 | S22: 0 | T22: 0 | U22: 0 | V22: 0 | W22: 0 | X22: 5-2 | AB22: 0 | AC22: 0 | AD22: 0 | AE22: 0 | AF22: 0 | AG22: 0 | AH22: 0 | AI22: 5-2 | AM22: 0 | AN22: 0 | AO22: 0 | AP22: 0 | AQ22: 0 | AR22: 5-2 | AV22: 0 | AW22: 0 | AX22: 0 | AY22: 5-2 | BC22: 0 | BD22: 0 | BE22: 5-2
I23: RAC | K23: 42000 | X23: 560000 | AI23: 560000 | AR23: 560000 | AY23: 560000 | BE23: 560000
I24: RUC | J24: 651013.8023 | K24: 672025.5649 | L24: 693701.0311 | M24: 716079.1864 | N24: 739195.479 | O24: 763085.5788 | P24: 787785.7786 | Q24: 813333.2996 | R24: 839766.5359 | S24: 867125.2585 | T24: 895454.9752 | U24: 924843.4574 | V24: 955433.0777 | W24: 987410.3066 | X24: 1021004.501 | Y24: 955795.4226 | Z24: 990827.0502 | AA24: 1025779.918 | AB24: 1061296.3 | AC24: 1097657.043 | AD24: 1135032.02 | AE24: 1173545.195 | AF24: 1213298.671 | AG24: 1254389.311 | AH24: 1296964.661 | AI24: 1341243.058 | AJ24: 1259832.932 | AK24: 1309406.445 | AL24: 1358640.089 | AM24: 1408599.188 | AN24: 1459747.212 | AO24: 1512363.02 | AP24: 1566649.192 | AQ24: 1622772.082 | AR24: 1680887.527 | AS24: 1580882.141 | AT24: 1647531.57 | AU24: 1713454.332 | AV24: 1780271.957 | AW24: 1848687.936 | AX24: 1919124.421 | AY24: 1991887.501 | AZ24: 1887656.627 | BA24: 1972241.67 | BB24: 2055630.443 | BC24: 2140078.316 | BD24: 2226562.498 | BE24: 2315668.824 | BF24: 2199020.85 | BG24: 2303396.438
I25: Crash savings
I26: Capacity benefits
A27: 3 | B27: Section_A3_mod Seal_Base_5.2 IRI_Alt_4IRI | C27: A3_mod Seal_Base_5.2 IRI_Alt_4IRI | D27: SS | E27: Victoria Mid-North | F27: 1.9 | G27: 3.5 | H27: 5.308109508 | I27: AADT | J27: 1998 | K27: 2047.95 | L27: 2099.14875 | M27: 2151.627469 | N27: 2205.418155 | O27: 2260.553609 | P27: 2317.06745 | Q27: 2374.994136 | R27: 2434.368989 | S27: 2495.228214 | T27: 2557.608919 | U27: 2621.549142 | V27: 2687.087871 | W27: 2754.265068 | X27: 2823.121694 | Y27: 2893.699737 | Z27: 2966.04223 | AA27: 3040.193286 | AB27: 3116.198118 | AC27: 3194.103071 | AD27: 3273.955648 | AE27: 3355.804539 | AF27: 3439.699652 | AG27: 3525.692144 | AH27: 3613.834447 | AI27: 3704.180308 | AJ27: 3796.784816 | AK27: 3891.704437 | AL27: 3988.997047 | AM27: 4088.721974 | AN27: 4190.940023 | AO27: 4295.713524 | AP27: 4403.106362 | AQ27: 4513.184021 | AR27: 4626.013621 | AS27: 4741.663962 | AT27: 4860.205561 | AU27: 4981.7107 | AV27: 5106.253467 | AW27: 5233.909804 | AX27: 5364.757549 | AY27: 5498.876488 | AZ27: 5636.3484 | BA27: 5777.25711 | BB27: 5921.688538 | BC27: 6069.730751 | BD27: 6221.47402 | BE27: 6377.010871 | BF27: 6536.436142 | BG27: 6699.847046
I28: MSAR | J28: 0.3643192389 | K28: 0.3734272198 | L28: 0.3827629003 | M28: 0.3923319728 | N28: 0.4021402721 | O28: 0.412193779 | P28: 0.4224986234 | Q28: 0.433061089 | R28: 0.4438876162 | S28: 0.4549848066 | T28: 0.4663594268 | U28: 0.4780184125 | V28: 0.4899688728 | W28: 0.5022180946 | X28: 0.514773547 | Y28: 0.5276428857 | Z28: 0.5408339578 | AA28: 0.5543548067 | AB28: 0.5682136769 | AC28: 0.5824190188 | AD28: 0.5969794943 | AE28: 0.6119039817 | AF28: 0.6272015812 | AG28: 0.6428816207 | AH28: 0.6589536612 | AI28: 0.6754275028 | AJ28: 0.6923131903 | AK28: 0.7096210201 | AL28: 0.7273615456 | AM28: 0.7455455842 | AN28: 0.7641842239 | AO28: 0.7832888295 | AP28: 0.8028710502 | AQ28: 0.8229428264 | AR28: 0.8435163971 | AS28: 0.864604307 | AT28: 0.8862194147 | AU28: 0.9083749001 | AV28: 0.9310842726 | AW28: 0.9543613794 | AX28: 0.9782204139 | AY28: 1.002675924 | AZ28: 1.027742822 | BA28: 1.053436393 | BB28: 1.079772303 | BC28: 1.10676661 | BD28: 1.134435776 | BE28: 1.16279667 | BF28: 1.191866587 | BG28: 1.221663251
B29: Remaining Surface Life: | C29: 3 | D29: 2022 | F29: TSRS | G29: TSRH | H29: TSRC | I29: SNP | J29: 5.308109508 | K29: 5.276398507 | L29: 5.244516013 | M29: 5.212461101 | N29: 5.180232838 | O29: 5.147830285 | P29: 5.115252501 | Q29: 5.082498538 | R29: 5.049567444 | S29: 5.016458259 | T29: 4.983170022 | U29: 4.949701764 | V29: 4.916052511 | W29: 4.882221284 | X29: 6.7 | Y29: 6.627337516 | Z29: 6.590711293 | AA29: 6.553886997 | AB29: 6.516863557 | AC29: 6.479639896 | AD29: 6.442214932 | AE29: 6.404587575 | AF29: 6.366756731 | AG29: 6.3287213 | AH29: 6.290480175 | AI29: 6.7 | AJ29: 6.627337516 | AK29: 6.590711293 | AL29: 6.553886997 | AM29: 6.516863557 | AN29: 6.479639896 | AO29: 6.442214932 | AP29: 6.404587575 | AQ29: 6.366756731 | AR29: 6.7 | AS29: 6.627337516 | AT29: 6.590711293 | AU29: 6.553886997 | AV29: 6.516863557 | AW29: 6.479639896 | AX29: 6.442214932 | AY29: 6.7 | AZ29: 6.627337516 | BA29: 6.590711293 | BB29: 6.553886997 | BC29: 6.516863557 | BD29: 6.479639896 | BE29: 6.7 | BF29: 6.627337516 | BG29: 6.590711293
B30: Remaining Structural Life: | C30: 14 | D30: 2033 | F30: 9 | G30: 9 | H30: 9 | I30: Cracking | J30: 0 | K30: 0.004891502214 | L30: 0.06515411415 | M30: 0 | N30: 0 | O30: 0 | P30: 0 | Q30: 0 | R30: 0 | S30: 0 | T30: 0 | U30: 0 | V30: 0.004891502214 | W30: 0.06515411415 | X30: 0 | Y30: 0 | Z30: 0 | AA30: 0 | AB30: 0 | AC30: 0 | AD30: 0 | AE30: 0 | AF30: 0 | AG30: 0.004891502214 | AH30: 0.06515411415 | AI30: 0 | AJ30: 0 | AK30: 0 | AL30: 0 | AM30: 0 | AN30: 0 | AO30: 0 | AP30: 0 | AQ30: 0 | AR30: 0 | AS30: 0 | AT30: 0 | AU30: 0 | AV30: 0 | AW30: 0 | AX30: 0 | AY30: 0 | AZ30: 0 | BA30: 0 | BB30: 0 | BC30: 0 | BD30: 0 | BE30: 0 | BF30: 0 | BG30: 0
B31: Surfacing Treatment: | C31: Reseal (1) | I31: Rutting | J31: 3.5 | K31: 3.817265857 | L31: 4.134049403 | M31: 4.451668785 | N31: 4.771201975 | O31: 5.093557132 | P31: 5.419519236 | Q31: 5.749782104 | R31: 6.084971061 | S31: 6.425659402 | T31: 6.772380632 | U31: 7.12563775 | V31: 7.485910417 | W31: 7.853660585 | X31: 1 | Y31: 2.076916339 | Z31: 2.687699411 | AA31: 3.214878118 | AB31: 3.703159857 | AC31: 4.170499203 | AD31: 4.626370252 | AE31: 5.076568006 | AF31: 5.524997136 | AG31: 5.974480212 | AH31: 6.427172 | AI31: 1 | AJ31: 2.370358822 | AK31: 3.14899825 | AL31: 3.822109955 | AM31: 4.446462368 | AN31: 5.044844429 | AO31: 5.629279502 | AP31: 6.207122945 | AQ31: 6.783332982 | AR31: 1 | AS31: 2.677381592 | AT31: 3.631645636 | AU31: 4.457444004 | AV31: 5.224164333 | AW31: 5.959653663 | AX31: 6.678602603 | AY31: 1 | AZ31: 2.968094426 | BA31: 4.0886534 | BB31: 5.059027274 | BC31: 5.960552525 | BD31: 6.82586559 | BE31: 1 | BF31: 3.260562974 | BG31: 4.548421189
B32: Structural Treatment: | C32: Rehabilitation (5-2) | I32: IRI | J32: 1.9 | K32: 2.043219157 | L32: 2.187807061 | M32: 2.336258659 | N32: 2.481348342 | O32: 2.627789122 | P32: 2.775828883 | Q32: 2.925701282 | R32: 3.077619114 | S32: 3.231779481 | T32: 3.388367631 | U32: 3.547559874 | V32: 3.709624192 | W32: 3.875740753 | X32: 1.8 | Y32: 2.176393792 | Z32: 2.407363371 | AA32: 2.612457437 | AB32: 2.805656356 | AC32: 2.992580545 | AD32: 3.176200589 | AE32: 3.358337683 | AF32: 3.540222633 | AG32: 3.72284639 | AH32: 3.907904734 | AI32: 1.8 | AJ32: 2.269626656 | AK32: 2.554659095 | AL32: 2.807043259 | AM32: 3.04453149 | AN32: 3.274257945 | AO32: 3.499992954 | AP32: 3.724048525 | AQ32: 3.947988005 | AR32: 1.8 | AS32: 2.367175211 | AT32: 2.708772496 | AU32: 3.010635306 | AV32: 3.294462524 | AW32: 3.5689721 | AX32: 3.838771123 | AY32: 1.8 | AZ32: 2.459541006 | BA32: 2.85469825 | BB32: 3.203411258 | BC32: 3.531115801 | BD32: 3.848029491 | BE32: 1.8 | BF32: 2.552464614 | BG32: 3.001505283
I33: Treatment | J33: 0 | K33: 0 | L33: 0 | M33: 1 | Q33: 0 | R33: 0 | S33: 0 | T33: 0 | U33: 0 | V33: 0 | W33: 0 | X33: 5-2 | AB33: 0 | AC33: 0 | AD33: 0 | AE33: 0 | AF33: 0 | AG33: 0 | AH33: 0 | AI33: 5-2 | AM33: 0 | AN33: 0 | AO33: 0 | AP33: 0 | AQ33: 0 | AR33: 5-2 | AV33: 0 | AW33: 0 | AX33: 0 | AY33: 5-2 | BC33: 0 | BD33: 0 | BE33: 5-2
I34: RAC | M34: 63000 | X34: 560000 | AI34: 560000 | AR34: 560000 | AY34: 560000 | BE34: 560000
I35: RUC | J35: 651013.8023 | K35: 672025.5649 | L35: 693742.1667 | M35: 716275.0225 | N35: 739396.3208 | O35: 763292.065 | P35: 787998.0728 | Q35: 813551.5714 | R35: 839990.9608 | S35: 867356.0183 | T35: 895688.0794 | U35: 925030.2033 | V35: 955431.7525 | W35: 986987.0383 | X35: 1019848.395 | Y35: 955795.567 | Z35: 990827.1989 | AA35: 1025780.071 | AB35: 1061296.458 | AC35: 1097657.205 | AD35: 1135032.187 | AE35: 1173545.367 | AF35: 1213298.847 | AG35: 1254389.493 | AH35: 1296964.848 | AI35: 1341243.25 | AJ35: 1259832.932 | AK35: 1309406.445 | AL35: 1358640.089 | AM35: 1408599.188 | AN35: 1459747.212 | AO35: 1512363.02 | AP35: 1566649.192 | AQ35: 1622772.082 | AR35: 1680887.527 | AS35: 1580882.141 | AT35: 1647531.57 | AU35: 1713454.332 | AV35: 1780271.957 | AW35: 1848687.936 | AX35: 1919124.421 | AY35: 1991887.501 | AZ35: 1887656.627 | BA35: 1972241.67 | BB35: 2055630.443 | BC35: 2140078.316 | BD35: 2226562.498 | BE35: 2315668.824 | BF35: 2199020.85 | BG35: 2303396.438
I36: Crash savings
I37: Capacity benefits
A38: 4 | B38: Section_A4_mod Seal_Base_8 IRI_Alt_4IRI | C38: A4_mod Seal_Base_8 IRI_Alt_4IRI | D38: SS | E38: Victoria Mid-North | F38: 1.9 | G38: 3.5 | H38: 5.308109508 | I38: AADT | J38: 1998 | K38: 2047.95 | L38: 2099.14875 | M38: 2151.627469 | N38: 2205.418155 | O38: 2260.553609 | P38: 2317.06745 | Q38: 2374.994136 | R38: 2434.368989 | S38: 2495.228214 | T38: 2557.608919 | U38: 2621.549142 | V38: 2687.087871 | W38: 2754.265068 | X38: 2823.121694 | Y38: 2893.699737 | Z38: 2966.04223 | AA38: 3040.193286 | AB38: 3116.198118 | AC38: 3194.103071 | AD38: 3273.955648 | AE38: 3355.804539 | AF38: 3439.699652 | AG38: 3525.692144 | AH38: 3613.834447 | AI38: 3704.180308 | AJ38: 3796.784816 | AK38: 3891.704437 | AL38: 3988.997047 | AM38: 4088.721974 | AN38: 4190.940023 | AO38: 4295.713524 | AP38: 4403.106362 | AQ38: 4513.184021 | AR38: 4626.013621 | AS38: 4741.663962 | AT38: 4860.205561 | AU38: 4981.7107 | AV38: 5106.253467 | AW38: 5233.909804 | AX38: 5364.757549 | AY38: 5498.876488 | AZ38: 5636.3484 | BA38: 5777.25711 | BB38: 5921.688538 | BC38: 6069.730751 | BD38: 6221.47402 | BE38: 6377.010871 | BF38: 6536.436142 | BG38: 6699.847046
I39: MSAR | J39: 0.3643192389 | K39: 0.3734272198 | L39: 0.3827629003 | M39: 0.3923319728 | N39: 0.4021402721 | O39: 0.412193779 | P39: 0.4224986234 | Q39: 0.433061089 | R39: 0.4438876162 | S39: 0.4549848066 | T39: 0.4663594268 | U39: 0.4780184125 | V39: 0.4899688728 | W39: 0.5022180946 | X39: 0.514773547 | Y39: 0.5276428857 | Z39: 0.5408339578 | AA39: 0.5543548067 | AB39: 0.5682136769 | AC39: 0.5824190188 | AD39: 0.5969794943 | AE39: 0.6119039817 | AF39: 0.6272015812 | AG39: 0.6428816207 | AH39: 0.6589536612 | AI39: 0.6754275028 | AJ39: 0.6923131903 | AK39: 0.7096210201 | AL39: 0.7273615456 | AM39: 0.7455455842 | AN39: 0.7641842239 | AO39: 0.7832888295 | AP39: 0.8028710502 | AQ39: 0.8229428264 | AR39: 0.8435163971 | AS39: 0.864604307 | AT39: 0.8862194147 | AU39: 0.9083749001 | AV39: 0.9310842726 | AW39: 0.9543613794 | AX39: 0.9782204139 | AY39: 1.002675924 | AZ39: 1.027742822 | BA39: 1.053436393 | BB39: 1.079772303 | BC39: 1.10676661 | BD39: 1.134435776 | BE39: 1.16279667 | BF39: 1.191866587 | BG39: 1.221663251
B40: Remaining Surface Life: | C40: 3 | D40: 2022 | F40: TSRS | G40: TSRH | H40: TSRC | I40: SNP | J40: 5.308109508 | K40: 5.276398507 | L40: 5.244516013 | M40: 5.212461101 | N40: 5.180232838 | O40: 5.147830285 | P40: 5.115252501 | Q40: 5.082498538 | R40: 5.049567444 | S40: 5.016458259 | T40: 4.983170022 | U40: 4.949701764 | V40: 4.916052511 | W40: 4.882221284 | X40: 6.7 | Y40: 6.627337516 | Z40: 6.590711293 | AA40: 6.553886997 | AB40: 6.516863557 | AC40: 6.479639896 | AD40: 6.442214932 | AE40: 6.404587575 | AF40: 6.366756731 | AG40: 6.3287213 | AH40: 6.290480175 | AI40: 6.7 | AJ40: 6.627337516 | AK40: 6.590711293 | AL40: 6.553886997 | AM40: 6.516863557 | AN40: 6.479639896 | AO40: 6.442214932 | AP40: 6.404587575 | AQ40: 6.366756731 | AR40: 6.7 | AS40: 6.627337516 | AT40: 6.590711293 | AU40: 6.553886997 | AV40: 6.516863557 | AW40: 6.479639896 | AX40: 6.442214932 | AY40: 6.7 | AZ40: 6.627337516 | BA40: 6.590711293 | BB40: 6.553886997 | BC40: 6.516863557 | BD40: 6.479639896 | BE40: 6.7 | BF40: 6.627337516 | BG40: 6.590711293
B41: Remaining Structural Life: | C41: 14 | D41: 2033 | F41: 9 | G41: 9 | H41: 9 | I41: Cracking | J41: 0 | K41: 0.004891502214 | L41: 0.06515411415 | M41: 0 | N41: 0 | O41: 0 | P41: 0 | Q41: 0 | R41: 0 | S41: 0 | T41: 0 | U41: 0 | V41: 0.004891502214 | W41: 0.06515411415 | X41: 0 | Y41: 0 | Z41: 0 | AA41: 0 | AB41: 0 | AC41: 0 | AD41: 0 | AE41: 0 | AF41: 0 | AG41: 0.004891502214 | AH41: 0.06515411415 | AI41: 0 | AJ41: 0 | AK41: 0 | AL41: 0 | AM41: 0 | AN41: 0 | AO41: 0 | AP41: 0 | AQ41: 0 | AR41: 0 | AS41: 0 | AT41: 0 | AU41: 0 | AV41: 0 | AW41: 0 | AX41: 0 | AY41: 0 | AZ41: 0 | BA41: 0 | BB41: 0 | BC41: 0 | BD41: 0 | BE41: 0 | BF41: 0 | BG41: 0
B42: Surfacing Treatment: | C42: Reseal (1) | I42: Rutting | J42: 3.5 | K42: 3.817265857 | L42: 4.134049403 | M42: 4.451668785 | N42: 4.771201975 | O42: 5.093557132 | P42: 5.419519236 | Q42: 5.749782104 | R42: 6.084971061 | S42: 6.425659402 | T42: 6.772380632 | U42: 7.12563775 | V42: 7.485910417 | W42: 7.853660585 | X42: 1 | Y42: 2.076916339 | Z42: 2.687699411 | AA42: 3.214878118 | AB42: 3.703159857 | AC42: 4.170499203 | AD42: 4.626370252 | AE42: 5.076568006 | AF42: 5.524997136 | AG42: 5.974480212 | AH42: 6.427172 | AI42: 1 | AJ42: 2.370358822 | AK42: 3.14899825 | AL42: 3.822109955 | AM42: 4.446462368 | AN42: 5.044844429 | AO42: 5.629279502 | AP42: 6.207122945 | AQ42: 6.783332982 | AR42: 1 | AS42: 2.677381592 | AT42: 3.631645636 | AU42: 4.457444004 | AV42: 5.224164333 | AW42: 5.959653663 | AX42: 6.678602603 | AY42: 1 | AZ42: 2.968094426 | BA42: 4.0886534 | BB42: 5.059027274 | BC42: 5.960552525 | BD42: 6.82586559 | BE42: 1 | BF42: 3.260562974 | BG42: 4.548421189
B43: Structural Treatment: | C43: Rehabilitation (5-2) | I43: IRI | J43: 1.9 | K43: 2.043219157 | L43: 2.187807061 | M43: 2.336258659 | N43: 2.481348342 | O43: 2.627789122 | P43: 2.775828883 | Q43: 2.925701282 | R43: 3.077619114 | S43: 3.231779481 | T43: 3.388367631 | U43: 3.547559874 | V43: 3.709624192 | W43: 3.875740753 | X43: 1.8 | Y43: 2.176393792 | Z43: 2.407363371 | AA43: 2.612457437 | AB43: 2.805656356 | AC43: 2.992580545 | AD43: 3.176200589 | AE43: 3.358337683 | AF43: 3.540222633 | AG43: 3.72284639 | AH43: 3.907904734 | AI43: 1.8 | AJ43: 2.269626656 | AK43: 2.554659095 | AL43: 2.807043259 | AM43: 3.04453149 | AN43: 3.274257945 | AO43: 3.499992954 | AP43: 3.724048525 | AQ43: 3.947988005 | AR43: 1.8 | AS43: 2.367175211 | AT43: 2.708772496 | AU43: 3.010635306 | AV43: 3.294462524 | AW43: 3.5689721 | AX43: 3.838771123 | AY43: 1.8 | AZ43: 2.459541006 | BA43: 2.85469825 | BB43: 3.203411258 | BC43: 3.531115801 | BD43: 3.848029491 | BE43: 1.8 | BF43: 2.552464614 | BG43: 3.001505283
I44: Treatment | J44: 0 | K44: 0 | L44: 0 | M44: 1 | Q44: 0 | R44: 0 | S44: 0 | T44: 0 | U44: 0 | V44: 0 | W44: 0 | X44: 5-2 | AB44: 0 | AC44: 0 | AD44: 0 | AE44: 0 | AF44: 0 | AG44: 0 | AH44: 0 | AI44: 5-2 | AM44: 0 | AN44: 0 | AO44: 0 | AP44: 0 | AQ44: 0 | AR44: 5-2 | AV44: 0 | AW44: 0 | AX44: 0 | AY44: 5-2 | BC44: 0 | BD44: 0 | BE44: 5-2
I45: RAC | M45: 63000 | X45: 560000 | AI45: 560000 | AR45: 560000 | AY45: 560000 | BE45: 560000
I46: RUC | J46: 651013.8023 | K46: 672025.5649 | L46: 693742.1667 | M46: 716275.0225 | N46: 739396.3208 | O46: 763292.065 | P46: 787998.0728 | Q46: 813551.5714 | R46: 839990.9608 | S46: 867356.0183 | T46: 895688.0794 | U46: 925030.2033 | V46: 955431.7525 | W46: 986987.0383 | X46: 1019848.395 | Y46: 955795.567 | Z46: 990827.1989 | AA46: 1025780.071 | AB46: 1061296.458 | AC46: 1097657.205 | AD46: 1135032.187 | AE46: 1173545.367 | AF46: 1213298.847 | AG46: 1254389.493 | AH46: 1296964.848 | AI46: 1341243.25 | AJ46: 1259832.932 | AK46: 1309406.445 | AL46: 1358640.089 | AM46: 1408599.188 | AN46: 1459747.212 | AO46: 1512363.02 | AP46: 1566649.192 | AQ46: 1622772.082 | AR46: 1680887.527 | AS46: 1580882.141 | AT46: 1647531.57 | AU46: 1713454.332 | AV46: 1780271.957 | AW46: 1848687.936 | AX46: 1919124.421 | AY46: 1991887.501 | AZ46: 1887656.627 | BA46: 1972241.67 | BB46: 2055630.443 | BC46: 2140078.316 | BD46: 2226562.498 | BE46: 2315668.824 | BF46: 2199020.85 | BG46: 2303396.438
I47: Crash savings
I48: Capacity benefits
A49: 5 | B49: Alt_Section_A1_unmod Seal_Base_5.2 IRI_Alt_4IRI | C49: Alt_A1_unmod Seal_Base_5.2 IRI_Alt_4IRI | D49: SS | E49: Victoria Mid-North | F49: 1.9 | G49: 3.5 | H49: 5.308109508 | I49: AADT | J49: 1998 | K49: 2047.95 | L49: 2099.14875 | M49: 2151.627469 | N49: 2205.418155 | O49: 2260.553609 | P49: 2317.06745 | Q49: 2374.994136 | R49: 2434.368989 | S49: 2495.228214 | T49: 2557.608919 | U49: 2621.549142 | V49: 2687.087871 | W49: 2754.265068 | X49: 2823.121694 | Y49: 2893.699737 | Z49: 2966.04223 | AA49: 3040.193286 | AB49: 3116.198118 | AC49: 3194.103071 | AD49: 3273.955648 | AE49: 3355.804539 | AF49: 3439.699652 | AG49: 3525.692144 | AH49: 3613.834447 | AI49: 3704.180308 | AJ49: 3796.784816 | AK49: 3891.704437 | AL49: 3988.997047 | AM49: 4088.721974 | AN49: 4190.940023 | AO49: 4295.713524 | AP49: 4403.106362 | AQ49: 4513.184021 | AR49: 4626.013621 | AS49: 4741.663962 | AT49: 4860.205561 | AU49: 4981.7107 | AV49: 5106.253467 | AW49: 5233.909804 | AX49: 5364.757549 | AY49: 5498.876488 | AZ49: 5636.3484 | BA49: 5777.25711 | BB49: 5921.688538 | BC49: 6069.730751 | BD49: 6221.47402 | BE49: 6377.010871 | BF49: 6536.436142 | BG49: 6699.847046
I50: MSAR | J50: 0.3643192389 | K50: 0.3734272198 | L50: 0.3827629003 | M50: 0.3923319728 | N50: 0.4021402721 | O50: 0.412193779 | P50: 0.4224986234 | Q50: 0.433061089 | R50: 0.4438876162 | S50: 0.4549848066 | T50: 0.4663594268 | U50: 0.4780184125 | V50: 0.4899688728 | W50: 0.5022180946 | X50: 0.514773547 | Y50: 0.5276428857 | Z50: 0.5408339578 | AA50: 0.5543548067 | AB50: 0.5682136769 | AC50: 0.5824190188 | AD50: 0.5969794943 | AE50: 0.6119039817 | AF50: 0.6272015812 | AG50: 0.6428816207 | AH50: 0.6589536612 | AI50: 0.6754275028 | AJ50: 0.6923131903 | AK50: 0.7096210201 | AL50: 0.7273615456 | AM50: 0.7455455842 | AN50: 0.7641842239 | AO50: 0.7832888295 | AP50: 0.8028710502 | AQ50: 0.8229428264 | AR50: 0.8435163971 | AS50: 0.864604307 | AT50: 0.8862194147 | AU50: 0.9083749001 | AV50: 0.9310842726 | AW50: 0.9543613794 | AX50: 0.9782204139 | AY50: 1.002675924 | AZ50: 1.027742822 | BA50: 1.053436393 | BB50: 1.079772303 | BC50: 1.10676661 | BD50: 1.134435776 | BE50: 1.16279667 | BF50: 1.191866587 | BG50: 1.221663251
B51: Remaining Surface Life: | C51: 1 | D51: 2020 | F51: TSRS | G51: TSRH | H51: TSRC | I51: SNP | J51: 5.308109508 | K51: 5.276398507 | L51: 5.244516013 | M51: 5.212461101 | N51: 5.180232838 | O51: 5.147830285 | P51: 5.115252501 | Q51: 5.082498538 | R51: 5.049567444 | S51: 5.016458259 | T51: 4.983170022 | U51: 4.949701764 | V51: 4.916052511 | W51: 4.882221284 | X51: 4.8482071 | Y51: 4.814008969 | Z51: 4.779625896 | AA51: 4.745056881 | AB51: 4.710300918 | AC51: 4.675356997 | AD51: 4.640224101 | AE51: 4.604901208 | AF51: 4.569387291 | AG51: 4.533681316 | AH51: 4.497782245 | AI51: 4.461689034 | AJ51: 4.425400632 | AK51: 4.388915984 | AL51: 4.35223403 | AM51: 4.315353701 | AN51: 4.278273925 | AO51: 4.240993623 | AP51: 4.203511712 | AQ51: 4.1658271 | AR51: 4.127938691 | AS51: 4.089845384 | AT51: 6.7 | AU51: 6.627337516 | AV51: 6.590711293 | AW51: 6.553886997 | AX51: 6.516863557 | AY51: 6.479639896 | AZ51: 6.442214932 | BA51: 6.404587575 | BB51: 6.366756731 | BC51: 6.3287213 | BD51: 6.290480175 | BE51: 6.252032244 | BF51: 6.213376388 | BG51: 6.174511484
B52: Remaining Structural Life: | C52: 36 | D52: 2055 | F52: 9 | G52: 9 | H52: 9 | I52: Cracking | J52: 0 | K52: 0 | L52: 0 | M52: 0 | N52: 0 | O52: 0 | P52: 0 | Q52: 0 | R52: 0 | S52: 0 | T52: 0 | U52: 0 | V52: 0 | W52: 0 | X52: 0 | Y52: 0 | Z52: 0 | AA52: 0 | AB52: 0 | AC52: 0 | AD52: 0 | AE52: 0 | AF52: 0 | AG52: 0 | AH52: 0 | AI52: 0 | AJ52: 0 | AK52: 0 | AL52: 0.004891502214 | AM52: 0.06515411415 | AN52: 0.2839065919 | AO52: 0.7975949907 | AP52: 1.768840625 | AQ52: 3.382135051 | AR52: 5.839475178 | AS52: 9.353252731 | AT52: 0 | AU52: 0 | AV52: 0 | AW52: 0 | AX52: 0 | AY52: 0 | AZ52: 0 | BA52: 0 | BB52: 0 | BC52: 0 | BD52: 0 | BE52: 0 | BF52: 0 | BG52: 0
B53: Surfacing Treatment: | C53: Reseal (1) | I53: Rutting | J53: 3.5 | K53: 3.605755286 | L53: 3.711349801 | M53: 3.817222928 | N53: 3.923733992 | O53: 4.031185711 | P53: 4.139839745 | Q53: 4.249927368 | R53: 4.36165702 | S53: 4.475219801 | T53: 4.590793544 | U53: 4.708545917 | V53: 4.828636806 | W53: 4.951220195 | X53: 5.076445665 | Y53: 5.2044596 | Z53: 5.335406188 | AA53: 5.46942824 | AB53: 5.60666789 | AC53: 5.747267188 | AD53: 5.891368607 | AE53: 6.039115491 | AF53: 6.190652451 | AG53: 6.346125711 | AH53: 6.505683431 | AI53: 6.669475992 | AJ53: 6.837656263 | AK53: 7.010379851 | AL53: 7.18780533 | AM53: 7.370094465 | AN53: 7.557412421 | AO53: 7.749927966 | AP53: 7.947813666 | AQ53: 8.151246078 | AR53: 8.392198234 | AS53: 8.639961641 | AT53: 1 | AU53: 1.585126929 | AV53: 1.918087434 | AW53: 2.206283583 | AX53: 2.473913225 | AY53: 2.730687045 | AZ53: 2.981727783 | BA53: 3.230169666 | BB53: 3.478126219 | BC53: 3.727127304 | BD53: 3.978343011 | BE53: 4.232709176 | BF53: 4.491002695 | BG53: 4.753889204
B54: Structural Treatment: | C54: Rehabilitation (5-4) | I54: IRI | J54: 1.9 | K54: 1.937018609 | L54: 1.974162575 | M54: 2.011552143 | N54: 2.049248462 | O54: 2.08730452 | P54: 2.125767396 | Q54: 2.16467986 | R54: 2.204081524 | S54: 2.244009666 | T54: 2.284547027 | U54: 2.325633378 | V54: 2.367349778 | W54: 2.40972889 | X54: 2.452803248 | Y54: 2.496605227 | Z54: 2.541167207 | AA54: 2.586521706 | AB54: 2.632701494 | AC54: 2.679787046 | AD54: 2.727716828 | AE54: 2.776573058 | AF54: 2.826390013 | AG54: 2.877203016 | AH54: 2.929048104 | AI54: 2.981962084 | AJ54: 3.035982588 | AK54: 3.091148117 | AL54: 3.147545707 | AM54: 3.205707496 | AN54: 3.266681169 | AO54: 3.331843754 | AP54: 3.402833492 | AQ54: 3.481509373 | AR54: 3.587536347 | AS54: 3.707230883 | AT54: 1.8 | AU54: 1.908577124 | AV54: 1.979553419 | AW54: 2.044022352 | AX54: 2.105621289 | AY54: 2.165814777 | AZ54: 2.225379433 | BA54: 2.284793866 | BB54: 2.34438386 | BC54: 2.404435 | BD54: 2.46503791 | BE54: 2.52638988 | BF54: 2.588617301 | BG54: 2.651830303
I55: Treatment | J55: 0 | K55: 1 | O55: 0 | P55: 0 | Q55: 0 | R55: 0 | S55: 0 | T55: 1 | X55: 0 | Y55: 0 | Z55: 0 | AA55: 0 | AB55: 0 | AC55: 1 | AG55: 0 | AH55: 0 | AI55: 0 | AJ55: 0 | AK55: 0 | AL55: 0 | AM55: 0 | AN55: 0 | AO55: 0 | AP55: 0 | AQ55: 0 | AR55: 0 | AS55: 0 | AT55: 5-4 | AX55: 0 | AY55: 0 | AZ55: 0 | BA55: 0 | BB55: 0 | BC55: 1 | BG55: 0
I56: RAC | K56: 42000 | T56: 42000 | AC56: 42000 | AT56: 560000 | BC56: 42000
I57: RUC | J57: 651013.8023 | K57: 668512.0358 | L57: 686483.5176 | M57: 704945.2956 | N57: 723913.093 | O57: 743402.937 | P57: 763431.2306 | Q57: 784014.8098 | R57: 805170.9915 | S57: 826917.6147 | T57: 849275.0388 | U57: 872258.3768 | V57: 895889.1803 | W57: 920187.7249 | X57: 945174.9907 | Y57: 970872.6875 | Z57: 997303.2893 | AA57: 1024490.071 | AB57: 1052457.142 | AC57: 1081231.97 | AD57: 1110835.54 | AE57: 1141297.169 | AF57: 1172644.695 | AG57: 1204907.02 | AH57: 1238114.141 | AI57: 1272297.197 | AJ57: 1307488.522 | AK57: 1343721.701 | AL57: 1381034.769 | AM57: 1419497.536 | AN57: 1459220.523 | AO57: 1500346.688 | AP57: 1543050.15 | AQ57: 1587536.542 | AR57: 1635404.113 | AS57: 1685775.17 | AT57: 1740846.399 | AU57: 1623893.447 | AV57: 1670339.966 | AW57: 1717551.907 | AX57: 1765838.668 | AY57: 1815348.028 | AZ57: 1866178.558 | BA57: 1918408.832 | BB57: 1972108.23 | BC57: 2027346.473 | BD57: 2084177.637 | BE57: 2142669.2 | BF57: 2202884.629 | BG57: 2264888.561
I58: Crash savings
I59: Capacity benefits
A60: 6 | B60: Alt_Section_A2_unmod Seal_Base_8 IRI_Alt_4IRI | C60: Alt_A2_unmod Seal_Base_8 IRI_Alt_4IRI | D60: SS | E60: Victoria Mid-North | F60: 1.9 | G60: 3.5 | H60: 5.308109508 | I60: AADT | J60: 1998 | K60: 2047.95 | L60: 2099.14875 | M60: 2151.627469 | N60: 2205.418155 | O60: 2260.553609 | P60: 2317.06745 | Q60: 2374.994136 | R60: 2434.368989 | S60: 2495.228214 | T60: 2557.608919 | U60: 2621.549142 | V60: 2687.087871 | W60: 2754.265068 | X60: 2823.121694 | Y60: 2893.699737 | Z60: 2966.04223 | AA60: 3040.193286 | AB60: 3116.198118 | AC60: 3194.103071 | AD60: 3273.955648 | AE60: 3355.804539 | AF60: 3439.699652 | AG60: 3525.692144 | AH60: 3613.834447 | AI60: 3704.180308 | AJ60: 3796.784816 | AK60: 3891.704437 | AL60: 3988.997047 | AM60: 4088.721974 | AN60: 4190.940023 | AO60: 4295.713524 | AP60: 4403.106362 | AQ60: 4513.184021 | AR60: 4626.013621 | AS60: 4741.663962 | AT60: 4860.205561 | AU60: 4981.7107 | AV60: 5106.253467 | AW60: 5233.909804 | AX60: 5364.757549 | AY60: 5498.876488 | AZ60: 5636.3484 | BA60: 5777.25711 | BB60: 5921.688538 | BC60: 6069.730751 | BD60: 6221.47402 | BE60: 6377.010871 | BF60: 6536.436142 | BG60: 6699.847046
I61: MSAR | J61: 0.3643192389 | K61: 0.3734272198 | L61: 0.3827629003 | M61: 0.3923319728 | N61: 0.4021402721 | O61: 0.412193779 | P61: 0.4224986234 | Q61: 0.433061089 | R61: 0.4438876162 | S61: 0.4549848066 | T61: 0.4663594268 | U61: 0.4780184125 | V61: 0.4899688728 | W61: 0.5022180946 | X61: 0.514773547 | Y61: 0.5276428857 | Z61: 0.5408339578 | AA61: 0.5543548067 | AB61: 0.5682136769 | AC61: 0.5824190188 | AD61: 0.5969794943 | AE61: 0.6119039817 | AF61: 0.6272015812 | AG61: 0.6428816207 | AH61: 0.6589536612 | AI61: 0.6754275028 | AJ61: 0.6923131903 | AK61: 0.7096210201 | AL61: 0.7273615456 | AM61: 0.7455455842 | AN61: 0.7641842239 | AO61: 0.7832888295 | AP61: 0.8028710502 | AQ61: 0.8229428264 | AR61: 0.8435163971 | AS61: 0.864604307 | AT61: 0.8862194147 | AU61: 0.9083749001 | AV61: 0.9310842726 | AW61: 0.9543613794 | AX61: 0.9782204139 | AY61: 1.002675924 | AZ61: 1.027742822 | BA61: 1.053436393 | BB61: 1.079772303 | BC61: 1.10676661 | BD61: 1.134435776 | BE61: 1.16279667 | BF61: 1.191866587 | BG61: 1.221663251
B62: Remaining Surface Life: | C62: 1 | D62: 2020 | F62: TSRS | G62: TSRH | H62: TSRC | I62: SNP | J62: 5.308109508 | K62: 5.276398507 | L62: 5.244516013 | M62: 5.212461101 | N62: 5.180232838 | O62: 5.147830285 | P62: 5.115252501 | Q62: 5.082498538 | R62: 5.049567444 | S62: 5.016458259 | T62: 4.983170022 | U62: 4.949701764 | V62: 4.916052511 | W62: 4.882221284 | X62: 4.8482071 | Y62: 4.814008969 | Z62: 4.779625896 | AA62: 4.745056881 | AB62: 4.710300918 | AC62: 4.675356997 | AD62: 4.640224101 | AE62: 4.604901208 | AF62: 4.569387291 | AG62: 4.533681316 | AH62: 4.497782245 | AI62: 4.461689034 | AJ62: 4.425400632 | AK62: 4.388915984 | AL62: 4.35223403 | AM62: 4.315353701 | AN62: 4.278273925 | AO62: 4.240993623 | AP62: 4.203511712 | AQ62: 4.1658271 | AR62: 4.127938691 | AS62: 4.089845384 | AT62: 6.7 | AU62: 6.627337516 | AV62: 6.590711293 | AW62: 6.553886997 | AX62: 6.516863557 | AY62: 6.479639896 | AZ62: 6.442214932 | BA62: 6.404587575 | BB62: 6.366756731 | BC62: 6.3287213 | BD62: 6.290480175 | BE62: 6.252032244 | BF62: 6.213376388 | BG62: 6.174511484
B63: Remaining Structural Life: | C63: 36 | D63: 2055 | F63: 9 | G63: 9 | H63: 9 | I63: Cracking | J63: 0 | K63: 0 | L63: 0 | M63: 0 | N63: 0 | O63: 0 | P63: 0 | Q63: 0 | R63: 0 | S63: 0 | T63: 0 | U63: 0 | V63: 0 | W63: 0 | X63: 0 | Y63: 0 | Z63: 0 | AA63: 0 | AB63: 0 | AC63: 0 | AD63: 0 | AE63: 0 | AF63: 0 | AG63: 0 | AH63: 0 | AI63: 0 | AJ63: 0 | AK63: 0 | AL63: 0.004891502214 | AM63: 0.06515411415 | AN63: 0.2839065919 | AO63: 0.7975949907 | AP63: 1.768840625 | AQ63: 3.382135051 | AR63: 5.839475178 | AS63: 9.353252731 | AT63: 0 | AU63: 0 | AV63: 0 | AW63: 0 | AX63: 0 | AY63: 0 | AZ63: 0 | BA63: 0 | BB63: 0 | BC63: 0 | BD63: 0 | BE63: 0 | BF63: 0 | BG63: 0
B64: Surfacing Treatment: | C64: Reseal (1) | I64: Rutting | J64: 3.5 | K64: 3.605755286 | L64: 3.711349801 | M64: 3.817222928 | N64: 3.923733992 | O64: 4.031185711 | P64: 4.139839745 | Q64: 4.249927368 | R64: 4.36165702 | S64: 4.475219801 | T64: 4.590793544 | U64: 4.708545917 | V64: 4.828636806 | W64: 4.951220195 | X64: 5.076445665 | Y64: 5.2044596 | Z64: 5.335406188 | AA64: 5.46942824 | AB64: 5.60666789 | AC64: 5.747267188 | AD64: 5.891368607 | AE64: 6.039115491 | AF64: 6.190652451 | AG64: 6.346125711 | AH64: 6.505683431 | AI64: 6.669475992 | AJ64: 6.837656263 | AK64: 7.010379851 | AL64: 7.18780533 | AM64: 7.370094465 | AN64: 7.557412421 | AO64: 7.749927966 | AP64: 7.947813666 | AQ64: 8.151246078 | AR64: 8.392198234 | AS64: 8.639961641 | AT64: 1 | AU64: 1.585126929 | AV64: 1.918087434 | AW64: 2.206283583 | AX64: 2.473913225 | AY64: 2.730687045 | AZ64: 2.981727783 | BA64: 3.230169666 | BB64: 3.478126219 | BC64: 3.727127304 | BD64: 3.978343011 | BE64: 4.232709176 | BF64: 4.491002695 | BG64: 4.753889204
B65: Structural Treatment: | C65: Rehabilitation (5-4) | I65: IRI | J65: 1.9 | K65: 1.937018609 | L65: 1.974162575 | M65: 2.011552143 | N65: 2.049248462 | O65: 2.08730452 | P65: 2.125767396 | Q65: 2.16467986 | R65: 2.204081524 | S65: 2.244009666 | T65: 2.284547027 | U65: 2.325633378 | V65: 2.367349778 | W65: 2.40972889 | X65: 2.452803248 | Y65: 2.496605227 | Z65: 2.541167207 | AA65: 2.586521706 | AB65: 2.632701494 | AC65: 2.679787046 | AD65: 2.727716828 | AE65: 2.776573058 | AF65: 2.826390013 | AG65: 2.877203016 | AH65: 2.929048104 | AI65: 2.981962084 | AJ65: 3.035982588 | AK65: 3.091148117 | AL65: 3.147545707 | AM65: 3.205707496 | AN65: 3.266681169 | AO65: 3.331843754 | AP65: 3.402833492 | AQ65: 3.481509373 | AR65: 3.587536347 | AS65: 3.707230883 | AT65: 1.8 | AU65: 1.908577124 | AV65: 1.979553419 | AW65: 2.044022352 | AX65: 2.105621289 | AY65: 2.165814777 | AZ65: 2.225379433 | BA65: 2.284793866 | BB65: 2.34438386 | BC65: 2.404435 | BD65: 2.46503791 | BE65: 2.52638988 | BF65: 2.588617301 | BG65: 2.651830303
I66: Treatment | J66: 0 | K66: 1 | O66: 0 | P66: 0 | Q66: 0 | R66: 0 | S66: 0 | T66: 1 | X66: 0 | Y66: 0 | Z66: 0 | AA66: 0 | AB66: 0 | AC66: 1 | AG66: 0 | AH66: 0 | AI66: 0 | AJ66: 0 | AK66: 0 | AL66: 0 | AM66: 0 | AN66: 0 | AO66: 0 | AP66: 0 | AQ66: 0 | AR66: 0 | AS66: 0 | AT66: 5-4 | AX66: 0 | AY66: 0 | AZ66: 0 | BA66: 0 | BB66: 0 | BC66: 1 | BG66: 0
I67: RAC | K67: 42000 | T67: 42000 | AC67: 42000 | AT67: 560000 | BC67: 42000
I68: RUC | J68: 651013.8023 | K68: 668512.0358 | L68: 686483.5176 | M68: 704945.2956 | N68: 723913.093 | O68: 743402.937 | P68: 763431.2306 | Q68: 784014.8098 | R68: 805170.9915 | S68: 826917.6147 | T68: 849275.0388 | U68: 872258.3768 | V68: 895889.1803 | W68: 920187.7249 | X68: 945174.9907 | Y68: 970872.6875 | Z68: 997303.2893 | AA68: 1024490.071 | AB68: 1052457.142 | AC68: 1081231.97 | AD68: 1110835.54 | AE68: 1141297.169 | AF68: 1172644.695 | AG68: 1204907.02 | AH68: 1238114.141 | AI68: 1272297.197 | AJ68: 1307488.522 | AK68: 1343721.701 | AL68: 1381034.769 | AM68: 1419497.536 | AN68: 1459220.523 | AO68: 1500346.688 | AP68: 1543050.15 | AQ68: 1587536.542 | AR68: 1635404.113 | AS68: 1685775.17 | AT68: 1740846.399 | AU68: 1623893.447 | AV68: 1670339.966 | AW68: 1717551.907 | AX68: 1765838.668 | AY68: 1815348.028 | AZ68: 1866178.558 | BA68: 1918408.832 | BB68: 1972108.23 | BC68: 2027346.473 | BD68: 2084177.637 | BE68: 2142669.2 | BF68: 2202884.629 | BG68: 2264888.561
I69: Crash savings
I70: Capacity benefits
A71: 7 | B71: Alt_Section_A3_mod Seal_Base_5.2 IRI_Alt_4IRI | C71: Alt_A3_mod Seal_Base_5.2 IRI_Alt_4IRI | D71: SS | E71: Victoria Mid-North | F71: 1.9 | G71: 3.5 | H71: 5.308109508 | I71: AADT | J71: 1998 | K71: 2047.95 | L71: 2099.14875 | M71: 2151.627469 | N71: 2205.418155 | O71: 2260.553609 | P71: 2317.06745 | Q71: 2374.994136 | R71: 2434.368989 | S71: 2495.228214 | T71: 2557.608919 | U71: 2621.549142 | V71: 2687.087871 | W71: 2754.265068 | X71: 2823.121694 | Y71: 2893.699737 | Z71: 2966.04223 | AA71: 3040.193286 | AB71: 3116.198118 | AC71: 3194.103071 | AD71: 3273.955648 | AE71: 3355.804539 | AF71: 3439.699652 | AG71: 3525.692144 | AH71: 3613.834447 | AI71: 3704.180308 | AJ71: 3796.784816 | AK71: 3891.704437 | AL71: 3988.997047 | AM71: 4088.721974 | AN71: 4190.940023 | AO71: 4295.713524 | AP71: 4403.106362 | AQ71: 4513.184021 | AR71: 4626.013621 | AS71: 4741.663962 | AT71: 4860.205561 | AU71: 4981.7107 | AV71: 5106.253467 | AW71: 5233.909804 | AX71: 5364.757549 | AY71: 5498.876488 | AZ71: 5636.3484 | BA71: 5777.25711 | BB71: 5921.688538 | BC71: 6069.730751 | BD71: 6221.47402 | BE71: 6377.010871 | BF71: 6536.436142 | BG71: 6699.847046
I72: MSAR | J72: 0.3643192389 | K72: 0.3734272198 | L72: 0.3827629003 | M72: 0.3923319728 | N72: 0.4021402721 | O72: 0.412193779 | P72: 0.4224986234 | Q72: 0.433061089 | R72: 0.4438876162 | S72: 0.4549848066 | T72: 0.4663594268 | U72: 0.4780184125 | V72: 0.4899688728 | W72: 0.5022180946 | X72: 0.514773547 | Y72: 0.5276428857 | Z72: 0.5408339578 | AA72: 0.5543548067 | AB72: 0.5682136769 | AC72: 0.5824190188 | AD72: 0.5969794943 | AE72: 0.6119039817 | AF72: 0.6272015812 | AG72: 0.6428816207 | AH72: 0.6589536612 | AI72: 0.6754275028 | AJ72: 0.6923131903 | AK72: 0.7096210201 | AL72: 0.7273615456 | AM72: 0.7455455842 | AN72: 0.7641842239 | AO72: 0.7832888295 | AP72: 0.8028710502 | AQ72: 0.8229428264 | AR72: 0.8435163971 | AS72: 0.864604307 | AT72: 0.8862194147 | AU72: 0.9083749001 | AV72: 0.9310842726 | AW72: 0.9543613794 | AX72: 0.9782204139 | AY72: 1.002675924 | AZ72: 1.027742822 | BA72: 1.053436393 | BB72: 1.079772303 | BC72: 1.10676661 | BD72: 1.134435776 | BE72: 1.16279667 | BF72: 1.191866587 | BG72: 1.221663251
B73: Remaining Surface Life: | C73: 3 | D73: 2022 | F73: TSRS | G73: TSRH | H73: TSRC | I73: SNP | J73: 5.308109508 | K73: 5.276398507 | L73: 5.244516013 | M73: 5.212461101 | N73: 5.180232838 | O73: 5.147830285 | P73: 5.115252501 | Q73: 5.082498538 | R73: 5.049567444 | S73: 5.016458259 | T73: 4.983170022 | U73: 4.949701764 | V73: 4.916052511 | W73: 4.882221284 | X73: 4.8482071 | Y73: 4.814008969 | Z73: 4.779625896 | AA73: 4.745056881 | AB73: 4.710300918 | AC73: 4.675356997 | AD73: 4.640224101 | AE73: 4.604901208 | AF73: 4.569387291 | AG73: 4.533681316 | AH73: 4.497782245 | AI73: 4.461689034 | AJ73: 4.425400632 | AK73: 4.388915984 | AL73: 4.35223403 | AM73: 4.315353701 | AN73: 4.278273925 | AO73: 4.240993623 | AP73: 4.203511712 | AQ73: 4.1658271 | AR73: 4.127938691 | AS73: 4.089845384 | AT73: 4.051546071 | AU73: 4.013039636 | AV73: 3.974324961 | AW73: 3.935400918 | AX73: 6.7 | AY73: 6.627337516 | AZ73: 6.590711293 | BA73: 6.553886997 | BB73: 6.516863557 | BC73: 6.479639896 | BD73: 6.442214932 | BE73: 6.404587575 | BF73: 6.366756731 | BG73: 6.3287213
B74: Remaining Structural Life: | C74: 40 | D74: 2059 | F74: 9 | G74: 9 | H74: 9 | I74: Cracking | J74: 0 | K74: 0.004891502214 | L74: 0.06515411415 | M74: 0 | N74: 0 | O74: 0 | P74: 0 | Q74: 0 | R74: 0 | S74: 0 | T74: 0 | U74: 0 | V74: 0.004891502214 | W74: 0.06515411415 | X74: 0 | Y74: 0 | Z74: 0 | AA74: 0 | AB74: 0 | AC74: 0 | AD74: 0 | AE74: 0 | AF74: 0 | AG74: 0.004891502214 | AH74: 0.06515411415 | AI74: 0 | AJ74: 0 | AK74: 0 | AL74: 0 | AM74: 0 | AN74: 0 | AO74: 0 | AP74: 0 | AQ74: 0 | AR74: 0.004891502214 | AS74: 0.06515411415 | AT74: 0.2839065919 | AU74: 0.7975949907 | AV74: 1.768840625 | AW74: 3.382135051 | AX74: 0 | AY74: 0 | AZ74: 0 | BA74: 0 | BB74: 0 | BC74: 0 | BD74: 0 | BE74: 0 | BF74: 0 | BG74: 0.004891502214
B75: Surfacing Treatment: | C75: Reseal (1) | I75: Rutting | J75: 3.5 | K75: 3.605755286 | L75: 3.711349801 | M75: 3.817222928 | N75: 3.923733992 | O75: 4.031185711 | P75: 4.139839745 | Q75: 4.249927368 | R75: 4.36165702 | S75: 4.475219801 | T75: 4.590793544 | U75: 4.708545917 | V75: 4.828636806 | W75: 4.951220195 | X75: 5.076445665 | Y75: 5.2044596 | Z75: 5.335406188 | AA75: 5.46942824 | AB75: 5.60666789 | AC75: 5.747267188 | AD75: 5.891368607 | AE75: 6.039115491 | AF75: 6.190652451 | AG75: 6.346125711 | AH75: 6.505683431 | AI75: 6.669475992 | AJ75: 6.837656263 | AK75: 7.010379851 | AL75: 7.18780533 | AM75: 7.370094465 | AN75: 7.557412421 | AO75: 7.749927966 | AP75: 7.947813666 | AQ75: 8.151246078 | AR75: 8.360405936 | AS75: 8.575478338 | AT75: 8.796652928 | AU75: 9.02412408 | AV75: 9.258091077 | AW75: 9.498758295 | AX75: 1 | AY75: 1.641141738 | AZ75: 2.006144098 | BA75: 2.322197184 | BB75: 2.615801159 | BC75: 2.897589532 | BD75: 3.17317167 | BE75: 3.445979652 | BF75: 3.718328117 | BG75: 3.991892811
B76: Structural Treatment: | C76: Rehabilitation (5-2) | I76: IRI | J76: 1.9 | K76: 1.937018609 | L76: 1.974742449 | M76: 2.014237278 | N76: 2.051927006 | O76: 2.089983065 | P76: 2.12844594 | Q76: 2.167358405 | R76: 2.206760069 | S76: 2.246688211 | T76: 2.287178399 | U76: 2.328264964 | V76: 2.37002857 | W76: 2.412989503 | X76: 2.458176897 | Y76: 2.501962316 | Z76: 2.546524296 | AA76: 2.591878795 | AB76: 2.638058584 | AC76: 2.685096784 | AD76: 2.733026959 | AE76: 2.781883189 | AF76: 2.831700144 | AG76: 2.882560601 | AH76: 2.934990689 | AI76: 2.990029812 | AJ76: 3.044018222 | AK76: 3.099183752 | AL76: 3.155533735 | AM76: 3.213108569 | AN76: 3.271949666 | AO76: 3.332099502 | AP76: 3.39360166 | AQ76: 3.456500875 | AR76: 3.520890909 | AS76: 3.587313113 | AT76: 3.65682762 | AU76: 3.730826676 | AV76: 3.81096652 | AW76: 3.899127068 | AX76: 1.8 | AY76: 1.917413768 | AZ76: 1.993638278 | BA76: 2.062749209 | BB76: 2.128730071 | BC76: 2.193184659 | BD76: 2.256963435 | BE76: 2.320590568 | BF76: 2.384422917 | BG76: 2.4487689
I77: Treatment | J77: 0 | K77: 0 | L77: 0 | M77: 1 | Q77: 0 | R77: 0 | S77: 0 | T77: 0 | U77: 0 | V77: 0 | W77: 0 | X77: 1 | AB77: 0 | AC77: 0 | AD77: 0 | AE77: 0 | AF77: 0 | AG77: 0 | AH77: 0 | AI77: 1 | AM77: 0 | AN77: 0 | AO77: 0 | AP77: 0 | AQ77: 0 | AR77: 0 | AS77: 0 | AT77: 0 | AU77: 0 | AV77: 0 | AW77: 0 | AX77: 5-2 | BB77: 0 | BC77: 0 | BD77: 0 | BE77: 0 | BF77: 0 | BG77: 0
I78: RAC | M78: 63000 | X78: 63000 | AI78: 63000 | AX78: 560000
I79: RUC | J79: 651357.8824 | K79: 668864.718 | L79: 686864.6744 | M79: 705409.2087 | N79: 724388.4441 | O79: 743890.2497 | P79: 763930.8066 | Q79: 784526.9588 | R79: 805696.0309 | S79: 827455.8701 | T79: 849824.8832 | U79: 872822.072 | V79: 896469.1329 | W79: 920808.3979 | X79: 945908.6225 | Y79: 971624.1075 | Z79: 998073.7338 | AA79: 1025280.025 | AB79: 1053267.106 | AC79: 1082059.976 | AD79: 1111684.549 | AE79: 1142167.697 | AF79: 1173537.292 | AG79: 1205825.006 | AH79: 1239090.242 | AI79: 1273427.914 | AJ79: 1308646.054 | AK79: 1344908.754 | AL79: 1382248.965 | AM79: 1420702.969 | AN79: 1460308.478 | AO79: 1501104.708 | AP79: 1543132.441 | AQ79: 1586434.106 | AR79: 1631057.544 | AS79: 1677088.119 | AT79: 1724659.283 | AU79: 1773942.959 | AV79: 1825148.125 | AW79: 1878521.326 | AX79: 1936151.632 | AY79: 1794205.21 | AZ79: 1845995.812 | BA79: 1898600.928 | BB79: 1952391.789 | BC79: 2007544.188 | BD79: 2064174.38 | BE79: 2122374.39 | BF79: 2182225.068 | BG79: 2243807.132
I80: Crash savings
I81: Capacity benefits
A82: 8 | B82: Alt_Section_A4_mod Seal_Base_8 IRI_Alt_4IRI | C82: Alt_A4_mod Seal_Base_8 IRI_Alt_4IRI | D82: SS | E82: Victoria Mid-North | F82: 1.9 | G82: 3.5 | H82: 5.308109508 | I82: AADT | J82: 1998 | K82: 2047.95 | L82: 2099.14875 | M82: 2151.627469 | N82: 2205.418155 | O82: 2260.553609 | P82: 2317.06745 | Q82: 2374.994136 | R82: 2434.368989 | S82: 2495.228214 | T82: 2557.608919 | U82: 2621.549142 | V82: 2687.087871 | W82: 2754.265068 | X82: 2823.121694 | Y82: 2893.699737 | Z82: 2966.04223 | AA82: 3040.193286 | AB82: 3116.198118 | AC82: 3194.103071 | AD82: 3273.955648 | AE82: 3355.804539 | AF82: 3439.699652 | AG82: 3525.692144 | AH82: 3613.834447 | AI82: 3704.180308 | AJ82: 3796.784816 | AK82: 3891.704437 | AL82: 3988.997047 | AM82: 4088.721974 | AN82: 4190.940023 | AO82: 4295.713524 | AP82: 4403.106362 | AQ82: 4513.184021 | AR82: 4626.013621 | AS82: 4741.663962 | AT82: 4860.205561 | AU82: 4981.7107 | AV82: 5106.253467 | AW82: 5233.909804 | AX82: 5364.757549 | AY82: 5498.876488 | AZ82: 5636.3484 | BA82: 5777.25711 | BB82: 5921.688538 | BC82: 6069.730751 | BD82: 6221.47402 | BE82: 6377.010871 | BF82: 6536.436142 | BG82: 6699.847046
I83: MSAR | J83: 0.3643192389 | K83: 0.3734272198 | L83: 0.3827629003 | M83: 0.3923319728 | N83: 0.4021402721 | O83: 0.412193779 | P83: 0.4224986234 | Q83: 0.433061089 | R83: 0.4438876162 | S83: 0.4549848066 | T83: 0.4663594268 | U83: 0.4780184125 | V83: 0.4899688728 | W83: 0.5022180946 | X83: 0.514773547 | Y83: 0.5276428857 | Z83: 0.5408339578 | AA83: 0.5543548067 | AB83: 0.5682136769 | AC83: 0.5824190188 | AD83: 0.5969794943 | AE83: 0.6119039817 | AF83: 0.6272015812 | AG83: 0.6428816207 | AH83: 0.6589536612 | AI83: 0.6754275028 | AJ83: 0.6923131903 | AK83: 0.7096210201 | AL83: 0.7273615456 | AM83: 0.7455455842 | AN83: 0.7641842239 | AO83: 0.7832888295 | AP83: 0.8028710502 | AQ83: 0.8229428264 | AR83: 0.8435163971 | AS83: 0.864604307 | AT83: 0.8862194147 | AU83: 0.9083749001 | AV83: 0.9310842726 | AW83: 0.9543613794 | AX83: 0.9782204139 | AY83: 1.002675924 | AZ83: 1.027742822 | BA83: 1.053436393 | BB83: 1.079772303 | BC83: 1.10676661 | BD83: 1.134435776 | BE83: 1.16279667 | BF83: 1.191866587 | BG83: 1.221663251
B84: Remaining Surface Life: | C84: 3 | D84: 2022 | F84: TSRS | G84: TSRH | H84: TSRC | I84: SNP | J84: 5.308109508 | K84: 5.276398507 | L84: 5.244516013 | M84: 5.212461101 | N84: 5.180232838 | O84: 5.147830285 | P84: 5.115252501 | Q84: 5.082498538 | R84: 5.049567444 | S84: 5.016458259 | T84: 4.983170022 | U84: 4.949701764 | V84: 4.916052511 | W84: 4.882221284 | X84: 4.8482071 | Y84: 4.814008969 | Z84: 4.779625896 | AA84: 4.745056881 | AB84: 4.710300918 | AC84: 4.675356997 | AD84: 4.640224101 | AE84: 4.604901208 | AF84: 4.569387291 | AG84: 4.533681316 | AH84: 4.497782245 | AI84: 4.461689034 | AJ84: 4.425400632 | AK84: 4.388915984 | AL84: 4.35223403 | AM84: 4.315353701 | AN84: 4.278273925 | AO84: 4.240993623 | AP84: 4.203511712 | AQ84: 4.1658271 | AR84: 4.127938691 | AS84: 4.089845384 | AT84: 4.051546071 | AU84: 4.013039636 | AV84: 3.974324961 | AW84: 3.935400918 | AX84: 6.7 | AY84: 6.627337516 | AZ84: 6.590711293 | BA84: 6.553886997 | BB84: 6.516863557 | BC84: 6.479639896 | BD84: 6.442214932 | BE84: 6.404587575 | BF84: 6.366756731 | BG84: 6.3287213
B85: Remaining Structural Life: | C85: 40 | D85: 2059 | F85: 9 | G85: 9 | H85: 9 | I85: Cracking | J85: 0 | K85: 0.004891502214 | L85: 0.06515411415 | M85: 0 | N85: 0 | O85: 0 | P85: 0 | Q85: 0 | R85: 0 | S85: 0 | T85: 0 | U85: 0 | V85: 0.004891502214 | W85: 0.06515411415 | X85: 0 | Y85: 0 | Z85: 0 | AA85: 0 | AB85: 0 | AC85: 0 | AD85: 0 | AE85: 0 | AF85: 0 | AG85: 0.004891502214 | AH85: 0.06515411415 | AI85: 0 | AJ85: 0 | AK85: 0 | AL85: 0 | AM85: 0 | AN85: 0 | AO85: 0 | AP85: 0 | AQ85: 0 | AR85: 0.004891502214 | AS85: 0.06515411415 | AT85: 0.2839065919 | AU85: 0.7975949907 | AV85: 1.768840625 | AW85: 3.382135051 | AX85: 0 | AY85: 0 | AZ85: 0 | BA85: 0 | BB85: 0 | BC85: 0 | BD85: 0 | BE85: 0 | BF85: 0 | BG85: 0.004891502214
B86: Surfacing Treatment: | C86: Reseal (1) | I86: Rutting | J86: 3.5 | K86: 3.605755286 | L86: 3.711349801 | M86: 3.817222928 | N86: 3.923733992 | O86: 4.031185711 | P86: 4.139839745 | Q86: 4.249927368 | R86: 4.36165702 | S86: 4.475219801 | T86: 4.590793544 | U86: 4.708545917 | V86: 4.828636806 | W86: 4.951220195 | X86: 5.076445665 | Y86: 5.2044596 | Z86: 5.335406188 | AA86: 5.46942824 | AB86: 5.60666789 | AC86: 5.747267188 | AD86: 5.891368607 | AE86: 6.039115491 | AF86: 6.190652451 | AG86: 6.346125711 | AH86: 6.505683431 | AI86: 6.669475992 | AJ86: 6.837656263 | AK86: 7.010379851 | AL86: 7.18780533 | AM86: 7.370094465 | AN86: 7.557412421 | AO86: 7.749927966 | AP86: 7.947813666 | AQ86: 8.151246078 | AR86: 8.360405936 | AS86: 8.575478338 | AT86: 8.796652928 | AU86: 9.02412408 | AV86: 9.258091077 | AW86: 9.498758295 | AX86: 1 | AY86: 1.641141738 | AZ86: 2.006144098 | BA86: 2.322197184 | BB86: 2.615801159 | BC86: 2.897589532 | BD86: 3.17317167 | BE86: 3.445979652 | BF86: 3.718328117 | BG86: 3.991892811
B87: Structural Treatment: | C87: Rehabilitation (5-2) | I87: IRI | J87: 1.9 | K87: 1.937018609 | L87: 1.974742449 | M87: 2.014237278 | N87: 2.051927006 | O87: 2.089983065 | P87: 2.12844594 | Q87: 2.167358405 | R87: 2.206760069 | S87: 2.246688211 | T87: 2.287178399 | U87: 2.328264964 | V87: 2.37002857 | W87: 2.412989503 | X87: 2.458176897 | Y87: 2.501962316 | Z87: 2.546524296 | AA87: 2.591878795 | AB87: 2.638058584 | AC87: 2.685096784 | AD87: 2.733026959 | AE87: 2.781883189 | AF87: 2.831700144 | AG87: 2.882560601 | AH87: 2.934990689 | AI87: 2.990029812 | AJ87: 3.044018222 | AK87: 3.099183752 | AL87: 3.155533735 | AM87: 3.213108569 | AN87: 3.271949666 | AO87: 3.332099502 | AP87: 3.39360166 | AQ87: 3.456500875 | AR87: 3.520890909 | AS87: 3.587313113 | AT87: 3.65682762 | AU87: 3.730826676 | AV87: 3.81096652 | AW87: 3.899127068 | AX87: 1.8 | AY87: 1.917413768 | AZ87: 1.993638278 | BA87: 2.062749209 | BB87: 2.128730071 | BC87: 2.193184659 | BD87: 2.256963435 | BE87: 2.320590568 | BF87: 2.384422917 | BG87: 2.4487689
I88: Treatment | J88: 0 | K88: 0 | L88: 0 | M88: 1 | Q88: 0 | R88: 0 | S88: 0 | T88: 0 | U88: 0 | V88: 0 | W88: 0 | X88: 1 | AB88: 0 | AC88: 0 | AD88: 0 | AE88: 0 | AF88: 0 | AG88: 0 | AH88: 0 | AI88: 1 | AM88: 0 | AN88: 0 | AO88: 0 | AP88: 0 | AQ88: 0 | AR88: 0 | AS88: 0 | AT88: 0 | AU88: 0 | AV88: 0 | AW88: 0 | AX88: 5-2 | BB88: 0 | BC88: 0 | BD88: 0 | BE88: 0 | BF88: 0 | BG88: 0
I89: RAC | M89: 63000 | X89: 63000 | AI89: 63000 | AX89: 560000
I90: RUC | J90: 645940.4371 | K90: 663311.8365 | L90: 681172.971 | M90: 699575.2126 | N90: 718408.5981 | O90: 737760.9076 | P90: 757648.231 | Q90: 778087.3187 | R90: 799095.3999 | S90: 820690.2232 | T90: 842890.0951 | U90: 865713.9143 | V90: 889183.2713 | W90: 913340.3897 | X90: 938253.9142 | Y90: 963778.0314 | Z90: 990031.5058 | AA90: 1017036.742 | AB90: 1044817.74 | AC90: 1073399.376 | AD90: 1102807.434 | AE90: 1133068.654 | AF90: 1164210.773 | AG90: 1196265.324 | AH90: 1229291.568 | AI90: 1263384.273 | AJ90: 1298351.322 | AK90: 1334356.654 | AL90: 1371433.062 | AM90: 1409616.668 | AN90: 1448945.021 | AO90: 1489457.163 | AP90: 1531193.708 | AQ90: 1574196.905 | AR90: 1618514.413 | AS90: 1664231.41 | AT90: 1711481.156 | AU90: 1760435.378 | AV90: 1811302.855 | AW90: 1864329.925 | AX90: 1921605.446 | AY90: 1779295.369 | AZ90: 1830713.225 | BA90: 1882936.277 | BB90: 1936335.521 | BC90: 1991086.513 | BD90: 2047305.264 | BE90: 2105083.546 | BF90: 2164501.953 | BG90: 2225640.938
I91: Crash savings
I92: Capacity benefits

Sheet WP Results (hidden)
A1: Work Program Results | J1: 1 = reseal, 2 = reseal with SC, 3 = resurface with M&R, 4 = resurface,
J2: 5-1 = rehabilitation (age), 5-2 = rehabilitation (IRI), 5-3 = rehabilitation (RUT), 5-4 = rehabilitation (CRK), 5-5 = rehabilitation (struct)
J3: 6-1 = reconstruction (age), 6-2 = reconstruction (IRI), 6-3 = reconstruction (RUT), 6-4 = reconstruction (CRK), 6-5 = reconstruction (struct)
A4: ID | B4: Road Name | C4: Road Class | D4: Pavement Type | E4: Climate Zone | F4: Year | G4: AADT | H4: SNP | I4: Cracking | J4: Rutting | K4: IRI | L4: Treatment
A5: 1 | B5: Section_A1_unmod Seal_Base_5.2 IRI_Alt_4IRI | C5: A1_unmod Seal_Base_5.2 IRI_Alt_4IRI | D5: SS | E5: Victoria Mid-North | F5: 2020 | G5: 2047.95 | H5: 5.276398507 | I5: 0.004891502214 | J5: 3.817265857 | K5: 2.043219157 | L5: Reseal (1)
A6: 1 | B6: Section_A1_unmod Seal_Base_5.2 IRI_Alt_4IRI | C6: A1_unmod Seal_Base_5.2 IRI_Alt_4IRI | D6: SS | E6: Victoria Mid-North | F6: 2033 | G6: 2823.121694 | H6: 4.8482071 | I6: 1.768840625 | J6: 8.229336994 | K6: 4.072445995 | L6: Rehabilitation (5-2)
A7: 1 | B7: Section_A1_unmod Seal_Base_5.2 IRI_Alt_4IRI | C7: A1_unmod Seal_Base_5.2 IRI_Alt_4IRI | D7: SS | E7: Victoria Mid-North | F7: 2044 | G7: 3704.180308 | H7: 6.252032244 | I7: 0.2839065919 | J7: 6.884791847 | K7: 4.098009863 | L7: Rehabilitation (5-2)
A8: 1 | B8: Section_A1_unmod Seal_Base_5.2 IRI_Alt_4IRI | C8: A1_unmod Seal_Base_5.2 IRI_Alt_4IRI | D8: SS | E8: Victoria Mid-North | F8: 2053 | G8: 4626.013621 | H8: 6.3287213 | I8: 0.004891502214 | J8: 7.361496433 | K8: 4.173044628 | L8: Rehabilitation (5-2)
A9: 1 | B9: Section_A1_unmod Seal_Base_5.2 IRI_Alt_4IRI | C9: A1_unmod Seal_Base_5.2 IRI_Alt_4IRI | D9: SS | E9: Victoria Mid-North | F9: 2060 | G9: 5498.876488 | H9: 6.404587575 | I9: 0 | J9: 7.389999077 | K9: 4.106685124 | L9: Rehabilitation (5-2)
A10: 1 | B10: Section_A1_unmod Seal_Base_5.2 IRI_Alt_4IRI | C10: A1_unmod Seal_Base_5.2 IRI_Alt_4IRI | D10: SS | E10: Victoria Mid-North | F10: 2066 | G10: 6377.010871 | H10: 6.442214932 | I10: 0 | J10: 7.672182632 | K10: 4.159551718 | L10: Rehabilitation (5-2)
A11: 2 | B11: Section_A2_unmod Seal_Base_8 IRI_Alt_4IRI | C11: A2_unmod Seal_Base_8 IRI_Alt_4IRI | D11: SS | E11: Victoria Mid-North | F11: 2020 | G11: 2047.95 | H11: 5.276398507 | I11: 0.004891502214 | J11: 3.817265857 | K11: 2.043219157 | L11: Reseal (1)
A12: 2 | B12: Section_A2_unmod Seal_Base_8 IRI_Alt_4IRI | C12: A2_unmod Seal_Base_8 IRI_Alt_4IRI | D12: SS | E12: Victoria Mid-North | F12: 2033 | G12: 2823.121694 | H12: 4.8482071 | I12: 1.768840625 | J12: 8.229336994 | K12: 4.072445995 | L12: Rehabilitation (5-2)
A13: 2 | B13: Section_A2_unmod Seal_Base_8 IRI_Alt_4IRI | C13: A2_unmod Seal_Base_8 IRI_Alt_4IRI | D13: SS | E13: Victoria Mid-North | F13: 2044 | G13: 3704.180308 | H13: 6.252032244 | I13: 0.2839065919 | J13: 6.884791847 | K13: 4.098009863 | L13: Rehabilitation (5-2)
A14: 2 | B14: Section_A2_unmod Seal_Base_8 IRI_Alt_4IRI | C14: A2_unmod Seal_Base_8 IRI_Alt_4IRI | D14: SS | E14: Victoria Mid-North | F14: 2053 | G14: 4626.013621 | H14: 6.3287213 | I14: 0.004891502214 | J14: 7.361496433 | K14: 4.173044628 | L14: Rehabilitation (5-2)
A15: 2 | B15: Section_A2_unmod Seal_Base_8 IRI_Alt_4IRI | C15: A2_unmod Seal_Base_8 IRI_Alt_4IRI | D15: SS | E15: Victoria Mid-North | F15: 2060 | G15: 5498.876488 | H15: 6.404587575 | I15: 0 | J15: 7.389999077 | K15: 4.106685124 | L15: Rehabilitation (5-2)
A16: 2 | B16: Section_A2_unmod Seal_Base_8 IRI_Alt_4IRI | C16: A2_unmod Seal_Base_8 IRI_Alt_4IRI | D16: SS | E16: Victoria Mid-North | F16: 2066 | G16: 6377.010871 | H16: 6.442214932 | I16: 0 | J16: 7.672182632 | K16: 4.159551718 | L16: Rehabilitation (5-2)
A17: 3 | B17: Section_A3_mod Seal_Base_5.2 IRI_Alt_4IRI | C17: A3_mod Seal_Base_5.2 IRI_Alt_4IRI | D17: SS | E17: Victoria Mid-North | F17: 2022 | G17: 2151.627469 | H17: 5.212461101 | I17: 0.2839065919 | J17: 4.451668785 | K17: 2.336258659 | L17: Reseal (1)
A18: 3 | B18: Section_A3_mod Seal_Base_5.2 IRI_Alt_4IRI | C18: A3_mod Seal_Base_5.2 IRI_Alt_4IRI | D18: SS | E18: Victoria Mid-North | F18: 2033 | G18: 2823.121694 | H18: 4.8482071 | I18: 0.2839065919 | J18: 8.229336994 | K18: 4.048147076 | L18: Rehabilitation (5-2)
A19: 3 | B19: Section_A3_mod Seal_Base_5.2 IRI_Alt_4IRI | C19: A3_mod Seal_Base_5.2 IRI_Alt_4IRI | D19: SS | E19: Victoria Mid-North | F19: 2044 | G19: 3704.180308 | H19: 6.252032244 | I19: 0.2839065919 | J19: 6.884791847 | K19: 4.098012941 | L19: Rehabilitation (5-2)
A20: 3 | B20: Section_A3_mod Seal_Base_5.2 IRI_Alt_4IRI | C20: A3_mod Seal_Base_5.2 IRI_Alt_4IRI | D20: SS | E20: Victoria Mid-North | F20: 2053 | G20: 4626.013621 | H20: 6.3287213 | I20: 0.004891502214 | J20: 7.361496433 | K20: 4.173044628 | L20: Rehabilitation (5-2)
A21: 3 | B21: Section_A3_mod Seal_Base_5.2 IRI_Alt_4IRI | C21: A3_mod Seal_Base_5.2 IRI_Alt_4IRI | D21: SS | E21: Victoria Mid-North | F21: 2060 | G21: 5498.876488 | H21: 6.404587575 | I21: 0 | J21: 7.389999077 | K21: 4.106685124 | L21: Rehabilitation (5-2)
A22: 3 | B22: Section_A3_mod Seal_Base_5.2 IRI_Alt_4IRI | C22: A3_mod Seal_Base_5.2 IRI_Alt_4IRI | D22: SS | E22: Victoria Mid-North | F22: 2066 | G22: 6377.010871 | H22: 6.442214932 | I22: 0 | J22: 7.672182632 | K22: 4.159551718 | L22: Rehabilitation (5-2)
A23: 4 | B23: Section_A4_mod Seal_Base_8 IRI_Alt_4IRI | C23: A4_mod Seal_Base_8 IRI_Alt_4IRI | D23: SS | E23: Victoria Mid-North | F23: 2022 | G23: 2151.627469 | H23: 5.212461101 | I23: 0.2839065919 | J23: 4.451668785 | K23: 2.336258659 | L23: Reseal (1)
A24: 4 | B24: Section_A4_mod Seal_Base_8 IRI_Alt_4IRI | C24: A4_mod Seal_Base_8 IRI_Alt_4IRI | D24: SS | E24: Victoria Mid-North | F24: 2033 | G24: 2823.121694 | H24: 4.8482071 | I24: 0.2839065919 | J24: 8.229336994 | K24: 4.048147076 | L24: Rehabilitation (5-2)
A25: 4 | B25: Section_A4_mod Seal_Base_8 IRI_Alt_4IRI | C25: A4_mod Seal_Base_8 IRI_Alt_4IRI | D25: SS | E25: Victoria Mid-North | F25: 2044 | G25: 3704.180308 | H25: 6.252032244 | I25: 0.2839065919 | J25: 6.884791847 | K25: 4.098012941 | L25: Rehabilitation (5-2)
A26: 4 | B26: Section_A4_mod Seal_Base_8 IRI_Alt_4IRI | C26: A4_mod Seal_Base_8 IRI_Alt_4IRI | D26: SS | E26: Victoria Mid-North | F26: 2053 | G26: 4626.013621 | H26: 6.3287213 | I26: 0.004891502214 | J26: 7.361496433 | K26: 4.173044628 | L26: Rehabilitation (5-2)
A27: 4 | B27: Section_A4_mod Seal_Base_8 IRI_Alt_4IRI | C27: A4_mod Seal_Base_8 IRI_Alt_4IRI | D27: SS | E27: Victoria Mid-North | F27: 2060 | G27: 5498.876488 | H27: 6.404587575 | I27: 0 | J27: 7.389999077 | K27: 4.106685124 | L27: Rehabilitation (5-2)
A28: 4 | B28: Section_A4_mod Seal_Base_8 IRI_Alt_4IRI | C28: A4_mod Seal_Base_8 IRI_Alt_4IRI | D28: SS | E28: Victoria Mid-North | F28: 2066 | G28: 6377.010871 | H28: 6.442214932 | I28: 0 | J28: 7.672182632 | K28: 4.159551718 | L28: Rehabilitation (5-2)
A29: 5 | B29: Alt_Section_A1_unmod Seal_Base_5.2 IRI_Alt_4IRI | C29: Alt_A1_unmod Seal_Base_5.2 IRI_Alt_4IRI | D29: SS | E29: Victoria Mid-North | F29: 2020 | G29: 2047.95 | H29: 5.276398507 | I29: 0.004891502214 | J29: 3.605755286 | K29: 1.937018609 | L29: Reseal (1)
A30: 5 | B30: Alt_Section_A1_unmod Seal_Base_5.2 IRI_Alt_4IRI | C30: Alt_A1_unmod Seal_Base_5.2 IRI_Alt_4IRI | D30: SS | E30: Victoria Mid-North | F30: 2029 | G30: 2557.608919 | H30: 4.983170022 | I30: 0.004891502214 | J30: 4.590793544 | K30: 2.284547027 | L30: Reseal (1)
A31: 5 | B31: Alt_Section_A1_unmod Seal_Base_5.2 IRI_Alt_4IRI | C31: Alt_A1_unmod Seal_Base_5.2 IRI_Alt_4IRI | D31: SS | E31: Victoria Mid-North | F31: 2038 | G31: 3194.103071 | H31: 4.675356997 | I31: 0.004891502214 | J31: 5.747267188 | K31: 2.679787046 | L31: Reseal (1)
A32: 5 | B32: Alt_Section_A1_unmod Seal_Base_5.2 IRI_Alt_4IRI | C32: Alt_A1_unmod Seal_Base_5.2 IRI_Alt_4IRI | D32: SS | E32: Victoria Mid-North | F32: 2055 | G32: 4860.205561 | H32: 4.051546071 | I32: 14.13222544 | J32: 8.928373307 | K32: 3.865918681 | L32: Rehabilitation (5-4)
A33: 5 | B33: Alt_Section_A1_unmod Seal_Base_5.2 IRI_Alt_4IRI | C33: Alt_A1_unmod Seal_Base_5.2 IRI_Alt_4IRI | D33: SS | E33: Victoria Mid-North | F33: 2064 | G33: 6069.730751 | H33: 6.3287213 | I33: 0.004891502214 | J33: 3.727127304 | K33: 2.404435 | L33: Reseal (1)
A34: 6 | B34: Alt_Section_A2_unmod Seal_Base_8 IRI_Alt_4IRI | C34: Alt_A2_unmod Seal_Base_8 IRI_Alt_4IRI | D34: SS | E34: Victoria Mid-North | F34: 2020 | G34: 2047.95 | H34: 5.276398507 | I34: 0.004891502214 | J34: 3.605755286 | K34: 1.937018609 | L34: Reseal (1)
A35: 6 | B35: Alt_Section_A2_unmod Seal_Base_8 IRI_Alt_4IRI | C35: Alt_A2_unmod Seal_Base_8 IRI_Alt_4IRI | D35: SS | E35: Victoria Mid-North | F35: 2029 | G35: 2557.608919 | H35: 4.983170022 | I35: 0.004891502214 | J35: 4.590793544 | K35: 2.284547027 | L35: Reseal (1)
A36: 6 | B36: Alt_Section_A2_unmod Seal_Base_8 IRI_Alt_4IRI | C36: Alt_A2_unmod Seal_Base_8 IRI_Alt_4IRI | D36: SS | E36: Victoria Mid-North | F36: 2038 | G36: 3194.103071 | H36: 4.675356997 | I36: 0.004891502214 | J36: 5.747267188 | K36: 2.679787046 | L36: Reseal (1)
A37: 6 | B37: Alt_Section_A2_unmod Seal_Base_8 IRI_Alt_4IRI | C37: Alt_A2_unmod Seal_Base_8 IRI_Alt_4IRI | D37: SS | E37: Victoria Mid-North | F37: 2055 | G37: 4860.205561 | H37: 4.051546071 | I37: 14.13222544 | J37: 8.928373307 | K37: 3.865918681 | L37: Rehabilitation (5-4)
A38: 6 | B38: Alt_Section_A2_unmod Seal_Base_8 IRI_Alt_4IRI | C38: Alt_A2_unmod Seal_Base_8 IRI_Alt_4IRI | D38: SS | E38: Victoria Mid-North | F38: 2064 | G38: 6069.730751 | H38: 6.3287213 | I38: 0.004891502214 | J38: 3.727127304 | K38: 2.404435 | L38: Reseal (1)
A39: 7 | B39: Alt_Section_A3_mod Seal_Base_5.2 IRI_Alt_4IRI | C39: Alt_A3_mod Seal_Base_5.2 IRI_Alt_4IRI | D39: SS | E39: Victoria Mid-North | F39: 2022 | G39: 2151.627469 | H39: 5.212461101 | I39: 0.2839065919 | J39: 3.817222928 | K39: 2.014237278 | L39: Reseal (1)
A40: 7 | B40: Alt_Section_A3_mod Seal_Base_5.2 IRI_Alt_4IRI | C40: Alt_A3_mod Seal_Base_5.2 IRI_Alt_4IRI | D40: SS | E40: Victoria Mid-North | F40: 2033 | G40: 2823.121694 | H40: 4.8482071 | I40: 0.2839065919 | J40: 5.076445665 | K40: 2.458176897 | L40: Reseal (1)
A41: 7 | B41: Alt_Section_A3_mod Seal_Base_5.2 IRI_Alt_4IRI | C41: Alt_A3_mod Seal_Base_5.2 IRI_Alt_4IRI | D41: SS | E41: Victoria Mid-North | F41: 2044 | G41: 3704.180308 | H41: 4.461689034 | I41: 0.2839065919 | J41: 6.669475992 | K41: 2.990029812 | L41: Reseal (1)
A42: 7 | B42: Alt_Section_A3_mod Seal_Base_5.2 IRI_Alt_4IRI | C42: Alt_A3_mod Seal_Base_5.2 IRI_Alt_4IRI | D42: SS | E42: Victoria Mid-North | F42: 2059 | G42: 5364.757549 | H42: 3.896266376 | I42: 5.839475178 | J42: 9.783967105 | K42: 4.017352398 | L42: Rehabilitation (5-2)
A43: 8 | B43: Alt_Section_A4_mod Seal_Base_8 IRI_Alt_4IRI | C43: Alt_A4_mod Seal_Base_8 IRI_Alt_4IRI | D43: SS | E43: Victoria Mid-North | F43: 2022 | G43: 2151.627469 | H43: 5.212461101 | I43: 0.2839065919 | J43: 3.817222928 | K43: 2.014237278 | L43: Reseal (1)
A44: 8 | B44: Alt_Section_A4_mod Seal_Base_8 IRI_Alt_4IRI | C44: Alt_A4_mod Seal_Base_8 IRI_Alt_4IRI | D44: SS | E44: Victoria Mid-North | F44: 2033 | G44: 2823.121694 | H44: 4.8482071 | I44: 0.2839065919 | J44: 5.076445665 | K44: 2.458176897 | L44: Reseal (1)
A45: 8 | B45: Alt_Section_A4_mod Seal_Base_8 IRI_Alt_4IRI | C45: Alt_A4_mod Seal_Base_8 IRI_Alt_4IRI | D45: SS | E45: Victoria Mid-North | F45: 2044 | G45: 3704.180308 | H45: 4.461689034 | I45: 0.2839065919 | J45: 6.669475992 | K45: 2.990029812 | L45: Reseal (1)
A46: 8 | B46: Alt_Section_A4_mod Seal_Base_8 IRI_Alt_4IRI | C46: Alt_A4_mod Seal_Base_8 IRI_Alt_4IRI | D46: SS | E46: Victoria Mid-North | F46: 2059 | G46: 5364.757549 | H46: 3.896266376 | I46: 5.839475178 | J46: 9.783967105 | K46: 4.017352398 | L46: Rehabilitation (5-2)

Sheet Sheet1 (hidden)

Sheet DR-Alt
A1: Detailed Results - Alternative | J1: 1 = reseal, 2 = reseal with SC, 3 = resurface with M&R, 4 = resurface,
J2: 5-1 = rehabilitation (age), 5-2 = rehabilitation (IRI), 5-3 = rehabilitation (RUT), 5-4 = rehabilitation (CRK), 5-5 = rehabilitation (struct)
J3: 6-1 = reconstruction (age), 6-2 = reconstruction (IRI), 6-3 = reconstruction (RUT), 6-4 = reconstruction (CRK), 6-5 = reconstruction (struct)
A4: ID | B4: Road Name | C4: Road Class | D4: Pav Type | E4: Climate Zone | F4: IRI | G4: Rutting | H4: SNP | I4: Tracking | J4: 2019 | K4: 2020 | L4: 2021 | M4: 2022 | N4: 2023 | O4: 2024 | P4: 2025 | Q4: 2026 | R4: 2027 | S4: 2028 | T4: 2029 | U4: 2030 | V4: 2031 | W4: 2032 | X4: 2033 | Y4: 2034 | Z4: 2035 | AA4: 2036 | AB4: 2037 | AC4: 2038 | AD4: 2039 | AE4: 2040 | AF4: 2041 | AG4: 2042 | AH4: 2043 | AI4: 2044 | AJ4: 2045 | AK4: 2046 | AL4: 2047 | AM4: 2048 | AN4: 2049 | AO4: 2050 | AP4: 2051 | AQ4: 2052 | AR4: 2053 | AS4: 2054 | AT4: 2055 | AU4: 2056 | AV4: 2057 | AW4: 2058 | AX4: 2059 | AY4: 2060 | AZ4: 2061 | BA4: 2062 | BB4: 2063 | BC4: 2064 | BD4: 2065 | BE4: 2066 | BF4: 2067 | BG4: 2068
A5: 1 | B5: Section_A1_unmod Seal_Base_5.2 IRI_Alt_4IRI | C5: A1_unmod Seal_Base_5.2 IRI_Alt_4IRI | D5: SS | E5: Victoria Mid-North | F5: 1.9 | G5: 3.5 | H5: 5.308109508 | I5: AADT | J5: 1998 | K5: 2047.95 | L5: 2099.14875 | M5: 2151.627469 | N5: 2205.418155 | O5: 2260.553609 | P5: 2317.06745 | Q5: 2374.994136 | R5: 2434.368989 | S5: 2495.228214 | T5: 2557.608919 | U5: 2621.549142 | V5: 2687.087871 | W5: 2754.265068 | X5: 2823.121694 | Y5: 2893.699737 | Z5: 2966.04223 | AA5: 3040.193286 | AB5: 3116.198118 | AC5: 3194.103071 | AD5: 3273.955648 | AE5: 3355.804539 | AF5: 3439.699652 | AG5: 3525.692144 | AH5: 3613.834447 | AI5: 3704.180308 | AJ5: 3796.784816 | AK5: 3891.704437 | AL5: 3988.997047 | AM5: 4088.721974 | AN5: 4190.940023 | AO5: 4295.713524 | AP5: 4403.106362 | AQ5: 4513.184021 | AR5: 4626.013621 | AS5: 4741.663962 | AT5: 4860.205561 | AU5: 4981.7107 | AV5: 5106.253467 | AW5: 5233.909804 | AX5: 5364.757549 | AY5: 5498.876488 | AZ5: 5636.3484 | BA5: 5777.25711 | BB5: 5921.688538 | BC5: 6069.730751 | BD5: 6221.47402 | BE5: 6377.010871 | BF5: 6536.436142 | BG5: 6699.847046
I6: MSAR | J6: 0.3643192389 | K6: 0.3734272198 | L6: 0.3827629003 | M6: 0.3923319728 | N6: 0.4021402721 | O6: 0.412193779 | P6: 0.4224986234 | Q6: 0.433061089 | R6: 0.4438876162 | S6: 0.4549848066 | T6: 0.4663594268 | U6: 0.4780184125 | V6: 0.4899688728 | W6: 0.5022180946 | X6: 0.514773547 | Y6: 0.5276428857 | Z6: 0.5408339578 | AA6: 0.5543548067 | AB6: 0.5682136769 | AC6: 0.5824190188 | AD6: 0.5969794943 | AE6: 0.6119039817 | AF6: 0.6272015812 | AG6: 0.6428816207 | AH6: 0.6589536612 | AI6: 0.6754275028 | AJ6: 0.6923131903 | AK6: 0.7096210201 | AL6: 0.7273615456 | AM6: 0.7455455842 | AN6: 0.7641842239 | AO6: 0.7832888295 | AP6: 0.8028710502 | AQ6: 0.8229428264 | AR6: 0.8435163971 | AS6: 0.864604307 | AT6: 0.8862194147 | AU6: 0.9083749001 | AV6: 0.9310842726 | AW6: 0.9543613794 | AX6: 0.9782204139 | AY6: 1.002675924 | AZ6: 1.027742822 | BA6: 1.053436393 | BB6: 1.079772303 | BC6: 1.10676661 | BD6: 1.134435776 | BE6: 1.16279667 | BF6: 1.191866587 | BG6: 1.221663251
B7: Remaining Surface Life: | C7: 1 | D7: 2020 | F7: TSRS | G7: TSRH | H7: TSRC | I7: SNP | J7: 5.308109508 | K7: 5.276398507 | L7: 5.244516013 | M7: 5.212461101 | N7: 5.180232838 | O7: 5.147830285 | P7: 5.115252501 | Q7: 5.082498538 | R7: 5.049567444 | S7: 5.016458259 | T7: 4.983170022 | U7: 4.949701764 | V7: 4.916052511 | W7: 4.882221284 | X7: 6.7 | Y7: 6.627337516 | Z7: 6.590711293 | AA7: 6.553886997 | AB7: 6.516863557 | AC7: 6.479639896 | AD7: 6.442214932 | AE7: 6.404587575 | AF7: 6.366756731 | AG7: 6.3287213 | AH7: 6.290480175 | AI7: 6.7 | AJ7: 6.627337516 | AK7: 6.590711293 | AL7: 6.553886997 | AM7: 6.516863557 | AN7: 6.479639896 | AO7: 6.442214932 | AP7: 6.404587575 | AQ7: 6.366756731 | AR7: 6.7 | AS7: 6.627337516 | AT7: 6.590711293 | AU7: 6.553886997 | AV7: 6.516863557 | AW7: 6.479639896 | AX7: 6.442214932 | AY7: 6.7 | AZ7: 6.627337516 | BA7: 6.590711293 | BB7: 6.553886997 | BC7: 6.516863557 | BD7: 6.479639896 | BE7: 6.7 | BF7: 6.627337516 | BG7: 6.590711293
B8: Remaining Structural Life: | C8: 14 | D8: 2033 | F8: 9 | G8: 9 | H8: 9 | I8: Cracking | J8: 0 | K8: 0 | L8: 0 | M8: 0 | N8: 0 | O8: 0 | P8: 0 | Q8: 0 | R8: 0 | S8: 0 | T8: 0.004891502214 | U8: 0.06515411415 | V8: 0.2839065919 | W8: 0.7975949907 | X8: 0 | Y8: 0 | Z8: 0 | AA8: 0 | AB8: 0 | AC8: 0 | AD8: 0 | AE8: 0 | AF8: 0 | AG8: 0.004891502214 | AH8: 0.06515411415 | AI8: 0 | AJ8: 0 | AK8: 0 | AL8: 0 | AM8: 0 | AN8: 0 | AO8: 0 | AP8: 0 | AQ8: 0 | AR8: 0 | AS8: 0 | AT8: 0 | AU8: 0 | AV8: 0 | AW8: 0 | AX8: 0 | AY8: 0 | AZ8: 0 | BA8: 0 | BB8: 0 | BC8: 0 | BD8: 0 | BE8: 0 | BF8: 0 | BG8: 0
B9: Surfacing Treatment: | C9: Reseal (1) | I9: Rutting | J9: 3.5 | K9: 3.817265857 | L9: 4.134049403 | M9: 4.451668785 | N9: 4.771201975 | O9: 5.093557132 | P9: 5.419519236 | Q9: 5.749782104 | R9: 6.084971061 | S9: 6.425659402 | T9: 6.772380632 | U9: 7.12563775 | V9: 7.485910417 | W9: 7.853660585 | X9: 1 | Y9: 2.076916339 | Z9: 2.687699411 | AA9: 3.214878118 | AB9: 3.703159857 | AC9: 4.170499203 | AD9: 4.626370252 | AE9: 5.076568006 | AF9: 5.524997136 | AG9: 5.974480212 | AH9: 6.427172 | AI9: 1 | AJ9: 2.370358822 | AK9: 3.14899825 | AL9: 3.822109955 | AM9: 4.446462368 | AN9: 5.044844429 | AO9: 5.629279502 | AP9: 6.207122945 | AQ9: 6.783332982 | AR9: 1 | AS9: 2.677381592 | AT9: 3.631645636 | AU9: 4.457444004 | AV9: 5.224164333 | AW9: 5.959653663 | AX9: 6.678602603 | AY9: 1 | AZ9: 2.968094426 | BA9: 4.0886534 | BB9: 5.059027274 | BC9: 5.960552525 | BD9: 6.82586559 | BE9: 1 | BF9: 3.260562974 | BG9: 4.548421189
B10: Structural Treatment: | C10: Rehabilitation (5-2) | I10: IRI | J10: 1.9 | K10: 2.043219157 | L10: 2.186598991 | M10: 2.330664628 | N10: 2.47576804 | O10: 2.62220882 | P10: 2.770248582 | Q10: 2.92012098 | R10: 3.072038812 | S10: 3.226199179 | T10: 3.382885604 | U10: 3.543289048 | V10: 3.709653661 | W10: 3.884892345 | X10: 1.8 | Y10: 2.176390714 | Z10: 2.407360293 | AA10: 2.612454359 | AB10: 2.805653278 | AC10: 2.992577467 | AD10: 3.176197511 | AE10: 3.358334605 | AF10: 3.540219555 | AG10: 3.722843312 | AH10: 3.907901656 | AI10: 1.8 | AJ10: 2.269626656 | AK10: 2.554659095 | AL10: 2.807043259 | AM10: 3.04453149 | AN10: 3.274257945 | AO10: 3.499992954 | AP10: 3.724048525 | AQ10: 3.947988005 | AR10: 1.8 | AS10: 2.367175211 | AT10: 2.708772496 | AU10: 3.010635306 | AV10: 3.294462524 | AW10: 3.5689721 | AX10: 3.838771123 | AY10: 1.8 | AZ10: 2.459541006 | BA10: 2.85469825 | BB10: 3.203411258 | BC10: 3.531115801 | BD10: 3.848029491 | BE10: 1.8 | BF10: 2.552464614 | BG10: 3.001505283
I11: Treatment | J11: 0 | K11: 1 | O11: 0 | P11: 0 | Q11: 0 | R11: 0 | S11: 0 | T11: 0 | U11: 0 | V11: 0 | W11: 0 | X11: 5-2 | AB11: 0 | AC11: 0 | AD11: 0 | AE11: 0 | AF11: 0 | AG11: 0 | AH11: 0 | AI11: 5-2 | AM11: 0 | AN11: 0 | AO11: 0 | AP11: 0 | AQ11: 0 | AR11: 5-2 | AV11: 0 | AW11: 0 | AX11: 0 | AY11: 5-2 | BC11: 0 | BD11: 0 | BE11: 5-2
I12: RAC | K12: 42000 | X12: 560000 | AI12: 560000 | AR12: 560000 | AY12: 560000 | BE12: 560000
I13: RUC | J13: 651013.8023 | K13: 672025.5649 | L13: 693701.0311 | M13: 716079.1864 | N13: 739195.479 | O13: 763085.5788 | P13: 787785.7786 | Q13: 813333.2996 | R13: 839766.5359 | S13: 867125.2585 | T13: 895454.9752 | U13: 924843.4574 | V13: 955433.0777 | W13: 987410.3066 | X13: 1021004.501 | Y13: 955795.4226 | Z13: 990827.0502 | AA13: 1025779.918 | AB13: 1061296.3 | AC13: 1097657.043 | AD13: 1135032.02 | AE13: 1173545.195 | AF13: 1213298.671 | AG13: 1254389.311 | AH13: 1296964.661 | AI13: 1341243.058 | AJ13: 1259832.932 | AK13: 1309406.445 | AL13: 1358640.089 | AM13: 1408599.188 | AN13: 1459747.212 | AO13: 1512363.02 | AP13: 1566649.192 | AQ13: 1622772.082 | AR13: 1680887.527 | AS13: 1580882.141 | AT13: 1647531.57 | AU13: 1713454.332 | AV13: 1780271.957 | AW13: 1848687.936 | AX13: 1919124.421 | AY13: 1991887.501 | AZ13: 1887656.627 | BA13: 1972241.67 | BB13: 2055630.443 | BC13: 2140078.316 | BD13: 2226562.498 | BE13: 2315668.824 | BF13: 2199020.85 | BG13: 2303396.438
I14: Crash savings
I15: Capacity benefits
A16: 2 | B16: Section_A2_unmod Seal_Base_8 IRI_Alt_4IRI | C16: A2_unmod Seal_Base_8 IRI_Alt_4IRI | D16: SS | E16: Victoria Mid-North | F16: 1.9 | G16: 3.5 | H16: 5.308109508 | I16: AADT | J16: 1998 | K16: 2047.95 | L16: 2099.14875 | M16: 2151.627469 | N16: 2205.418155 | O16: 2260.553609 | P16: 2317.06745 | Q16: 2374.994136 | R16: 2434.368989 | S16: 2495.228214 | T16: 2557.608919 | U16: 2621.549142 | V16: 2687.087871 | W16: 2754.265068 | X16: 2823.121694 | Y16: 2893.699737 | Z16: 2966.04223 | AA16: 3040.193286 | AB16: 3116.198118 | AC16: 3194.103071 | AD16: 3273.955648 | AE16: 3355.804539 | AF16: 3439.699652 | AG16: 3525.692144 | AH16: 3613.834447 | AI16: 3704.180308 | AJ16: 3796.784816 | AK16: 3891.704437 | AL16: 3988.997047 | AM16: 4088.721974 | AN16: 4190.940023 | AO16: 4295.713524 | AP16: 4403.106362 | AQ16: 4513.184021 | AR16: 4626.013621 | AS16: 4741.663962 | AT16: 4860.205561 | AU16: 4981.7107 | AV16: 5106.253467 | AW16: 5233.909804 | AX16: 5364.757549 | AY16: 5498.876488 | AZ16: 5636.3484 | BA16: 5777.25711 | BB16: 5921.688538 | BC16: 6069.730751 | BD16: 6221.47402 | BE16: 6377.010871 | BF16: 6536.436142 | BG16: 6699.847046
I17: MSAR | J17: 0.3643192389 | K17: 0.3734272198 | L17: 0.3827629003 | M17: 0.3923319728 | N17: 0.4021402721 | O17: 0.412193779 | P17: 0.4224986234 | Q17: 0.433061089 | R17: 0.4438876162 | S17: 0.4549848066 | T17: 0.4663594268 | U17: 0.4780184125 | V17: 0.4899688728 | W17: 0.5022180946 | X17: 0.514773547 | Y17: 0.5276428857 | Z17: 0.5408339578 | AA17: 0.5543548067 | AB17: 0.5682136769 | AC17: 0.5824190188 | AD17: 0.5969794943 | AE17: 0.6119039817 | AF17: 0.6272015812 | AG17: 0.6428816207 | AH17: 0.6589536612 | AI17: 0.6754275028 | AJ17: 0.6923131903 | AK17: 0.7096210201 | AL17: 0.7273615456 | AM17: 0.7455455842 | AN17: 0.7641842239 | AO17: 0.7832888295 | AP17: 0.8028710502 | AQ17: 0.8229428264 | AR17: 0.8435163971 | AS17: 0.864604307 | AT17: 0.8862194147 | AU17: 0.9083749001 | AV17: 0.9310842726 | AW17: 0.9543613794 | AX17: 0.9782204139 | AY17: 1.002675924 | AZ17: 1.027742822 | BA17: 1.053436393 | BB17: 1.079772303 | BC17: 1.10676661 | BD17: 1.134435776 | BE17: 1.16279667 | BF17: 1.191866587 | BG17: 1.221663251
B18: Remaining Surface Life: | C18: 1 | D18: 2020 | F18: TSRS | G18: TSRH | H18: TSRC | I18: SNP | J18: 5.308109508 | K18: 5.276398507 | L18: 5.244516013 | M18: 5.212461101 | N18: 5.180232838 | O18: 5.147830285 | P18: 5.115252501 | Q18: 5.082498538 | R18: 5.049567444 | S18: 5.016458259 | T18: 4.983170022 | U18: 4.949701764 | V18: 4.916052511 | W18: 4.882221284 | X18: 6.7 | Y18: 6.627337516 | Z18: 6.590711293 | AA18: 6.553886997 | AB18: 6.516863557 | AC18: 6.479639896 | AD18: 6.442214932 | AE18: 6.404587575 | AF18: 6.366756731 | AG18: 6.3287213 | AH18: 6.290480175 | AI18: 6.7 | AJ18: 6.627337516 | AK18: 6.590711293 | AL18: 6.553886997 | AM18: 6.516863557 | AN18: 6.479639896 | AO18: 6.442214932 | AP18: 6.404587575 | AQ18: 6.366756731 | AR18: 6.7 | AS18: 6.627337516 | AT18: 6.590711293 | AU18: 6.553886997 | AV18: 6.516863557 | AW18: 6.479639896 | AX18: 6.442214932 | AY18: 6.7 | AZ18: 6.627337516 | BA18: 6.590711293 | BB18: 6.553886997 | BC18: 6.516863557 | BD18: 6.479639896 | BE18: 6.7 | BF18: 6.627337516 | BG18: 6.590711293
B19: Remaining Structural Life: | C19: 14 | D19: 2033 | F19: 9 | G19: 9 | H19: 9 | I19: Cracking | J19: 0 | K19: 0 | L19: 0 | M19: 0 | N19: 0 | O19: 0 | P19: 0 | Q19: 0 | R19: 0 | S19: 0 | T19: 0.004891502214 | U19: 0.06515411415 | V19: 0.2839065919 | W19: 0.7975949907 | X19: 0 | Y19: 0 | Z19: 0 | AA19: 0 | AB19: 0 | AC19: 0 | AD19: 0 | AE19: 0 | AF19: 0 | AG19: 0.004891502214 | AH19: 0.06515411415 | AI19: 0 | AJ19: 0 | AK19: 0 | AL19: 0 | AM19: 0 | AN19: 0 | AO19: 0 | AP19: 0 | AQ19: 0 | AR19: 0 | AS19: 0 | AT19: 0 | AU19: 0 | AV19: 0 | AW19: 0 | AX19: 0 | AY19: 0 | AZ19: 0 | BA19: 0 | BB19: 0 | BC19: 0 | BD19: 0 | BE19: 0 | BF19: 0 | BG19: 0
B20: Surfacing Treatment: | C20: Reseal (1) | I20: Rutting | J20: 3.5 | K20: 3.817265857 | L20: 4.134049403 | M20: 4.451668785 | N20: 4.771201975 | O20: 5.093557132 | P20: 5.419519236 | Q20: 5.749782104 | R20: 6.084971061 | S20: 6.425659402 | T20: 6.772380632 | U20: 7.12563775 | V20: 7.485910417 | W20: 7.853660585 | X20: 1 | Y20: 2.076916339 | Z20: 2.687699411 | AA20: 3.214878118 | AB20: 3.703159857 | AC20: 4.170499203 | AD20: 4.626370252 | AE20: 5.076568006 | AF20: 5.524997136 | AG20: 5.974480212 | AH20: 6.427172 | AI20: 1 | AJ20: 2.370358822 | AK20: 3.14899825 | AL20: 3.822109955 | AM20: 4.446462368 | AN20: 5.044844429 | AO20: 5.629279502 | AP20: 6.207122945 | AQ20: 6.783332982 | AR20: 1 | AS20: 2.677381592 | AT20: 3.631645636 | AU20: 4.457444004 | AV20: 5.224164333 | AW20: 5.959653663 | AX20: 6.678602603 | AY20: 1 | AZ20: 2.968094426 | BA20: 4.0886534 | BB20: 5.059027274 | BC20: 5.960552525 | BD20: 6.82586559 | BE20: 1 | BF20: 3.260562974 | BG20: 4.548421189
B21: Structural Treatment: | C21: Rehabilitation (5-2) | I21: IRI | J21: 1.9 | K21: 2.043219157 | L21: 2.186598991 | M21: 2.330664628 | N21: 2.47576804 | O21: 2.62220882 | P21: 2.770248582 | Q21: 2.92012098 | R21: 3.072038812 | S21: 3.226199179 | T21: 3.382885604 | U21: 3.543289048 | V21: 3.709653661 | W21: 3.884892345 | X21: 1.8 | Y21: 2.176390714 | Z21: 2.407360293 | AA21: 2.612454359 | AB21: 2.805653278 | AC21: 2.992577467 | AD21: 3.176197511 | AE21: 3.358334605 | AF21: 3.540219555 | AG21: 3.722843312 | AH21: 3.907901656 | AI21: 1.8 | AJ21: 2.269626656 | AK21: 2.554659095 | AL21: 2.807043259 | AM21: 3.04453149 | AN21: 3.274257945 | AO21: 3.499992954 | AP21: 3.724048525 | AQ21: 3.947988005 | AR21: 1.8 | AS21: 2.367175211 | AT21: 2.708772496 | AU21: 3.010635306 | AV21: 3.294462524 | AW21: 3.5689721 | AX21: 3.838771123 | AY21: 1.8 | AZ21: 2.459541006 | BA21: 2.85469825 | BB21: 3.203411258 | BC21: 3.531115801 | BD21: 3.848029491 | BE21: 1.8 | BF21: 2.552464614 | BG21: 3.001505283
I22: Treatment | J22: 0 | K22: 1 | O22: 0 | P22: 0 | Q22: 0 | R22: 0 | S22: 0 | T22: 0 | U22: 0 | V22: 0 | W22: 0 | X22: 5-2 | AB22: 0 | AC22: 0 | AD22: 0 | AE22: 0 | AF22: 0 | AG22: 0 | AH22: 0 | AI22: 5-2 | AM22: 0 | AN22: 0 | AO22: 0 | AP22: 0 | AQ22: 0 | AR22: 5-2 | AV22: 0 | AW22: 0 | AX22: 0 | AY22: 5-2 | BC22: 0 | BD22: 0 | BE22: 5-2
I23: RAC | K23: 42000 | X23: 560000 | AI23: 560000 | AR23: 560000 | AY23: 560000 | BE23: 560000
I24: RUC | J24: 651013.8023 | K24: 672025.5649 | L24: 693701.0311 | M24: 716079.1864 | N24: 739195.479 | O24: 763085.5788 | P24: 787785.7786 | Q24: 813333.2996 | R24: 839766.5359 | S24: 867125.2585 | T24: 895454.9752 | U24: 924843.4574 | V24: 955433.0777 | W24: 987410.3066 | X24: 1021004.501 | Y24: 955795.4226 | Z24: 990827.0502 | AA24: 1025779.918 | AB24: 1061296.3 | AC24: 1097657.043 | AD24: 1135032.02 | AE24: 1173545.195 | AF24: 1213298.671 | AG24: 1254389.311 | AH24: 1296964.661 | AI24: 1341243.058 | AJ24: 1259832.932 | AK24: 1309406.445 | AL24: 1358640.089 | AM24: 1408599.188 | AN24: 1459747.212 | AO24: 1512363.02 | AP24: 1566649.192 | AQ24: 1622772.082 | AR24: 1680887.527 | AS24: 1580882.141 | AT24: 1647531.57 | AU24: 1713454.332 | AV24: 1780271.957 | AW24: 1848687.936 | AX24: 1919124.421 | AY24: 1991887.501 | AZ24: 1887656.627 | BA24: 1972241.67 | BB24: 2055630.443 | BC24: 2140078.316 | BD24: 2226562.498 | BE24: 2315668.824 | BF24: 2199020.85 | BG24: 2303396.438
I25: Crash savings
I26: Capacity benefits
A27: 3 | B27: Section_A3_mod Seal_Base_5.2 IRI_Alt_4IRI | C27: A3_mod Seal_Base_5.2 IRI_Alt_4IRI | D27: SS | E27: Victoria Mid-North | F27: 1.9 | G27: 3.5 | H27: 5.308109508 | I27: AADT | J27: 1998 | K27: 2047.95 | L27: 2099.14875 | M27: 2151.627469 | N27: 2205.418155 | O27: 2260.553609 | P27: 2317.06745 | Q27: 2374.994136 | R27: 2434.368989 | S27: 2495.228214 | T27: 2557.608919 | U27: 2621.549142 | V27: 2687.087871 | W27: 2754.265068 | X27: 2823.121694 | Y27: 2893.699737 | Z27: 2966.04223 | AA27: 3040.193286 | AB27: 3116.198118 | AC27: 3194.103071 | AD27: 3273.955648 | AE27: 3355.804539 | AF27: 3439.699652 | AG27: 3525.692144 | AH27: 3613.834447 | AI27: 3704.180308 | AJ27: 3796.784816 | AK27: 3891.704437 | AL27: 3988.997047 | AM27: 4088.721974 | AN27: 4190.940023 | AO27: 4295.713524 | AP27: 4403.106362 | AQ27: 4513.184021 | AR27: 4626.013621 | AS27: 4741.663962 | AT27: 4860.205561 | AU27: 4981.7107 | AV27: 5106.253467 | AW27: 5233.909804 | AX27: 5364.757549 | AY27: 5498.876488 | AZ27: 5636.3484 | BA27: 5777.25711 | BB27: 5921.688538 | BC27: 6069.730751 | BD27: 6221.47402 | BE27: 6377.010871 | BF27: 6536.436142 | BG27: 6699.847046
I28: MSAR | J28: 0.3643192389 | K28: 0.3734272198 | L28: 0.3827629003 | M28: 0.3923319728 | N28: 0.4021402721 | O28: 0.412193779 | P28: 0.4224986234 | Q28: 0.433061089 | R28: 0.4438876162 | S28: 0.4549848066 | T28: 0.4663594268 | U28: 0.4780184125 | V28: 0.4899688728 | W28: 0.5022180946 | X28: 0.514773547 | Y28: 0.5276428857 | Z28: 0.5408339578 | AA28: 0.5543548067 | AB28: 0.5682136769 | AC28: 0.5824190188 | AD28: 0.5969794943 | AE28: 0.6119039817 | AF28: 0.6272015812 | AG28: 0.6428816207 | AH28: 0.6589536612 | AI28: 0.6754275028 | AJ28: 0.6923131903 | AK28: 0.7096210201 | AL28: 0.7273615456 | AM28: 0.7455455842 | AN28: 0.7641842239 | AO28: 0.7832888295 | AP28: 0.8028710502 | AQ28: 0.8229428264 | AR28: 0.8435163971 | AS28: 0.864604307 | AT28: 0.8862194147 | AU28: 0.9083749001 | AV28: 0.9310842726 | AW28: 0.9543613794 | AX28: 0.9782204139 | AY28: 1.002675924 | AZ28: 1.027742822 | BA28: 1.053436393 | BB28: 1.079772303 | BC28: 1.10676661 | BD28: 1.134435776 | BE28: 1.16279667 | BF28: 1.191866587 | BG28: 1.221663251
B29: Remaining Surface Life: | C29: 3 | D29: 2022 | F29: TSRS | G29: TSRH | H29: TSRC | I29: SNP | J29: 5.308109508 | K29: 5.276398507 | L29: 5.244516013 | M29: 5.212461101 | N29: 5.180232838 | O29: 5.147830285 | P29: 5.115252501 | Q29: 5.082498538 | R29: 5.049567444 | S29: 5.016458259 | T29: 4.983170022 | U29: 4.949701764 | V29: 4.916052511 | W29: 4.882221284 | X29: 6.7 | Y29: 6.627337516 | Z29: 6.590711293 | AA29: 6.553886997 | AB29: 6.516863557 | AC29: 6.479639896 | AD29: 6.442214932 | AE29: 6.404587575 | AF29: 6.366756731 | AG29: 6.3287213 | AH29: 6.290480175 | AI29: 6.7 | AJ29: 6.627337516 | AK29: 6.590711293 | AL29: 6.553886997 | AM29: 6.516863557 | AN29: 6.479639896 | AO29: 6.442214932 | AP29: 6.404587575 | AQ29: 6.366756731 | AR29: 6.7 | AS29: 6.627337516 | AT29: 6.590711293 | AU29: 6.553886997 | AV29: 6.516863557 | AW29: 6.479639896 | AX29: 6.442214932 | AY29: 6.7 | AZ29: 6.627337516 | BA29: 6.590711293 | BB29: 6.553886997 | BC29: 6.516863557 | BD29: 6.479639896 | BE29: 6.7 | BF29: 6.627337516 | BG29: 6.590711293
B30: Remaining Structural Life: | C30: 14 | D30: 2033 | F30: 9 | G30: 9 | H30: 9 | I30: Cracking | J30: 0 | K30: 0.004891502214 | L30: 0.06515411415 | M30: 0 | N30: 0 | O30: 0 | P30: 0 | Q30: 0 | R30: 0 | S30: 0 | T30: 0 | U30: 0 | V30: 0.004891502214 | W30: 0.06515411415 | X30: 0 | Y30: 0 | Z30: 0 | AA30: 0 | AB30: 0 | AC30: 0 | AD30: 0 | AE30: 0 | AF30: 0 | AG30: 0.004891502214 | AH30: 0.06515411415 | AI30: 0 | AJ30: 0 | AK30: 0 | AL30: 0 | AM30: 0 | AN30: 0 | AO30: 0 | AP30: 0 | AQ30: 0 | AR30: 0 | AS30: 0 | AT30: 0 | AU30: 0 | AV30: 0 | AW30: 0 | AX30: 0 | AY30: 0 | AZ30: 0 | BA30: 0 | BB30: 0 | BC30: 0 | BD30: 0 | BE30: 0 | BF30: 0 | BG30: 0
B31: Surfacing Treatment: | C31: Reseal (1) | I31: Rutting | J31: 3.5 | K31: 3.817265857 | L31: 4.134049403 | M31: 4.451668785 | N31: 4.771201975 | O31: 5.093557132 | P31: 5.419519236 | Q31: 5.749782104 | R31: 6.084971061 | S31: 6.425659402 | T31: 6.772380632 | U31: 7.12563775 | V31: 7.485910417 | W31: 7.853660585 | X31: 1 | Y31: 2.076916339 | Z31: 2.687699411 | AA31: 3.214878118 | AB31: 3.703159857 | AC31: 4.170499203 | AD31: 4.626370252 | AE31: 5.076568006 | AF31: 5.524997136 | AG31: 5.974480212 | AH31: 6.427172 | AI31: 1 | AJ31: 2.370358822 | AK31: 3.14899825 | AL31: 3.822109955 | AM31: 4.446462368 | AN31: 5.044844429 | AO31: 5.629279502 | AP31: 6.207122945 | AQ31: 6.783332982 | AR31: 1 | AS31: 2.677381592 | AT31: 3.631645636 | AU31: 4.457444004 | AV31: 5.224164333 | AW31: 5.959653663 | AX31: 6.678602603 | AY31: 1 | AZ31: 2.968094426 | BA31: 4.0886534 | BB31: 5.059027274 | BC31: 5.960552525 | BD31: 6.82586559 | BE31: 1 | BF31: 3.260562974 | BG31: 4.548421189
B32: Structural Treatment: | C32: Rehabilitation (5-2) | I32: IRI | J32: 1.9 | K32: 2.043219157 | L32: 2.187807061 | M32: 2.336258659 | N32: 2.481348342 | O32: 2.627789122 | P32: 2.775828883 | Q32: 2.925701282 | R32: 3.077619114 | S32: 3.231779481 | T32: 3.388367631 | U32: 3.547559874 | V32: 3.709624192 | W32: 3.875740753 | X32: 1.8 | Y32: 2.176393792 | Z32: 2.407363371 | AA32: 2.612457437 | AB32: 2.805656356 | AC32: 2.992580545 | AD32: 3.176200589 | AE32: 3.358337683 | AF32: 3.540222633 | AG32: 3.72284639 | AH32: 3.907904734 | AI32: 1.8 | AJ32: 2.269626656 | AK32: 2.554659095 | AL32: 2.807043259 | AM32: 3.04453149 | AN32: 3.274257945 | AO32: 3.499992954 | AP32: 3.724048525 | AQ32: 3.947988005 | AR32: 1.8 | AS32: 2.367175211 | AT32: 2.708772496 | AU32: 3.010635306 | AV32: 3.294462524 | AW32: 3.5689721 | AX32: 3.838771123 | AY32: 1.8 | AZ32: 2.459541006 | BA32: 2.85469825 | BB32: 3.203411258 | BC32: 3.531115801 | BD32: 3.848029491 | BE32: 1.8 | BF32: 2.552464614 | BG32: 3.001505283
I33: Treatment | J33: 0 | K33: 0 | L33: 0 | M33: 1 | Q33: 0 | R33: 0 | S33: 0 | T33: 0 | U33: 0 | V33: 0 | W33: 0 | X33: 5-2 | AB33: 0 | AC33: 0 | AD33: 0 | AE33: 0 | AF33: 0 | AG33: 0 | AH33: 0 | AI33: 5-2 | AM33: 0 | AN33: 0 | AO33: 0 | AP33: 0 | AQ33: 0 | AR33: 5-2 | AV33: 0 | AW33: 0 | AX33: 0 | AY33: 5-2 | BC33: 0 | BD33: 0 | BE33: 5-2
I34: RAC | M34: 63000 | X34: 560000 | AI34: 560000 | AR34: 560000 | AY34: 560000 | BE34: 560000
I35: RUC | J35: 651013.8023 | K35: 672025.5649 | L35: 693742.1667 | M35: 716275.0225 | N35: 739396.3208 | O35: 763292.065 | P35: 787998.0728 | Q35: 813551.5714 | R35: 839990.9608 | S35: 867356.0183 | T35: 895688.0794 | U35: 925030.2033 | V35: 955431.7525 | W35: 986987.0383 | X35: 1019848.395 | Y35: 955795.567 | Z35: 990827.1989 | AA35: 1025780.071 | AB35: 1061296.458 | AC35: 1097657.205 | AD35: 1135032.187 | AE35: 1173545.367 | AF35: 1213298.847 | AG35: 1254389.493 | AH35: 1296964.848 | AI35: 1341243.25 | AJ35: 1259832.932 | AK35: 1309406.445 | AL35: 1358640.089 | AM35: 1408599.188 | AN35: 1459747.212 | AO35: 1512363.02 | AP35: 1566649.192 | AQ35: 1622772.082 | AR35: 1680887.527 | AS35: 1580882.141 | AT35: 1647531.57 | AU35: 1713454.332 | AV35: 1780271.957 | AW35: 1848687.936 | AX35: 1919124.421 | AY35: 1991887.501 | AZ35: 1887656.627 | BA35: 1972241.67 | BB35: 2055630.443 | BC35: 2140078.316 | BD35: 2226562.498 | BE35: 2315668.824 | BF35: 2199020.85 | BG35: 2303396.438
I36: Crash savings
I37: Capacity benefits
A38: 4 | B38: Section_A4_mod Seal_Base_8 IRI_Alt_4IRI | C38: A4_mod Seal_Base_8 IRI_Alt_4IRI | D38: SS | E38: Victoria Mid-North | F38: 1.9 | G38: 3.5 | H38: 5.308109508 | I38: AADT | J38: 1998 | K38: 2047.95 | L38: 2099.14875 | M38: 2151.627469 | N38: 2205.418155 | O38: 2260.553609 | P38: 2317.06745 | Q38: 2374.994136 | R38: 2434.368989 | S38: 2495.228214 | T38: 2557.608919 | U38: 2621.549142 | V38: 2687.087871 | W38: 2754.265068 | X38: 2823.121694 | Y38: 2893.699737 | Z38: 2966.04223 | AA38: 3040.193286 | AB38: 3116.198118 | AC38: 3194.103071 | AD38: 3273.955648 | AE38: 3355.804539 | AF38: 3439.699652 | AG38: 3525.692144 | AH38: 3613.834447 | AI38: 3704.180308 | AJ38: 3796.784816 | AK38: 3891.704437 | AL38: 3988.997047 | AM38: 4088.721974 | AN38: 4190.940023 | AO38: 4295.713524 | AP38: 4403.106362 | AQ38: 4513.184021 | AR38: 4626.013621 | AS38: 4741.663962 | AT38: 4860.205561 | AU38: 4981.7107 | AV38: 5106.253467 | AW38: 5233.909804 | AX38: 5364.757549 | AY38: 5498.876488 | AZ38: 5636.3484 | BA38: 5777.25711 | BB38: 5921.688538 | BC38: 6069.730751 | BD38: 6221.47402 | BE38: 6377.010871 | BF38: 6536.436142 | BG38: 6699.847046
I39: MSAR | J39: 0.3643192389 | K39: 0.3734272198 | L39: 0.3827629003 | M39: 0.3923319728 | N39: 0.4021402721 | O39: 0.412193779 | P39: 0.4224986234 | Q39: 0.433061089 | R39: 0.4438876162 | S39: 0.4549848066 | T39: 0.4663594268 | U39: 0.4780184125 | V39: 0.4899688728 | W39: 0.5022180946 | X39: 0.514773547 | Y39: 0.5276428857 | Z39: 0.5408339578 | AA39: 0.5543548067 | AB39: 0.5682136769 | AC39: 0.5824190188 | AD39: 0.5969794943 | AE39: 0.6119039817 | AF39: 0.6272015812 | AG39: 0.6428816207 | AH39: 0.6589536612 | AI39: 0.6754275028 | AJ39: 0.6923131903 | AK39: 0.7096210201 | AL39: 0.7273615456 | AM39: 0.7455455842 | AN39: 0.7641842239 | AO39: 0.7832888295 | AP39: 0.8028710502 | AQ39: 0.8229428264 | AR39: 0.8435163971 | AS39: 0.864604307 | AT39: 0.8862194147 | AU39: 0.9083749001 | AV39: 0.9310842726 | AW39: 0.9543613794 | AX39: 0.9782204139 | AY39: 1.002675924 | AZ39: 1.027742822 | BA39: 1.053436393 | BB39: 1.079772303 | BC39: 1.10676661 | BD39: 1.134435776 | BE39: 1.16279667 | BF39: 1.191866587 | BG39: 1.221663251
B40: Remaining Surface Life: | C40: 3 | D40: 2022 | F40: TSRS | G40: TSRH | H40: TSRC | I40: SNP | J40: 5.308109508 | K40: 5.276398507 | L40: 5.244516013 | M40: 5.212461101 | N40: 5.180232838 | O40: 5.147830285 | P40: 5.115252501 | Q40: 5.082498538 | R40: 5.049567444 | S40: 5.016458259 | T40: 4.983170022 | U40: 4.949701764 | V40: 4.916052511 | W40: 4.882221284 | X40: 6.7 | Y40: 6.627337516 | Z40: 6.590711293 | AA40: 6.553886997 | AB40: 6.516863557 | AC40: 6.479639896 | AD40: 6.442214932 | AE40: 6.404587575 | AF40: 6.366756731 | AG40: 6.3287213 | AH40: 6.290480175 | AI40: 6.7 | AJ40: 6.627337516 | AK40: 6.590711293 | AL40: 6.553886997 | AM40: 6.516863557 | AN40: 6.479639896 | AO40: 6.442214932 | AP40: 6.404587575 | AQ40: 6.366756731 | AR40: 6.7 | AS40: 6.627337516 | AT40: 6.590711293 | AU40: 6.553886997 | AV40: 6.516863557 | AW40: 6.479639896 | AX40: 6.442214932 | AY40: 6.7 | AZ40: 6.627337516 | BA40: 6.590711293 | BB40: 6.553886997 | BC40: 6.516863557 | BD40: 6.479639896 | BE40: 6.7 | BF40: 6.627337516 | BG40: 6.590711293
B41: Remaining Structural Life: | C41: 14 | D41: 2033 | F41: 9 | G41: 9 | H41: 9 | I41: Cracking | J41: 0 | K41: 0.004891502214 | L41: 0.06515411415 | M41: 0 | N41: 0 | O41: 0 | P41: 0 | Q41: 0 | R41: 0 | S41: 0 | T41: 0 | U41: 0 | V41: 0.004891502214 | W41: 0.06515411415 | X41: 0 | Y41: 0 | Z41: 0 | AA41: 0 | AB41: 0 | AC41: 0 | AD41: 0 | AE41: 0 | AF41: 0 | AG41: 0.004891502214 | AH41: 0.06515411415 | AI41: 0 | AJ41: 0 | AK41: 0 | AL41: 0 | AM41: 0 | AN41: 0 | AO41: 0 | AP41: 0 | AQ41: 0 | AR41: 0 | AS41: 0 | AT41: 0 | AU41: 0 | AV41: 0 | AW41: 0 | AX41: 0 | AY41: 0 | AZ41: 0 | BA41: 0 | BB41: 0 | BC41: 0 | BD41: 0 | BE41: 0 | BF41: 0 | BG41: 0
B42: Surfacing Treatment: | C42: Reseal (1) | I42: Rutting | J42: 3.5 | K42: 3.817265857 | L42: 4.134049403 | M42: 4.451668785 | N42: 4.771201975 | O42: 5.093557132 | P42: 5.419519236 | Q42: 5.749782104 | R42: 6.084971061 | S42: 6.425659402 | T42: 6.772380632 | U42: 7.12563775 | V42: 7.485910417 | W42: 7.853660585 | X42: 1 | Y42: 2.076916339 | Z42: 2.687699411 | AA42: 3.214878118 | AB42: 3.703159857 | AC42: 4.170499203 | AD42: 4.626370252 | AE42: 5.076568006 | AF42: 5.524997136 | AG42: 5.974480212 | AH42: 6.427172 | AI42: 1 | AJ42: 2.370358822 | AK42: 3.14899825 | AL42: 3.822109955 | AM42: 4.446462368 | AN42: 5.044844429 | AO42: 5.629279502 | AP42: 6.207122945 | AQ42: 6.783332982 | AR42: 1 | AS42: 2.677381592 | AT42: 3.631645636 | AU42: 4.457444004 | AV42: 5.224164333 | AW42: 5.959653663 | AX42: 6.678602603 | AY42: 1 | AZ42: 2.968094426 | BA42: 4.0886534 | BB42: 5.059027274 | BC42: 5.960552525 | BD42: 6.82586559 | BE42: 1 | BF42: 3.260562974 | BG42: 4.548421189
B43: Structural Treatment: | C43: Rehabilitation (5-2) | I43: IRI | J43: 1.9 | K43: 2.043219157 | L43: 2.187807061 | M43: 2.336258659 | N43: 2.481348342 | O43: 2.627789122 | P43: 2.775828883 | Q43: 2.925701282 | R43: 3.077619114 | S43: 3.231779481 | T43: 3.388367631 | U43: 3.547559874 | V43: 3.709624192 | W43: 3.875740753 | X43: 1.8 | Y43: 2.176393792 | Z43: 2.407363371 | AA43: 2.612457437 | AB43: 2.805656356 | AC43: 2.992580545 | AD43: 3.176200589 | AE43: 3.358337683 | AF43: 3.540222633 | AG43: 3.72284639 | AH43: 3.907904734 | AI43: 1.8 | AJ43: 2.269626656 | AK43: 2.554659095 | AL43: 2.807043259 | AM43: 3.04453149 | AN43: 3.274257945 | AO43: 3.499992954 | AP43: 3.724048525 | AQ43: 3.947988005 | AR43: 1.8 | AS43: 2.367175211 | AT43: 2.708772496 | AU43: 3.010635306 | AV43: 3.294462524 | AW43: 3.5689721 | AX43: 3.838771123 | AY43: 1.8 | AZ43: 2.459541006 | BA43: 2.85469825 | BB43: 3.203411258 | BC43: 3.531115801 | BD43: 3.848029491 | BE43: 1.8 | BF43: 2.552464614 | BG43: 3.001505283
I44: Treatment | J44: 0 | K44: 0 | L44: 0 | M44: 1 | Q44: 0 | R44: 0 | S44: 0 | T44: 0 | U44: 0 | V44: 0 | W44: 0 | X44: 5-2 | AB44: 0 | AC44: 0 | AD44: 0 | AE44: 0 | AF44: 0 | AG44: 0 | AH44: 0 | AI44: 5-2 | AM44: 0 | AN44: 0 | AO44: 0 | AP44: 0 | AQ44: 0 | AR44: 5-2 | AV44: 0 | AW44: 0 | AX44: 0 | AY44: 5-2 | BC44: 0 | BD44: 0 | BE44: 5-2
I45: RAC | M45: 63000 | X45: 560000 | AI45: 560000 | AR45: 560000 | AY45: 560000 | BE45: 560000
I46: RUC | J46: 651013.8023 | K46: 672025.5649 | L46: 693742.1667 | M46: 716275.0225 | N46: 739396.3208 | O46: 763292.065 | P46: 787998.0728 | Q46: 813551.5714 | R46: 839990.9608 | S46: 867356.0183 | T46: 895688.0794 | U46: 925030.2033 | V46: 955431.7525 | W46: 986987.0383 | X46: 1019848.395 | Y46: 955795.567 | Z46: 990827.1989 | AA46: 1025780.071 | AB46: 1061296.458 | AC46: 1097657.205 | AD46: 1135032.187 | AE46: 1173545.367 | AF46: 1213298.847 | AG46: 1254389.493 | AH46: 1296964.848 | AI46: 1341243.25 | AJ46: 1259832.932 | AK46: 1309406.445 | AL46: 1358640.089 | AM46: 1408599.188 | AN46: 1459747.212 | AO46: 1512363.02 | AP46: 1566649.192 | AQ46: 1622772.082 | AR46: 1680887.527 | AS46: 1580882.141 | AT46: 1647531.57 | AU46: 1713454.332 | AV46: 1780271.957 | AW46: 1848687.936 | AX46: 1919124.421 | AY46: 1991887.501 | AZ46: 1887656.627 | BA46: 1972241.67 | BB46: 2055630.443 | BC46: 2140078.316 | BD46: 2226562.498 | BE46: 2315668.824 | BF46: 2199020.85 | BG46: 2303396.438
I47: Crash savings
I48: Capacity benefits
A49: 5 | B49: Alt_Section_A1_unmod Seal_Base_5.2 IRI_Alt_4IRI | C49: Alt_A1_unmod Seal_Base_5.2 IRI_Alt_4IRI | D49: SS | E49: Victoria Mid-North | F49: 1.9 | G49: 3.5 | H49: 5.308109508 | I49: AADT | J49: 1998 | K49: 2047.95 | L49: 2099.14875 | M49: 2151.627469 | N49: 2205.418155 | O49: 2260.553609 | P49: 2317.06745 | Q49: 2374.994136 | R49: 2434.368989 | S49: 2495.228214 | T49: 2557.608919 | U49: 2621.549142 | V49: 2687.087871 | W49: 2754.265068 | X49: 2823.121694 | Y49: 2893.699737 | Z49: 2966.04223 | AA49: 3040.193286 | AB49: 3116.198118 | AC49: 3194.103071 | AD49: 3273.955648 | AE49: 3355.804539 | AF49: 3439.699652 | AG49: 3525.692144 | AH49: 3613.834447 | AI49: 3704.180308 | AJ49: 3796.784816 | AK49: 3891.704437 | AL49: 3988.997047 | AM49: 4088.721974 | AN49: 4190.940023 | AO49: 4295.713524 | AP49: 4403.106362 | AQ49: 4513.184021 | AR49: 4626.013621 | AS49: 4741.663962 | AT49: 4860.205561 | AU49: 4981.7107 | AV49: 5106.253467 | AW49: 5233.909804 | AX49: 5364.757549 | AY49: 5498.876488 | AZ49: 5636.3484 | BA49: 5777.25711 | BB49: 5921.688538 | BC49: 6069.730751 | BD49: 6221.47402 | BE49: 6377.010871 | BF49: 6536.436142 | BG49: 6699.847046
I50: MSAR | J50: 0.3643192389 | K50: 0.3734272198 | L50: 0.3827629003 | M50: 0.3923319728 | N50: 0.4021402721 | O50: 0.412193779 | P50: 0.4224986234 | Q50: 0.433061089 | R50: 0.4438876162 | S50: 0.4549848066 | T50: 0.4663594268 | U50: 0.4780184125 | V50: 0.4899688728 | W50: 0.5022180946 | X50: 0.514773547 | Y50: 0.5276428857 | Z50: 0.5408339578 | AA50: 0.5543548067 | AB50: 0.5682136769 | AC50: 0.5824190188 | AD50: 0.5969794943 | AE50: 0.6119039817 | AF50: 0.6272015812 | AG50: 0.6428816207 | AH50: 0.6589536612 | AI50: 0.6754275028 | AJ50: 0.6923131903 | AK50: 0.7096210201 | AL50: 0.7273615456 | AM50: 0.7455455842 | AN50: 0.7641842239 | AO50: 0.7832888295 | AP50: 0.8028710502 | AQ50: 0.8229428264 | AR50: 0.8435163971 | AS50: 0.864604307 | AT50: 0.8862194147 | AU50: 0.9083749001 | AV50: 0.9310842726 | AW50: 0.9543613794 | AX50: 0.9782204139 | AY50: 1.002675924 | AZ50: 1.027742822 | BA50: 1.053436393 | BB50: 1.079772303 | BC50: 1.10676661 | BD50: 1.134435776 | BE50: 1.16279667 | BF50: 1.191866587 | BG50: 1.221663251
B51: Remaining Surface Life: | C51: 1 | D51: 2020 | F51: TSRS | G51: TSRH | H51: TSRC | I51: SNP | J51: 5.308109508 | K51: 5.276398507 | L51: 5.244516013 | M51: 5.212461101 | N51: 5.180232838 | O51: 5.147830285 | P51: 5.115252501 | Q51: 5.082498538 | R51: 5.049567444 | S51: 5.016458259 | T51: 4.983170022 | U51: 4.949701764 | V51: 4.916052511 | W51: 4.882221284 | X51: 4.8482071 | Y51: 4.814008969 | Z51: 4.779625896 | AA51: 4.745056881 | AB51: 4.710300918 | AC51: 4.675356997 | AD51: 4.640224101 | AE51: 4.604901208 | AF51: 4.569387291 | AG51: 4.533681316 | AH51: 4.497782245 | AI51: 4.461689034 | AJ51: 4.425400632 | AK51: 4.388915984 | AL51: 4.35223403 | AM51: 4.315353701 | AN51: 4.278273925 | AO51: 4.240993623 | AP51: 4.203511712 | AQ51: 4.1658271 | AR51: 4.127938691 | AS51: 4.089845384 | AT51: 6.7 | AU51: 6.627337516 | AV51: 6.590711293 | AW51: 6.553886997 | AX51: 6.516863557 | AY51: 6.479639896 | AZ51: 6.442214932 | BA51: 6.404587575 | BB51: 6.366756731 | BC51: 6.3287213 | BD51: 6.290480175 | BE51: 6.252032244 | BF51: 6.213376388 | BG51: 6.174511484
B52: Remaining Structural Life: | C52: 36 | D52: 2055 | F52: 9 | G52: 9 | H52: 9 | I52: Cracking | J52: 0 | K52: 0 | L52: 0 | M52: 0 | N52: 0 | O52: 0 | P52: 0 | Q52: 0 | R52: 0 | S52: 0 | T52: 0 | U52: 0 | V52: 0 | W52: 0 | X52: 0 | Y52: 0 | Z52: 0 | AA52: 0 | AB52: 0 | AC52: 0 | AD52: 0 | AE52: 0 | AF52: 0 | AG52: 0 | AH52: 0 | AI52: 0 | AJ52: 0 | AK52: 0 | AL52: 0.004891502214 | AM52: 0.06515411415 | AN52: 0.2839065919 | AO52: 0.7975949907 | AP52: 1.768840625 | AQ52: 3.382135051 | AR52: 5.839475178 | AS52: 9.353252731 | AT52: 0 | AU52: 0 | AV52: 0 | AW52: 0 | AX52: 0 | AY52: 0 | AZ52: 0 | BA52: 0 | BB52: 0 | BC52: 0 | BD52: 0 | BE52: 0 | BF52: 0 | BG52: 0
B53: Surfacing Treatment: | C53: Reseal (1) | I53: Rutting | J53: 3.5 | K53: 3.605755286 | L53: 3.711349801 | M53: 3.817222928 | N53: 3.923733992 | O53: 4.031185711 | P53: 4.139839745 | Q53: 4.249927368 | R53: 4.36165702 | S53: 4.475219801 | T53: 4.590793544 | U53: 4.708545917 | V53: 4.828636806 | W53: 4.951220195 | X53: 5.076445665 | Y53: 5.2044596 | Z53: 5.335406188 | AA53: 5.46942824 | AB53: 5.60666789 | AC53: 5.747267188 | AD53: 5.891368607 | AE53: 6.039115491 | AF53: 6.190652451 | AG53: 6.346125711 | AH53: 6.505683431 | AI53: 6.669475992 | AJ53: 6.837656263 | AK53: 7.010379851 | AL53: 7.18780533 | AM53: 7.370094465 | AN53: 7.557412421 | AO53: 7.749927966 | AP53: 7.947813666 | AQ53: 8.151246078 | AR53: 8.392198234 | AS53: 8.639961641 | AT53: 1 | AU53: 1.585126929 | AV53: 1.918087434 | AW53: 2.206283583 | AX53: 2.473913225 | AY53: 2.730687045 | AZ53: 2.981727783 | BA53: 3.230169666 | BB53: 3.478126219 | BC53: 3.727127304 | BD53: 3.978343011 | BE53: 4.232709176 | BF53: 4.491002695 | BG53: 4.753889204
B54: Structural Treatment: | C54: Rehabilitation (5-4) | I54: IRI | J54: 1.9 | K54: 1.937018609 | L54: 1.974162575 | M54: 2.011552143 | N54: 2.049248462 | O54: 2.08730452 | P54: 2.125767396 | Q54: 2.16467986 | R54: 2.204081524 | S54: 2.244009666 | T54: 2.284547027 | U54: 2.325633378 | V54: 2.367349778 | W54: 2.40972889 | X54: 2.452803248 | Y54: 2.496605227 | Z54: 2.541167207 | AA54: 2.586521706 | AB54: 2.632701494 | AC54: 2.679787046 | AD54: 2.727716828 | AE54: 2.776573058 | AF54: 2.826390013 | AG54: 2.877203016 | AH54: 2.929048104 | AI54: 2.981962084 | AJ54: 3.035982588 | AK54: 3.091148117 | AL54: 3.147545707 | AM54: 3.205707496 | AN54: 3.266681169 | AO54: 3.331843754 | AP54: 3.402833492 | AQ54: 3.481509373 | AR54: 3.587536347 | AS54: 3.707230883 | AT54: 1.8 | AU54: 1.908577124 | AV54: 1.979553419 | AW54: 2.044022352 | AX54: 2.105621289 | AY54: 2.165814777 | AZ54: 2.225379433 | BA54: 2.284793866 | BB54: 2.34438386 | BC54: 2.404435 | BD54: 2.46503791 | BE54: 2.52638988 | BF54: 2.588617301 | BG54: 2.651830303
I55: Treatment | J55: 0 | K55: 1 | O55: 0 | P55: 0 | Q55: 0 | R55: 0 | S55: 0 | T55: 1 | X55: 0 | Y55: 0 | Z55: 0 | AA55: 0 | AB55: 0 | AC55: 1 | AG55: 0 | AH55: 0 | AI55: 0 | AJ55: 0 | AK55: 0 | AL55: 0 | AM55: 0 | AN55: 0 | AO55: 0 | AP55: 0 | AQ55: 0 | AR55: 0 | AS55: 0 | AT55: 5-4 | AX55: 0 | AY55: 0 | AZ55: 0 | BA55: 0 | BB55: 0 | BC55: 1 | BG55: 0
I56: RAC | K56: 42000 | T56: 42000 | AC56: 42000 | AT56: 560000 | BC56: 42000
I57: RUC | J57: 651013.8023 | K57: 668512.0358 | L57: 686483.5176 | M57: 704945.2956 | N57: 723913.093 | O57: 743402.937 | P57: 763431.2306 | Q57: 784014.8098 | R57: 805170.9915 | S57: 826917.6147 | T57: 849275.0388 | U57: 872258.3768 | V57: 895889.1803 | W57: 920187.7249 | X57: 945174.9907 | Y57: 970872.6875 | Z57: 997303.2893 | AA57: 1024490.071 | AB57: 1052457.142 | AC57: 1081231.97 | AD57: 1110835.54 | AE57: 1141297.169 | AF57: 1172644.695 | AG57: 1204907.02 | AH57: 1238114.141 | AI57: 1272297.197 | AJ57: 1307488.522 | AK57: 1343721.701 | AL57: 1381034.769 | AM57: 1419497.536 | AN57: 1459220.523 | AO57: 1500346.688 | AP57: 1543050.15 | AQ57: 1587536.542 | AR57: 1635404.113 | AS57: 1685775.17 | AT57: 1740846.399 | AU57: 1623893.447 | AV57: 1670339.966 | AW57: 1717551.907 | AX57: 1765838.668 | AY57: 1815348.028 | AZ57: 1866178.558 | BA57: 1918408.832 | BB57: 1972108.23 | BC57: 2027346.473 | BD57: 2084177.637 | BE57: 2142669.2 | BF57: 2202884.629 | BG57: 2264888.561
I58: Crash savings
I59: Capacity benefits
A60: 6 | B60: Alt_Section_A2_unmod Seal_Base_8 IRI_Alt_4IRI | C60: Alt_A2_unmod Seal_Base_8 IRI_Alt_4IRI | D60: SS | E60: Victoria Mid-North | F60: 1.9 | G60: 3.5 | H60: 5.308109508 | I60: AADT | J60: 1998 | K60: 2047.95 | L60: 2099.14875 | M60: 2151.627469 | N60: 2205.418155 | O60: 2260.553609 | P60: 2317.06745 | Q60: 2374.994136 | R60: 2434.368989 | S60: 2495.228214 | T60: 2557.608919 | U60: 2621.549142 | V60: 2687.087871 | W60: 2754.265068 | X60: 2823.121694 | Y60: 2893.699737 | Z60: 2966.04223 | AA60: 3040.193286 | AB60: 3116.198118 | AC60: 3194.103071 | AD60: 3273.955648 | AE60: 3355.804539 | AF60: 3439.699652 | AG60: 3525.692144 | AH60: 3613.834447 | AI60: 3704.180308 | AJ60: 3796.784816 | AK60: 3891.704437 | AL60: 3988.997047 | AM60: 4088.721974 | AN60: 4190.940023 | AO60: 4295.713524 | AP60: 4403.106362 | AQ60: 4513.184021 | AR60: 4626.013621 | AS60: 4741.663962 | AT60: 4860.205561 | AU60: 4981.7107 | AV60: 5106.253467 | AW60: 5233.909804 | AX60: 5364.757549 | AY60: 5498.876488 | AZ60: 5636.3484 | BA60: 5777.25711 | BB60: 5921.688538 | BC60: 6069.730751 | BD60: 6221.47402 | BE60: 6377.010871 | BF60: 6536.436142 | BG60: 6699.847046
I61: MSAR | J61: 0.3643192389 | K61: 0.3734272198 | L61: 0.3827629003 | M61: 0.3923319728 | N61: 0.4021402721 | O61: 0.412193779 | P61: 0.4224986234 | Q61: 0.433061089 | R61: 0.4438876162 | S61: 0.4549848066 | T61: 0.4663594268 | U61: 0.4780184125 | V61: 0.4899688728 | W61: 0.5022180946 | X61: 0.514773547 | Y61: 0.5276428857 | Z61: 0.5408339578 | AA61: 0.5543548067 | AB61: 0.5682136769 | AC61: 0.5824190188 | AD61: 0.5969794943 | AE61: 0.6119039817 | AF61: 0.6272015812 | AG61: 0.6428816207 | AH61: 0.6589536612 | AI61: 0.6754275028 | AJ61: 0.6923131903 | AK61: 0.7096210201 | AL61: 0.7273615456 | AM61: 0.7455455842 | AN61: 0.7641842239 | AO61: 0.7832888295 | AP61: 0.8028710502 | AQ61: 0.8229428264 | AR61: 0.8435163971 | AS61: 0.864604307 | AT61: 0.8862194147 | AU61: 0.9083749001 | AV61: 0.9310842726 | AW61: 0.9543613794 | AX61: 0.9782204139 | AY61: 1.002675924 | AZ61: 1.027742822 | BA61: 1.053436393 | BB61: 1.079772303 | BC61: 1.10676661 | BD61: 1.134435776 | BE61: 1.16279667 | BF61: 1.191866587 | BG61: 1.221663251
B62: Remaining Surface Life: | C62: 1 | D62: 2020 | F62: TSRS | G62: TSRH | H62: TSRC | I62: SNP | J62: 5.308109508 | K62: 5.276398507 | L62: 5.244516013 | M62: 5.212461101 | N62: 5.180232838 | O62: 5.147830285 | P62: 5.115252501 | Q62: 5.082498538 | R62: 5.049567444 | S62: 5.016458259 | T62: 4.983170022 | U62: 4.949701764 | V62: 4.916052511 | W62: 4.882221284 | X62: 4.8482071 | Y62: 4.814008969 | Z62: 4.779625896 | AA62: 4.745056881 | AB62: 4.710300918 | AC62: 4.675356997 | AD62: 4.640224101 | AE62: 4.604901208 | AF62: 4.569387291 | AG62: 4.533681316 | AH62: 4.497782245 | AI62: 4.461689034 | AJ62: 4.425400632 | AK62: 4.388915984 | AL62: 4.35223403 | AM62: 4.315353701 | AN62: 4.278273925 | AO62: 4.240993623 | AP62: 4.203511712 | AQ62: 4.1658271 | AR62: 4.127938691 | AS62: 4.089845384 | AT62: 6.7 | AU62: 6.627337516 | AV62: 6.590711293 | AW62: 6.553886997 | AX62: 6.516863557 | AY62: 6.479639896 | AZ62: 6.442214932 | BA62: 6.404587575 | BB62: 6.366756731 | BC62: 6.3287213 | BD62: 6.290480175 | BE62: 6.252032244 | BF62: 6.213376388 | BG62: 6.174511484
B63: Remaining Structural Life: | C63: 36 | D63: 2055 | F63: 9 | G63: 9 | H63: 9 | I63: Cracking | J63: 0 | K63: 0 | L63: 0 | M63: 0 | N63: 0 | O63: 0 | P63: 0 | Q63: 0 | R63: 0 | S63: 0 | T63: 0 | U63: 0 | V63: 0 | W63: 0 | X63: 0 | Y63: 0 | Z63: 0 | AA63: 0 | AB63: 0 | AC63: 0 | AD63: 0 | AE63: 0 | AF63: 0 | AG63: 0 | AH63: 0 | AI63: 0 | AJ63: 0 | AK63: 0 | AL63: 0.004891502214 | AM63: 0.06515411415 | AN63: 0.2839065919 | AO63: 0.7975949907 | AP63: 1.768840625 | AQ63: 3.382135051 | AR63: 5.839475178 | AS63: 9.353252731 | AT63: 0 | AU63: 0 | AV63: 0 | AW63: 0 | AX63: 0 | AY63: 0 | AZ63: 0 | BA63: 0 | BB63: 0 | BC63: 0 | BD63: 0 | BE63: 0 | BF63: 0 | BG63: 0
B64: Surfacing Treatment: | C64: Reseal (1) | I64: Rutting | J64: 3.5 | K64: 3.605755286 | L64: 3.711349801 | M64: 3.817222928 | N64: 3.923733992 | O64: 4.031185711 | P64: 4.139839745 | Q64: 4.249927368 | R64: 4.36165702 | S64: 4.475219801 | T64: 4.590793544 | U64: 4.708545917 | V64: 4.828636806 | W64: 4.951220195 | X64: 5.076445665 | Y64: 5.2044596 | Z64: 5.335406188 | AA64: 5.46942824 | AB64: 5.60666789 | AC64: 5.747267188 | AD64: 5.891368607 | AE64: 6.039115491 | AF64: 6.190652451 | AG64: 6.346125711 | AH64: 6.505683431 | AI64: 6.669475992 | AJ64: 6.837656263 | AK64: 7.010379851 | AL64: 7.18780533 | AM64: 7.370094465 | AN64: 7.557412421 | AO64: 7.749927966 | AP64: 7.947813666 | AQ64: 8.151246078 | AR64: 8.392198234 | AS64: 8.639961641 | AT64: 1 | AU64: 1.585126929 | AV64: 1.918087434 | AW64: 2.206283583 | AX64: 2.473913225 | AY64: 2.730687045 | AZ64: 2.981727783 | BA64: 3.230169666 | BB64: 3.478126219 | BC64: 3.727127304 | BD64: 3.978343011 | BE64: 4.232709176 | BF64: 4.491002695 | BG64: 4.753889204
B65: Structural Treatment: | C65: Rehabilitation (5-4) | I65: IRI | J65: 1.9 | K65: 1.937018609 | L65: 1.974162575 | M65: 2.011552143 | N65: 2.049248462 | O65: 2.08730452 | P65: 2.125767396 | Q65: 2.16467986 | R65: 2.204081524 | S65: 2.244009666 | T65: 2.284547027 | U65: 2.325633378 | V65: 2.367349778 | W65: 2.40972889 | X65: 2.452803248 | Y65: 2.496605227 | Z65: 2.541167207 | AA65: 2.586521706 | AB65: 2.632701494 | AC65: 2.679787046 | AD65: 2.727716828 | AE65: 2.776573058 | AF65: 2.826390013 | AG65: 2.877203016 | AH65: 2.929048104 | AI65: 2.981962084 | AJ65: 3.035982588 | AK65: 3.091148117 | AL65: 3.147545707 | AM65: 3.205707496 | AN65: 3.266681169 | AO65: 3.331843754 | AP65: 3.402833492 | AQ65: 3.481509373 | AR65: 3.587536347 | AS65: 3.707230883 | AT65: 1.8 | AU65: 1.908577124 | AV65: 1.979553419 | AW65: 2.044022352 | AX65: 2.105621289 | AY65: 2.165814777 | AZ65: 2.225379433 | BA65: 2.284793866 | BB65: 2.34438386 | BC65: 2.404435 | BD65: 2.46503791 | BE65: 2.52638988 | BF65: 2.588617301 | BG65: 2.651830303
I66: Treatment | J66: 0 | K66: 1 | O66: 0 | P66: 0 | Q66: 0 | R66: 0 | S66: 0 | T66: 1 | X66: 0 | Y66: 0 | Z66: 0 | AA66: 0 | AB66: 0 | AC66: 1 | AG66: 0 | AH66: 0 | AI66: 0 | AJ66: 0 | AK66: 0 | AL66: 0 | AM66: 0 | AN66: 0 | AO66: 0 | AP66: 0 | AQ66: 0 | AR66: 0 | AS66: 0 | AT66: 5-4 | AX66: 0 | AY66: 0 | AZ66: 0 | BA66: 0 | BB66: 0 | BC66: 1 | BG66: 0
I67: RAC | K67: 42000 | T67: 42000 | AC67: 42000 | AT67: 560000 | BC67: 42000
I68: RUC | J68: 651013.8023 | K68: 668512.0358 | L68: 686483.5176 | M68: 704945.2956 | N68: 723913.093 | O68: 743402.937 | P68: 763431.2306 | Q68: 784014.8098 | R68: 805170.9915 | S68: 826917.6147 | T68: 849275.0388 | U68: 872258.3768 | V68: 895889.1803 | W68: 920187.7249 | X68: 945174.9907 | Y68: 970872.6875 | Z68: 997303.2893 | AA68: 1024490.071 | AB68: 1052457.142 | AC68: 1081231.97 | AD68: 1110835.54 | AE68: 1141297.169 | AF68: 1172644.695 | AG68: 1204907.02 | AH68: 1238114.141 | AI68: 1272297.197 | AJ68: 1307488.522 | AK68: 1343721.701 | AL68: 1381034.769 | AM68: 1419497.536 | AN68: 1459220.523 | AO68: 1500346.688 | AP68: 1543050.15 | AQ68: 1587536.542 | AR68: 1635404.113 | AS68: 1685775.17 | AT68: 1740846.399 | AU68: 1623893.447 | AV68: 1670339.966 | AW68: 1717551.907 | AX68: 1765838.668 | AY68: 1815348.028 | AZ68: 1866178.558 | BA68: 1918408.832 | BB68: 1972108.23 | BC68: 2027346.473 | BD68: 2084177.637 | BE68: 2142669.2 | BF68: 2202884.629 | BG68: 2264888.561
I69: Crash savings
I70: Capacity benefits
A71: 7 | B71: Alt_Section_A3_mod Seal_Base_5.2 IRI_Alt_4IRI | C71: Alt_A3_mod Seal_Base_5.2 IRI_Alt_4IRI | D71: SS | E71: Victoria Mid-North | F71: 1.9 | G71: 3.5 | H71: 5.308109508 | I71: AADT | J71: 1998 | K71: 2047.95 | L71: 2099.14875 | M71: 2151.627469 | N71: 2205.418155 | O71: 2260.553609 | P71: 2317.06745 | Q71: 2374.994136 | R71: 2434.368989 | S71: 2495.228214 | T71: 2557.608919 | U71: 2621.549142 | V71: 2687.087871 | W71: 2754.265068 | X71: 2823.121694 | Y71: 2893.699737 | Z71: 2966.04223 | AA71: 3040.193286 | AB71: 3116.198118 | AC71: 3194.103071 | AD71: 3273.955648 | AE71: 3355.804539 | AF71: 3439.699652 | AG71: 3525.692144 | AH71: 3613.834447 | AI71: 3704.180308 | AJ71: 3796.784816 | AK71: 3891.704437 | AL71: 3988.997047 | AM71: 4088.721974 | AN71: 4190.940023 | AO71: 4295.713524 | AP71: 4403.106362 | AQ71: 4513.184021 | AR71: 4626.013621 | AS71: 4741.663962 | AT71: 4860.205561 | AU71: 4981.7107 | AV71: 5106.253467 | AW71: 5233.909804 | AX71: 5364.757549 | AY71: 5498.876488 | AZ71: 5636.3484 | BA71: 5777.25711 | BB71: 5921.688538 | BC71: 6069.730751 | BD71: 6221.47402 | BE71: 6377.010871 | BF71: 6536.436142 | BG71: 6699.847046
I72: MSAR | J72: 0.3643192389 | K72: 0.3734272198 | L72: 0.3827629003 | M72: 0.3923319728 | N72: 0.4021402721 | O72: 0.412193779 | P72: 0.4224986234 | Q72: 0.433061089 | R72: 0.4438876162 | S72: 0.4549848066 | T72: 0.4663594268 | U72: 0.4780184125 | V72: 0.4899688728 | W72: 0.5022180946 | X72: 0.514773547 | Y72: 0.5276428857 | Z72: 0.5408339578 | AA72: 0.5543548067 | AB72: 0.5682136769 | AC72: 0.5824190188 | AD72: 0.5969794943 | AE72: 0.6119039817 | AF72: 0.6272015812 | AG72: 0.6428816207 | AH72: 0.6589536612 | AI72: 0.6754275028 | AJ72: 0.6923131903 | AK72: 0.7096210201 | AL72: 0.7273615456 | AM72: 0.7455455842 | AN72: 0.7641842239 | AO72: 0.7832888295 | AP72: 0.8028710502 | AQ72: 0.8229428264 | AR72: 0.8435163971 | AS72: 0.864604307 | AT72: 0.8862194147 | AU72: 0.9083749001 | AV72: 0.9310842726 | AW72: 0.9543613794 | AX72: 0.9782204139 | AY72: 1.002675924 | AZ72: 1.027742822 | BA72: 1.053436393 | BB72: 1.079772303 | BC72: 1.10676661 | BD72: 1.134435776 | BE72: 1.16279667 | BF72: 1.191866587 | BG72: 1.221663251
B73: Remaining Surface Life: | C73: 3 | D73: 2022 | F73: TSRS | G73: TSRH | H73: TSRC | I73: SNP | J73: 5.308109508 | K73: 5.276398507 | L73: 5.244516013 | M73: 5.212461101 | N73: 5.180232838 | O73: 5.147830285 | P73: 5.115252501 | Q73: 5.082498538 | R73: 5.049567444 | S73: 5.016458259 | T73: 4.983170022 | U73: 4.949701764 | V73: 4.916052511 | W73: 4.882221284 | X73: 4.8482071 | Y73: 4.814008969 | Z73: 4.779625896 | AA73: 4.745056881 | AB73: 4.710300918 | AC73: 4.675356997 | AD73: 4.640224101 | AE73: 4.604901208 | AF73: 4.569387291 | AG73: 4.533681316 | AH73: 4.497782245 | AI73: 4.461689034 | AJ73: 4.425400632 | AK73: 4.388915984 | AL73: 4.35223403 | AM73: 4.315353701 | AN73: 4.278273925 | AO73: 4.240993623 | AP73: 4.203511712 | AQ73: 4.1658271 | AR73: 4.127938691 | AS73: 4.089845384 | AT73: 4.051546071 | AU73: 4.013039636 | AV73: 3.974324961 | AW73: 3.935400918 | AX73: 6.7 | AY73: 6.627337516 | AZ73: 6.590711293 | BA73: 6.553886997 | BB73: 6.516863557 | BC73: 6.479639896 | BD73: 6.442214932 | BE73: 6.404587575 | BF73: 6.366756731 | BG73: 6.3287213
B74: Remaining Structural Life: | C74: 40 | D74: 2059 | F74: 9 | G74: 9 | H74: 9 | I74: Cracking | J74: 0 | K74: 0.004891502214 | L74: 0.06515411415 | M74: 0 | N74: 0 | O74: 0 | P74: 0 | Q74: 0 | R74: 0 | S74: 0 | T74: 0 | U74: 0 | V74: 0.004891502214 | W74: 0.06515411415 | X74: 0 | Y74: 0 | Z74: 0 | AA74: 0 | AB74: 0 | AC74: 0 | AD74: 0 | AE74: 0 | AF74: 0 | AG74: 0.004891502214 | AH74: 0.06515411415 | AI74: 0 | AJ74: 0 | AK74: 0 | AL74: 0 | AM74: 0 | AN74: 0 | AO74: 0 | AP74: 0 | AQ74: 0 | AR74: 0.004891502214 | AS74: 0.06515411415 | AT74: 0.2839065919 | AU74: 0.7975949907 | AV74: 1.768840625 | AW74: 3.382135051 | AX74: 0 | AY74: 0 | AZ74: 0 | BA74: 0 | BB74: 0 | BC74: 0 | BD74: 0 | BE74: 0 | BF74: 0 | BG74: 0.004891502214
B75: Surfacing Treatment: | C75: Reseal (1) | I75: Rutting | J75: 3.5 | K75: 3.605755286 | L75: 3.711349801 | M75: 3.817222928 | N75: 3.923733992 | O75: 4.031185711 | P75: 4.139839745 | Q75: 4.249927368 | R75: 4.36165702 | S75: 4.475219801 | T75: 4.590793544 | U75: 4.708545917 | V75: 4.828636806 | W75: 4.951220195 | X75: 5.076445665 | Y75: 5.2044596 | Z75: 5.335406188 | AA75: 5.46942824 | AB75: 5.60666789 | AC75: 5.747267188 | AD75: 5.891368607 | AE75: 6.039115491 | AF75: 6.190652451 | AG75: 6.346125711 | AH75: 6.505683431 | AI75: 6.669475992 | AJ75: 6.837656263 | AK75: 7.010379851 | AL75: 7.18780533 | AM75: 7.370094465 | AN75: 7.557412421 | AO75: 7.749927966 | AP75: 7.947813666 | AQ75: 8.151246078 | AR75: 8.360405936 | AS75: 8.575478338 | AT75: 8.796652928 | AU75: 9.02412408 | AV75: 9.258091077 | AW75: 9.498758295 | AX75: 1 | AY75: 1.641141738 | AZ75: 2.006144098 | BA75: 2.322197184 | BB75: 2.615801159 | BC75: 2.897589532 | BD75: 3.17317167 | BE75: 3.445979652 | BF75: 3.718328117 | BG75: 3.991892811
B76: Structural Treatment: | C76: Rehabilitation (5-2) | I76: IRI | J76: 1.9 | K76: 1.937018609 | L76: 1.974742449 | M76: 2.014237278 | N76: 2.051927006 | O76: 2.089983065 | P76: 2.12844594 | Q76: 2.167358405 | R76: 2.206760069 | S76: 2.246688211 | T76: 2.287178399 | U76: 2.328264964 | V76: 2.37002857 | W76: 2.412989503 | X76: 2.458176897 | Y76: 2.501962316 | Z76: 2.546524296 | AA76: 2.591878795 | AB76: 2.638058584 | AC76: 2.685096784 | AD76: 2.733026959 | AE76: 2.781883189 | AF76: 2.831700144 | AG76: 2.882560601 | AH76: 2.934990689 | AI76: 2.990029812 | AJ76: 3.044018222 | AK76: 3.099183752 | AL76: 3.155533735 | AM76: 3.213108569 | AN76: 3.271949666 | AO76: 3.332099502 | AP76: 3.39360166 | AQ76: 3.456500875 | AR76: 3.520890909 | AS76: 3.587313113 | AT76: 3.65682762 | AU76: 3.730826676 | AV76: 3.81096652 | AW76: 3.899127068 | AX76: 1.8 | AY76: 1.917413768 | AZ76: 1.993638278 | BA76: 2.062749209 | BB76: 2.128730071 | BC76: 2.193184659 | BD76: 2.256963435 | BE76: 2.320590568 | BF76: 2.384422917 | BG76: 2.4487689
I77: Treatment | J77: 0 | K77: 0 | L77: 0 | M77: 1 | Q77: 0 | R77: 0 | S77: 0 | T77: 0 | U77: 0 | V77: 0 | W77: 0 | X77: 1 | AB77: 0 | AC77: 0 | AD77: 0 | AE77: 0 | AF77: 0 | AG77: 0 | AH77: 0 | AI77: 1 | AM77: 0 | AN77: 0 | AO77: 0 | AP77: 0 | AQ77: 0 | AR77: 0 | AS77: 0 | AT77: 0 | AU77: 0 | AV77: 0 | AW77: 0 | AX77: 5-2 | BB77: 0 | BC77: 0 | BD77: 0 | BE77: 0 | BF77: 0 | BG77: 0
I78: RAC | M78: 63000 | X78: 63000 | AI78: 63000 | AX78: 560000
I79: RUC | J79: 651357.8824 | K79: 668864.718 | L79: 686864.6744 | M79: 705409.2087 | N79: 724388.4441 | O79: 743890.2497 | P79: 763930.8066 | Q79: 784526.9588 | R79: 805696.0309 | S79: 827455.8701 | T79: 849824.8832 | U79: 872822.072 | V79: 896469.1329 | W79: 920808.3979 | X79: 945908.6225 | Y79: 971624.1075 | Z79: 998073.7338 | AA79: 1025280.025 | AB79: 1053267.106 | AC79: 1082059.976 | AD79: 1111684.549 | AE79: 1142167.697 | AF79: 1173537.292 | AG79: 1205825.006 | AH79: 1239090.242 | AI79: 1273427.914 | AJ79: 1308646.054 | AK79: 1344908.754 | AL79: 1382248.965 | AM79: 1420702.969 | AN79: 1460308.478 | AO79: 1501104.708 | AP79: 1543132.441 | AQ79: 1586434.106 | AR79: 1631057.544 | AS79: 1677088.119 | AT79: 1724659.283 | AU79: 1773942.959 | AV79: 1825148.125 | AW79: 1878521.326 | AX79: 1936151.632 | AY79: 1794205.21 | AZ79: 1845995.812 | BA79: 1898600.928 | BB79: 1952391.789 | BC79: 2007544.188 | BD79: 2064174.38 | BE79: 2122374.39 | BF79: 2182225.068 | BG79: 2243807.132
I80: Crash savings
I81: Capacity benefits
A82: 8 | B82: Alt_Section_A4_mod Seal_Base_8 IRI_Alt_4IRI | C82: Alt_A4_mod Seal_Base_8 IRI_Alt_4IRI | D82: SS | E82: Victoria Mid-North | F82: 1.9 | G82: 3.5 | H82: 5.308109508 | I82: AADT | J82: 1998 | K82: 2047.95 | L82: 2099.14875 | M82: 2151.627469 | N82: 2205.418155 | O82: 2260.553609 | P82: 2317.06745 | Q82: 2374.994136 | R82: 2434.368989 | S82: 2495.228214 | T82: 2557.608919 | U82: 2621.549142 | V82: 2687.087871 | W82: 2754.265068 | X82: 2823.121694 | Y82: 2893.699737 | Z82: 2966.04223 | AA82: 3040.193286 | AB82: 3116.198118 | AC82: 3194.103071 | AD82: 3273.955648 | AE82: 3355.804539 | AF82: 3439.699652 | AG82: 3525.692144 | AH82: 3613.834447 | AI82: 3704.180308 | AJ82: 3796.784816 | AK82: 3891.704437 | AL82: 3988.997047 | AM82: 4088.721974 | AN82: 4190.940023 | AO82: 4295.713524 | AP82: 4403.106362 | AQ82: 4513.184021 | AR82: 4626.013621 | AS82: 4741.663962 | AT82: 4860.205561 | AU82: 4981.7107 | AV82: 5106.253467 | AW82: 5233.909804 | AX82: 5364.757549 | AY82: 5498.876488 | AZ82: 5636.3484 | BA82: 5777.25711 | BB82: 5921.688538 | BC82: 6069.730751 | BD82: 6221.47402 | BE82: 6377.010871 | BF82: 6536.436142 | BG82: 6699.847046
I83: MSAR | J83: 0.3643192389 | K83: 0.3734272198 | L83: 0.3827629003 | M83: 0.3923319728 | N83: 0.4021402721 | O83: 0.412193779 | P83: 0.4224986234 | Q83: 0.433061089 | R83: 0.4438876162 | S83: 0.4549848066 | T83: 0.4663594268 | U83: 0.4780184125 | V83: 0.4899688728 | W83: 0.5022180946 | X83: 0.514773547 | Y83: 0.5276428857 | Z83: 0.5408339578 | AA83: 0.5543548067 | AB83: 0.5682136769 | AC83: 0.5824190188 | AD83: 0.5969794943 | AE83: 0.6119039817 | AF83: 0.6272015812 | AG83: 0.6428816207 | AH83: 0.6589536612 | AI83: 0.6754275028 | AJ83: 0.6923131903 | AK83: 0.7096210201 | AL83: 0.7273615456 | AM83: 0.7455455842 | AN83: 0.7641842239 | AO83: 0.7832888295 | AP83: 0.8028710502 | AQ83: 0.8229428264 | AR83: 0.8435163971 | AS83: 0.864604307 | AT83: 0.8862194147 | AU83: 0.9083749001 | AV83: 0.9310842726 | AW83: 0.9543613794 | AX83: 0.9782204139 | AY83: 1.002675924 | AZ83: 1.027742822 | BA83: 1.053436393 | BB83: 1.079772303 | BC83: 1.10676661 | BD83: 1.134435776 | BE83: 1.16279667 | BF83: 1.191866587 | BG83: 1.221663251
B84: Remaining Surface Life: | C84: 3 | D84: 2022 | F84: TSRS | G84: TSRH | H84: TSRC | I84: SNP | J84: 5.308109508 | K84: 5.276398507 | L84: 5.244516013 | M84: 5.212461101 | N84: 5.180232838 | O84: 5.147830285 | P84: 5.115252501 | Q84: 5.082498538 | R84: 5.049567444 | S84: 5.016458259 | T84: 4.983170022 | U84: 4.949701764 | V84: 4.916052511 | W84: 4.882221284 | X84: 4.8482071 | Y84: 4.814008969 | Z84: 4.779625896 | AA84: 4.745056881 | AB84: 4.710300918 | AC84: 4.675356997 | AD84: 4.640224101 | AE84: 4.604901208 | AF84: 4.569387291 | AG84: 4.533681316 | AH84: 4.497782245 | AI84: 4.461689034 | AJ84: 4.425400632 | AK84: 4.388915984 | AL84: 4.35223403 | AM84: 4.315353701 | AN84: 4.278273925 | AO84: 4.240993623 | AP84: 4.203511712 | AQ84: 4.1658271 | AR84: 4.127938691 | AS84: 4.089845384 | AT84: 4.051546071 | AU84: 4.013039636 | AV84: 3.974324961 | AW84: 3.935400918 | AX84: 6.7 | AY84: 6.627337516 | AZ84: 6.590711293 | BA84: 6.553886997 | BB84: 6.516863557 | BC84: 6.479639896 | BD84: 6.442214932 | BE84: 6.404587575 | BF84: 6.366756731 | BG84: 6.3287213
B85: Remaining Structural Life: | C85: 40 | D85: 2059 | F85: 9 | G85: 9 | H85: 9 | I85: Cracking | J85: 0 | K85: 0.004891502214 | L85: 0.06515411415 | M85: 0 | N85: 0 | O85: 0 | P85: 0 | Q85: 0 | R85: 0 | S85: 0 | T85: 0 | U85: 0 | V85: 0.004891502214 | W85: 0.06515411415 | X85: 0 | Y85: 0 | Z85: 0 | AA85: 0 | AB85: 0 | AC85: 0 | AD85: 0 | AE85: 0 | AF85: 0 | AG85: 0.004891502214 | AH85: 0.06515411415 | AI85: 0 | AJ85: 0 | AK85: 0 | AL85: 0 | AM85: 0 | AN85: 0 | AO85: 0 | AP85: 0 | AQ85: 0 | AR85: 0.004891502214 | AS85: 0.06515411415 | AT85: 0.2839065919 | AU85: 0.7975949907 | AV85: 1.768840625 | AW85: 3.382135051 | AX85: 0 | AY85: 0 | AZ85: 0 | BA85: 0 | BB85: 0 | BC85: 0 | BD85: 0 | BE85: 0 | BF85: 0 | BG85: 0.004891502214
B86: Surfacing Treatment: | C86: Reseal (1) | I86: Rutting | J86: 3.5 | K86: 3.605755286 | L86: 3.711349801 | M86: 3.817222928 | N86: 3.923733992 | O86: 4.031185711 | P86: 4.139839745 | Q86: 4.249927368 | R86: 4.36165702 | S86: 4.475219801 | T86: 4.590793544 | U86: 4.708545917 | V86: 4.828636806 | W86: 4.951220195 | X86: 5.076445665 | Y86: 5.2044596 | Z86: 5.335406188 | AA86: 5.46942824 | AB86: 5.60666789 | AC86: 5.747267188 | AD86: 5.891368607 | AE86: 6.039115491 | AF86: 6.190652451 | AG86: 6.346125711 | AH86: 6.505683431 | AI86: 6.669475992 | AJ86: 6.837656263 | AK86: 7.010379851 | AL86: 7.18780533 | AM86: 7.370094465 | AN86: 7.557412421 | AO86: 7.749927966 | AP86: 7.947813666 | AQ86: 8.151246078 | AR86: 8.360405936 | AS86: 8.575478338 | AT86: 8.796652928 | AU86: 9.02412408 | AV86: 9.258091077 | AW86: 9.498758295 | AX86: 1 | AY86: 1.641141738 | AZ86: 2.006144098 | BA86: 2.322197184 | BB86: 2.615801159 | BC86: 2.897589532 | BD86: 3.17317167 | BE86: 3.445979652 | BF86: 3.718328117 | BG86: 3.991892811
B87: Structural Treatment: | C87: Rehabilitation (5-2) | I87: IRI | J87: 1.9 | K87: 1.937018609 | L87: 1.974742449 | M87: 2.014237278 | N87: 2.051927006 | O87: 2.089983065 | P87: 2.12844594 | Q87: 2.167358405 | R87: 2.206760069 | S87: 2.246688211 | T87: 2.287178399 | U87: 2.328264964 | V87: 2.37002857 | W87: 2.412989503 | X87: 2.458176897 | Y87: 2.501962316 | Z87: 2.546524296 | AA87: 2.591878795 | AB87: 2.638058584 | AC87: 2.685096784 | AD87: 2.733026959 | AE87: 2.781883189 | AF87: 2.831700144 | AG87: 2.882560601 | AH87: 2.934990689 | AI87: 2.990029812 | AJ87: 3.044018222 | AK87: 3.099183752 | AL87: 3.155533735 | AM87: 3.213108569 | AN87: 3.271949666 | AO87: 3.332099502 | AP87: 3.39360166 | AQ87: 3.456500875 | AR87: 3.520890909 | AS87: 3.587313113 | AT87: 3.65682762 | AU87: 3.730826676 | AV87: 3.81096652 | AW87: 3.899127068 | AX87: 1.8 | AY87: 1.917413768 | AZ87: 1.993638278 | BA87: 2.062749209 | BB87: 2.128730071 | BC87: 2.193184659 | BD87: 2.256963435 | BE87: 2.320590568 | BF87: 2.384422917 | BG87: 2.4487689
I88: Treatment | J88: 0 | K88: 0 | L88: 0 | M88: 1 | Q88: 0 | R88: 0 | S88: 0 | T88: 0 | U88: 0 | V88: 0 | W88: 0 | X88: 1 | AB88: 0 | AC88: 0 | AD88: 0 | AE88: 0 | AF88: 0 | AG88: 0 | AH88: 0 | AI88: 1 | AM88: 0 | AN88: 0 | AO88: 0 | AP88: 0 | AQ88: 0 | AR88: 0 | AS88: 0 | AT88: 0 | AU88: 0 | AV88: 0 | AW88: 0 | AX88: 5-2 | BB88: 0 | BC88: 0 | BD88: 0 | BE88: 0 | BF88: 0 | BG88: 0
I89: RAC | M89: 63000 | X89: 63000 | AI89: 63000 | AX89: 560000
I90: RUC | J90: 645940.4371 | K90: 663311.8365 | L90: 681172.971 | M90: 699575.2126 | N90: 718408.5981 | O90: 737760.9076 | P90: 757648.231 | Q90: 778087.3187 | R90: 799095.3999 | S90: 820690.2232 | T90: 842890.0951 | U90: 865713.9143 | V90: 889183.2713 | W90: 913340.3897 | X90: 938253.9142 | Y90: 963778.0314 | Z90: 990031.5058 | AA90: 1017036.742 | AB90: 1044817.74 | AC90: 1073399.376 | AD90: 1102807.434 | AE90: 1133068.654 | AF90: 1164210.773 | AG90: 1196265.324 | AH90: 1229291.568 | AI90: 1263384.273 | AJ90: 1298351.322 | AK90: 1334356.654 | AL90: 1371433.062 | AM90: 1409616.668 | AN90: 1448945.021 | AO90: 1489457.163 | AP90: 1531193.708 | AQ90: 1574196.905 | AR90: 1618514.413 | AS90: 1664231.41 | AT90: 1711481.156 | AU90: 1760435.378 | AV90: 1811302.855 | AW90: 1864329.925 | AX90: 1921605.446 | AY90: 1779295.369 | AZ90: 1830713.225 | BA90: 1882936.277 | BB90: 1936335.521 | BC90: 1991086.513 | BD90: 2047305.264 | BE90: 2105083.546 | BF90: 2164501.953 | BG90: 2225640.938
I91: Crash savings
I92: Capacity benefits

Sheet SR-Base
A1: Summary Results - Base Case | J1: 1 = reseal, 2 = reseal with SC, 3 = resurface with M&R, 4 = resurface,
J2: 5-1 = rehabilitation (age), 5-2 = rehabilitation (IRI), 5-3 = rehabilitation (RUT), 5-4 = rehabilitation (CRK), 5-5 = rehabilitation (struct)
J3: 6-1 = reconstruction (age), 6-2 = reconstruction (IRI), 6-3 = reconstruction (RUT), 6-4 = reconstruction (CRK), 6-5 = reconstruction (struct)
A4: ID | B4: Road Name | C4: Road Class | D4: Pav Type | E4: Climate Zone | F4: Surface Treatment Year | G4: Remaining Surface Life | H4: Surfacing Treatment | I4: Structural Treatment Year | J4: Remaining Structural Life | K4: Structural Treatment | L4: Asphalt Depth | M4: Granular Depth | N4: Latitude | O4: Longitude
A5: 1 | B5: Section_A1_unmod Seal_Base_5.2 IRI_Alt_4IRI | C5: A1_unmod Seal_Base_5.2 IRI_Alt_4IRI | D5: SS | E5: Victoria Mid-North | F5: 2031 | G5: 12 | I5: 2031 | J5: 12 | K5: Reconstruction (6-2) | M5: 36 | N5: 141
A6: 2 | B6: Section_A2_unmod Seal_Base_8 IRI_Alt_4IRI | C6: A2_unmod Seal_Base_8 IRI_Alt_4IRI | D6: SS | E6: Victoria Mid-North | F6: 2030 | G6: 11 | H6: Reseal (2) | I6: 2047 | J6: 28 | K6: Reconstruction (6-2) | M6: 36 | N6: 141
A7: 3 | B7: Section_A3_mod Seal_Base_5.2 IRI_Alt_4IRI | C7: A3_mod Seal_Base_5.2 IRI_Alt_4IRI | D7: SS | E7: Victoria Mid-North | F7: 2031 | G7: 12 | I7: 2031 | J7: 12 | K7: Reconstruction (6-2) | M7: 36 | N7: 141
A8: 4 | B8: Section_A4_mod Seal_Base_8 IRI_Alt_4IRI | C8: A4_mod Seal_Base_8 IRI_Alt_4IRI | D8: SS | E8: Victoria Mid-North | F8: 2033 | G8: 14 | I8: 2033 | J8: 14 | K8: Rehabilitation (5-4) | M8: 36 | N8: 141
A9: 5 | B9: Alt_Section_A1_unmod Seal_Base_5.2 IRI_Alt_4IRI | C9: Alt_A1_unmod Seal_Base_5.2 IRI_Alt_4IRI | D9: SS | E9: Victoria Mid-North | F9: 2030 | G9: 11 | H9: Reseal (2) | I9: 2066 | J9: 47 | K9: Reconstruction (6-2) | M9: 36 | N9: 141
A10: 6 | B10: Alt_Section_A2_unmod Seal_Base_8 IRI_Alt_4IRI | C10: Alt_A2_unmod Seal_Base_8 IRI_Alt_4IRI | D10: SS | E10: Victoria Mid-North | F10: 2030 | G10: 11 | H10: Reseal (2) | I10: - | J10: 50+ | K10: No Treatment | M10: 36 | N10: 141
A11: 7 | B11: Alt_Section_A3_mod Seal_Base_5.2 IRI_Alt_4IRI | C11: Alt_A3_mod Seal_Base_5.2 IRI_Alt_4IRI | D11: SS | E11: Victoria Mid-North | F11: 2030 | G11: 11 | H11: Reseal (2) | I11: 2066 | J11: 47 | K11: Reconstruction (6-2) | M11: 36 | N11: 141
A12: 8 | B12: Alt_Section_A4_mod Seal_Base_8 IRI_Alt_4IRI | C12: Alt_A4_mod Seal_Base_8 IRI_Alt_4IRI | D12: SS | E12: Victoria Mid-North | F12: 2033 | G12: 14 | I12: 2033 | J12: 14 | K12: Rehabilitation (5-4) | M12: 36 | N12: 141

Sheet SR-Alt
A1: Summary Results - Alternative | J1: 1 = reseal, 2 = reseal with SC, 3 = resurface with M&R, 4 = resurface,
J2: 5-1 = rehabilitation (age), 5-2 = rehabilitation (IRI), 5-3 = rehabilitation (RUT), 5-4 = rehabilitation (CRK), 5-5 = rehabilitation (struct)
J3: 6-1 = reconstruction (age), 6-2 = reconstruction (IRI), 6-3 = reconstruction (RUT), 6-4 = reconstruction (CRK), 6-5 = reconstruction (struct)
A4: ID | B4: Road Name | C4: Road Class | D4: Pav Type | E4: Climate Zone | F4: Surface Treatment Year | G4: Remaining Surface Life | H4: Surfacing Treatment | I4: Structural Treatment Year | J4: Remaining Structural Life | K4: Structural Treatment | L4: Asphalt Depth | M4: Granular Depth | N4: Latitude | O4: Longitude | P4: Reliability
A5: 1 | B5: Section_A1_unmod Seal_Base_5.2 IRI_Alt_4IRI | C5: A1_unmod Seal_Base_5.2 IRI_Alt_4IRI | D5: SS | E5: Victoria Mid-North | F5: 2020 | G5: 1 | H5: Reseal (1) | I5: 2033 | J5: 14 | K5: Rehabilitation (5-2) | M5: 36 | N5: 141 | P5: Poor
A6: 2 | B6: Section_A2_unmod Seal_Base_8 IRI_Alt_4IRI | C6: A2_unmod Seal_Base_8 IRI_Alt_4IRI | D6: SS | E6: Victoria Mid-North | F6: 2020 | G6: 1 | H6: Reseal (1) | I6: 2033 | J6: 14 | K6: Rehabilitation (5-2) | M6: 36 | N6: 141
A7: 3 | B7: Section_A3_mod Seal_Base_5.2 IRI_Alt_4IRI | C7: A3_mod Seal_Base_5.2 IRI_Alt_4IRI | D7: SS | E7: Victoria Mid-North | F7: 2022 | G7: 3 | H7: Reseal (1) | I7: 2033 | J7: 14 | K7: Rehabilitation (5-2) | M7: 36 | N7: 141
A8: 4 | B8: Section_A4_mod Seal_Base_8 IRI_Alt_4IRI | C8: A4_mod Seal_Base_8 IRI_Alt_4IRI | D8: SS | E8: Victoria Mid-North | F8: 2022 | G8: 3 | H8: Reseal (1) | I8: 2033 | J8: 14 | K8: Rehabilitation (5-2) | M8: 36 | N8: 141
A9: 5 | B9: Alt_Section_A1_unmod Seal_Base_5.2 IRI_Alt_4IRI | C9: Alt_A1_unmod Seal_Base_5.2 IRI_Alt_4IRI | D9: SS | E9: Victoria Mid-North | F9: 2020 | G9: 1 | H9: Reseal (1) | I9: 2055 | J9: 36 | K9: Rehabilitation (5-4) | M9: 36 | N9: 141
A10: 6 | B10: Alt_Section_A2_unmod Seal_Base_8 IRI_Alt_4IRI | C10: Alt_A2_unmod Seal_Base_8 IRI_Alt_4IRI | D10: SS | E10: Victoria Mid-North | F10: 2020 | G10: 1 | H10: Reseal (1) | I10: 2055 | J10: 36 | K10: Rehabilitation (5-4) | M10: 36 | N10: 141
A11: 7 | B11: Alt_Section_A3_mod Seal_Base_5.2 IRI_Alt_4IRI | C11: Alt_A3_mod Seal_Base_5.2 IRI_Alt_4IRI | D11: SS | E11: Victoria Mid-North | F11: 2022 | G11: 3 | H11: Reseal (1) | I11: 2059 | J11: 40 | K11: Rehabilitation (5-2) | M11: 36 | N11: 141
A12: 8 | B12: Alt_Section_A4_mod Seal_Base_8 IRI_Alt_4IRI | C12: Alt_A4_mod Seal_Base_8 IRI_Alt_4IRI | D12: SS | E12: Victoria Mid-North | F12: 2022 | G12: 3 | H12: Reseal (1) | I12: 2059 | J12: 40 | K12: Rehabilitation (5-2) | M12: 36 | N12: 141

Sheet WP-Base
A1: Work Program Results - Base Case | I1: 1 = reseal, 2 = reseal with SC, 3 = resurface with M&R, 4 = resurface,
I2: 5-1 = rehabilitation (age), 5-2 = rehabilitation (IRI), 5-3 = rehabilitation (RUT), 5-4 = rehabilitation (CRK), 5-5 = rehabilitation (struct)
I3: 6-1 = reconstruction (age), 6-2 = reconstruction (IRI), 6-3 = reconstruction (RUT), 6-4 = reconstruction (CRK), 6-5 = reconstruction (struct)
A4: ID | B4: Road Name | C4: Road Class | D4: Pavement Type | E4: Climate Zone | F4: Year | G4: AADT | H4: SNP | I4: Cracking | J4: Rutting | K4: IRI | L4: Treatment
A5: 1 | B5: Section_A1_unmod Seal_Base_5.2 IRI_Alt_4IRI | C5: A1_unmod Seal_Base_5.2 IRI_Alt_4IRI | D5: SS | E5: Victoria Mid-North | F5: 2031 | G5: 2687.087871 | H5: 4.916052511 | I5: 37.37351008 | J5: 8.551799294 | K5: 5.845236849 | L5: Reconstruction (6-2)
A6: 1 | B6: Section_A1_unmod Seal_Base_5.2 IRI_Alt_4IRI | C6: A1_unmod Seal_Base_5.2 IRI_Alt_4IRI | D6: SS | E6: Victoria Mid-North | F6: 2048 | G6: 4088.721974 | H6: 6.016938674 | I6: 14.13222544 | J6: 9.707783856 | K6: 5.385219052 | L6: Reconstruction (6-2)
A7: 1 | B7: Section_A1_unmod Seal_Base_5.2 IRI_Alt_4IRI | C7: A1_unmod Seal_Base_5.2 IRI_Alt_4IRI | D7: SS | E7: Victoria Mid-North | F7: 2062 | G7: 5777.25711 | H7: 6.1354364 | I7: 3.382135051 | J7: 11.26111763 | K7: 5.40032422 | L7: Reconstruction (6-2)
A8: 2 | B8: Section_A2_unmod Seal_Base_8 IRI_Alt_4IRI | C8: A2_unmod Seal_Base_8 IRI_Alt_4IRI | D8: SS | E8: Victoria Mid-North | F8: 2030 | G8: 2621.549142 | H8: 4.949701764 | I8: 28.11868002 | J8: 7.809637601 | K8: 4.928716463 | L8: Reseal (2)
A9: 2 | B9: Section_A2_unmod Seal_Base_8 IRI_Alt_4IRI | C9: A2_unmod Seal_Base_8 IRI_Alt_4IRI | D9: SS | E9: Victoria Mid-North | F9: 2047 | G9: 3988.997047 | H9: 4.35223403 | I9: 14.13222544 | J9: 15.56468004 | K9: 8.322550879 | L9: Reconstruction (6-2)
A10: 2 | B10: Section_A2_unmod Seal_Base_8 IRI_Alt_4IRI | C10: A2_unmod Seal_Base_8 IRI_Alt_4IRI | D10: SS | E10: Victoria Mid-North | F10: 2066 | G10: 6377.010871 | H10: 5.93686829 | I10: 28.11868002 | J10: 16.02253351 | K10: 8.570353264 | L10: Reconstruction (6-2)
A11: 3 | B11: Section_A3_mod Seal_Base_5.2 IRI_Alt_4IRI | C11: A3_mod Seal_Base_5.2 IRI_Alt_4IRI | D11: SS | E11: Victoria Mid-North | F11: 2031 | G11: 2687.087871 | H11: 4.916052511 | I11: 37.37351008 | J11: 8.551799294 | K11: 5.845236849 | L11: Reconstruction (6-2)
A12: 3 | B12: Section_A3_mod Seal_Base_5.2 IRI_Alt_4IRI | C12: A3_mod Seal_Base_5.2 IRI_Alt_4IRI | D12: SS | E12: Victoria Mid-North | F12: 2048 | G12: 4088.721974 | H12: 6.016938674 | I12: 14.13222544 | J12: 9.707783856 | K12: 5.385219052 | L12: Reconstruction (6-2)
A13: 3 | B13: Section_A3_mod Seal_Base_5.2 IRI_Alt_4IRI | C13: A3_mod Seal_Base_5.2 IRI_Alt_4IRI | D13: SS | E13: Victoria Mid-North | F13: 2062 | G13: 5777.25711 | H13: 6.1354364 | I13: 3.382135051 | J13: 11.26111763 | K13: 5.40032422 | L13: Reconstruction (6-2)
A14: 4 | B14: Section_A4_mod Seal_Base_8 IRI_Alt_4IRI | C14: A4_mod Seal_Base_8 IRI_Alt_4IRI | D14: SS | E14: Victoria Mid-North | F14: 2033 | G14: 2823.121694 | H14: 4.8482071 | I14: 58.89938738 | J14: 10.08325804 | K14: 7.830682284 | L14: Rehabilitation (5-4)
A15: 4 | B15: Section_A4_mod Seal_Base_8 IRI_Alt_4IRI | C15: A4_mod Seal_Base_8 IRI_Alt_4IRI | D15: SS | E15: Victoria Mid-North | F15: 2053 | G15: 4626.013621 | H15: 5.896508043 | I15: 37.37351008 | J15: 13.02667335 | K15: 8.482515238 | L15: Reconstruction (6-2)
